Workbook

Sheet Inputs
A1: Company | C1: Kentucky Power Company
A2: State/Jurisdiction | C2: Kentucky Jurisdiction
A3: Sample Year Begins | C3: 2019-04-01 | D3: =+C3+0/24 -> 2019-04-01
A4: Test Year Ends | C4: =DATE(YEAR(TYStart)+1,MONTH(TYStart),DAY(TYStart))-1 -> 2020-03-31 | D4: =+C4+23/24 -> 2020-03-31T23:00:00
A5: Reporting Year Begins | C5: 2019-04-01
A8: Loss Factors by System | G8: Coincident Peaks
B9: Total | C9: Fixed | D9: Variable | G9: Year | H9: Month | I9: Day | J9: Hour Ended | K9: Coincident Peak
A10: Transmission | B10: 0.03549 | C10: 0.001024981949 | D10: =+B10-C10 -> 0.03446501805 | G10: =YEAR(TYStart) -> 2019 | H10: =MONTH(TYStart) -> 4 | I10: 1 | J10: 7 | K10: =DATEVALUE(H10&"/"&I10&"/"&G10)+(J10-1)/24 -> 2019-04-01T06:00:00
A11: Subtransmission | B11: 0.01302764875 | C11: 0.001244081772 | D11: =+B11-C11 -> 0.01178356697 | G11: =IF(H11=1,G10+1,G10) -> 2019 | H11: =IF(H10+1=13,1,H10+1) -> 5 | I11: 28 | J11: 16 | K11: =DATEVALUE(H11&"/"&I11&"/"&G11)+(J11-1)/24 -> 2019-05-28T15:00:00
A12: Primary Distribution | B12: 0.0107652648 | C12: 0.002453253748 | D12: =+B12-C12 -> 0.008312011052 | G12: =IF(H12=1,G11+1,G11) -> 2019 | H12: =IF(H11+1=13,1,H11+1) -> 6 | I12: 27 | J12: 16 | K12: 2019-06-27T15:00:00
A13: Secondary Distribution | B13: 0.008047009507 | C13: 0.004131543307 | D13: =+B13-C13 -> 0.0039154662 | G13: 2019 | H13: 7 | I13: 19 | J13: 16 | K13: 2019-07-19T15:00:00
G14: 2019 | H14: 8 | I14: 19 | J14: 16 | K14: 2019-08-19T15:00:00
G15: 2019 | H15: 9 | I15: 11 | J15: 16 | K15: 2019-09-11T15:00:00
A16: Distribution Load Served | G16: 2019 | H16: 10 | I16: 1 | J16: 16 | K16: 2019-10-01T15:00:00
A17: on Subtran System | B17: 0.7736304754 | G17: 2019 | H17: 11 | I17: 13 | J17: 8 | K17: 2019-11-13T07:00:00
A18: on Transmission System | B18: =1-DistAtSubtran -> 0.2263695246 | G18: 2019 | H18: 12 | I18: 19 | J18: 8 | K18: 2019-12-19T07:00:00
G19: 2020 | H19: 1 | I19: 22 | J19: 8 | K19: 2020-01-22T07:00:00
G20: 2020 | H20: 2 | I20: 15 | J20: 8 | K20: 2020-02-15T07:00:00
G21: 2020 | H21: 3 | I21: 1 | J21: 8 | K21: 2020-03-01T07:00:00
A26: Time of Day Inputs
A28: Holiday Name | B28: Date | D28: Peak Start Hour | E28: 7 | F28: =+E28/24 -> 07:00:00
A29: New Year's Day | D29: Peak End Hour | E29: 21 | F29: =+E29/24 -> 21:00:00
A30: Presidents' Day
A31: Memorial Day | D31: Use Daylight Savings | E31: FALSE
A32: Independence Day | D32: DST Date #1 | E32: 2019-11-03
A33: Labor Day | D33: DST Date #2 | E33: 2020-03-08
A34: Thanksgiving Day
A35: Christmas Day
A40: DST Dates
B41: 2011 | C41: 2012 | D41: 2013 | E41: 2014
A42: Starts | B42: 2011-03-13 | C42: 2012-03-11 | D42: 2013-03-10 | E42: 2014-03-09
A43: Ends | B43: 2011-11-06 | C43: 2012-11-04 | D43: 2013-11-03 | E43: 2014-11-02

Sheet Accum Loss Factors (hidden)
A6: Cumulative Total Loss Factors
B8: Voltage Level
B9: Secondary | C9: Primary | D9: Subtransmission | E9: Transmission
A10: @ Primary | B10: =1+Inputs!B13 -> 1.00804701 | C10: 1 | D10: 0 | E10: 0
A11: @ Subtran before split | B11: =+B10*C11 -> 1.018898902 | C11: =1+Inputs!B12 -> 1.010765265 | D11: 0 | E11: 0
A12: @ Subtransmission | B12: =+DistAtSubtran*B11 -> 0.7882512423 | C12: =+C11*DistAtSubtran -> 0.7819588123 | D12: 1 | E12: 0
A13: @ Transmission | B13: =+C13*B10 -> 1.029167963 | C13: =(1+Inputs!B12)*((D13*DistAtSubtran)+DistAtTran) -> 1.02095235 | D13: =1+Inputs!B11 -> 1.013027649 | E13: 1
A14: @ Generation | B14: =+B13*E14 -> 1.065693134 | C14: =+C13*E14 -> 1.057185948 | D14: =+D13*E14 -> 1.04898 | E14: =1+Inputs!B10 -> 1.03549
A17: Voltage Factors
B19: Voltage Level
B20: Secondary | C20: Primary | D20: Subtransmission | E20: Transmission
A21: @ Primary | B21: 1 | C21: 1 | D21: 0 | E21: 0
A22: @ Subtran before split | B22: 1 | C22: =1+Inputs!B23 -> 1 | D22: 0 | E22: 0
A23: @ Subtransmission | B23: =+DistAtSubtran -> 0.7736304754 | C23: =+DistAtSubtran -> 0.7736304754 | D23: 1 | E23: 0
A24: @ Transmission | B24: 1 | C24: 1 | D24: 1 | E24: 1
A25: @ Generation | B25: 1 | C25: 1 | D25: 1 | E25: 1

Sheet Metered
D1: Total | E1: Total @ | F1: Total @ | G1: Total @ | H1: Total @ | I1: Res | J1: Res NMS | K1: C&I NMS | L1: GS Sec | M1: GS Pri | N1: GS Sub | O1: LGS Sec | P1: LGS Pri | Q1: LGS Sub | R1: LGS Tran | S1: PS Sec | T1: PS Pri | U1: IGS Sec | V1: IGS Pri | W1: IGS Sub | X1: IGS Tran | Y1: MW | Z1: OL | AA1: SL | AB1: Blank 1 | AC1: Blank 2 | AD1: Blank 3 | AE1: Blank 4 | AF1: Blank 5 | AG1: Blank 6 | AH1: Blank 7 | AI1: Blank 8 | AJ1: Blank 9 | AK1: Blank 10 | AL1: Blank 11 | AM1: Blank 12
A2: Period | B2: On Peak | C2: Date | D2: Metered | E2: Secondary | F2: Primary | G2: Subtransmission | H2: Transmission | I2: Secondary | J2: Secondary | K2: Secondary | L2: Secondary | M2: Primary | N2: Subtransmission | O2: Secondary | P2: Primary | Q2: Subtransmission | R2: Transmission | S2: Secondary | T2: Primary | U2: Secondary | V2: Primary | W2: Subtransmission | X2: Transmission | Y2: Secondary | Z2: Secondary | AA2: Secondary | AB2: Secondary | AC2: Secondary | AD2: Subtransmission | AE2: Transmission | AF2: Secondary | AG2: Primary | AH2: Subtransmission | AI2: Transmission | AJ2: Secondary | AK2: Primary | AL2: Subtransmission | AM2: Subtransmission
A3: =MONTH(C3) -> 4 | B3: =PeakTime(C3,Holidays,PkStart,PkEnd,UseDST,DST_1,DST_2) -> FALSE | C3: =+Inputs!C3 -> 2019-04-01 | D3: =SUM(OFFSET(I3,0,0,1,COUNTA(I3:IV3))) -> 743611.742 | E3: =SUMIF(OFFSET($I$2,0,0,1,COUNTA($I$2:$IV$2)),E$2,OFFSET(I3,0,0,1,COUNTA(I3:IV3))) -> 518460.498 | F3: =E3+SUMIF(OFFSET($I$2,0,0,1,COUNTA($I$2:$IV$2)),F$2,OFFSET(I3,0,0,1,COUNTA(I3:IV3))) -> 545889.1454 | G3: =F3*DistAtSubtran+SUMIF(OFFSET($I$2,0,0,1,COUNTA($I$2:$IV$2)),G$2,OFFSET(I3,0,0,1,COUNTA(I3:IV3))) -> 587490.1135 | H3: =SUM(OFFSET(I3,0,0,1,COUNTA(I3:IV3))) -> 743611.742 | I3: 404716.639 | J3: 79.7129417 | K3: 51.61985819 | L3: 60157.93309 | M3: 852.8451952 | N3: 164.5532505 | O3: 30632.46627 | P3: 5943.500038 | Q3: 1580.531627 | R3: 42.55312008 | S3: 8138.052825 | T3: 168.2434698 | U3: 1824.788175 | V3: 20464.05876 | W3: 163428.5495 | X3: 32506.40901 | Y3: 200.4670083 | Z3: 10510.24992 | AA3: 2148.568901 | AB3: 0 | AC3: 0 | AD3: 0 | AE3: 0 | AF3: 0 | AG3: 0 | AH3: 0 | AI3: 0 | AJ3: 0 | AK3: 0 | AL3: 0 | AM3: 0
A4: =MONTH(C4) -> 4 | B4: FALSE | C4: =+C3+1/24 -> 2019-04-01T01:00:00 | D4: 730757.6675 | E4: 504029.5977 | F4: 531506.2042 | G4: 577919.8383 | H4: 730757.6675 | I4: 389335.5382 | J4: 76.68348189 | K4: 52.64594113 | L4: 61353.73313 | M4: 869.7977777 | N4: 167.8241871 | O4: 30380.23385 | P4: 5894.560349 | Q4: 1567.517287 | R4: 42.20273118 | S4: 8071.042853 | T4: 166.8581273 | U4: 1908.379849 | V4: 20545.39025 | W4: 164995.0994 | X4: 32478.81966 | Y4: 192.5216261 | Z4: 10510.24992 | AA4: 2148.568901 | AB4: 0 | AC4: 0 | AD4: 0 | AE4: 0 | AF4: 0 | AG4: 0 | AH4: 0 | AI4: 0 | AJ4: 0 | AK4: 0 | AL4: 0 | AM4: 0
A5: 4 | B5: FALSE | C5: 2019-04-01T02:00:00 | D5: 728996.751 | E5: 501657.0487 | F5: 529442.8001 | G5: 576638.2239 | H5: 728996.751 | I5: 385149.1816 | J5: 75.8589376 | K5: 52.79278088 | L5: 61524.86061 | M5: 872.2238126 | N5: 168.2922813 | O5: 31673.33188 | P5: 6145.455204 | Q5: 1634.236771 | R5: 43.99903956 | S5: 8414.577062 | T5: 173.9602423 | U5: 1908.576529 | V5: 20594.11213 | W5: 165242.6098 | X5: 32464.81303 | Y5: 199.0504173 | Z5: 10510.24992 | AA5: 2148.568901 | AB5: 0 | AC5: 0 | AD5: 0 | AE5: 0 | AF5: 0 | AG5: 0 | AH5: 0 | AI5: 0 | AJ5: 0 | AK5: 0 | AL5: 0 | AM5: 0
A6: 4 | B6: FALSE | C6: 2019-04-01T03:00:00 | D6: 749121.3206 | E6: 522572.9977 | F6: 551059.6102 | G6: 591827.0367 | H6: 749121.3206 | I6: 403034.1578 | J6: 79.3815604 | K6: 53.11078841 | L6: 61895.4675 | M6: 877.4778213 | N6: 169.3060224 | O6: 33758.29716 | P6: 6549.993027 | Q6: 1741.813926 | R6: 46.89537108 | S6: 8968.484717 | T6: 185.4115499 | U6: 1924.368702 | V6: 20873.73012 | W6: 163599.4085 | X6: 32504.28652 | Y6: 200.9106438 | Z6: 10510.24992 | AA6: 2148.568901 | AB6: 0 | AC6: 0 | AD6: 0 | AE6: 0 | AF6: 0 | AG6: 0 | AH6: 0 | AI6: 0 | AJ6: 0 | AK6: 0 | AL6: 0 | AM6: 0
A7: 4 | B7: FALSE | C7: 2019-04-01T04:00:00 | D7: 809983.8715 | E7: 580864.617 | F7: 609677.4671 | G7: 639431.5308 | H7: 809983.8715 | I7: 453420.5323 | J7: 89.30565481 | K7: 56.26261321 | L7: 65568.6133 | M7: 929.5511655 | N7: 179.353377 | O7: 37047.09581 | P7: 7188.106025 | Q7: 1911.50481 | R7: 51.4640089 | S7: 9842.211857 | T7: 203.474702 | U7: 1982.120891 | V7: 20491.71824 | W7: 165675.6039 | X7: 32488.47829 | Y7: 199.6556734 | Z7: 10510.24992 | AA7: 2148.568901 | AB7: 0 | AC7: 0 | AD7: 0 | AE7: 0 | AF7: 0 | AG7: 0 | AH7: 0 | AI7: 0 | AJ7: 0 | AK7: 0 | AL7: 0 | AM7: 0
A8: 4 | B8: FALSE | C8: 2019-04-01T05:00:00 | D8: 854992.7905 | E8: 624019.4859 | F8: 654909.6724 | G8: 673589.6354 | H8: 854992.7905 | I8: 487274.7984 | J8: 95.97358709 | K8: 58.73502283 | L8: 68449.96667 | M8: 970.3994501 | N8: 187.2348988 | O8: 41896.98486 | P8: 8129.11141 | Q8: 2161.742677 | R8: 58.20123695 | S8: 11130.67009 | T8: 230.1118703 | U8: 2249.444627 | V8: 21560.56375 | W8: 164582.5766 | X8: 33093.36265 | Y8: 204.0938569 | Z8: 10510.24992 | AA8: 2148.568901 | AB8: 0 | AC8: 0 | AD8: 0 | AE8: 0 | AF8: 0 | AG8: 0 | AH8: 0 | AI8: 0 | AJ8: 0 | AK8: 0 | AL8: 0 | AM8: 0
A9: 4 | B9: FALSE | C9: 2019-04-01T06:00:00 | D9: 909167.8346 | E9: 675138.6259 | F9: 711560.1588 | G9: 716634.3746 | H9: 909167.8346 | I9: 520520.6722 | J9: 102.2236772 | K9: 65.48359704 | L9: 77144.1187 | M9: 1093.644366 | N9: 211.0145385 | O9: 51524.4544 | P9: 9997.09243 | Q9: 2658.487534 | R9: 71.57524556 | S9: 13688.37651 | T9: 282.989065 | U9: 2391.733844 | V9: 25047.80704 | W9: 163280.2487 | X9: 31386.34982 | Y9: 207.4484045 | Z9: 7882.687778 | AA9: 1611.426728 | AB9: 0 | AC9: 0 | AD9: 0 | AE9: 0 | AF9: 0 | AG9: 0 | AH9: 0 | AI9: 0 | AJ9: 0 | AK9: 0 | AL9: 0 | AM9: 0
A10: 4 | B10: TRUE | C10: 2019-04-01T07:00:00 | D10: 942042.6902 | E10: 701414.161 | F10: 743554.1887 | G10: 741450.6652 | H10: 942042.6902 | I10: 526664.6188 | J10: 70.32134842 | K10: 0.4341092211 | L10: 93480.17499 | M10: 1324.116929 | N10: 255.4833467 | O10: 61983.14098 | P10: 12026.35131 | Q10: 3198.120379 | R10: 86.10394012 | S10: 16466.91034 | T10: 340.431574 | U10: 2525.438272 | V10: 28449.12796 | W10: 162760.881 | X10: 32187.91278 | Y10: 223.1220896 | Z10: 0 | AA10: 0 | AB10: 0 | AC10: 0 | AD10: 0 | AE10: 0 | AF10: 0 | AG10: 0 | AH10: 0 | AI10: 0 | AJ10: 0 | AK10: 0 | AL10: 0 | AM10: 0
A11: 4 | B11: TRUE | C11: 2019-04-01T08:00:00 | D11: 975292.281 | E11: 730135.4356 | F11: 774554.3909 | G11: 766340.6793 | H11: 975292.281 | I11: 536354.9756 | J11: 17.5821557 | K11: 0 | L11: 108948.4081 | M11: 1543.212362 | N11: 297.7569807 | O11: 64890.98875 | P11: 12590.54987 | Q11: 3348.155487 | R11: 90.14337966 | S11: 17239.43119 | T11: 356.4024199 | U11: 2457.555455 | V11: 29928.79071 | W11: 163475.8852 | X11: 33525.949 | Y11: 226.4942717 | Z11: 0 | AA11: 0 | AB11: 0 | AC11: 0 | AD11: 0 | AE11: 0 | AF11: 0 | AG11: 0 | AH11: 0 | AI11: 0 | AJ11: 0 | AK11: 0 | AL11: 0 | AM11: 0
A12: 4 | B12: TRUE | C12: 2019-04-01T09:00:00 | D12: 895021.1145 | E12: 651468.3671 | F12: 695815.9535 | G12: 705110.2218 | H12: 895021.1145 | I12: 456989.285 | J12: 0 | K12: 0 | L12: 107216.1127 | M12: 1518.675062 | N12: 293.0226016 | O12: 66881.9818 | P12: 12976.85462 | Q12: 3450.883992 | R12: 92.90916958 | S12: 17768.37347 | T12: 367.3376014 | U12: 2390.966986 | V12: 29484.71908 | W12: 163061.8883 | X12: 32306.45689 | Y12: 221.6471968 | Z12: 0 | AA12: 0 | AB12: 0 | AC12: 0 | AD12: 0 | AE12: 0 | AF12: 0 | AG12: 0 | AH12: 0 | AI12: 0 | AJ12: 0 | AK12: 0 | AL12: 0 | AM12: 0
A13: 4 | B13: TRUE | C13: 2019-04-01T10:00:00 | D13: 810477.9705 | E13: 568158.3463 | F13: 612725.4202 | G13: 640301.5087 | H13: 810477.9705 | I13: 384348.5177 | J13: 0 | K13: 0 | L13: 97654.01499 | M13: 1383.23162 | N13: 266.8893026 | O13: 66050.02896 | P13: 12815.434 | Q13: 3407.95804 | R13: 91.75346148 | S13: 17547.35058 | T13: 362.7682458 | U13: 2356.962639 | V13: 30005.64001 | W13: 162603.6033 | X13: 31382.34625 | Y13: 201.4713908 | Z13: 0 | AA13: 0 | AB13: 0 | AC13: 0 | AD13: 0 | AE13: 0 | AF13: 0 | AG13: 0 | AH13: 0 | AI13: 0 | AJ13: 0 | AK13: 0 | AL13: 0 | AM13: 0
A14: 4 | B14: TRUE | C14: 2019-04-01T11:00:00 | D14: 748852.9895 | E14: 507518.695 | F14: 551905.7227 | G14: 592305.2049 | H14: 748852.9895 | I14: 335012.1422 | J14: 0 | K14: 0 | L14: 87589.11865 | M14: 1240.666229 | N14: 239.3818502 | O14: 65150.14383 | P14: 12640.83273 | Q14: 3361.527012 | R14: 90.50338519 | S14: 17308.28029 | T14: 357.8257839 | U14: 2260.907778 | V14: 30147.70299 | W14: 161733.2094 | X14: 31522.64508 | Y14: 198.1022888 | Z14: 0 | AA14: 0 | AB14: 0 | AC14: 0 | AD14: 0 | AE14: 0 | AF14: 0 | AG14: 0 | AH14: 0 | AI14: 0 | AJ14: 0 | AK14: 0 | AL14: 0 | AM14: 0
A15: 4 | B15: TRUE | C15: 2019-04-01T12:00:00 | D15: 734645.925 | E15: 490871.6977 | F15: 533619.833 | G15: 580945.8738 | H15: 734645.925 | I15: 324406.8746 | J15: 0 | K15: 0 | L15: 86626.08568 | M15: 1227.025237 | N15: 236.7498724 | O15: 61135.66704 | P15: 11861.91919 | Q15: 3154.393591 | R15: 84.92667087 | S15: 16241.764 | T15: 335.7769714 | U15: 2264.99124 | V15: 29323.41384 | W15: 164730.1653 | X15: 32819.8566 | Y15: 196.3151892 | Z15: 0 | AA15: 0 | AB15: 0 | AC15: 0 | AD15: 0 | AE15: 0 | AF15: 0 | AG15: 0 | AH15: 0 | AI15: 0 | AJ15: 0 | AK15: 0 | AL15: 0 | AM15: 0
A16: 4 | B16: TRUE | C16: 2019-04-01T13:00:00 | D16: 683126.4083 | E16: 438428.0372 | F16: 480576.6878 | G16: 541000.0959 | H16: 683126.4083 | I16: 273773.0479 | J16: 0 | K16: 0 | L16: 84992.48501 | M16: 1203.885911 | N16: 232.2852271 | O16: 61033.18305 | P16: 11842.03461 | Q16: 3149.105764 | R16: 84.78430514 | S16: 16214.53733 | T16: 335.214096 | U16: 2222.811973 | V16: 28767.51602 | W16: 165829.9335 | X16: 33253.61165 | Y16: 191.9718626 | Z16: 0 | AA16: 0 | AB16: 0 | AC16: 0 | AD16: 0 | AE16: 0 | AF16: 0 | AG16: 0 | AH16: 0 | AI16: 0 | AJ16: 0 | AK16: 0 | AL16: 0 | AM16: 0
A17: 4 | B17: TRUE | C17: 2019-04-01T14:00:00 | D17: 657979.5608 | E17: 413977.4776 | F17: 457095.984 | G17: 521276.0814 | H17: 657979.5608 | I17: 253847.624 | J17: 0 | K17: 0 | L17: 82997.57247 | M17: 1175.628741 | N17: 226.8331131 | O17: 59011.06689 | P17: 11449.69116 | Q17: 3044.771411 | R17: 81.97528053 | S17: 15677.32664 | T17: 324.1079762 | U17: 2256.483576 | V17: 30169.07858 | W17: 164381.0935 | X17: 33148.90343 | Y17: 187.4040273 | Z17: 0 | AA17: 0 | AB17: 0 | AC17: 0 | AD17: 0 | AE17: 0 | AF17: 0 | AG17: 0 | AH17: 0 | AI17: 0 | AJ17: 0 | AK17: 0 | AL17: 0 | AM17: 0
A18: 4 | B18: TRUE | C18: 2019-04-01T15:00:00 | D18: 643955.1186 | E18: 402191.1706 | F18: 444099.4041 | G18: 509521.7165 | H18: 643955.1186 | I18: 247378.6226 | J18: 0 | K18: 0 | L18: 78225.60177 | M18: 1108.035608 | N18: 213.7912742 | O18: 58559.18659 | P18: 11362.01456 | Q18: 3021.455917 | R18: 81.34755058 | S18: 15557.2767 | T18: 321.6261026 | U18: 2274.726186 | V18: 29116.55721 | W18: 162717.6363 | X18: 33821.48354 | Y18: 195.7567439 | Z18: 0 | AA18: 0 | AB18: 0 | AC18: 0 | AD18: 0 | AE18: 0 | AF18: 0 | AG18: 0 | AH18: 0 | AI18: 0 | AJ18: 0 | AK18: 0 | AL18: 0 | AM18: 0
A19: 4 | B19: TRUE | C19: 2019-04-01T16:00:00 | D19: 613202.6001 | E19: 375080.1155 | F19: 413459.2409 | G19: 485056.4474 | H19: 613202.6001 | I19: 239965.5255 | J19: 0 | K19: 0 | L19: 69458.07005 | M19: 983.8468883 | N19: 189.8295311 | O19: 49957.43909 | P19: 9693.050456 | Q19: 2577.634846 | R19: 69.39842473 | S19: 13272.07136 | T19: 274.3825071 | U19: 2225.706844 | V19: 27427.84556 | W19: 162424.3139 | X19: 34482.18246 | Y19: 201.3026286 | Z19: 0 | AA19: 0 | AB19: 0 | AC19: 0 | AD19: 0 | AE19: 0 | AF19: 0 | AG19: 0 | AH19: 0 | AI19: 0 | AJ19: 0 | AK19: 0 | AL19: 0 | AM19: 0
A20: 4 | B20: TRUE | C20: 2019-04-01T17:00:00 | D20: 621512.8755 | E20: 386361.6358 | F20: 422409.7828 | G20: 491477.8394 | H20: 621512.8755 | I20: 264869.5203 | J20: 4.585950721 | K20: 0 | L20: 61467.75983 | M20: 870.6672125 | N20: 167.9919413 | O20: 45517.53221 | P20: 8831.592339 | Q20: 2348.550672 | R20: 63.23072381 | S20: 12092.5321 | T20: 249.9970942 | U20: 2223.160967 | V20: 26095.89043 | W20: 162172.2157 | X20: 34351.10362 | Y20: 186.5443586 | Z20: 0 | AA20: 0 | AB20: 0 | AC20: 0 | AD20: 0 | AE20: 0 | AF20: 0 | AG20: 0 | AH20: 0 | AI20: 0 | AJ20: 0 | AK20: 0 | AL20: 0 | AM20: 0
A21: 4 | B21: TRUE | C21: 2019-04-01T18:00:00 | D21: 585083.4238 | E21: 354204.5392 | F21: 387240.5405 | G21: 464560.3719 | H21: 585083.4238 | I21: 242057.4366 | J21: 41.11397001 | K21: 35.33933709 | L21: 59444.1999 | M21: 842.5048313 | N21: 162.5581165 | O21: 39754.45203 | P21: 7713.403978 | Q21: 2051.195232 | R21: 55.22493541 | S21: 10561.4686 | T21: 218.3443831 | U21: 2121.125875 | V21: 24261.74818 | W21: 162765.5351 | X21: 32808.36987 | Y21: 189.4028413 | Z21: 0 | AA21: 0 | AB21: 0 | AC21: 0 | AD21: 0 | AE21: 0 | AF21: 0 | AG21: 0 | AH21: 0 | AI21: 0 | AJ21: 0 | AK21: 0 | AL21: 0 | AM21: 0
A22: 4 | B22: TRUE | C22: 2019-04-01T19:00:00 | D22: 650732.9663 | E22: 416715.6421 | F22: 449460.6809 | G22: 515913.005 | H22: 650732.9663 | I22: 306931.6689 | J22: 60.45322548 | K22: 48.18019846 | L22: 56149.34362 | M22: 796.0163433 | N22: 153.5883388 | O22: 40387.94737 | P22: 7836.31865 | Q22: 2083.881448 | R22: 56.10495607 | S22: 10729.76777 | T22: 221.8237456 | U22: 2213.024407 | V22: 23890.88005 | W22: 165959.055 | X22: 33019.65564 | Y22: 195.2566004 | Z22: 0 | AA22: 0 | AB22: 0 | AC22: 0 | AD22: 0 | AE22: 0 | AF22: 0 | AG22: 0 | AH22: 0 | AI22: 0 | AJ22: 0 | AK22: 0 | AL22: 0 | AM22: 0
A23: 4 | B23: TRUE | C23: 2019-04-01T20:00:00 | D23: 682226.8291 | E23: 446750.5771 | F23: 479348.5763 | G23: 540326.1375 | H23: 682226.8291 | I23: 324749.9245 | J23: 63.962707 | K23: 52.55698775 | L23: 61250.0666 | M23: 868.3281211 | N23: 167.5406224 | O23: 39885.062 | P23: 7738.74573 | Q23: 2057.934264 | R23: 55.40637238 | S23: 10596.16743 | T23: 219.0617355 | U23: 2155.716392 | V23: 23771.86357 | W23: 167261.9957 | X23: 33335.37585 | Y23: 190.8488286 | Z23: 6481.320898 | AA23: 1324.950819 | AB23: 0 | AC23: 0 | AD23: 0 | AE23: 0 | AF23: 0 | AG23: 0 | AH23: 0 | AI23: 0 | AJ23: 0 | AK23: 0 | AL23: 0 | AM23: 0
A24: 4 | B24: FALSE | C24: 2019-04-01T21:00:00 | D24: 696006.8716 | E24: 458285.4027 | F24: 490877.7513 | G24: 551584.0479 | H24: 696006.8716 | I24: 332084.3655 | J24: 65.40729764 | K24: 54.02737575 | L24: 62963.66106 | M24: 892.621356 | N24: 172.2279101 | O24: 38166.9461 | P24: 7405.386284 | Q24: 1969.285296 | R24: 53.01965001 | S24: 10139.71976 | T24: 209.625284 | U24: 1953.668722 | V24: 24084.71568 | W24: 169684.5466 | X24: 33250.04082 | Y24: 198.7880844 | Z24: 10510.24992 | AA24: 2148.568901 | AB24: 0 | AC24: 0 | AD24: 0 | AE24: 0 | AF24: 0 | AG24: 0 | AH24: 0 | AI24: 0 | AJ24: 0 | AK24: 0 | AL24: 0 | AM24: 0
A25: 4 | B25: FALSE | C25: 2019-04-01T22:00:00 | D25: 688844.8939 | E25: 451047.0708 | F25: 483796.7536 | G25: 546057.7691 | H25: 688844.8939 | I25: 327093.8217 | J25: 64.42436073 | K25: 52.6655499 | L25: 61376.58525 | M25: 870.1217469 | N25: 167.8866957 | O25: 37711.0401 | P25: 7316.928591 | Q25: 1945.762089 | R25: 52.38632775 | S25: 10018.60032 | T25: 207.1213 | U25: 1855.664343 | V25: 24355.51115 | W25: 169664.2078 | X25: 33217.8974 | Y25: 215.4502946 | Z25: 10510.24992 | AA25: 2148.568901 | AB25: 0 | AC25: 0 | AD25: 0 | AE25: 0 | AF25: 0 | AG25: 0 | AH25: 0 | AI25: 0 | AJ25: 0 | AK25: 0 | AL25: 0 | AM25: 0
A26: 4 | B26: FALSE | C26: 2019-04-01T23:00:00 | D26: 696100.0083 | E26: 460764.4377 | F26: 492241.9665 | G26: 551442.0332 | H26: 696100.0083 | I26: 336756.6103 | J26: 66.32754243 | K26: 54.92953541 | L26: 64015.04055 | M26: 907.5265215 | N26: 175.1038053 | O26: 35673.04071 | P26: 6921.503379 | Q26: 1840.608215 | R26: 49.55523893 | S26: 9477.16998 | T26: 195.9279444 | U26: 1891.409145 | V26: 23452.57097 | W26: 168612.9347 | X26: 33179.83988 | Y26: 171.0910866 | Z26: 10510.24992 | AA26: 2148.568901 | AB26: 0 | AC26: 0 | AD26: 0 | AE26: 0 | AF26: 0 | AG26: 0 | AH26: 0 | AI26: 0 | AJ26: 0 | AK26: 0 | AL26: 0 | AM26: 0
A27: 4 | B27: FALSE | C27: 2019-04-02 | D27: 681032.3057 | E27: 448013.2264 | F27: 477803.505 | G27: 539693.9183 | H27: 681032.3057 | I27: 324301.8671 | J27: 63.87445767 | K27: 55.92232018 | L27: 65172.03482 | M27: 923.9289634 | N27: 178.2685944 | O27: 34539.57623 | P27: 6701.58161 | Q27: 1782.125283 | R27: 47.98068566 | S27: 9176.045228 | T27: 189.7025887 | U27: 1938.355417 | V27: 21975.06549 | W27: 168090.1717 | X27: 33130.25442 | Y27: 106.7320105 | Z27: 10510.24992 | AA27: 2148.568901 | AB27: 0 | AC27: 0 | AD27: 0 | AE27: 0 | AF27: 0 | AG27: 0 | AH27: 0 | AI27: 0 | AJ27: 0 | AK27: 0 | AL27: 0 | AM27: 0
A28: 4 | B28: FALSE | C28: 2019-04-02T01:00:00 | D28: 718067.1506 | E28: 486795.7446 | F28: 515650.3822 | G28: 568271.8395 | H28: 718067.1506 | I28: 360714.4531 | J28: 71.04627633 | K28: 57.38121417 | L28: 66872.23412 | M28: 948.0322982 | N28: 182.9192415 | O28: 35006.93526 | P28: 6792.261491 | Q28: 1806.239427 | R28: 48.6299179 | S28: 9300.207363 | T28: 192.2694765 | U28: 2006.850714 | V28: 20922.07435 | W28: 167359.8306 | X28: 33019.1493 | Y28: 107.817711 | Z28: 10510.24992 | AA28: 2148.568901 | AB28: 0 | AC28: 0 | AD28: 0 | AE28: 0 | AF28: 0 | AG28: 0 | AH28: 0 | AI28: 0 | AJ28: 0 | AK28: 0 | AL28: 0 | AM28: 0
A29: 4 | B29: FALSE | C29: 2019-04-02T02:00:00 | D29: 737492.8751 | E29: 509124.0059 | F29: 537662.6098 | G29: 583111.4937 | H29: 737492.8751 | I29: 381590.0113 | J29: 75.15792383 | K29: 57.85630653 | L29: 67425.90814 | M29: 955.8816077 | N29: 184.4337361 | O29: 35772.4929 | P29: 6940.799706 | Q29: 1845.739612 | R29: 49.69339304 | S29: 9503.591201 | T29: 196.4741681 | U29: 1937.892929 | V29: 20445.44838 | W29: 165129.1399 | X29: 32621.25864 | Y29: 102.2764211 | Z29: 10510.24992 | AA29: 2148.568901 | AB29: 0 | AC29: 0 | AD29: 0 | AE29: 0 | AF29: 0 | AG29: 0 | AH29: 0 | AI29: 0 | AJ29: 0 | AK29: 0 | AL29: 0 | AM29: 0
A30: 4 | B30: FALSE | C30: 2019-04-02T03:00:00 | D30: 718210.2489 | E30: 489966.8737 | F30: 518861.0495 | G30: 568191.4591 | H30: 718210.2489 | I30: 360766.7493 | J30: 71.05657659 | K30: 56.99828857 | L30: 66425.97151 | M30: 941.7057357 | N30: 181.6985553 | O30: 37887.99765 | P30: 7351.262987 | Q30: 1954.8925 | R30: 52.63214851 | S30: 10065.6122 | T30: 208.0932084 | U30: 1930.845726 | V30: 20393.11385 | W30: 164648.1476 | X30: 32511.82855 | Y30: 102.8236207 | Z30: 10510.24992 | AA30: 2148.568901 | AB30: 0 | AC30: 0 | AD30: 0 | AE30: 0 | AF30: 0 | AG30: 0 | AH30: 0 | AI30: 0 | AJ30: 0 | AK30: 0 | AL30: 0 | AM30: 0
A31: 4 | B31: FALSE | C31: 2019-04-02T04:00:00 | D31: 750956.3392 | E31: 521716.049 | F31: 551164.7195 | G31: 593731.3644 | H31: 750956.3392 | I31: 390390.7922 | J31: 76.8913246 | K31: 57.02867257 | L31: 66461.38111 | M31: 942.2077296 | N31: 181.7954131 | O31: 39580.40685 | P31: 7679.634658 | Q31: 2042.215089 | R31: 54.98316038 | S31: 10515.23044 | T31: 217.3884703 | U31: 1865.744157 | V31: 20609.43962 | W31: 165109.5299 | X31: 32403.09615 | Y31: 109.7554138 | Z31: 10510.24992 | AA31: 2148.568901 | AB31: 0 | AC31: 0 | AD31: 0 | AE31: 0 | AF31: 0 | AG31: 0 | AH31: 0 | AI31: 0 | AJ31: 0 | AK31: 0 | AL31: 0 | AM31: 0
A32: 4 | B32: FALSE | C32: 2019-04-02T05:00:00 | D32: 792132.5662 | E32: 558349.9736 | F32: 589375.5245 | G32: 626282.4887 | H32: 792132.5662 | I32: 418466.2044 | J32: 82.4210545 | K32: 59.32087272 | L32: 69132.71784 | M32: 980.0786566 | N32: 189.102465 | O32: 44037.73404 | P32: 8544.472771 | Q32: 2272.198092 | R32: 61.17506075 | S32: 11699.39772 | T32: 241.8695613 | U32: 2013.051871 | V32: 21259.12989 | W32: 167862.321 | X32: 32372.24506 | Y32: 200.3069447 | Z32: 10510.24992 | AA32: 2148.568901 | AB32: 0 | AC32: 0 | AD32: 0 | AE32: 0 | AF32: 0 | AG32: 0 | AH32: 0 | AI32: 0 | AJ32: 0 | AK32: 0 | AL32: 0 | AM32: 0
A33: 4 | B33: FALSE | C33: 2019-04-02T06:00:00 | D33: 858364.5179 | E33: 620800.3579 | F33: 657100.2824 | G33: 676737.406 | H33: 858364.5179 | I33: 465911.0241 | J33: 89.79660733 | K33: 61.48355429 | L33: 77132.90633 | M33: 1093.428888 | N33: 210.9729628 | O33: 52327.83053 | P33: 10152.96842 | Q33: 2699.939025 | R33: 72.69125629 | S33: 13901.80749 | T33: 287.401468 | U33: 2102.952264 | V33: 24766.12574 | W33: 165473.6902 | X33: 32806.94213 | Y33: 200.4033416 | Z33: 7532.34589 | AA33: 1539.807751 | AB33: 0 | AC33: 0 | AD33: 0 | AE33: 0 | AF33: 0 | AG33: 0 | AH33: 0 | AI33: 0 | AJ33: 0 | AK33: 0 | AL33: 0 | AM33: 0
A34: 4 | B34: TRUE | C34: 2019-04-02T07:00:00 | D34: 859617.526 | E34: 614703.6117 | F34: 657088.2993 | G34: 679274.0027 | H34: 859617.526 | I34: 448235.1085 | J34: 61.47307998 | K34: 8.359193994 | L34: 84351.91919 | M34: 1194.930947 | N34: 230.5574007 | O34: 62821.98567 | P34: 12189.10913 | Q34: 3241.401928 | R34: 87.26922204 | S34: 16689.76417 | T34: 345.0387819 | U34: 2321.948197 | V34: 28655.60877 | W34: 167458.5101 | X34: 31511.48806 | Y34: 213.0536234 | Z34: 0 | AA34: 0 | AB34: 0 | AC34: 0 | AD34: 0 | AE34: 0 | AF34: 0 | AG34: 0 | AH34: 0 | AI34: 0 | AJ34: 0 | AK34: 0 | AL34: 0 | AM34: 0
A35: 4 | B35: TRUE | C35: 2019-04-02T08:00:00 | D35: 871150.3405 | E35: 618175.2396 | F35: 663400.9954 | G35: 687574.9712 | H35: 871150.3405 | I35: 439474.5924 | J35: 1.466437347 | K35: 0 | L35: 94720.81147 | M35: 1341.683919 | N35: 258.8728309 | O35: 64329.74803 | P35: 12481.65448 | Q35: 3319.197364 | R35: 89.36373157 | S35: 17090.32773 | T35: 353.3199033 | U35: 2333.517103 | V35: 31049.09753 | W35: 170769.6736 | X35: 33312.23754 | Y35: 224.7764743 | Z35: 0 | AA35: 0 | AB35: 0 | AC35: 0 | AD35: 0 | AE35: 0 | AF35: 0 | AG35: 0 | AH35: 0 | AI35: 0 | AJ35: 0 | AK35: 0 | AL35: 0 | AM35: 0
A36: 4 | B36: TRUE | C36: 2019-04-02T09:00:00 | D36: 826598.6373 | E36: 571220.3996 | F36: 618065.149 | G36: 652350.9869 | H36: 826598.6373 | I36: 385794.1911 | J36: 0 | K36: 0 | L36: 97730.30467 | M36: 1384.312234 | N36: 267.0978029 | O36: 67300.92453 | P36: 13058.14047 | Q36: 3472.50002 | R36: 93.49114427 | S36: 17879.67297 | T36: 369.6385712 | U36: 2299.827187 | V36: 32032.65809 | W36: 170457.3541 | X36: 34243.04535 | Y36: 215.4792001 | Z36: 0 | AA36: 0 | AB36: 0 | AC36: 0 | AD36: 0 | AE36: 0 | AF36: 0 | AG36: 0 | AH36: 0 | AI36: 0 | AJ36: 0 | AK36: 0 | AL36: 0 | AM36: 0
A37: 4 | B37: TRUE | C37: 2019-04-02T10:00:00 | D37: 735868.3765 | E37: 480405.0018 | F37: 526927.6703 | G37: 582514.4541 | H37: 735868.3765 | I37: 306482.4816 | J37: 0 | K37: 0 | L37: 88985.68641 | M37: 1260.448075 | N37: 243.1986824 | O37: 65174.52148 | P37: 12645.56264 | Q37: 3362.784817 | R37: 90.53724943 | S37: 17314.75664 | T37: 357.9596739 | U37: 2242.186429 | V37: 32258.69803 | W37: 171261.1665 | X37: 33983.01899 | Y37: 205.3693049 | Z37: 0 | AA37: 0 | AB37: 0 | AC37: 0 | AD37: 0 | AE37: 0 | AF37: 0 | AG37: 0 | AH37: 0 | AI37: 0 | AJ37: 0 | AK37: 0 | AL37: 0 | AM37: 0
A38: 4 | B38: TRUE | C38: 2019-04-02T11:00:00 | D38: 704678.6901 | E38: 452585.9883 | F38: 496709.7237 | G38: 558580.1724 | H38: 704678.6901 | I38: 285967.136 | J38: 0 | K38: 0 | L38: 85288.34178 | M38: 1208.076608 | N38: 233.0938063 | O38: 62353.77143 | P38: 12098.26331 | Q38: 3217.243657 | R38: 86.61880176 | S38: 16565.37483 | T38: 342.467197 | U38: 2206.348381 | V38: 30474.92831 | W38: 170860.0553 | X38: 33571.9548 | Y38: 205.015923 | Z38: 0 | AA38: 0 | AB38: 0 | AC38: 0 | AD38: 0 | AE38: 0 | AF38: 0 | AG38: 0 | AH38: 0 | AI38: 0 | AJ38: 0 | AK38: 0 | AL38: 0 | AM38: 0
A39: 4 | B39: TRUE | C39: 2019-04-02T12:00:00 | D39: 673712.7747 | E39: 424188.6197 | F39: 467367.0407 | G39: 535070.9592 | H39: 673712.7747 | I39: 259472.5792 | J39: 0 | K39: 0 | L39: 84441.60599 | M39: 1196.082921 | N39: 230.7796698 | O39: 61550.44152 | P39: 11942.39629 | Q39: 3175.794551 | R39: 85.50285525 | S39: 16351.95613 | T39: 338.0550478 | U39: 2169.106619 | V39: 29701.88676 | W39: 170094.9991 | X39: 32758.65783 | Y39: 202.9301724 | Z39: 0 | AA39: 0 | AB39: 0 | AC39: 0 | AD39: 0 | AE39: 0 | AF39: 0 | AG39: 0 | AH39: 0 | AI39: 0 | AJ39: 0 | AK39: 0 | AL39: 0 | AM39: 0
A40: 4 | B40: TRUE | C40: 2019-04-02T13:00:00 | D40: 704083.9289 | E40: 450999.0131 | F40: 494787.8025 | G40: 556836.383 | H40: 704083.9289 | I40: 287903.0089 | J40: 0 | K40: 0 | L40: 83289.18797 | M40: 1179.759362 | N40: 227.6301009 | O40: 61280.34578 | P40: 11889.99065 | Q40: 3161.858524 | R40: 85.12765148 | S40: 16280.20045 | T40: 336.5715941 | U40: 2045.317696 | V40: 30382.46781 | W40: 170663.9716 | X40: 35157.53858 | Y40: 200.9523267 | Z40: 0 | AA40: 0 | AB40: 0 | AC40: 0 | AD40: 0 | AE40: 0 | AF40: 0 | AG40: 0 | AH40: 0 | AI40: 0 | AJ40: 0 | AK40: 0 | AL40: 0 | AM40: 0
A41: 4 | B41: TRUE | C41: 2019-04-02T14:00:00 | D41: 631684.1033 | E41: 381316.9425 | F41: 425009.579 | G41: 500294.0448 | H41: 631684.1033 | I41: 221062.2272 | J41: 0 | K41: 0 | L41: 82800.97954 | M41: 1172.844077 | N41: 226.2958229 | O41: 59433.68476 | P41: 11531.69009 | Q41: 3066.577063 | R41: 82.56236054 | S41: 15789.6025 | T41: 326.429131 | U41: 2020.141634 | V41: 30661.67313 | W41: 168200.8093 | X41: 35098.27977 | Y41: 210.3068873 | Z41: 0 | AA41: 0 | AB41: 0 | AC41: 0 | AD41: 0 | AE41: 0 | AF41: 0 | AG41: 0 | AH41: 0 | AI41: 0 | AJ41: 0 | AK41: 0 | AL41: 0 | AM41: 0
A42: 4 | B42: TRUE | C42: 2019-04-02T15:00:00 | D42: 620757.4891 | E42: 373158.6339 | F42: 414352.337 | G42: 492074.7945 | H42: 620757.4891 | I42: 222608.9528 | J42: 0 | K42: 0 | L42: 76190.23408 | M42: 1079.205406 | N42: 208.228596 | O42: 56859.41941 | P42: 11032.21525 | Q42: 2933.75368 | R42: 78.98631736 | S42: 15105.70369 | T42: 312.2904283 | U42: 2171.023635 | V42: 28769.992 | W42: 168377.2168 | X42: 34806.96665 | Y42: 223.3003122 | Z42: 0 | AA42: 0 | AB42: 0 | AC42: 0 | AD42: 0 | AE42: 0 | AF42: 0 | AG42: 0 | AH42: 0 | AI42: 0 | AJ42: 0 | AK42: 0 | AL42: 0 | AM42: 0
A43: 4 | B43: TRUE | C43: 2019-04-02T16:00:00 | D43: 634281.2376 | E43: 387418.2284 | F43: 427324.6579 | G43: 502617.8177 | H43: 634281.2376 | I43: 249244.8967 | J43: 0 | K43: 0 | L43: 71891.52495 | M43: 1018.315842 | N43: 196.4801852 | O43: 50494.02479 | P43: 9797.162123 | Q43: 2605.320853 | R43: 70.14382328 | S43: 13414.62478 | T43: 277.3296103 | U43: 2166.711122 | V43: 28813.62192 | W43: 169224.6384 | X43: 34859.99637 | Y43: 206.4460528 | Z43: 0 | AA43: 0 | AB43: 0 | AC43: 0 | AD43: 0 | AE43: 0 | AF43: 0 | AG43: 0 | AH43: 0 | AI43: 0 | AJ43: 0 | AK43: 0 | AL43: 0 | AM43: 0
A44: 4 | B44: TRUE | C44: 2019-04-02T17:00:00 | D44: 584607.0109 | E44: 340278.0472 | F44: 378329.2471 | G44: 463649.8553 | H44: 584607.0109 | I44: 220877.9061 | J44: 0 | K44: 0 | L44: 61510.15732 | M44: 871.2677566 | N44: 168.107814 | O44: 43891.5683 | P44: 8516.112791 | Q44: 2264.656434 | R44: 60.97201446 | S44: 11660.56622 | T44: 241.0667714 | U44: 2143.338325 | V44: 28422.75252 | W44: 168530.0558 | X44: 35253.97177 | Y44: 194.5109798 | Z44: 0 | AA44: 0 | AB44: 0 | AC44: 0 | AD44: 0 | AE44: 0 | AF44: 0 | AG44: 0 | AH44: 0 | AI44: 0 | AJ44: 0 | AK44: 0 | AL44: 0 | AM44: 0
A45: 4 | B45: TRUE | C45: 2019-04-02T18:00:00 | D45: 584745.5601 | E45: 345446.1313 | F45: 381514.097 | G45: 463346.6113 | H45: 584745.5601 | I45: 231821.3609 | J45: 37.78119198 | K45: 34.51477813 | L45: 62147.31418 | M45: 880.7817275 | N45: 169.9434986 | O45: 38855.31811 | P45: 7538.948469 | Q45: 2004.802963 | R45: 53.97590266 | S45: 10322.59788 | T45: 213.4060471 | U45: 2043.392683 | V45: 27434.82952 | W45: 166020.9326 | X45: 34981.8081 | Y45: 183.8515749 | Z45: 0 | AA45: 0 | AB45: 0 | AC45: 0 | AD45: 0 | AE45: 0 | AF45: 0 | AG45: 0 | AH45: 0 | AI45: 0 | AJ45: 0 | AK45: 0 | AL45: 0 | AM45: 0
A46: 4 | B46: TRUE | C46: 2019-04-02T19:00:00 | D46: 587901.9478 | E46: 350839.3886 | F46: 385974.0618 | G46: 467101.1818 | H46: 587901.9478 | I46: 239299.6169 | J46: 47.13242445 | K46: 52.27353382 | L46: 60919.72856 | M46: 863.6449947 | N46: 166.6370309 | O46: 38145.50778 | P46: 7401.226691 | Q46: 1968.179152 | R46: 52.98986896 | S46: 10134.0243 | T46: 209.5075378 | U46: 2075.335952 | V46: 26660.29391 | W46: 166365.0687 | X46: 33375.01125 | Y46: 165.7692029 | Z46: 0 | AA46: 0 | AB46: 0 | AC46: 0 | AD46: 0 | AE46: 0 | AF46: 0 | AG46: 0 | AH46: 0 | AI46: 0 | AJ46: 0 | AK46: 0 | AL46: 0 | AM46: 0
A47: 4 | B47: TRUE | C47: 2019-04-02T20:00:00 | D47: 684892.5792 | E47: 448208.6397 | F47: 483077.6103 | G47: 541890.6065 | H47: 684892.5792 | I47: 326813.2104 | J47: 64.36909156 | K47: 54.33047098 | L47: 63316.88912 | M47: 897.6289891 | N47: 173.1941139 | O47: 38018.11838 | P47: 7376.509812 | Q47: 1961.606289 | R47: 52.81290584 | S47: 10100.18106 | T47: 208.8078738 | U47: 2072.416835 | V47: 26386.02396 | W47: 166032.2448 | X47: 33595.11077 | Y47: 173.8329657 | Z47: 6306.149954 | AA47: 1289.141383 | AB47: 0 | AC47: 0 | AD47: 0 | AE47: 0 | AF47: 0 | AG47: 0 | AH47: 0 | AI47: 0 | AJ47: 0 | AK47: 0 | AL47: 0 | AM47: 0
A48: 4 | B48: FALSE | C48: 2019-04-02T21:00:00 | D48: 673863.0757 | E48: 430308.1688 | F48: 464803.282 | G48: 534957.6145 | H48: 673863.0757 | I48: 306035.3496 | J48: 60.27668652 | K48: 55.05537761 | L48: 64161.69742 | M48: 909.6056422 | N48: 175.5049638 | O48: 35814.65683 | P48: 6948.980614 | Q48: 1847.915128 | R48: 49.75196511 | S48: 9514.792791 | T48: 196.7057462 | U48: 1815.160789 | V48: 26439.82124 | W48: 173348.2104 | X48: 33638.41121 | Y48: 192.3605303 | Z48: 10510.24992 | AA48: 2148.568901 | AB48: 0 | AC48: 0 | AD48: 0 | AE48: 0 | AF48: 0 | AG48: 0 | AH48: 0 | AI48: 0 | AJ48: 0 | AK48: 0 | AL48: 0 | AM48: 0
A49: 4 | B49: FALSE | C49: 2019-04-02T22:00:00 | D49: 657494.3158 | E49: 408318.417 | F49: 442154.8989 | G49: 524300.1873 | H49: 657494.3158 | I49: 289566.1766 | J49: 57.03292015 | K49: 52.07190724 | L49: 60684.75236 | M49: 860.313791 | N49: 165.9942878 | O49: 34237.24019 | P49: 6642.920507 | Q49: 1766.525766 | R49: 47.56069526 | S49: 9095.724347 | T49: 188.0420608 | U49: 1773.101208 | V49: 26145.20553 | W49: 180303.1626 | X49: 33056.17355 | Y49: 193.4986601 | Z49: 10510.24992 | AA49: 2148.568901 | AB49: 0 | AC49: 0 | AD49: 0 | AE49: 0 | AF49: 0 | AG49: 0 | AH49: 0 | AI49: 0 | AJ49: 0 | AK49: 0 | AL49: 0 | AM49: 0
A50: 4 | B50: FALSE | C50: 2019-04-02T23:00:00 | D50: 660315.4369 | E50: 413342.4812 | F50: 445160.1273 | G50: 526012.0472 | H50: 660315.4369 | I50: 295814.0391 | J50: 58.26349841 | K50: 51.78071583 | L50: 60345.39704 | M50: 855.5028286 | N50: 165.0660308 | O50: 33515.04457 | P50: 6502.795658 | Q50: 1729.262915 | R50: 46.55745651 | S50: 8903.860392 | T50: 184.0755275 | U50: 1823.033532 | V50: 24275.27211 | W50: 179728.2773 | X50: 33486.14581 | Y50: 172.2435338 | Z50: 10510.24992 | AA50: 2148.568901 | AB50: 0 | AC50: 0 | AD50: 0 | AE50: 0 | AF50: 0 | AG50: 0 | AH50: 0 | AI50: 0 | AJ50: 0 | AK50: 0 | AL50: 0 | AM50: 0
A51: 4 | B51: FALSE | C51: 2019-04-03 | D51: 635503.7208 | E51: 389579.205 | F51: 421158.6645 | G51: 506930.8349 | H51: 635503.7208 | I51: 271927.5614 | J51: 53.55882057 | K51: 53.15884275 | L51: 61951.47017 | M51: 878.2717583 | N51: 169.4592096 | O51: 32323.90275 | P51: 6271.682976 | Q51: 1667.804027 | R51: 44.9027807 | S51: 8587.412642 | T51: 177.5333892 | U51: 1851.428825 | V51: 24251.97138 | W51: 179272.3938 | X51: 33190.49646 | Y51: 171.8927074 | Z51: 10510.24992 | AA51: 2148.568901 | AB51: 0 | AC51: 0 | AD51: 0 | AE51: 0 | AF51: 0 | AG51: 0 | AH51: 0 | AI51: 0 | AJ51: 0 | AK51: 0 | AL51: 0 | AM51: 0
A52: 4 | B52: FALSE | C52: 2019-04-03T01:00:00 | D52: 669593.373 | E52: 428178.3819 | F52: 456937.7739 | G52: 533734.2559 | H52: 669593.373 | I52: 309377.8875 | J52: 60.93503241 | K52: 54.91774217 | L52: 64001.29668 | M52: 907.3316778 | N52: 175.066211 | O52: 31579.03221 | P52: 6127.1586 | Q52: 1629.371227 | R52: 43.86804307 | S52: 8389.524697 | T52: 173.4423179 | U52: 1886.940319 | V52: 21551.45937 | W52: 178428.8313 | X52: 32378.46238 | Y52: 169.0288598 | Z52: 10510.24992 | AA52: 2148.568901 | AB52: 0 | AC52: 0 | AD52: 0 | AE52: 0 | AF52: 0 | AG52: 0 | AH52: 0 | AI52: 0 | AJ52: 0 | AK52: 0 | AL52: 0 | AM52: 0
A53: 4 | B53: FALSE | C53: 2019-04-03T02:00:00 | D53: 703448.7016 | E53: 466958.5424 | F53: 494917.1977 | G53: 558960.7069 | H53: 703448.7016 | I53: 344633.4506 | J53: 67.87896397 | K53: 55.82112474 | L53: 65054.10135 | M53: 922.2570477 | N53: 177.9460046 | O53: 33613.86497 | P53: 6521.969402 | Q53: 1734.361713 | R53: 46.69473297 | S53: 8930.113768 | T53: 184.6182813 | U53: 1770.75214 | V53: 20329.81058 | W53: 174165.3722 | X53: 32407.12916 | Y53: 173.7406643 | Z53: 10510.24992 | AA53: 2148.568901 | AB53: 0 | AC53: 0 | AD53: 0 | AE53: 0 | AF53: 0 | AG53: 0 | AH53: 0 | AI53: 0 | AJ53: 0 | AK53: 0 | AL53: 0 | AM53: 0
A54: 4 | B54: FALSE | C54: 2019-04-03T03:00:00 | D54: 713779.1294 | E54: 479013.5607 | F54: 507061.4866 | G54: 566306.9743 | H54: 713779.1294 | I54: 355333.7133 | J54: 69.98648646 | K54: 56.24521282 | L54: 65548.33484 | M54: 929.2636824 | N54: 179.2979082 | O54: 34298.85078 | P54: 6654.874573 | Q54: 1769.704664 | R54: 47.64628166 | S54: 9112.092282 | T54: 188.3804462 | U54: 1761.946296 | V54: 20275.40721 | W54: 172079.7528 | X54: 32641.24119 | Y54: 173.5726636 | Z54: 10510.24992 | AA54: 2148.568901 | AB54: 0 | AC54: 0 | AD54: 0 | AE54: 0 | AF54: 0 | AG54: 0 | AH54: 0 | AI54: 0 | AJ54: 0 | AK54: 0 | AL54: 0 | AM54: 0
A55: 4 | B55: FALSE | C55: 2019-04-03T04:00:00 | D55: 753673.1856 | E55: 517983.1133 | F55: 546945.088 | G55: 597056.8743 | H55: 753673.1856 | I55: 387182.3502 | J55: 76.25939024 | K55: 58.60471181 | L55: 68298.10184 | M55: 968.2464973 | N55: 186.8194947 | O55: 37744.7828 | P55: 7323.475559 | Q55: 1947.503098 | R55: 52.43320146 | S55: 10027.56466 | T55: 207.3066259 | U55: 1767.342162 | V55: 20462.94604 | W55: 171789.1633 | X55: 32752.17851 | Y55: 169.2886542 | Z55: 10510.24992 | AA55: 2148.568901 | AB55: 0 | AC55: 0 | AD55: 0 | AE55: 0 | AF55: 0 | AG55: 0 | AH55: 0 | AI55: 0 | AJ55: 0 | AK55: 0 | AL55: 0 | AM55: 0
A56: 4 | B56: FALSE | C56: 2019-04-03T05:00:00 | D56: 762896.4076 | E56: 524623.9388 | F56: 555475.6699 | G56: 604481.1891 | H56: 762896.4076 | I56: 383554.5974 | J56: 75.54486847 | K56: 63.45869777 | L56: 73954.95121 | M56: 1048.442351 | N56: 202.292981 | O56: 41190.31034 | P56: 7991.998062 | Q56: 2125.280662 | R56: 57.21955936 | S56: 10942.92959 | T56: 226.230584 | U56: 2004.270403 | V56: 21585.0601 | W56: 172420.7089 | X56: 32615.23562 | Y56: 179.057454 | Z56: 10510.24992 | AA56: 2148.568901 | AB56: 0 | AC56: 0 | AD56: 0 | AE56: 0 | AF56: 0 | AG56: 0 | AH56: 0 | AI56: 0 | AJ56: 0 | AK56: 0 | AL56: 0 | AM56: 0
A57: 4 | B57: FALSE | C57: 2019-04-03T06:00:00 | D57: 820876.5521 | E57: 575063.4215 | F57: 612552.4671 | G57: 649814.8306 | H57: 820876.5521 | I57: 420871.9949 | J57: 81.9524072 | K57: 65.30675705 | L57: 78731.42437 | M57: 1116.125436 | N57: 215.3521759 | O57: 50684.26909 | P57: 9834.074495 | Q57: 2615.136815 | R57: 70.40810133 | S57: 13465.16652 | T57: 278.3744939 | U57: 2116.281745 | V57: 26260.47119 | W57: 173095.0853 | X57: 32328.1027 | Y57: 185.8524367 | Z57: 7357.174946 | AA57: 1503.998315 | AB57: 0 | AC57: 0 | AD57: 0 | AE57: 0 | AF57: 0 | AG57: 0 | AH57: 0 | AI57: 0 | AJ57: 0 | AK57: 0 | AL57: 0 | AM57: 0
A58: 4 | B58: TRUE | C58: 2019-04-03T07:00:00 | D58: 861674.7471 | E58: 608905.0693 | F58: 652562.1036 | G58: 681181.236 | H58: 861674.7471 | I58: 441157.1285 | J58: 57.03716337 | K58: 5.602864063 | L58: 89604.46014 | M58: 1269.292129 | N58: 244.9051093 | O58: 59680.82822 | P58: 11579.64239 | Q58: 3079.32883 | R58: 82.90568013 | S58: 15855.26051 | T58: 327.7865233 | U58: 2335.113499 | V58: 30480.31319 | W58: 173015.0717 | X58: 32690.43219 | Y58: 209.6384723 | Z58: 0 | AA58: 0 | AB58: 0 | AC58: 0 | AD58: 0 | AE58: 0 | AF58: 0 | AG58: 0 | AH58: 0 | AI58: 0 | AJ58: 0 | AK58: 0 | AL58: 0 | AM58: 0
A59: 4 | B59: TRUE | C59: 2019-04-03T08:00:00 | D59: 888967.9383 | E59: 635893.6036 | F59: 681073.9012 | G59: 702139.6915 | H59: 888967.9383 | I59: 461125.6739 | J59: 0 | K59: 0 | L59: 92800.39044 | M59: 1314.481892 | N59: 253.6243029 | O59: 62816.51534 | P59: 12188.04774 | Q59: 3241.119677 | R59: 87.26162292 | S59: 16688.31088 | T59: 345.0087371 | U59: 2251.085647 | V59: 31332.75924 | W59: 171745.4217 | X59: 32566.60983 | Y59: 211.6273183 | Z59: 0 | AA59: 0 | AB59: 0 | AC59: 0 | AD59: 0 | AE59: 0 | AF59: 0 | AG59: 0 | AH59: 0 | AI59: 0 | AJ59: 0 | AK59: 0 | AL59: 0 | AM59: 0
A60: 4 | B60: TRUE | C60: 2019-04-03T09:00:00 | D60: 808462.0824 | E60: 558746.783 | F60: 604297.8348 | G60: 639621.904 | H60: 808462.0824 | I60: 382059.4326 | J60: 0 | K60: 0 | L60: 94875.7277 | M60: 1343.878248 | N60: 259.2962184 | O60: 62764.4971 | P60: 12177.95484 | Q60: 3238.435712 | R60: 87.18936173 | S60: 16674.49132 | T60: 344.723036 | U60: 2179.490803 | V60: 31684.49565 | W60: 168620.9509 | X60: 31958.37542 | Y60: 193.1434843 | Z60: 0 | AA60: 0 | AB60: 0 | AC60: 0 | AD60: 0 | AE60: 0 | AF60: 0 | AG60: 0 | AH60: 0 | AI60: 0 | AJ60: 0 | AK60: 0 | AL60: 0 | AM60: 0
A61: 4 | B61: TRUE | C61: 2019-04-03T10:00:00 | D61: 679393.1847 | E61: 433848.1863 | F61: 478794.4492 | G61: 538938.8082 | H61: 679393.1847 | I61: 267978.8946 | J61: 0 | K61: 0 | L61: 88265.39954 | M61: 1250.245488 | N61: 241.2301319 | O61: 59490.7226 | P61: 11542.75692 | Q61: 3069.520023 | R61: 82.64159473 | S61: 15804.75561 | T61: 326.7424014 | U61: 2109.334108 | V61: 31826.5181 | W61: 165218.0807 | X61: 31987.26299 | Y61: 199.0798305 | Z61: 0 | AA61: 0 | AB61: 0 | AC61: 0 | AD61: 0 | AE61: 0 | AF61: 0 | AG61: 0 | AH61: 0 | AI61: 0 | AJ61: 0 | AK61: 0 | AL61: 0 | AM61: 0
A62: 4 | B62: TRUE | C62: 2019-04-03T11:00:00 | D62: 620253.0529 | E62: 376415.9004 | F62: 419802.0703 | G62: 493121.8686 | H62: 620253.0529 | I62: 220377.1265 | J62: 0 | K62: 0 | L62: 82396.08658 | M62: 1167.108924 | N62: 225.1892468 | O62: 56389.17498 | P62: 10940.97552 | Q62: 2909.490659 | R62: 78.33307685 | S62: 14980.775 | T62: 309.7076929 | U62: 2074.818652 | V62: 30968.37766 | W62: 165215.5135 | X62: 32022.45618 | Y62: 197.9187015 | Z62: 0 | AA62: 0 | AB62: 0 | AC62: 0 | AD62: 0 | AE62: 0 | AF62: 0 | AG62: 0 | AH62: 0 | AI62: 0 | AJ62: 0 | AK62: 0 | AL62: 0 | AM62: 0
A63: 4 | B63: TRUE | C63: 2019-04-03T12:00:00 | D63: 581205.6127 | E63: 337880.7633 | F63: 379918.9024 | G63: 462987.8714 | H63: 581205.6127 | I63: 182192.4947 | J63: 0 | K63: 0 | L63: 83793.92899 | M63: 1186.908825 | N63: 229.0095627 | O63: 54867.47483 | P63: 10645.72587 | Q63: 2830.976079 | R63: 76.21920562 | S63: 14576.50862 | T63: 301.3500207 | U63: 2260.149173 | V63: 29904.15435 | W63: 166011.0447 | X63: 32139.46069 | Y63: 190.2070175 | Z63: 0 | AA63: 0 | AB63: 0 | AC63: 0 | AD63: 0 | AE63: 0 | AF63: 0 | AG63: 0 | AH63: 0 | AI63: 0 | AJ63: 0 | AK63: 0 | AL63: 0 | AM63: 0
A64: 4 | B64: TRUE | C64: 2019-04-03T13:00:00 | D64: 571317.6456 | E64: 328413.3584 | F64: 370708.9769 | G64: 454930.5986 | H64: 571317.6456 | I64: 176557.9417 | J64: 0 | K64: 0 | L64: 82132.99909 | M64: 1163.382391 | N64: 224.4702263 | O64: 53230.61648 | P64: 10328.13252 | Q64: 2746.519726 | R64: 73.94536226 | S64: 14141.64844 | T64: 292.3598621 | U64: 2155.020596 | V64: 30511.74376 | W64: 165167.8466 | X64: 32395.88677 | Y64: 195.1320764 | Z64: 0 | AA64: 0 | AB64: 0 | AC64: 0 | AD64: 0 | AE64: 0 | AF64: 0 | AG64: 0 | AH64: 0 | AI64: 0 | AJ64: 0 | AK64: 0 | AL64: 0 | AM64: 0
A65: 4 | B65: TRUE | C65: 2019-04-03T14:00:00 | D65: 553904.9867 | E65: 314246.496 | F65: 355056.0785 | G65: 440745.9166 | H65: 553904.9867 | I65: 168571.7037 | J65: 0 | K65: 0 | L65: 78613.40069 | M65: 1113.528631 | N65: 214.8511322 | O65: 51110.26161 | P65: 9916.728192 | Q65: 2637.116588 | R65: 70.99986925 | S65: 13578.33892 | T65: 280.7141834 | U65: 2159.878913 | V65: 29498.61146 | W65: 163211.7461 | X65: 32714.19459 | Y65: 212.9122097 | Z65: 0 | AA65: 0 | AB65: 0 | AC65: 0 | AD65: 0 | AE65: 0 | AF65: 0 | AG65: 0 | AH65: 0 | AI65: 0 | AJ65: 0 | AK65: 0 | AL65: 0 | AM65: 0
A66: 4 | B66: TRUE | C66: 2019-04-03T15:00:00 | D66: 573910.9965 | E66: 334932.3251 | F66: 374921.0574 | G66: 456382.8725 | H66: 573910.9965 | I66: 194678.7707 | J66: 0 | K66: 0 | L66: 75788.04217 | M66: 1073.508513 | N66: 207.1294019 | O66: 49042.63383 | P66: 9515.554296 | Q66: 2530.433989 | R66: 68.12762211 | S66: 13029.03727 | T66: 269.358099 | U66: 2179.147999 | V66: 29130.31142 | W66: 163594.9532 | X66: 32589.2948 | Y66: 214.693166 | Z66: 0 | AA66: 0 | AB66: 0 | AC66: 0 | AD66: 0 | AE66: 0 | AF66: 0 | AG66: 0 | AH66: 0 | AI66: 0 | AJ66: 0 | AK66: 0 | AL66: 0 | AM66: 0
A67: 4 | B67: =PeakTime(C67,Holidays,PkStart,PkEnd,UseDST,DST_1,DST_2) -> TRUE | C67: 2019-04-03T16:00:00 | D67: =SUM(OFFSET(I67,0,0,1,COUNTA(I67:IV67))) -> 558018.3424 | E67: =SUMIF(OFFSET($I$2,0,0,1,COUNTA($I$2:$IV$2)),E$2,OFFSET(I67,0,0,1,COUNTA(I67:IV67))) -> 321978.4669 | F67: =E67+SUMIF(OFFSET($I$2,0,0,1,COUNTA($I$2:$IV$2)),F$2,OFFSET(I67,0,0,1,COUNTA(I67:IV67))) -> 359820.5806 | G67: =F67*DistAtSubtran+SUMIF(OFFSET($I$2,0,0,1,COUNTA($I$2:$IV$2)),G$2,OFFSET(I67,0,0,1,COUNTA(I67:IV67))) -> 443852.1859 | H67: =SUM(OFFSET(I67,0,0,1,COUNTA(I67:IV67))) -> 558018.3424 | I67: 188039.5889 | J67: 0 | K67: 0 | L67: 77087.82712 | M67: 1091.919467 | N67: 210.6817259 | O67: 43104.31038 | P67: 8363.364156 | Q67: 2224.036589 | R67: 59.87839437 | S67: 11451.41732 | T67: 236.7428949 | U67: 2117.070916 | V67: 28150.08717 | W67: 163049.3008 | X67: 32653.86423 | Y67: 178.2522455 | Z67: 0 | AA67: 0 | AB67: 0 | AC67: 0 | AD67: 0 | AE67: 0 | AF67: 0 | AG67: 0 | AH67: 0 | AI67: 0 | AJ67: 0 | AK67: 0 | AL67: 0 | AM67: 0
A68: =MONTH(C68) -> 4 | B68: TRUE | C68: =+C67+1/24 -> 2019-04-03T17:00:00 | D68: 552725.8785 | E68: 317108.9324 | F68: 353874.2378 | G68: 440149.2362 | H68: 552725.8785 | I68: 195771.5592 | J68: 0 | K68: 0 | L68: 70332.43855 | M68: 996.2319823 | N68: 192.219188 | O68: 38501.99626 | P68: 7470.394784 | Q68: 1986.572751 | R68: 53.48508527 | S68: 10228.73172 | T68: 211.4654885 | U68: 2106.686861 | V68: 28087.21315 | W68: 164202.5495 | X68: 32416.81428 | Y68: 167.5197305 | Z68: 0 | AA68: 0 | AB68: 0 | AC68: 0 | AD68: 0 | AE68: 0 | AF68: 0 | AG68: 0 | AH68: 0 | AI68: 0 | AJ68: 0 | AK68: 0 | AL68: 0 | AM68: 0
A69: 4 | B69: TRUE | C69: 2019-04-03T18:00:00 | D69: 534800.9889 | E69: 300664.1821 | F69: 336554.7788 | G69: 426107.8126 | H69: 534800.9889 | I69: 185615.4296 | J69: 28.37384201 | K69: 36.55220166 | L69: 65375.00851 | M69: 926.5296376 | N69: 178.7703846 | O69: 37420.17635 | P69: 7260.493412 | Q69: 1930.754503 | R69: 51.98227409 | S69: 9941.327256 | T69: 205.5237816 | U69: 2082.354653 | V69: 27498.04988 | W69: 163629.2542 | X69: 32455.44879 | Y69: 164.9596449 | Z69: 0 | AA69: 0 | AB69: 0 | AC69: 0 | AD69: 0 | AE69: 0 | AF69: 0 | AG69: 0 | AH69: 0 | AI69: 0 | AJ69: 0 | AK69: 0 | AL69: 0 | AM69: 0
A70: 4 | B70: TRUE | C70: 2019-04-03T19:00:00 | D70: 528902.681 | E70: 296093.9468 | F70: 332081.0133 | G70: 420964.1199 | H70: 528902.681 | I70: 184344.6283 | J70: 36.30849636 | K70: 55.06362572 | L70: 64171.30979 | M70: 909.7419146 | N70: 175.531257 | O70: 35770.77475 | P70: 6940.466341 | Q70: 1845.650961 | R70: 49.69100627 | S70: 9503.134745 | T70: 196.4647315 | U70: 2049.555277 | V70: 27940.39349 | W70: 162034.9455 | X70: 32715.84901 | Y70: 163.1717838 | Z70: 0 | AA70: 0 | AB70: 0 | AC70: 0 | AD70: 0 | AE70: 0 | AF70: 0 | AG70: 0 | AH70: 0 | AI70: 0 | AJ70: 0 | AK70: 0 | AL70: 0 | AM70: 0
A71: 4 | B71: TRUE | C71: 2019-04-03T20:00:00 | D71: 572824.3037 | E71: 339806.755 | F71: 375983.0156 | G71: 454859.7194 | H71: 572824.3037 | I71: 226352.4995 | J71: 44.58236173 | K71: 51.64251122 | L71: 60184.33299 | M71: 853.2194606 | N71: 164.6254636 | O71: 34396.58482 | P71: 6673.837535 | Q71: 1774.747409 | R71: 47.782049 | S71: 9138.057047 | T71: 188.9172334 | U71: 2082.036096 | V71: 28460.28644 | W71: 162048.4274 | X71: 32805.70573 | Y71: 172.7086624 | Z71: 6130.97901 | AA71: 1253.331947 | AB71: 0 | AC71: 0 | AD71: 0 | AE71: 0 | AF71: 0 | AG71: 0 | AH71: 0 | AI71: 0 | AJ71: 0 | AK71: 0 | AL71: 0 | AM71: 0
A72: 4 | B72: FALSE | C72: 2019-04-03T21:00:00 | D72: 578273.8862 | E72: 342471.8801 | F72: 377513.2989 | G72: 459964.4788 | H72: 578273.8862 | I72: 226734.7365 | J72: 44.65764709 | K72: 50.6083428 | L72: 58979.11009 | M72: 836.1332925 | N72: 161.3287522 | O72: 33184.61721 | P72: 6438.684105 | Q72: 1712.213981 | R72: 46.09844303 | S72: 8816.07656 | T72: 182.260713 | U72: 1814.738798 | V72: 27584.3407 | W72: 166035.1432 | X72: 32805.80288 | Y72: 188.5160779 | Z72: 10510.24992 | AA72: 2148.568901 | AB72: 0 | AC72: 0 | AD72: 0 | AE72: 0 | AF72: 0 | AG72: 0 | AH72: 0 | AI72: 0 | AJ72: 0 | AK72: 0 | AL72: 0 | AM72: 0
A73: 4 | B73: FALSE | C73: 2019-04-03T22:00:00 | D73: 544910.1692 | E73: 309558.5992 | F73: 343082.2964 | G73: 434366.8603 | H73: 544910.1692 | I73: 199302.3876 | J73: 39.25457487 | K73: 46.97846268 | L73: 54748.83724 | M73: 776.1616862 | N73: 149.7574579 | O73: 32368.94824 | P73: 6280.42298 | Q73: 1670.128222 | R73: 44.96535569 | S73: 8599.379768 | T73: 177.7807937 | U73: 1613.236802 | V73: 26289.33182 | W73: 167128.0546 | X73: 32834.96716 | Y73: 180.7576001 | Z73: 10510.24992 | AA73: 2148.568901 | AB73: 0 | AC73: 0 | AD73: 0 | AE73: 0 | AF73: 0 | AG73: 0 | AH73: 0 | AI73: 0 | AJ73: 0 | AK73: 0 | AL73: 0 | AM73: 0
A74: 4 | B74: FALSE | C74: 2019-04-03T23:00:00 | D74: 539533.3735 | E74: 301937.2507 | F74: 334633.0203 | G74: 431139.436 | H74: 539533.3735 | I74: 196472.1315 | J74: 38.69712796 | K74: 43.5404194 | L74: 50742.13158 | M74: 719.3595407 | N74: 138.797699 | O74: 31751.26679 | P74: 6160.576615 | Q74: 1638.257949 | R74: 44.10730291 | S74: 8435.281838 | T74: 174.3882862 | U74: 1620.628872 | V74: 25641.44512 | W74: 170480.0778 | X74: 32599.11239 | Y74: 174.7537456 | Z74: 10510.24992 | AA74: 2148.568901 | AB74: 0 | AC74: 0 | AD74: 0 | AE74: 0 | AF74: 0 | AG74: 0 | AH74: 0 | AI74: 0 | AJ74: 0 | AK74: 0 | AL74: 0 | AM74: 0
A75: 4 | B75: FALSE | C75: 2019-04-04 | D75: 526281.8083 | E75: 289788.7512 | F75: 320535.0108 | G75: 421357.3924 | H75: 526281.8083 | I75: 188114.2725 | J75: 37.05096503 | K75: 40.99510704 | L75: 47775.81715 | M75: 677.3067825 | N75: 130.6837786 | O75: 31105.90815 | P75: 6035.360151 | Q75: 1604.959626 | R75: 43.21080233 | S75: 8263.830978 | T75: 170.8437666 | U75: 1616.362788 | V75: 23862.74895 | W75: 171646.0962 | X75: 32321.84711 | Y75: 175.6947323 | Z75: 10510.24992 | AA75: 2148.568901 | AB75: 0 | AC75: 0 | AD75: 0 | AE75: 0 | AF75: 0 | AG75: 0 | AH75: 0 | AI75: 0 | AJ75: 0 | AK75: 0 | AL75: 0 | AM75: 0
A76: 4 | B76: FALSE | C76: 2019-04-04T01:00:00 | D76: 533360.2937 | E76: 300294.3655 | F76: 329170.3989 | G76: 426010.3909 | H76: 533360.2937 | I76: 200700.5747 | J76: 39.52996162 | K76: 40.72781758 | L76: 47464.31723 | M76: 672.8907198 | N76: 129.831716 | O76: 29682.73755 | P76: 5759.227814 | Q76: 1531.528838 | R76: 41.23380352 | S76: 7885.740706 | T76: 163.0272507 | U76: 1643.364555 | V76: 22280.88758 | W76: 169692.7782 | X76: 32794.52221 | Y76: 178.5542304 | Z76: 10510.24992 | AA76: 2148.568901 | AB76: 0 | AC76: 0 | AD76: 0 | AE76: 0 | AF76: 0 | AG76: 0 | AH76: 0 | AI76: 0 | AJ76: 0 | AK76: 0 | AL76: 0 | AM76: 0
A77: 4 | B77: FALSE | C77: 2019-04-04T02:00:00 | D77: 548161.2799 | E77: 317323.5959 | F77: 344458.4214 | G77: 437809.0358 | H77: 548161.2799 | I77: 214828.5715 | J77: 42.31261023 | K77: 43.22026529 | L77: 50369.02305 | M77: 714.0700668 | N77: 137.777115 | O77: 29680.28553 | P77: 5758.752058 | Q77: 1531.402322 | R77: 41.23039729 | S77: 7885.089284 | T77: 163.0137834 | U77: 1655.259885 | V77: 20498.98959 | W77: 169656.3241 | X77: 32336.12457 | Y77: 161.014954 | Z77: 10510.24992 | AA77: 2148.568901 | AB77: 0 | AC77: 0 | AD77: 0 | AE77: 0 | AF77: 0 | AG77: 0 | AH77: 0 | AI77: 0 | AJ77: 0 | AK77: 0 | AL77: 0 | AM77: 0
A78: 4 | B78: FALSE | C78: 2019-04-04T03:00:00 | D78: 554104.2609 | E78: 324608.5251 | F78: 351294.6425 | G78: 442426.3053 | H78: 554104.2609 | I78: 221835.7521 | J78: 43.69274368 | K78: 43.50023589 | L78: 50695.3016 | M78: 718.6956429 | N78: 138.6696024 | O78: 29678.49804 | P78: 5758.405239 | Q78: 1531.310094 | R78: 41.2279142 | S78: 7884.614406 | T78: 163.0039659 | U78: 1664.846774 | V78: 20046.01254 | W78: 168984.0843 | X78: 32114.32647 | Y78: 103.5004636 | Z78: 10510.24992 | AA78: 2148.568901 | AB78: 0 | AC78: 0 | AD78: 0 | AE78: 0 | AF78: 0 | AG78: 0 | AH78: 0 | AI78: 0 | AJ78: 0 | AK78: 0 | AL78: 0 | AM78: 0
A79: 4 | B79: FALSE | C79: 2019-04-04T04:00:00 | D79: 560039.9434 | E79: 328979.4156 | F79: 356967.7484 | G79: 447133.0581 | H79: 560039.9434 | I79: 220627.1695 | J79: 43.4547014 | K79: 44.25891879 | L79: 51579.47286 | M79: 731.2303356 | N79: 141.0881239 | O79: 33358.70477 | P79: 6472.461647 | Q79: 1721.19631 | R79: 46.34027693 | S79: 8862.325978 | T79: 183.2168585 | U79: 1706.064437 | V79: 20601.42401 | W79: 169109.6448 | X79: 32053.92547 | Y79: 99.14562895 | Z79: 10510.24992 | AA79: 2148.568901 | AB79: 0 | AC79: 0 | AD79: 0 | AE79: 0 | AF79: 0 | AG79: 0 | AH79: 0 | AI79: 0 | AJ79: 0 | AK79: 0 | AL79: 0 | AM79: 0
A80: 4 | B80: FALSE | C80: 2019-04-04T05:00:00 | D80: 601330.3785 | E80: 369608.3495 | F80: 398942.9881 | G80: 478993.6235 | H80: 601330.3785 | I80: 253213.273 | J80: 49.87285651 | K80: 47.14116443 | L80: 54938.45033 | M80: 778.8497875 | N80: 150.2761168 | O80: 36991.95332 | P80: 7177.406938 | Q80: 1908.659644 | R80: 51.38740765 | S80: 9827.562285 | T80: 203.1718414 | U80: 1777.381479 | V80: 21175.21004 | W80: 168300.2342 | X80: 31976.83308 | Y80: 103.89629 | Z80: 10510.24992 | AA80: 2148.568901 | AB80: 0 | AC80: 0 | AD80: 0 | AE80: 0 | AF80: 0 | AG80: 0 | AH80: 0 | AI80: 0 | AJ80: 0 | AK80: 0 | AL80: 0 | AM80: 0
A81: 4 | B81: FALSE | C81: 2019-04-04T06:00:00 | D81: 684766.8531 | E81: 448210.8022 | F81: 481687.6732 | G81: 543518.7221 | H81: 684766.8531 | I81: 317329.2233 | J81: 62.50112657 | K81: 54.74512383 | L81: 63800.12676 | M81: 904.479738 | N81: 174.51594 | O81: 44566.81152 | P81: 8647.127646 | Q81: 2299.4967 | R81: 61.91002924 | S81: 11839.95644 | T81: 244.7754269 | U81: 2007.662067 | V81: 23680.48815 | W81: 168396.4459 | X81: 32146.81137 | Y81: 110.5634232 | Z81: 7006.833058 | AA81: 1432.379338 | AB81: 0 | AC81: 0 | AD81: 0 | AE81: 0 | AF81: 0 | AG81: 0 | AH81: 0 | AI81: 0 | AJ81: 0 | AK81: 0 | AL81: 0 | AM81: 0
A82: 4 | B82: TRUE | C82: 2019-04-04T07:00:00 | D82: 722551.3202 | E82: 477648.1658 | F82: 517651.5391 | G82: 571044.0257 | H82: 722551.3202 | I82: 336716.8382 | J82: 49.39337303 | K82: 19.67036162 | L82: 70026.28166 | M82: 992.1740107 | N82: 191.4362178 | O82: 54029.84748 | P82: 10483.20425 | Q82: 2787.757342 | R82: 75.05561478 | S82: 14353.9782 | T82: 296.7494988 | U82: 2302.573742 | V82: 28231.24549 | W82: 167593.8259 | X82: 34251.70602 | Y82: 149.5828338 | Z82: 0 | AA82: 0 | AB82: 0 | AC82: 0 | AD82: 0 | AE82: 0 | AF82: 0 | AG82: 0 | AH82: 0 | AI82: 0 | AJ82: 0 | AK82: 0 | AL82: 0 | AM82: 0
A83: 4 | B83: TRUE | C83: 2019-04-04T08:00:00 | D83: 706555.762 | E83: 456489.3651 | F83: 499203.3326 | G83: 558160.3798 | H83: 706555.762 | I83: 301854.3582 | J83: 0 | K83: 0 | L83: 80589.92177 | M83: 1141.525293 | N83: 220.2529821 | O83: 56502.14891 | P83: 10962.89542 | Q83: 2915.319731 | R83: 78.49001469 | S83: 15010.7885 | T83: 310.3281825 | U83: 2323.658345 | V83: 30299.21854 | W83: 168825.8956 | X83: 35312.47107 | Y83: 208.489359 | Z83: 0 | AA83: 0 | AB83: 0 | AC83: 0 | AD83: 0 | AE83: 0 | AF83: 0 | AG83: 0 | AH83: 0 | AI83: 0 | AJ83: 0 | AK83: 0 | AL83: 0 | AM83: 0
A84: 4 | B84: TRUE | C84: 2019-04-04T09:00:00 | D84: 653657.3114 | E84: 402721.9616 | F84: 444394.6227 | G84: 517435.2124 | H84: 653657.3114 | I84: 247613.7741 | J84: 3.256515839 | K84: 0 | L84: 83043.27041 | M84: 1176.276034 | N84: 226.958006 | O84: 55042.21344 | P84: 10679.62974 | Q84: 2839.992 | R84: 76.46194392 | S84: 14622.931 | T84: 302.3097419 | U84: 2203.601826 | V84: 29514.44557 | W84: 170571.0392 | X84: 35548.23753 | Y84: 192.9143724 | Z84: 0 | AA84: 0 | AB84: 0 | AC84: 0 | AD84: 0 | AE84: 0 | AF84: 0 | AG84: 0 | AH84: 0 | AI84: 0 | AJ84: 0 | AK84: 0 | AL84: 0 | AM84: 0
A85: 4 | B85: TRUE | C85: 2019-04-04T10:00:00 | D85: 607971.7228 | E85: 358903.3346 | F85: 400289.8617 | G85: 481869.7551 | H85: 607971.7228 | I85: 208400.4912 | J85: 0 | K85: 0 | L85: 77667.04447 | M85: 1100.123859 | N85: 212.2647321 | O85: 55630.89827 | P85: 10793.85 | Q85: 2870.366146 | R85: 77.27971603 | S85: 14779.32547 | T85: 305.5429906 | U85: 2228.915886 | V85: 29187.01024 | W85: 169110.6882 | X85: 35411.26225 | Y85: 196.6593647 | Z85: 0 | AA85: 0 | AB85: 0 | AC85: 0 | AD85: 0 | AE85: 0 | AF85: 0 | AG85: 0 | AH85: 0 | AI85: 0 | AJ85: 0 | AK85: 0 | AL85: 0 | AM85: 0
A86: 4 | B86: TRUE | C86: 2019-04-04T11:00:00 | D86: 577480.3595 | E86: 327404.2183 | F86: 368787.5384 | G86: 458822.1991 | H86: 577480.3595 | I86: 185240.6586 | J86: 0 | K86: 0 | L86: 72981.99318 | M86: 1033.761906 | N86: 199.4604447 | O86: 52613.01977 | P86: 10208.3026 | Q86: 2714.653825 | R86: 73.0874272 | S86: 13977.57302 | T86: 288.9678201 | U86: 2394.415397 | V86: 29852.28775 | W86: 170602.8062 | X86: 35102.81323 | Y86: 196.5583646 | Z86: 0 | AA86: 0 | AB86: 0 | AC86: 0 | AD86: 0 | AE86: 0 | AF86: 0 | AG86: 0 | AH86: 0 | AI86: 0 | AJ86: 0 | AK86: 0 | AL86: 0 | AM86: 0
A87: 4 | B87: TRUE | C87: 2019-04-04T12:00:00 | D87: 558613.0608 | E87: 309922.2102 | F87: 351999.1198 | G87: 442871.4568 | H87: 558613.0608 | I87: 160169.5408 | J87: 0 | K87: 0 | L87: 79640.51548 | M87: 1128.077317 | N87: 217.6582461 | O87: 53402.98203 | P87: 10361.57595 | Q87: 2755.413205 | R87: 74.18480404 | S87: 14187.44038 | T87: 293.3065498 | U87: 2323.309351 | V87: 30293.94972 | W87: 167581.139 | X87: 35985.54575 | Y87: 198.422162 | Z87: 0 | AA87: 0 | AB87: 0 | AC87: 0 | AD87: 0 | AE87: 0 | AF87: 0 | AG87: 0 | AH87: 0 | AI87: 0 | AJ87: 0 | AK87: 0 | AL87: 0 | AM87: 0
A88: 4 | B88: TRUE | C88: 2019-04-04T13:00:00 | D88: 535887.7832 | E88: 283696.6937 | F88: 327390.9616 | G88: 425693.6135 | H88: 535887.7832 | I88: 136309.6176 | J88: 0 | K88: 0 | L88: 79919.24026 | M88: 1132.025347 | N88: 218.4200035 | O88: 51270.99694 | P88: 9947.915051 | Q88: 2645.409987 | R88: 71.22315488 | S88: 13621.04108 | T88: 281.5969941 | U88: 2367.37726 | V88: 32332.73054 | W88: 169550.1583 | X88: 36011.6102 | Y88: 208.4205814 | Z88: 0 | AA88: 0 | AB88: 0 | AC88: 0 | AD88: 0 | AE88: 0 | AF88: 0 | AG88: 0 | AH88: 0 | AI88: 0 | AJ88: 0 | AK88: 0 | AL88: 0 | AM88: 0
A89: 4 | B89: TRUE | C89: 2019-04-04T14:00:00 | D89: 543001.6423 | E89: 292349.0165 | F89: 335474.7347 | G89: 430858.2262 | H89: 543001.6423 | I89: 144132.5001 | J89: 0 | K89: 0 | L89: 78457.20222 | M89: 1111.31614 | N89: 214.4242403 | O89: 53088.78462 | P89: 10300.61343 | Q89: 2739.201682 | R89: 73.74833639 | S89: 14103.96831 | T89: 291.5808754 | U89: 2349.903571 | V89: 31422.20767 | W89: 168371.1218 | X89: 36128.41158 | Y89: 216.6577097 | Z89: 0 | AA89: 0 | AB89: 0 | AC89: 0 | AD89: 0 | AE89: 0 | AF89: 0 | AG89: 0 | AH89: 0 | AI89: 0 | AJ89: 0 | AK89: 0 | AL89: 0 | AM89: 0
A90: 4 | B90: TRUE | C90: 2019-04-04T15:00:00 | D90: 559271.6525 | E90: 315849.027 | F90: 357433.2075 | G90: 445021.2568 | H90: 559271.6525 | I90: 167089.8189 | J90: 0 | K90: 0 | L90: 81074.33657 | M90: 1148.386843 | N90: 221.5768921 | O90: 51443.87871 | P90: 9981.458638 | Q90: 2654.330102 | R90: 71.46331376 | S90: 13666.97016 | T90: 282.5465171 | U90: 2379.166964 | V90: 30171.78852 | W90: 165624.1276 | X90: 33266.94709 | Y90: 194.8556631 | Z90: 0 | AA90: 0 | AB90: 0 | AC90: 0 | AD90: 0 | AE90: 0 | AF90: 0 | AG90: 0 | AH90: 0 | AI90: 0 | AJ90: 0 | AK90: 0 | AL90: 0 | AM90: 0
A91: 4 | B91: TRUE | C91: 2019-04-04T16:00:00 | D91: 528817.4891 | E91: 285925.3774 | F91: 326248.0421 | G91: 421199.8525 | H91: 528817.4891 | I91: 148760.429 | J91: 0 | K91: 0 | L91: 76219.27044 | M91: 1079.616695 | N91: 208.3079526 | O91: 46200.14112 | P91: 8964.03633 | Q91: 2383.770982 | R91: 64.17897063 | S91: 12273.87915 | T91: 253.7462044 | U91: 2295.482173 | V91: 30025.26546 | W91: 166212.3457 | X91: 33700.84344 | Y91: 176.1754475 | Z91: 0 | AA91: 0 | AB91: 0 | AC91: 0 | AD91: 0 | AE91: 0 | AF91: 0 | AG91: 0 | AH91: 0 | AI91: 0 | AJ91: 0 | AK91: 0 | AL91: 0 | AM91: 0
A92: 4 | B92: TRUE | C92: 2019-04-04T17:00:00 | D92: 544734.9757 | E92: 307197.0847 | F92: 344021.548 | G92: 433413.2925 | H92: 544734.9757 | I92: 186238.2068 | J92: 0 | K92: 0 | L92: 65899.75397 | M92: 933.4447075 | N92: 180.1046212 | O92: 41619.77382 | P92: 8075.325216 | Q92: 2147.439525 | R92: 57.81614898 | S92: 11057.02411 | T92: 228.5893372 | U92: 2203.94463 | V92: 27587.10407 | W92: 164940.1947 | X92: 33387.87274 | Y92: 178.3813726 | Z92: 0 | AA92: 0 | AB92: 0 | AC92: 0 | AD92: 0 | AE92: 0 | AF92: 0 | AG92: 0 | AH92: 0 | AI92: 0 | AJ92: 0 | AK92: 0 | AL92: 0 | AM92: 0
A93: 4 | B93: TRUE | C93: 2019-04-04T18:00:00 | D93: 561750.9392 | E93: 326576.9425 | F93: 362141.3526 | G93: 446477.7369 | H93: 561750.9392 | I93: 212710.7797 | J93: 32.21590806 | K93: 30.06401143 | L93: 61972.91098 | M93: 878.2483298 | N93: 169.4546891 | O93: 39091.23584 | P93: 7584.722681 | Q93: 2016.97552 | R93: 54.303628 | S93: 10385.27357 | T93: 214.701784 | U93: 2175.320157 | V93: 26886.73729 | W93: 164127.72 | X93: 33241.13286 | Y93: 179.1423429 | Z93: 0 | AA93: 0 | AB93: 0 | AC93: 0 | AD93: 0 | AE93: 0 | AF93: 0 | AG93: 0 | AH93: 0 | AI93: 0 | AJ93: 0 | AK93: 0 | AL93: 0 | AM93: 0
A94: 4 | B94: TRUE | C94: 2019-04-04T19:00:00 | D94: 527610.4274 | E94: 293671.3652 | F94: 328098.1767 | G94: 419994.9232 | H94: 527610.4274 | I94: 184703.7044 | J94: 36.37921994 | K94: 49.87509048 | L94: 58124.57572 | M94: 824.018755 | N94: 158.991298 | O94: 38278.83366 | P94: 7427.095399 | Q94: 1975.058316 | R94: 53.17507872 | S94: 10169.44466 | T94: 210.2398069 | U94: 2134.422856 | V94: 25965.45755 | W94: 164034.1251 | X94: 33290.90084 | Y94: 174.1295858 | Z94: 0 | AA94: 0 | AB94: 0 | AC94: 0 | AD94: 0 | AE94: 0 | AF94: 0 | AG94: 0 | AH94: 0 | AI94: 0 | AJ94: 0 | AK94: 0 | AL94: 0 | AM94: 0
A95: 4 | B95: TRUE | C95: 2019-04-04T20:00:00 | D95: 546620.9685 | E95: 314492.525 | F95: 348727.9299 | G95: 435224.7635 | H95: 546620.9685 | I95: 198857.0105 | J95: 39.16685345 | K95: 51.29447096 | L95: 59778.72585 | M95: 847.4692614 | N95: 163.5159844 | O95: 36632.58328 | P95: 7107.679747 | Q95: 1890.117366 | R95: 50.88818842 | S95: 9732.089321 | T95: 201.1980643 | U95: 2041.548664 | V95: 26079.05783 | W95: 163384.576 | X95: 32403.94102 | Y95: 186.7755182 | Z95: 5955.808066 | AA95: 1217.522405 | AB95: 0 | AC95: 0 | AD95: 0 | AE95: 0 | AF95: 0 | AG95: 0 | AH95: 0 | AI95: 0 | AJ95: 0 | AK95: 0 | AL95: 0 | AM95: 0
A96: 4 | B96: FALSE | C96: 2019-04-04T21:00:00 | D96: 571940.3474 | E96: 339102.5516 | F96: 372661.3852 | G96: 455244.889 | H96: 571940.3474 | I96: 219537.0513 | J96: 43.23999185 | K96: 51.33493743 | L96: 59825.88559 | M96: 848.1378342 | N96: 163.644983 | O96: 35425.72004 | P96: 6873.516697 | Q96: 1827.847305 | R96: 49.21167318 | S96: 9411.464898 | T96: 194.5695788 | U96: 1954.892007 | V96: 25642.60942 | W96: 164951.1922 | X96: 32287.06605 | Y96: 194.1440421 | Z96: 10510.24992 | AA96: 2148.568901 | AB96: 0 | AC96: 0 | AD96: 0 | AE96: 0 | AF96: 0 | AG96: 0 | AH96: 0 | AI96: 0 | AJ96: 0 | AK96: 0 | AL96: 0 | AM96: 0
A97: 4 | B97: FALSE | C97: 2019-04-04T22:00:00 | D97: 550077.1026 | E97: 318239.9068 | F97: 350688.078 | G97: 438270.4095 | H97: 550077.1026 | I97: 210388.3247 | J97: 41.43805972 | K97: 44.82666252 | L97: 52241.12306 | M97: 740.6103985 | N97: 142.8979715 | O97: 32214.24569 | P97: 6250.406638 | Q97: 1662.146094 | R97: 44.7504505 | S97: 8558.280319 | T97: 176.931117 | U97: 1908.065419 | V97: 25280.22299 | W97: 165162.3809 | X97: 32376.84918 | Y97: 184.7841167 | Z97: 10510.24992 | AA97: 2148.568901 | AB97: 0 | AC97: 0 | AD97: 0 | AE97: 0 | AF97: 0 | AG97: 0 | AH97: 0 | AI97: 0 | AJ97: 0 | AK97: 0 | AL97: 0 | AM97: 0
A98: 4 | B98: FALSE | C98: 2019-04-04T23:00:00 | D98: 487743.5431 | E98: 260748.148 | F98: 290412.7993 | G98: 390085.7978 | H98: 487743.5431 | I98: 161051.0559 | J98: 31.72059706 | K98: 40.65712973 | L98: 47381.9374 | M98: 671.7228399 | N98: 129.606378 | O98: 29684.49229 | P98: 5759.56828 | Q98: 1531.619377 | R98: 41.23624112 | S98: 7886.206884 | T98: 163.0368883 | U98: 1845.134293 | V98: 23070.32328 | W98: 163752.38 | X98: 31875.90176 | Y98: 168.1247158 | Z98: 10510.24992 | AA98: 2148.568901 | AB98: 0 | AC98: 0 | AD98: 0 | AE98: 0 | AF98: 0 | AG98: 0 | AH98: 0 | AI98: 0 | AJ98: 0 | AK98: 0 | AL98: 0 | AM98: 0
A99: 4 | B99: FALSE | C99: 2019-04-05 | D99: 446955.0629 | E99: 221879.0077 | F99: 249843.6616 | G99: 358568.0964 | H99: 446955.0629 | I99: 125948.9748 | J99: 24.80689529 | K99: 39.86804982 | L99: 46462.34138 | M99: 658.6859383 | N99: 127.0909572 | O99: 27563.70982 | P99: 5348.080985 | Q99: 1422.194176 | R99: 38.2901541 | S99: 7322.783762 | T99: 151.3888611 | U99: 1686.560108 | V99: 21806.49811 | W99: 163732.1406 | X99: 31791.68537 | Y99: 171.1440237 | Z99: 10510.24992 | AA99: 2148.568901 | AB99: 0 | AC99: 0 | AD99: 0 | AE99: 0 | AF99: 0 | AG99: 0 | AH99: 0 | AI99: 0 | AJ99: 0 | AK99: 0 | AL99: 0 | AM99: 0
A100: 4 | B100: FALSE | C100: 2019-04-05T01:00:00 | D100: 442488.251 | E100: 219188.105 | F100: 246207.2317 | G100: 354927.6269 | H100: 442488.251 | I100: 122655.9709 | J100: 24.15830563 | K100: 40.44340094 | L100: 47132.85725 | M100: 668.1916877 | N100: 128.9250556 | O100: 27493.15024 | P100: 5334.390579 | Q100: 1418.55354 | R100: 38.19213619 | S100: 7304.038368 | T100: 151.0013249 | U100: 1712.782894 | V100: 20865.54318 | W100: 162906.7306 | X100: 31788.61792 | Y100: 165.8847742 | Z100: 10510.24992 | AA100: 2148.568901 | AB100: 0 | AC100: 0 | AD100: 0 | AE100: 0 | AF100: 0 | AG100: 0 | AH100: 0 | AI100: 0 | AJ100: 0 | AK100: 0 | AL100: 0 | AM100: 0
A101: 4 | B101: FALSE | C101: 2019-04-05T02:00:00 | D101: 419900.3004 | E101: 200218.4315 | F101: 226515.5633 | G101: 336819.4847 | H101: 419900.3004 | I101: 102660.8754 | J101: 20.22007397 | K101: 41.81973578 | L101: 48736.84188 | M101: 690.9310093 | N101: 133.3125215 | O101: 27026.34017 | P101: 5243.817211 | Q101: 1394.46772 | R101: 37.54366654 | S101: 7180.022074 | T101: 148.4374521 | U101: 1719.874591 | V101: 20213.94619 | W101: 160052.3615 | X101: 31767.0516 | Y101: 173.6186958 | Z101: 10510.24992 | AA101: 2148.568901 | AB101: 0 | AC101: 0 | AD101: 0 | AE101: 0 | AF101: 0 | AG101: 0 | AH101: 0 | AI101: 0 | AJ101: 0 | AK101: 0 | AL101: 0 | AM101: 0
A102: 4 | B102: FALSE | C102: 2019-04-05T03:00:00 | D102: 420760.7835 | E102: 203105.951 | F102: 229491.3202 | G102: 337089.8501 | H102: 420760.7835 | I102: 104528.8895 | J102: 20.5879978 | K102: 41.42727086 | L102: 48279.46212 | M102: 684.4468416 | N102: 132.0614259 | O102: 28190.53482 | P102: 5469.701437 | Q102: 1454.536225 | R102: 39.16090866 | S102: 7489.310835 | T102: 154.8315879 | U102: 1726.564675 | V102: 20076.38934 | W102: 157961.7733 | X102: 31681.93146 | Y102: 170.3549264 | Z102: 10510.24992 | AA102: 2148.568901 | AB102: 0 | AC102: 0 | AD102: 0 | AE102: 0 | AF102: 0 | AG102: 0 | AH102: 0 | AI102: 0 | AJ102: 0 | AK102: 0 | AL102: 0 | AM102: 0
A103: 4 | B103: FALSE | C103: 2019-04-05T04:00:00 | D103: 440778.1827 | E103: 219505.9173 | F103: 246329.3307 | G103: 353299.5553 | H103: 440778.1827 | I103: 122067.4135 | J103: 24.04238343 | K103: 39.09755418 | L103: 45564.40351 | M103: 645.9560795 | N103: 124.6347792 | O103: 29459.69822 | P103: 5715.952348 | Q103: 1520.020763 | R103: 40.92396822 | S103: 7826.486389 | T103: 161.8022461 | U103: 1698.550748 | V103: 20299.70275 | W103: 161087.0225 | X103: 31676.24992 | Y103: 167.40619 | Z103: 10510.24992 | AA103: 2148.568901 | AB103: 0 | AC103: 0 | AD103: 0 | AE103: 0 | AF103: 0 | AG103: 0 | AH103: 0 | AI103: 0 | AJ103: 0 | AK103: 0 | AL103: 0 | AM103: 0
A104: 4 | B104: FALSE | C104: 2019-04-05T05:00:00 | D104: 453687.065 | E104: 230861.5221 | F104: 259164.6332 | G104: 363233.4455 | H104: 453687.065 | I104: 132208.6224 | J104: 26.03979474 | K104: 37.12182316 | L104: 43261.88083 | M104: 613.3137445 | N104: 118.3365643 | O104: 32265.35671 | P104: 6260.323512 | Q104: 1664.783249 | R104: 44.82145141 | S104: 8571.858857 | T104: 177.2118353 | U104: 1727.929956 | V104: 21252.26199 | W104: 160952.6673 | X104: 31741.82319 | Y104: 103.8929645 | Z104: 10510.24992 | AA104: 2148.568901 | AB104: 0 | AC104: 0 | AD104: 0 | AE104: 0 | AF104: 0 | AG104: 0 | AH104: 0 | AI104: 0 | AJ104: 0 | AK104: 0 | AL104: 0 | AM104: 0
A105: 4 | B105: FALSE | C105: 2019-04-05T06:00:00 | D105: 507507.3212 | E105: 280410.0821 | F105: 314022.3313 | G105: 404610.2561 | H105: 507507.3212 | I105: 175721.0939 | J105: 34.61000603 | K105: 40.87362632 | L105: 47634.24316 | M105: 675.2997206 | N105: 130.2965236 | O105: 36953.03691 | P105: 7169.856137 | Q105: 1906.651689 | R105: 51.33334689 | S105: 9817.223457 | T105: 202.9580999 | U105: 1865.27148 | V105: 25564.13525 | W105: 159636.0625 | X105: 31760.64588 | Y105: 115.4969186 | Z105: 6831.662785 | AA105: 1396.569796 | AB105: 0 | AC105: 0 | AD105: 0 | AE105: 0 | AF105: 0 | AG105: 0 | AH105: 0 | AI105: 0 | AJ105: 0 | AK105: 0 | AL105: 0 | AM105: 0
A106: 4 | B106: TRUE | C106: 2019-04-05T07:00:00 | D106: 552867.9891 | E106: 310434.9852 | F106: 352138.1776 | G106: 441373.9886 | H106: 552867.9891 | I106: 197273.9108 | J106: 25.77201326 | K106: 17.00316394 | L106: 56222.84985 | M106: 796.6159202 | N106: 153.7040249 | O106: 43187.79074 | P106: 8379.561529 | Q106: 2228.343894 | R106: 59.99436119 | S106: 11473.59535 | T106: 237.2013961 | U106: 2107.950642 | V106: 32289.81357 | W106: 166567.115 | X106: 31720.65428 | Y106: 126.1125844 | Z106: 0 | AA106: 0 | AB106: 0 | AC106: 0 | AD106: 0 | AE106: 0 | AF106: 0 | AG106: 0 | AH106: 0 | AI106: 0 | AJ106: 0 | AK106: 0 | AL106: 0 | AM106: 0
A107: 4 | B107: TRUE | C107: 2019-04-05T08:00:00 | D107: 569602.1201 | E107: 323719.0225 | F107: 367319.5389 | G107: 454673.235 | H107: 569602.1201 | I107: 200966.9299 | J107: 0 | K107: 0 | L107: 62893.45879 | M107: 890.8616908 | N107: 171.8883894 | O107: 45360.15614 | P107: 8801.057262 | Q107: 2340.430599 | R107: 63.01210468 | S107: 12050.72238 | T107: 249.1327336 | U107: 2251.296642 | V107: 33659.46474 | W107: 167991.3265 | X107: 31715.92359 | Y107: 196.4586507 | Z107: 0 | AA107: 0 | AB107: 0 | AC107: 0 | AD107: 0 | AE107: 0 | AF107: 0 | AG107: 0 | AH107: 0 | AI107: 0 | AJ107: 0 | AK107: 0 | AL107: 0 | AM107: 0
A108: 4 | B108: TRUE | C108: 2019-04-05T09:00:00 | D108: 543862.2444 | E108: 298100.9234 | F108: 342390.7488 | G108: 434464.0932 | H108: 543862.2444 | I108: 164338.0381 | J108: 0 | K108: 0 | L108: 72986.85659 | M108: 1033.830795 | N108: 199.4737365 | O108: 46090.39161 | P108: 8942.742053 | Q108: 2378.108279 | R108: 64.02651199 | S108: 12244.72226 | T108: 253.1434244 | U108: 2259.047766 | V108: 34060.10909 | W108: 167002.5934 | X108: 31827.29364 | Y108: 181.8670783 | Z108: 0 | AA108: 0 | AB108: 0 | AC108: 0 | AD108: 0 | AE108: 0 | AF108: 0 | AG108: 0 | AH108: 0 | AI108: 0 | AJ108: 0 | AK108: 0 | AL108: 0 | AM108: 0
A109: 4 | B109: TRUE | C109: 2019-04-05T10:00:00 | D109: 554732.5314 | E109: 308568.9931 | F109: 353192.9558 | G109: 440914.3464 | H109: 554732.5314 | I109: 173829.4083 | J109: 0 | K109: 0 | L109: 73622.42436 | M109: 1042.833368 | N109: 201.2107489 | O109: 46332.10712 | P109: 8989.641186 | Q109: 2390.579981 | R109: 64.36229133 | S109: 12308.93823 | T109: 254.4710046 | U109: 2292.60768 | V109: 34337.01713 | W109: 165081.7214 | X109: 33801.70117 | Y109: 183.5073994 | Z109: 0 | AA109: 0 | AB109: 0 | AC109: 0 | AD109: 0 | AE109: 0 | AF109: 0 | AG109: 0 | AH109: 0 | AI109: 0 | AJ109: 0 | AK109: 0 | AL109: 0 | AM109: 0
A110: 4 | B110: TRUE | C110: 2019-04-05T11:00:00 | D110: 529456.1858 | E110: 283884.0376 | F110: 327448.8458 | G110: 420862.0145 | H110: 529456.1858 | I110: 150386.6785 | J110: 0 | K110: 0 | L110: 73168.34333 | M110: 1036.401484 | N110: 199.9697414 | O110: 45814.79086 | P110: 8889.268295 | Q110: 2363.888212 | R110: 63.64366094 | S110: 12171.50408 | T110: 251.6297354 | U110: 2159.834289 | V110: 33387.50865 | W110: 164973.7503 | X110: 34406.08803 | Y110: 182.8865567 | Z110: 0 | AA110: 0 | AB110: 0 | AC110: 0 | AD110: 0 | AE110: 0 | AF110: 0 | AG110: 0 | AH110: 0 | AI110: 0 | AJ110: 0 | AK110: 0 | AL110: 0 | AM110: 0
A111: 4 | B111: TRUE | C111: 2019-04-05T12:00:00 | D111: 523915.9292 | E111: 278949.1942 | F111: 324091.8566 | G111: 416129.8448 | H111: 523915.9292 | I111: 142075.1926 | J111: 0 | K111: 0 | L111: 75481.31289 | M111: 1069.16381 | N111: 206.291108 | O111: 46636.8085 | P111: 9048.761228 | Q111: 2406.301541 | R111: 64.78556754 | S111: 12389.88751 | T111: 256.1445237 | U111: 2183.612698 | V111: 34768.59281 | W111: 162789.9151 | X111: 34356.77928 | Y111: 182.3800161 | Z111: 0 | AA111: 0 | AB111: 0 | AC111: 0 | AD111: 0 | AE111: 0 | AF111: 0 | AG111: 0 | AH111: 0 | AI111: 0 | AJ111: 0 | AK111: 0 | AL111: 0 | AM111: 0
A112: 4 | B112: TRUE | C112: 2019-04-05T13:00:00 | D112: 532339.6286 | E112: 287588.2908 | F112: 331442.8298 | G112: 423016.1109 | H112: 532339.6286 | I112: 149183.7721 | J112: 0 | K112: 0 | L112: 78415.93523 | M112: 1110.731609 | N112: 214.3114573 | O112: 45429.83739 | P112: 8814.577248 | Q112: 2344.025916 | R112: 63.10890246 | S112: 12069.23443 | T112: 249.5154457 | U112: 2285.80191 | V112: 33679.71471 | W112: 164043.4995 | X112: 34231.853 | Y112: 203.7098093 | Z112: 0 | AA112: 0 | AB112: 0 | AC112: 0 | AD112: 0 | AE112: 0 | AF112: 0 | AG112: 0 | AH112: 0 | AI112: 0 | AJ112: 0 | AK112: 0 | AL112: 0 | AM112: 0
A113: 4 | B113: TRUE | C113: 2019-04-05T14:00:00 | D113: 528834.1212 | E113: 283959.9287 | F113: 328281.037 | G113: 420238.9622 | H113: 528834.1212 | I113: 150877.9934 | J113: 0 | K113: 0 | L113: 74055.61773 | M113: 1048.969386 | N113: 202.3946703 | O113: 44597.5571 | P113: 8653.093093 | Q113: 2301.083068 | R113: 61.95273949 | S113: 11848.12455 | T113: 244.9442916 | U113: 2377.325266 | V113: 34374.10155 | W113: 163767.2697 | X113: 34220.38393 | Y113: 203.310649 | Z113: 0 | AA113: 0 | AB113: 0 | AC113: 0 | AD113: 0 | AE113: 0 | AF113: 0 | AG113: 0 | AH113: 0 | AI113: 0 | AJ113: 0 | AK113: 0 | AL113: 0 | AM113: 0
A114: 4 | B114: TRUE | C114: 2019-04-05T15:00:00 | D114: 529578.44 | E114: 287986.4988 | F114: 330091.509 | G114: 420583.0476 | H114: 529578.44 | I114: 158293.1369 | J114: 0 | K114: 0 | L114: 72290.43918 | M114: 1023.966309 | N114: 197.5704214 | O114: 43381.48674 | P114: 8417.143623 | Q114: 2238.337952 | R114: 60.26343418 | S114: 11525.05409 | T114: 238.2652376 | U114: 2315.953909 | V114: 32425.63502 | W114: 162778.2882 | X114: 34212.47098 | Y114: 180.4279958 | Z114: 0 | AA114: 0 | AB114: 0 | AC114: 0 | AD114: 0 | AE114: 0 | AF114: 0 | AG114: 0 | AH114: 0 | AI114: 0 | AJ114: 0 | AK114: 0 | AL114: 0 | AM114: 0
A115: 4 | B115: TRUE | C115: 2019-04-05T16:00:00 | D115: 510266.1062 | E115: 273763.0386 | F115: 313372.7481 | G115: 405198.6989 | H115: 510266.1062 | I115: 150432.4672 | J115: 0 | K115: 0 | L115: 72257.92786 | M115: 1023.505799 | N115: 197.4815677 | O115: 38487.72332 | P115: 7467.625459 | Q115: 1985.836315 | R115: 53.465258 | S115: 10224.93986 | T115: 211.3870969 | U115: 2186.66775 | V115: 30907.19114 | W115: 160580.673 | X115: 34075.90195 | Y115: 173.3126154 | Z115: 0 | AA115: 0 | AB115: 0 | AC115: 0 | AD115: 0 | AE115: 0 | AF115: 0 | AG115: 0 | AH115: 0 | AI115: 0 | AJ115: 0 | AK115: 0 | AL115: 0 | AM115: 0
A116: 4 | B116: TRUE | C116: 2019-04-05T17:00:00 | D116: 519516.4082 | E116: 287872.4985 | F116: 324737.2528 | G116: 413527.992 | H116: 519516.4082 | I116: 175697.6265 | J116: 0 | K116: 0 | L116: 62887.81388 | M116: 890.7817329 | N116: 171.8729618 | O116: 37076.79741 | P116: 7193.868912 | Q116: 1913.037312 | R116: 51.5052689 | S116: 9850.102607 | T116: 203.6378328 | U116: 2193.349708 | V116: 28576.46586 | W116: 160216.4465 | X116: 32426.29334 | Y116: 166.8083634 | Z116: 0 | AA116: 0 | AB116: 0 | AC116: 0 | AD116: 0 | AE116: 0 | AF116: 0 | AG116: 0 | AH116: 0 | AI116: 0 | AJ116: 0 | AK116: 0 | AL116: 0 | AM116: 0
A117: 4 | B117: TRUE | C117: 2019-04-05T18:00:00 | D117: 502866.6583 | E117: 274622.4742 | F117: 308417.8876 | G117: 400750.9278 | H117: 502866.6583 | I117: 168972.9239 | J117: 23.02316478 | K117: 25.21499363 | L117: 57930.70438 | M117: 820.9233412 | N117: 158.3940497 | O117: 35821.09411 | P117: 6950.229613 | Q117: 1848.247269 | R117: 49.76090745 | S117: 9516.502965 | T117: 196.7411018 | U117: 2165.560963 | V117: 25827.51936 | W117: 160142.8095 | X117: 32249.55902 | Y117: 167.4496668 | Z117: 0 | AA117: 0 | AB117: 0 | AC117: 0 | AD117: 0 | AE117: 0 | AF117: 0 | AG117: 0 | AH117: 0 | AI117: 0 | AJ117: 0 | AK117: 0 | AL117: 0 | AM117: 0
A118: 4 | B118: TRUE | C118: 2019-04-05T19:00:00 | D118: 496587.73 | E118: 268175.688 | F118: 302297.3866 | G118: 395769.0712 | H118: 496587.73 | I118: 167706.0042 | J118: 33.03135491 | K118: 45.57482062 | L118: 53113.02869 | M118: 752.9712042 | N118: 145.2829422 | O118: 35585.94685 | P118: 6904.604892 | Q118: 1836.114467 | R118: 49.43425241 | S118: 9454.031966 | T118: 195.4495965 | U118: 2051.900347 | V118: 26268.67287 | W118: 159921.2029 | X118: 32338.30887 | Y118: 186.1697544 | Z118: 0 | AA118: 0 | AB118: 0 | AC118: 0 | AD118: 0 | AE118: 0 | AF118: 0 | AG118: 0 | AH118: 0 | AI118: 0 | AJ118: 0 | AK118: 0 | AL118: 0 | AM118: 0
A119: 4 | B119: TRUE | C119: 2019-04-05T20:00:00 | D119: 545899.0476 | E119: 315591.4897 | F119: 351441.3179 | G119: 433799.1912 | H119: 545899.0476 | I119: 208778.8454 | J119: 41.12105688 | K119: 47.51876584 | L119: 55378.50812 | M119: 785.0883855 | N119: 151.4798307 | O119: 33542.32303 | P119: 6508.088395 | Q119: 1730.670391 | R119: 46.59535042 | S119: 8911.107396 | T119: 184.2253497 | U119: 1721.533925 | V119: 28372.42603 | W119: 160031.3271 | X119: 32497.65707 | Y119: 208.1812477 | Z119: 5780.637793 | AA119: 1181.712969 | AB119: 0 | AC119: 0 | AD119: 0 | AE119: 0 | AF119: 0 | AG119: 0 | AH119: 0 | AI119: 0 | AJ119: 0 | AK119: 0 | AL119: 0 | AM119: 0
A120: 4 | B120: FALSE | C120: 2019-04-05T21:00:00 | D120: 576421.6846 | E120: 344344.1712 | F120: 379081.693 | G120: 458163.87 | H120: 576421.6846 | I120: 231863.141 | J120: 45.66773702 | K120: 49.49574904 | L120: 57682.49009 | M120: 817.7514086 | N120: 157.7820373 | O120: 31734.04872 | P120: 6157.23586 | Q120: 1637.369555 | R120: 44.08338441 | S120: 8430.707557 | T120: 174.293719 | U120: 1666.798097 | V120: 27588.24074 | W120: 163099.5681 | X120: 32401.18856 | Y120: 213.0034957 | Z120: 10510.24992 | AA120: 2148.568901 | AB120: 0 | AC120: 0 | AD120: 0 | AE120: 0 | AF120: 0 | AG120: 0 | AH120: 0 | AI120: 0 | AJ120: 0 | AK120: 0 | AL120: 0 | AM120: 0
A121: 4 | B121: FALSE | C121: 2019-04-05T22:00:00 | D121: 542334.8262 | E121: 309386.5581 | F121: 342968.4801 | G121: 432246.8108 | H121: 542334.8262 | I121: 203984.0032 | J121: 40.17666532 | K121: 44.48118515 | L121: 51838.50273 | M121: 734.9025425 | N121: 141.7966624 | O121: 30793.53867 | P121: 5974.752299 | Q121: 1588.842418 | R121: 42.77687397 | S121: 8180.844539 | T121: 169.1281318 | U121: 1645.84543 | V121: 26703.13903 | W121: 165185.3035 | X121: 32407.62666 | Y121: 200.3468337 | Z121: 10510.24992 | AA121: 2148.568901 | AB121: 0 | AC121: 0 | AD121: 0 | AE121: 0 | AF121: 0 | AG121: 0 | AH121: 0 | AI121: 0 | AJ121: 0 | AK121: 0 | AL121: 0 | AM121: 0
A122: 4 | B122: FALSE | C122: 2019-04-05T23:00:00 | D122: 512992.2585 | E122: 281141.8229 | F122: 312752.99 | G122: 409898.5857 | H122: 512992.2585 | I122: 182076.7611 | J122: 35.86181749 | K122: 40.95998103 | L122: 47734.88119 | M122: 676.7264428 | N122: 130.5718042 | O122: 29038.71375 | P122: 5634.270344 | Q122: 1498.299388 | R122: 40.33915723 | S122: 7714.644468 | T122: 159.4900625 | U122: 1654.059042 | V122: 25140.6802 | W122: 166314.4702 | X122: 32255.58793 | Y122: 187.1227569 | Z122: 10510.24992 | AA122: 2148.568901 | AB122: 0 | AC122: 0 | AD122: 0 | AE122: 0 | AF122: 0 | AG122: 0 | AH122: 0 | AI122: 0 | AJ122: 0 | AK122: 0 | AL122: 0 | AM122: 0
A123: 4 | B123: FALSE | C123: 2019-04-06 | D123: 485087.6435 | E123: 256473.1378 | F123: 286013.1498 | G123: 388512.8149 | H123: 485087.6435 | I123: 159977.6025 | J123: 31.50916981 | K123: 39.73270733 | L123: 46304.61285 | M123: 656.4498572 | N123: 126.6595138 | O123: 28153.57733 | P123: 5462.530717 | Q123: 1452.629344 | R123: 39.10956912 | S123: 7479.492429 | T123: 154.6286053 | U123: 1648.811234 | V123: 23266.40277 | W123: 165665.037 | X123: 31791.05834 | Y123: 178.9807393 | Z123: 10510.24992 | AA123: 2148.568901 | AB123: 0 | AC123: 0 | AD123: 0 | AE123: 0 | AF123: 0 | AG123: 0 | AH123: 0 | AI123: 0 | AJ123: 0 | AK123: 0 | AL123: 0 | AM123: 0
A124: 4 | B124: FALSE | C124: 2019-04-06T01:00:00 | D124: 454742.2336 | E124: 228959.8556 | F124: 256825.0273 | G124: 364735.8014 | H124: 454742.2336 | I124: 137445.7215 | J124: 27.07129316 | K124: 35.84948084 | L124: 41779.08938 | M124: 592.2925508 | N124: 114.2806045 | O124: 27915.90101 | P124: 5416.415291 | Q124: 1440.36605 | R124: 38.77940083 | S124: 7416.349538 | T124: 153.3232097 | U124: 1508.948081 | V124: 21703.14072 | W124: 164493.4868 | X124: 31830.29338 | Y124: 172.1064864 | Z124: 10510.24992 | AA124: 2148.568901 | AB124: 0 | AC124: 0 | AD124: 0 | AE124: 0 | AF124: 0 | AG124: 0 | AH124: 0 | AI124: 0 | AJ124: 0 | AK124: 0 | AL124: 0 | AM124: 0
A125: 4 | B125: FALSE | C125: 2019-04-06T02:00:00 | D125: 452936.9065 | E125: 229234.1039 | F125: 256680.493 | G125: 362979.2674 | H125: 452936.9065 | I125: 138056.6009 | J125: 27.19161191 | K125: 35.46663004 | L125: 41332.91395 | M125: 585.9672242 | N125: 113.0601567 | O125: 27984.63266 | P125: 5429.751029 | Q125: 1443.91237 | R125: 38.87487947 | S125: 7434.609308 | T125: 153.7007062 | U125: 1534.136394 | V125: 21276.9702 | W125: 162846.443 | X125: 31814.12306 | Y125: 169.733576 | Z125: 10510.24992 | AA125: 2148.568901 | AB125: 0 | AC125: 0 | AD125: 0 | AE125: 0 | AF125: 0 | AG125: 0 | AH125: 0 | AI125: 0 | AJ125: 0 | AK125: 0 | AL125: 0 | AM125: 0
A126: 4 | B126: FALSE | C126: 2019-04-06T03:00:00 | D126: 440001.442 | E126: 215308.0675 | F126: 242703.3394 | G126: 353222.08 | H126: 440001.442 | I126: 125220.5619 | J126: 24.66342717 | K126: 34.50482771 | L126: 40212.02671 | M126: 570.0766634 | N126: 109.9941332 | O126: 27992.45677 | P126: 5431.269113 | Q126: 1444.316068 | R126: 38.88574835 | S126: 7436.687922 | T126: 153.7436788 | U126: 1552.301881 | V126: 21240.18238 | W126: 163905.0699 | X126: 31799.83677 | Y126: 176.045288 | Z126: 10510.24992 | AA126: 2148.568901 | AB126: 0 | AC126: 0 | AD126: 0 | AE126: 0 | AF126: 0 | AG126: 0 | AH126: 0 | AI126: 0 | AJ126: 0 | AK126: 0 | AL126: 0 | AM126: 0
A127: 4 | B127: FALSE | C127: 2019-04-06T04:00:00 | D127: 440994.2249 | E127: 216136.2493 | F127: 243566.3062 | G127: 353962.348 | H127: 440994.2249 | I127: 126688.7022 | J127: 24.95259192 | K127: 33.5219205 | L127: 39066.54379 | M127: 553.8374152 | N127: 106.8608318 | O127: 28384.27705 | P127: 5507.2925 | Q127: 1464.532669 | R127: 39.43004586 | S127: 7540.781863 | T127: 155.8956833 | U127: 1565.901169 | V127: 21213.03136 | W127: 163960.6372 | X127: 31856.45793 | Y127: 172.7498206 | Z127: 10510.24992 | AA127: 2148.568901 | AB127: 0 | AC127: 0 | AD127: 0 | AE127: 0 | AF127: 0 | AG127: 0 | AH127: 0 | AI127: 0 | AJ127: 0 | AK127: 0 | AL127: 0 | AM127: 0
A128: 4 | B128: FALSE | C128: 2019-04-06T05:00:00 | D128: 454991.9165 | E128: 228811.0058 | F128: 256695.3273 | G128: 364985.1635 | H128: 454991.9165 | I128: 137108.4764 | J128: 27.00486941 | K128: 34.86810226 | L128: 40635.38793 | M128: 576.0785581 | N128: 111.1521761 | O128: 28792.2117 | P128: 5586.442496 | Q128: 1485.580717 | R128: 39.99672867 | S128: 7649.156869 | T128: 158.136193 | U128: 1732.883582 | V128: 21563.66425 | W128: 164801.1026 | X128: 31858.75704 | Y128: 172.1975185 | Z128: 10510.24992 | AA128: 2148.568901 | AB128: 0 | AC128: 0 | AD128: 0 | AE128: 0 | AF128: 0 | AG128: 0 | AH128: 0 | AI128: 0 | AJ128: 0 | AK128: 0 | AL128: 0 | AM128: 0
A129: 4 | B129: FALSE | C129: 2019-04-06T06:00:00 | D129: 473366.8624 | E129: 244378.1272 | F129: 274127.9588 | G129: 379456.5485 | H129: 473366.8624 | I129: 149864.6072 | J129: 28.4133071 | K129: 35.72001475 | L129: 44700.41936 | M129: 633.6702343 | N129: 122.2642719 | O129: 31629.81385 | P129: 6137.011566 | Q129: 1631.991388 | R129: 43.93858643 | S129: 8403.015731 | T129: 173.7212271 | U129: 1800.855517 | V129: 22805.42853 | W129: 165628.5498 | X129: 31812.15954 | Y129: 109.0105549 | Z129: 6481.320898 | AA129: 1324.950819 | AB129: 0 | AC129: 0 | AD129: 0 | AE129: 0 | AF129: 0 | AG129: 0 | AH129: 0 | AI129: 0 | AJ129: 0 | AK129: 0 | AL129: 0 | AM129: 0
A130: 4 | B130: FALSE | C130: 2019-04-06T07:00:00 | D130: 474910.677 | E130: 241256.5542 | F130: 273337.2215 | G130: 381167.352 | H130: 474910.677 | I130: 153903.5853 | J130: 0 | K130: 0 | L130: 45016.42713 | M130: 637.6404027 | N130: 123.0303008 | O130: 31925.93027 | P130: 6194.465901 | Q130: 1647.269993 | R130: 44.34993685 | S130: 8481.684261 | T130: 175.3475949 | U130: 1804.178312 | V130: 25073.21346 | W130: 167935.0471 | X130: 31823.75813 | Y130: 124.7489305 | Z130: 0 | AA130: 0 | AB130: 0 | AC130: 0 | AD130: 0 | AE130: 0 | AF130: 0 | AG130: 0 | AH130: 0 | AI130: 0 | AJ130: 0 | AK130: 0 | AL130: 0 | AM130: 0
A131: 4 | B131: =PeakTime(C131,Holidays,PkStart,PkEnd,UseDST,DST_1,DST_2) -> FALSE | C131: 2019-04-06T08:00:00 | D131: =SUM(OFFSET(I131,0,0,1,COUNTA(I131:IV131))) -> 510282.0641 | E131: =SUMIF(OFFSET($I$2,0,0,1,COUNTA($I$2:$IV$2)),E$2,OFFSET(I131,0,0,1,COUNTA(I131:IV131))) -> 275679.834 | F131: =E131+SUMIF(OFFSET($I$2,0,0,1,COUNTA($I$2:$IV$2)),F$2,OFFSET(I131,0,0,1,COUNTA(I131:IV131))) -> 307796.975 | G131: =F131*DistAtSubtran+SUMIF(OFFSET($I$2,0,0,1,COUNTA($I$2:$IV$2)),G$2,OFFSET(I131,0,0,1,COUNTA(I131:IV131))) -> 408647.1271 | H131: =SUM(OFFSET(I131,0,0,1,COUNTA(I131:IV131))) -> 510282.0641 | I131: 181764.9361 | J131: 0 | K131: 0 | L131: 51559.17576 | M131: 730.3159244 | N131: 140.9116918 | O131: 31927.07249 | P131: 6194.687522 | Q131: 1647.328928 | R131: 44.35152357 | S131: 8481.987712 | T131: 175.3538683 | U131: 1811.274136 | V131: 25016.78361 | W131: 168737.7664 | X131: 31914.73056 | Y131: 135.3878663 | Z131: 0 | AA131: 0 | AB131: 0 | AC131: 0 | AD131: 0 | AE131: 0 | AF131: 0 | AG131: 0 | AH131: 0 | AI131: 0 | AJ131: 0 | AK131: 0 | AL131: 0 | AM131: 0
A132: =MONTH(C132) -> 4 | B132: FALSE | C132: =+C131+1/24 -> 2019-04-06T09:00:00 | D132: 561902.1467 | E132: 326390.3784 | F132: 359026.9916 | G132: 448633.1928 | H132: 561902.1467 | I132: 227150.226 | J132: 0 | K132: 0 | L132: 55554.61539 | M132: 786.9097924 | N132: 151.8312643 | O132: 32939.08403 | P132: 6391.044242 | Q132: 1699.5453 | R132: 45.75736037 | S132: 8750.846357 | T132: 180.9121649 | U132: 1854.21407 | V132: 25277.74701 | W132: 169027.594 | X132: 31950.42715 | Y132: 141.3924824 | Z132: 0 | AA132: 0 | AB132: 0 | AC132: 0 | AD132: 0 | AE132: 0 | AF132: 0 | AG132: 0 | AH132: 0 | AI132: 0 | AJ132: 0 | AK132: 0 | AL132: 0 | AM132: 0
A133: 4 | B133: FALSE | C133: 2019-04-06T10:00:00 | D133: 524089.881 | E133: 290141.9518 | F133: 322328.4725 | G133: 419113.8536 | H133: 524089.881 | I133: 188498.4783 | J133: 0 | K133: 0 | L133: 58014.06038 | M133: 821.7468862 | N133: 158.5529496 | O133: 32902.08224 | P133: 6383.864926 | Q133: 1697.636132 | R133: 45.7059593 | S133: 8741.01618 | T133: 180.708939 | U133: 1803.407455 | V133: 24800.19993 | W133: 167894.5351 | X133: 31964.97838 | Y133: 182.9072712 | Z133: 0 | AA133: 0 | AB133: 0 | AC133: 0 | AD133: 0 | AE133: 0 | AF133: 0 | AG133: 0 | AH133: 0 | AI133: 0 | AJ133: 0 | AK133: 0 | AL133: 0 | AM133: 0
A134: 4 | B134: FALSE | C134: 2019-04-06T11:00:00 | D134: 511840.3824 | E134: 277887.8059 | F134: 310286.6752 | G134: 409614.0428 | H134: 511840.3824 | I134: 173258.6821 | J134: 0 | K134: 0 | L134: 60007.78931 | M134: 849.9872908 | N134: 164.0018287 | O134: 33671.21871 | P134: 6533.097529 | Q134: 1737.320972 | R134: 46.77440597 | S134: 8945.350797 | T134: 184.9332867 | U134: 1821.394447 | V134: 24830.85122 | W134: 167665.492 | X134: 31940.11794 | Y134: 183.3706059 | Z134: 0 | AA134: 0 | AB134: 0 | AC134: 0 | AD134: 0 | AE134: 0 | AF134: 0 | AG134: 0 | AH134: 0 | AI134: 0 | AJ134: 0 | AK134: 0 | AL134: 0 | AM134: 0
A135: 4 | B135: FALSE | C135: 2019-04-06T12:00:00 | D135: 523891.2741 | E135: 290265.2815 | F135: 322219.8908 | G135: 418970.2192 | H135: 523891.2741 | I135: 187354.345 | J135: 0 | K135: 0 | L135: 60020.31584 | M135: 850.1647243 | N135: 164.0360638 | O135: 32299.4076 | P135: 6266.930276 | Q135: 1666.54016 | R135: 44.86875325 | S135: 8580.905075 | T135: 177.3988539 | U135: 1827.822849 | V135: 24660.11552 | W135: 167860.5157 | X135: 31935.42257 | Y135: 182.4851117 | Z135: 0 | AA135: 0 | AB135: 0 | AC135: 0 | AD135: 0 | AE135: 0 | AF135: 0 | AG135: 0 | AH135: 0 | AI135: 0 | AJ135: 0 | AK135: 0 | AL135: 0 | AM135: 0
A136: 4 | B136: FALSE | C136: 2019-04-06T13:00:00 | D136: 531836.9773 | E136: 298991.2232 | F136: 330986.7486 | G136: 424978.0852 | H136: 531836.9773 | I136: 195161.3166 | J136: 0 | K136: 0 | L136: 60700.4776 | M136: 859.7989545 | N136: 165.894952 | O136: 32524.12463 | P136: 6310.53126 | Q136: 1678.134798 | R136: 45.18091912 | S136: 8640.605101 | T136: 178.6330729 | U136: 1746.953483 | V136: 24646.56211 | W136: 167072.6198 | X136: 31888.39822 | Y136: 217.7457288 | Z136: 0 | AA136: 0 | AB136: 0 | AC136: 0 | AD136: 0 | AE136: 0 | AF136: 0 | AG136: 0 | AH136: 0 | AI136: 0 | AJ136: 0 | AK136: 0 | AL136: 0 | AM136: 0
A137: 4 | B137: FALSE | C137: 2019-04-06T14:00:00 | D137: 540352.6167 | E137: 308861.0257 | F137: 341241.1012 | G137: 431248.9674 | H137: 540352.6167 | I137: 204914.3728 | J137: 0 | K137: 0 | L137: 59885.33508 | M137: 848.2527737 | N137: 163.6671602 | O137: 33225.37119 | P137: 6446.591443 | Q137: 1714.316749 | R137: 46.15505646 | S137: 8826.903571 | T137: 182.4845471 | U137: 1784.588734 | V137: 24902.74672 | W137: 165376.4681 | X137: 31810.90842 | Y137: 224.4542825 | Z137: 0 | AA137: 0 | AB137: 0 | AC137: 0 | AD137: 0 | AE137: 0 | AF137: 0 | AG137: 0 | AH137: 0 | AI137: 0 | AJ137: 0 | AK137: 0 | AL137: 0 | AM137: 0
A138: 4 | B138: FALSE | C138: 2019-04-06T15:00:00 | D138: 536703.5551 | E138: 307479.9223 | F138: 339025.0095 | G138: 428149.3753 | H138: 536703.5551 | I138: 202652.1572 | J138: 0 | K138: 0 | L138: 61757.16365 | M138: 874.7665065 | N138: 168.7828845 | O138: 32487.45414 | P138: 6303.416225 | Q138: 1676.242725 | R138: 45.12997827 | S138: 8630.862941 | T138: 178.4316666 | U138: 1748.961682 | V138: 24188.47283 | W138: 164024.2704 | X138: 31764.11957 | Y138: 203.3226648 | Z138: 0 | AA138: 0 | AB138: 0 | AC138: 0 | AD138: 0 | AE138: 0 | AF138: 0 | AG138: 0 | AH138: 0 | AI138: 0 | AJ138: 0 | AK138: 0 | AL138: 0 | AM138: 0
A139: 4 | B139: FALSE | C139: 2019-04-06T16:00:00 | D139: 543587.4752 | E139: 315424.0215 | F139: 346322.6838 | G139: 433324.85 | H139: 543587.4752 | I139: 215517.6758 | J139: 0 | K139: 0 | L139: 57396.07225 | M139: 812.9933216 | N139: 156.8639824 | O139: 32042.71417 | P139: 6217.125033 | Q139: 1653.295647 | R139: 44.51216732 | S139: 8512.709955 | T139: 175.98901 | U139: 1755.035157 | V139: 23692.55487 | W139: 163588.9079 | X139: 31821.21174 | Y139: 199.8141969 | Z139: 0 | AA139: 0 | AB139: 0 | AC139: 0 | AD139: 0 | AE139: 0 | AF139: 0 | AG139: 0 | AH139: 0 | AI139: 0 | AJ139: 0 | AK139: 0 | AL139: 0 | AM139: 0
A140: 4 | B140: FALSE | C140: 2019-04-06T17:00:00 | D140: 542268.8186 | E140: 314175.8626 | F140: 344828.9743 | G140: 432329.932 | H140: 542268.8186 | I140: 216048.4476 | J140: 20.22696914 | K140: 0 | L140: 56093.2562 | M140: 794.5394325 | N140: 153.3033744 | O140: 31597.24996 | P140: 6130.69332 | Q140: 1630.311201 | R140: 43.89335028 | S140: 8394.364562 | T140: 173.5423757 | U140: 1830.115041 | V140: 23554.33665 | W140: 163776.1141 | X140: 31836.22221 | Y140: 192.2022437 | Z140: 0 | AA140: 0 | AB140: 0 | AC140: 0 | AD140: 0 | AE140: 0 | AF140: 0 | AG140: 0 | AH140: 0 | AI140: 0 | AJ140: 0 | AK140: 0 | AL140: 0 | AM140: 0
A141: 4 | B141: FALSE | C141: 2019-04-06T18:00:00 | D141: 512751.3038 | E141: 285443.8177 | F141: 316338.6096 | G141: 409232.5065 | H141: 512751.3038 | I141: 186909.8695 | J141: 34.10680892 | K141: 41.96469885 | L141: 56438.61621 | M141: 800.0257384 | N141: 154.3619364 | O141: 31662.69363 | P141: 6143.391104 | Q141: 1633.687873 | R141: 43.98426141 | S141: 8411.750822 | T141: 173.9018136 | U141: 1764.19193 | V141: 23777.47321 | W141: 162715.2678 | X141: 31865.39238 | Y141: 180.6241236 | Z141: 0 | AA141: 0 | AB141: 0 | AC141: 0 | AD141: 0 | AE141: 0 | AF141: 0 | AG141: 0 | AH141: 0 | AI141: 0 | AJ141: 0 | AK141: 0 | AL141: 0 | AM141: 0
A142: 4 | B142: FALSE | C142: 2019-04-06T19:00:00 | D142: 531426.2801 | E142: 307736.6382 | F142: 338280.8252 | G142: 426419.1113 | H142: 531426.2801 | I142: 208438.2653 | J142: 41.05397626 | K142: 50.50638628 | L142: 58860.28968 | M142: 834.4488028 | N142: 161.0037363 | O142: 30524.76043 | P142: 5922.602286 | Q142: 1574.97437 | R142: 42.40350041 | S142: 8109.438876 | T142: 167.6519143 | U142: 1518.867584 | V142: 23619.48401 | W142: 162978.7776 | X142: 28388.29569 | Y142: 193.4559449 | Z142: 0 | AA142: 0 | AB142: 0 | AC142: 0 | AD142: 0 | AE142: 0 | AF142: 0 | AG142: 0 | AH142: 0 | AI142: 0 | AJ142: 0 | AK142: 0 | AL142: 0 | AM142: 0
A143: 4 | B143: FALSE | C143: 2019-04-06T20:00:00 | D143: 517554.2516 | E143: 295761.0929 | F143: 325709.9066 | G143: 415625.2944 | H143: 517554.2516 | I143: 189149.1687 | J143: 37.25479805 | K143: 53.04530115 | L143: 61819.14847 | M143: 876.3958639 | N143: 169.0972628 | O143: 28626.98454 | P143: 5554.384103 | Q143: 1477.055554 | R143: 39.7672032 | S143: 7605.261371 | T143: 157.2287117 | U143: 1526.981759 | V143: 23360.80499 | W143: 162000.0317 | X143: 28158.3933 | Y143: 191.8777673 | Z143: 5605.466849 | AA143: 1145.903428 | AB143: 0 | AC143: 0 | AD143: 0 | AE143: 0 | AF143: 0 | AG143: 0 | AH143: 0 | AI143: 0 | AJ143: 0 | AK143: 0 | AL143: 0 | AM143: 0
A144: 4 | B144: FALSE | C144: 2019-04-06T21:00:00 | D144: 558697.2957 | E144: 333751.2246 | F144: 363098.2934 | G144: 444829.5073 | H144: 558697.2957 | I144: 224916.4203 | J144: 44.29951173 | K144: 50.96667693 | L144: 59396.71374 | M144: 842.0535635 | N144: 162.471046 | O144: 27627.2408 | P144: 5360.407657 | Q144: 1425.47216 | R144: 38.37840823 | S144: 7339.661883 | T144: 151.7377939 | U144: 1532.866551 | V144: 22992.86972 | W144: 162337.6588 | X144: 31635.02192 | Y144: 184.2364009 | Z144: 10510.24992 | AA144: 2148.568901 | AB144: 0 | AC144: 0 | AD144: 0 | AE144: 0 | AF144: 0 | AG144: 0 | AH144: 0 | AI144: 0 | AJ144: 0 | AK144: 0 | AL144: 0 | AM144: 0
A145: 4 | B145: FALSE | C145: 2019-04-06T22:00:00 | D145: 534567.7949 | E145: 309961.6237 | F145: 338942.3407 | G145: 426181.4634 | H145: 534567.7949 | I145: 207788.6752 | J145: 40.92603307 | K145: 46.03971017 | L145: 53654.81233 | M145: 760.6519465 | N145: 146.7649123 | O145: 26938.54133 | P145: 5226.781939 | Q145: 1389.937597 | R145: 37.42170069 | S145: 7156.69677 | T145: 147.9552324 | U145: 1505.65985 | V145: 22845.3279 | W145: 162428.6367 | X145: 31622.69326 | Y145: 171.453675 | Z145: 10510.24992 | AA145: 2148.568901 | AB145: 0 | AC145: 0 | AD145: 0 | AE145: 0 | AF145: 0 | AG145: 0 | AH145: 0 | AI145: 0 | AJ145: 0 | AK145: 0 | AL145: 0 | AM145: 0
A146: 4 | B146: FALSE | C146: 2019-04-06T23:00:00 | D146: 495401.6064 | E146: 272413.9733 | F146: 299772.7171 | G146: 395818.9186 | H146: 495401.6064 | I146: 174771.7009 | J146: 34.42301368 | K146: 43.03326154 | L146: 50151.08834 | M146: 710.9804564 | N146: 137.1809864 | O146: 26156.68056 | P146: 5075.080489 | Q146: 1349.596226 | R146: 36.33557804 | S146: 6948.981719 | T146: 143.6609986 | U146: 1481.725258 | V146: 21429.02184 | W146: 162418.8317 | X146: 31686.94476 | Y146: 167.5215075 | Z146: 10510.24992 | AA146: 2148.568901 | AB146: 0 | AC146: 0 | AD146: 0 | AE146: 0 | AF146: 0 | AG146: 0 | AH146: 0 | AI146: 0 | AJ146: 0 | AK146: 0 | AL146: 0 | AM146: 0
A147: 4 | B147: FALSE | C147: 2019-04-07 | D147: 464157.9683 | E147: 243469.9984 | F147: 268772.6485 | G147: 371577.7781 | H147: 464157.9683 | I147: 150045.8752 | J147: 29.55301796 | K147: 40.49790806 | L147: 47196.38 | M147: 669.0922352 | N147: 129.0988128 | O147: 25138.10847 | P147: 4877.450851 | Q147: 1297.041352 | R147: 34.92062765 | S147: 6678.38015 | T147: 138.0666694 | U147: 1505.623352 | V147: 19618.0403 | W147: 162220.9261 | X147: 31703.33293 | Y147: 176.7615122 | Z147: 10510.24992 | AA147: 2148.568901 | AB147: 0 | AC147: 0 | AD147: 0 | AE147: 0 | AF147: 0 | AG147: 0 | AH147: 0 | AI147: 0 | AJ147: 0 | AK147: 0 | AL147: 0 | AM147: 0
A148: 4 | B148: FALSE | C148: 2019-04-07T01:00:00 | D148: 434712.5422 | E148: 215271.09 | F148: 240142.2965 | G148: 348613.5952 | H148: 434712.5422 | I148: 126033.2503 | J148: 24.82349418 | K148: 36.96319668 | L148: 43077.01707 | M148: 610.6929734 | N148: 117.8308964 | O148: 25080.23081 | P148: 4866.22107 | Q148: 1294.055061 | R148: 34.84022684 | S148: 6663.003933 | T148: 137.7487865 | U148: 1526.490898 | V148: 19256.54368 | W148: 161420.3102 | X148: 31703.20929 | Y148: 170.491483 | Z148: 10510.24992 | AA148: 2148.568901 | AB148: 0 | AC148: 0 | AD148: 0 | AE148: 0 | AF148: 0 | AG148: 0 | AH148: 0 | AI148: 0 | AJ148: 0 | AK148: 0 | AL148: 0 | AM148: 0
A149: 4 | B149: FALSE | C149: 2019-04-07T02:00:00 | D149: 448607.1659 | E149: 229732.3813 | F149: 254342.4192 | G149: 359279.2905 | H149: 448607.1659 | I149: 139381.9191 | J149: 27.45264641 | K149: 36.84630836 | L149: 42940.79508 | M149: 608.7617856 | N149: 117.458281 | O149: 26067.19439 | P149: 5057.717831 | Q149: 1344.979043 | R149: 36.21126825 | S149: 6925.208147 | T149: 143.1695115 | U149: 1527.549745 | V149: 18800.38876 | W149: 161049.8065 | X149: 31716.29156 | Y149: 166.5971567 | Z149: 10510.24992 | AA149: 2148.568901 | AB149: 0 | AC149: 0 | AD149: 0 | AE149: 0 | AF149: 0 | AG149: 0 | AH149: 0 | AI149: 0 | AJ149: 0 | AK149: 0 | AL149: 0 | AM149: 0
A150: 4 | B150: FALSE | C150: 2019-04-07T03:00:00 | D150: 452743.6788 | E150: 234016.3611 | F150: 258739.4893 | G150: 362425.3736 | H150: 452743.6788 | I150: 144827.0368 | J150: 28.52511616 | K150: 35.64618903 | L150: 41542.17251 | M150: 588.9338348 | N150: 113.632553 | O150: 26254.36645 | P150: 5094.034107 | Q150: 1354.636487 | R150: 36.47127849 | S150: 6974.933691 | T150: 144.1975213 | U150: 1522.693492 | V150: 18895.96266 | W150: 160788.3505 | X150: 31711.09869 | Y150: 172.1681053 | Z150: 10510.24992 | AA150: 2148.568901 | AB150: 0 | AC150: 0 | AD150: 0 | AE150: 0 | AF150: 0 | AG150: 0 | AH150: 0 | AI150: 0 | AJ150: 0 | AK150: 0 | AL150: 0 | AM150: 0
A151: 4 | B151: FALSE | C151: 2019-04-07T04:00:00 | D151: 454351.6947 | E151: 236167.806 | F151: 261016.1885 | G151: 363492.0353 | H151: 454351.6947 | I151: 145126.1748 | J151: 28.58403434 | K151: 36.37571408 | L151: 42392.36313 | M151: 600.9867919 | N151: 115.9581254 | O151: 27029.83425 | P151: 5244.495153 | Q151: 1394.648003 | R151: 37.54852034 | S151: 7180.950337 | T151: 148.4566428 | U151: 1526.379338 | V151: 18854.44395 | W151: 160051.3512 | X151: 31736.00034 | Y151: 188.3255688 | Z151: 10510.24992 | AA151: 2148.568901 | AB151: 0 | AC151: 0 | AD151: 0 | AE151: 0 | AF151: 0 | AG151: 0 | AH151: 0 | AI151: 0 | AJ151: 0 | AK151: 0 | AL151: 0 | AM151: 0
A152: 4 | B152: FALSE | C152: 2019-04-07T05:00:00 | D152: 478308.5542 | E152: 259265.388 | F152: 284492.176 | G152: 382121.8821 | H152: 478308.5542 | I152: 165843.1052 | J152: 32.66443854 | K152: 37.24748323 | L152: 43408.32544 | M152: 615.3898561 | N152: 118.7371421 | O152: 28057.75983 | P152: 5443.939615 | Q152: 1447.685485 | R152: 38.97646415 | S152: 7454.036827 | T152: 154.1023445 | U152: 1572.56275 | V152: 19013.35612 | W152: 160463.6422 | X152: 31747.33694 | Y152: 200.867184 | Z152: 10510.24992 | AA152: 2148.568901 | AB152: 0 | AC152: 0 | AD152: 0 | AE152: 0 | AF152: 0 | AG152: 0 | AH152: 0 | AI152: 0 | AJ152: 0 | AK152: 0 | AL152: 0 | AM152: 0
A153: 4 | B153: FALSE | C153: 2019-04-07T06:00:00 | D153: 479376.4817 | E153: 260843.1493 | F153: 286500.5143 | G153: 382766.0072 | H153: 479376.4817 | I153: 169113.6091 | J153: 27.29619395 | K153: 25.64069203 | L153: 46612.99866 | M153: 660.6184158 | N153: 127.4638214 | O153: 28261.51624 | P153: 5483.47369 | Q153: 1458.198626 | R153: 39.25951256 | S153: 7508.168296 | T153: 155.2214409 | U153: 1523.69959 | V153: 19358.05145 | W153: 159534.8158 | X153: 31716.22974 | Y153: 174.9291588 | Z153: 6306.149954 | AA153: 1289.141383 | AB153: 0 | AC153: 0 | AD153: 0 | AE153: 0 | AF153: 0 | AG153: 0 | AH153: 0 | AI153: 0 | AJ153: 0 | AK153: 0 | AL153: 0 | AM153: 0
A154: 4 | B154: FALSE | C154: 2019-04-07T07:00:00 | D154: 493208.4056 | E154: 274938.1343 | F154: 300594.3864 | G154: 393395.5096 | H154: 493208.4056 | I154: 184032.7589 | J154: 0 | K154: 0 | L154: 52785.91078 | M154: 747.6921549 | N154: 144.2643696 | O154: 28799.34625 | P154: 5587.826785 | Q154: 1485.948835 | R154: 40.00663964 | S154: 7651.052286 | T154: 158.1753783 | U154: 1499.919118 | V154: 19162.5578 | W154: 159216.3184 | X154: 31727.48097 | Y154: 169.1470036 | Z154: 0 | AA154: 0 | AB154: 0 | AC154: 0 | AD154: 0 | AE154: 0 | AF154: 0 | AG154: 0 | AH154: 0 | AI154: 0 | AJ154: 0 | AK154: 0 | AL154: 0 | AM154: 0
A155: 4 | B155: FALSE | C155: 2019-04-07T08:00:00 | D155: 531934.2168 | E155: 313582.2411 | F155: 339340.5784 | G155: 423428.8272 | H155: 531934.2168 | I155: 220566.4614 | J155: 0 | K155: 0 | L155: 55152.27553 | M155: 781.2108028 | N155: 150.7316658 | O155: 28598.52725 | P155: 5548.862645 | Q155: 1475.587255 | R155: 39.72767174 | S155: 7597.701193 | T155: 157.072415 | U155: 1494.202761 | V155: 19271.19138 | W155: 159278.2954 | X155: 31649.29643 | Y155: 173.0730278 | Z155: 0 | AA155: 0 | AB155: 0 | AC155: 0 | AD155: 0 | AE155: 0 | AF155: 0 | AG155: 0 | AH155: 0 | AI155: 0 | AJ155: 0 | AK155: 0 | AL155: 0 | AM155: 0
A156: 4 | B156: FALSE | C156: 2019-04-07T09:00:00 | D156: 561437.4586 | E156: 341763.0261 | F156: 367555.6504 | G156: 446535.7387 | H156: 561437.4586 | I156: 244679.3391 | J156: 5.641438863 | K156: 0 | L156: 57691.06027 | M156: 817.1717137 | N156: 157.6701874 | O156: 29792.60263 | P156: 5780.544515 | Q156: 1537.197504 | R156: 41.3864227 | S156: 7914.928295 | T156: 163.6306655 | U156: 1495.273861 | V156: 19031.27749 | W156: 160488.6185 | X156: 31656.93561 | Y156: 184.1804176 | Z156: 0 | AA156: 0 | AB156: 0 | AC156: 0 | AD156: 0 | AE156: 0 | AF156: 0 | AG156: 0 | AH156: 0 | AI156: 0 | AJ156: 0 | AK156: 0 | AL156: 0 | AM156: 0
A157: 4 | B157: FALSE | C157: 2019-04-07T10:00:00 | D157: 540968.9234 | E157: 320671.3578 | F157: 346317.3923 | G157: 430837.835 | H157: 540968.9234 | I157: 225236.5159 | J157: 0 | K157: 0 | L157: 56271.46904 | M157: 797.063749 | N157: 153.7904317 | O157: 29583.07348 | P157: 5739.890377 | Q157: 1526.386509 | R157: 41.09535508 | S157: 7859.263195 | T157: 162.4798632 | U157: 1523.823273 | V157: 18946.60048 | W157: 161235.9693 | X157: 31694.28956 | Y157: 197.212953 | Z157: 0 | AA157: 0 | AB157: 0 | AC157: 0 | AD157: 0 | AE157: 0 | AF157: 0 | AG157: 0 | AH157: 0 | AI157: 0 | AJ157: 0 | AK157: 0 | AL157: 0 | AM157: 0
A158: 4 | B158: FALSE | C158: 2019-04-07T11:00:00 | D158: 512248.881 | E158: 291606.4526 | F158: 317840.1754 | G158: 408538.1982 | H158: 512248.881 | I158: 194597.5073 | J158: 0 | K158: 0 | L158: 56182.33037 | M158: 795.801134 | N158: 153.5468149 | O158: 30880.76929 | P158: 5991.677321 | Q158: 1593.343223 | R158: 42.89805046 | S158: 8204.018885 | T158: 169.6072307 | U158: 1534.607007 | V158: 19276.63706 | W158: 160900.4622 | X158: 31718.45526 | Y158: 207.2198004 | Z158: 0 | AA158: 0 | AB158: 0 | AC158: 0 | AD158: 0 | AE158: 0 | AF158: 0 | AG158: 0 | AH158: 0 | AI158: 0 | AJ158: 0 | AK158: 0 | AL158: 0 | AM158: 0
A159: 4 | B159: FALSE | C159: 2019-04-07T12:00:00 | D159: 482392.7519 | E159: 261613.1814 | F159: 288329.3276 | G159: 385262.3706 | H159: 482392.7519 | I159: 161995.7461 | J159: 0 | K159: 0 | L159: 58318.85112 | M159: 826.06413 | N159: 159.3859454 | O159: 31190.93715 | P159: 6051.858003 | Q159: 1609.346835 | R159: 43.32892045 | S159: 8286.420426 | T159: 171.3107735 | U159: 1620.890553 | V159: 19666.91326 | W159: 160433.2831 | X159: 31818.07953 | Y159: 200.3360872 | Z159: 0 | AA159: 0 | AB159: 0 | AC159: 0 | AD159: 0 | AE159: 0 | AF159: 0 | AG159: 0 | AH159: 0 | AI159: 0 | AJ159: 0 | AK159: 0 | AL159: 0 | AM159: 0
A160: 4 | B160: FALSE | C160: 2019-04-07T13:00:00 | D160: 485468.8327 | E160: 264560.0712 | F160: 291485.0345 | G160: 387579.7592 | H160: 485468.8327 | I160: 165190.3211 | J160: 0 | K160: 0 | L160: 58117.30752 | M160: 823.2093423 | N160: 158.8351249 | O160: 31188.60841 | P160: 6051.406165 | Q160: 1609.22668 | R160: 43.32568547 | S160: 8285.801754 | T160: 171.2979833 | U160: 1599.489456 | V160: 19879.04976 | W160: 160309.9916 | X160: 31862.41913 | Y160: 178.5429762 | Z160: 0 | AA160: 0 | AB160: 0 | AC160: 0 | AD160: 0 | AE160: 0 | AF160: 0 | AG160: 0 | AH160: 0 | AI160: 0 | AJ160: 0 | AK160: 0 | AL160: 0 | AM160: 0
A161: 4 | B161: FALSE | C161: 2019-04-07T14:00:00 | D161: 522714.756 | E161: 301885.8979 | F161: 328924.2153 | G161: 416523.2666 | H161: 522714.756 | I161: 203710.6887 | J161: 0 | K161: 0 | L161: 56538.13011 | M161: 800.8409007 | N161: 154.5192188 | O161: 31517.88583 | P161: 6115.294603 | Q161: 1626.216281 | R161: 43.78310153 | S161: 8373.280088 | T161: 173.1064821 | U161: 1569.081838 | V161: 19949.07538 | W161: 160276.7341 | X161: 31689.28803 | Y161: 176.8313221 | Z161: 0 | AA161: 0 | AB161: 0 | AC161: 0 | AD161: 0 | AE161: 0 | AF161: 0 | AG161: 0 | AH161: 0 | AI161: 0 | AJ161: 0 | AK161: 0 | AL161: 0 | AM161: 0
A162: 4 | B162: FALSE | C162: 2019-04-07T15:00:00 | D162: 506033.258 | E162: 285821.0177 | F162: 312610.4517 | G162: 403548.6127 | H162: 506033.258 | I162: 189706.3371 | J162: 0 | K162: 0 | L162: 55691.4702 | M162: 788.8482883 | N162: 152.2052897 | O162: 30569.4804 | P162: 5931.27913 | Q162: 1577.281769 | R162: 42.4656232 | S162: 8121.319521 | T162: 167.8975309 | U162: 1556.158097 | V162: 19901.4091 | W162: 159974.1533 | X162: 31676.70032 | Y162: 176.252416 | Z162: 0 | AA162: 0 | AB162: 0 | AC162: 0 | AD162: 0 | AE162: 0 | AF162: 0 | AG162: 0 | AH162: 0 | AI162: 0 | AJ162: 0 | AK162: 0 | AL162: 0 | AM162: 0
A163: 4 | B163: FALSE | C163: 2019-04-07T16:00:00 | D163: 490453.4526 | E163: 270919.8916 | F163: 297402.0661 | G163: 391401.2525 | H163: 490453.4526 | I163: 175485.822 | J163: 0 | K163: 0 | L163: 54995.59148 | M163: 778.9914334 | N163: 150.3034469 | O163: 30600.44171 | P163: 5937.286435 | Q163: 1578.879268 | R163: 42.50863314 | S163: 8129.544938 | T163: 168.0675805 | U163: 1528.18673 | V163: 19597.82902 | W163: 159592.768 | X163: 31686.9271 | Y163: 180.3047581 | Z163: 0 | AA163: 0 | AB163: 0 | AC163: 0 | AD163: 0 | AE163: 0 | AF163: 0 | AG163: 0 | AH163: 0 | AI163: 0 | AJ163: 0 | AK163: 0 | AL163: 0 | AM163: 0
A164: 4 | B164: FALSE | C164: 2019-04-07T17:00:00 | D164: 512473.3678 | E164: 293564.3398 | F164: 320286.8153 | G164: 408207.0361 | H164: 512473.3678 | I164: 198124.3353 | J164: 1.630738162 | K164: 0 | L164: 54226.43141 | M164: 768.0965764 | N164: 148.2013255 | O164: 31172.97173 | P164: 6048.372241 | Q164: 1608.41988 | R164: 43.30396377 | S164: 8281.647597 | T164: 171.2121016 | U164: 1553.314041 | V164: 19734.79451 | W164: 158666.7738 | X164: 31719.85357 | Y164: 204.008968 | Z164: 0 | AA164: 0 | AB164: 0 | AC164: 0 | AD164: 0 | AE164: 0 | AF164: 0 | AG164: 0 | AH164: 0 | AI164: 0 | AJ164: 0 | AK164: 0 | AL164: 0 | AM164: 0
A165: 4 | B165: FALSE | C165: 2019-04-07T18:00:00 | D165: 527467.701 | E165: 308920.0109 | F165: 335732.8465 | G165: 419649.5444 | H165: 527467.701 | I165: 214494.3336 | J165: 35.35081781 | K165: 30.40010312 | L165: 54618.41665 | M165: 774.0795026 | N165: 149.3557084 | O165: 30024.52547 | P165: 5825.543615 | Q165: 1549.163938 | R165: 41.70859854 | S165: 7976.542672 | T165: 164.9044612 | U165: 1537.655869 | V165: 20048.30798 | W165: 158217.8631 | X165: 31776.76322 | Y165: 202.7856955 | Z165: 0 | AA165: 0 | AB165: 0 | AC165: 0 | AD165: 0 | AE165: 0 | AF165: 0 | AG165: 0 | AH165: 0 | AI165: 0 | AJ165: 0 | AK165: 0 | AL165: 0 | AM165: 0
A166: 4 | B166: FALSE | C166: 2019-04-07T19:00:00 | D166: 512049.821 | E166: 292914.7965 | F166: 319445.339 | G166: 407895.0455 | H166: 512049.821 | I166: 200668.1862 | J166: 39.5235824 | K166: 46.6364719 | L166: 54350.28018 | M166: 770.5114344 | N166: 148.6672632 | O166: 28544.5655 | P166: 5538.392654 | Q166: 1472.803011 | R166: 39.65271072 | S166: 7583.365306 | T166: 156.7760396 | U166: 1496.306269 | V166: 20064.86241 | W166: 159140.9258 | X166: 31802.4332 | Y166: 185.9329762 | Z166: 0 | AA166: 0 | AB166: 0 | AC166: 0 | AD166: 0 | AE166: 0 | AF166: 0 | AG166: 0 | AH166: 0 | AI166: 0 | AJ166: 0 | AK166: 0 | AL166: 0 | AM166: 0
A167: 4 | B167: FALSE | C167: 2019-04-07T20:00:00 | D167: 524651.2744 | E167: 304903.9449 | F167: 331497.9204 | G167: 417690.0635 | H167: 524651.2744 | I167: 206012.5478 | J167: 40.57620723 | K167: 45.8940543 | L167: 53485.06455 | M167: 758.2454712 | N167: 146.300592 | O167: 29342.8681 | P167: 5693.284246 | Q167: 1513.992724 | R167: 40.76167354 | S167: 7795.448414 | T167: 161.1605771 | U167: 1471.460888 | V167: 19981.28522 | W167: 159572.8764 | X167: 31879.42255 | Y167: 169.6949732 | Z167: 5430.295905 | AA167: 1110.093992 | AB167: 0 | AC167: 0 | AD167: 0 | AE167: 0 | AF167: 0 | AG167: 0 | AH167: 0 | AI167: 0 | AJ167: 0 | AK167: 0 | AL167: 0 | AM167: 0
A168: 4 | B168: FALSE | C168: 2019-04-07T21:00:00 | D168: 505547.8191 | E168: 288053.0063 | F168: 314242.8633 | G168: 402449.1707 | H168: 505547.8191 | I168: 187081.7088 | J168: 36.84759141 | K168: 43.77425133 | L168: 51014.64 | M168: 723.2228299 | N168: 139.543106 | O168: 28115.99961 | P168: 5455.239656 | Q168: 1450.690461 | R168: 39.057368 | S168: 7469.509248 | T168: 154.4222163 | U168: 1463.13778 | V168: 19856.97228 | W168: 157751.0815 | X168: 31924.58348 | Y168: 168.5701453 | Z168: 10510.24992 | AA168: 2148.568901 | AB168: 0 | AC168: 0 | AD168: 0 | AE168: 0 | AF168: 0 | AG168: 0 | AH168: 0 | AI168: 0 | AJ168: 0 | AK168: 0 | AL168: 0 | AM168: 0
A169: 4 | B169: FALSE | C169: 2019-04-07T22:00:00 | D169: 484725.7162 | E169: 271670.5635 | F169: 297723.2391 | G169: 385170.0765 | H169: 484725.7162 | I169: 174746.3712 | J169: 34.41802475 | K169: 40.60525706 | L169: 47321.48485 | M169: 670.8658178 | N169: 129.4410188 | O169: 27842.19983 | P169: 5402.115334 | Q169: 1436.563318 | R169: 38.67701877 | S169: 7396.769526 | T169: 152.9184188 | U169: 1450.181668 | V169: 19826.77602 | W169: 153276.3012 | X169: 32121.49464 | Y169: 179.714344 | Z169: 10510.24992 | AA169: 2148.568901 | AB169: 0 | AC169: 0 | AD169: 0 | AE169: 0 | AF169: 0 | AG169: 0 | AH169: 0 | AI169: 0 | AJ169: 0 | AK169: 0 | AL169: 0 | AM169: 0
A170: 4 | B170: FALSE | C170: 2019-04-07T23:00:00 | D170: 439026.9681 | E170: 225513.0235 | F170: 251567.1919 | G170: 350062.9456 | H170: 439026.9681 | I170: 130317.4781 | J170: 25.66731518 | K170: 40.12242071 | L170: 46758.78596 | M170: 662.888565 | N170: 127.9018381 | O170: 26903.96459 | P170: 5220.073146 | Q170: 1388.153554 | R170: 37.37366838 | S170: 7147.510851 | T170: 147.7653257 | U170: 1475.939902 | V170: 20023.44134 | W170: 153926.844 | X170: 31979.50312 | Y170: 184.735529 | Z170: 10510.24992 | AA170: 2148.568901 | AB170: 0 | AC170: 0 | AD170: 0 | AE170: 0 | AF170: 0 | AG170: 0 | AH170: 0 | AI170: 0 | AJ170: 0 | AK170: 0 | AL170: 0 | AM170: 0
A171: 4 | B171: FALSE | C171: 2019-04-08 | D171: 424681.9694 | E171: 211568.324 | F171: 237549.3872 | G171: 338642.5444 | H171: 424681.9694 | I171: 117479.6999 | J171: 23.1387879 | K171: 39.59525728 | L171: 46144.42816 | M171: 654.1789557 | N171: 126.221352 | O171: 26591.69913 | P171: 5159.485475 | Q171: 1372.041713 | R171: 36.93988451 | S171: 7064.552045 | T171: 146.0502622 | U171: 1443.442834 | V171: 20021.34855 | W171: 153368.836 | X171: 32228.54319 | Y171: 122.9490536 | Z171: 10510.24992 | AA171: 2148.568901 | AB171: 0 | AC171: 0 | AD171: 0 | AE171: 0 | AF171: 0 | AG171: 0 | AH171: 0 | AI171: 0 | AJ171: 0 | AK171: 0 | AL171: 0 | AM171: 0
A172: 4 | B172: FALSE | C172: 2019-04-08T01:00:00 | D172: 414914.0241 | E172: 203171.3046 | F172: 228621.9284 | G172: 331112.1182 | H172: 414914.0241 | I172: 113815.129 | J172: 22.41701444 | K172: 36.0462971 | L172: 42008.45963 | M172: 595.5442802 | N172: 114.9080134 | O172: 26095.5573 | P172: 5063.220976 | Q172: 1346.442473 | R172: 36.2506686 | S172: 6932.74325 | T172: 143.3252898 | U172: 1496.586264 | V172: 19648.53317 | W172: 152781.8767 | X172: 32012.61799 | Y172: 105.5470869 | Z172: 10510.24992 | AA172: 2148.568901 | AB172: 0 | AC172: 0 | AD172: 0 | AE172: 0 | AF172: 0 | AG172: 0 | AH172: 0 | AI172: 0 | AJ172: 0 | AK172: 0 | AL172: 0 | AM172: 0
A173: 4 | B173: FALSE | C173: 2019-04-08T02:00:00 | D173: 418703.0975 | E173: 207059.9326 | F173: 232646.6714 | G173: 334247.0102 | H173: 418703.0975 | I173: 117045.4429 | J173: 23.05325669 | K173: 35.49400882 | L173: 41364.82126 | M173: 586.4195668 | N173: 113.1474345 | O173: 27118.58269 | P173: 5261.714674 | Q173: 1399.227122 | R173: 37.67180532 | S173: 7204.52792 | T173: 148.9440781 | U173: 1469.665619 | V173: 19589.6605 | W173: 152752.0807 | X173: 31754.29904 | Y173: 139.5261295 | Z173: 10510.24992 | AA173: 2148.568901 | AB173: 0 | AC173: 0 | AD173: 0 | AE173: 0 | AF173: 0 | AG173: 0 | AH173: 0 | AI173: 0 | AJ173: 0 | AK173: 0 | AL173: 0 | AM173: 0
A174: 4 | B174: FALSE | C174: 2019-04-08T03:00:00 | D174: 416979.6639 | E174: 205118.1698 | F174: 230948.2953 | G174: 332921.1014 | H174: 416979.6639 | I174: 116848.4626 | J174: 23.01445947 | K174: 34.34907961 | L174: 40030.51742 | M174: 567.5034479 | N174: 109.497641 | O174: 26777.75786 | P174: 5195.585737 | Q174: 1381.641713 | R174: 37.19834817 | S174: 7113.981814 | T174: 147.0721572 | U174: 1454.983108 | V174: 19919.96421 | W174: 152761.3226 | X174: 31741.70838 | Y174: 176.2846217 | Z174: 10510.24992 | AA174: 2148.568901 | AB174: 0 | AC174: 0 | AD174: 0 | AE174: 0 | AF174: 0 | AG174: 0 | AH174: 0 | AI174: 0 | AJ174: 0 | AK174: 0 | AL174: 0 | AM174: 0
A175: 4 | B175: FALSE | C175: 2019-04-08T04:00:00 | D175: 419707.6209 | E175: 206906.5554 | F175: 233728.0066 | G175: 335042.7098 | H175: 419707.6209 | I175: 116679.9935 | J175: 22.98127782 | K175: 33.72583678 | L175: 39304.18841 | M175: 557.2064483 | N175: 107.5108739 | O175: 28852.83416 | P175: 5598.204839 | Q175: 1488.70863 | R175: 40.08094242 | S175: 7665.262289 | T175: 158.4691513 | U175: 1508.700586 | V175: 20507.57077 | W175: 152627.3814 | X175: 31715.93242 | Y175: 180.0505824 | Z175: 10510.24992 | AA175: 2148.568901 | AB175: 0 | AC175: 0 | AD175: 0 | AE175: 0 | AF175: 0 | AG175: 0 | AH175: 0 | AI175: 0 | AJ175: 0 | AK175: 0 | AL175: 0 | AM175: 0
A176: 4 | B176: FALSE | C176: 2019-04-08T05:00:00 | D176: 440239.632 | E176: 224530.6641 | F176: 253164.0211 | G176: 351148.0565 | H176: 440239.632 | I176: 125396.7649 | J176: 24.69813209 | K176: 35.64159337 | L176: 41536.81673 | M176: 588.857907 | N176: 113.617903 | O176: 33988.45563 | P176: 6594.649792 | Q176: 1753.689324 | R176: 47.21509594 | S176: 9029.630357 | T176: 186.6756551 | U176: 1677.017843 | V176: 21263.17362 | W176: 153425.3473 | X176: 31735.74129 | Y176: 182.8200808 | Z176: 10510.24992 | AA176: 2148.568901 | AB176: 0 | AC176: 0 | AD176: 0 | AE176: 0 | AF176: 0 | AG176: 0 | AH176: 0 | AI176: 0 | AJ176: 0 | AK176: 0 | AL176: 0 | AM176: 0
A177: 4 | B177: FALSE | C177: 2019-04-08T06:00:00 | D177: 497016.7087 | E177: 271760.815 | F177: 307278.5668 | G177: 395714.028 | H177: 497016.7087 | I177: 161242.2385 | J177: 25.41162448 | K177: 25.18424099 | L177: 47011.11365 | M177: 666.2510962 | N177: 128.5506258 | O177: 42861.25426 | P177: 8316.204907 | Q177: 2211.495716 | R177: 59.54075272 | S177: 11386.84519 | T177: 235.4079516 | U177: 1852.46536 | V177: 26299.88789 | W177: 155653.9179 | X177: 31684.63682 | Y177: 182.9717163 | Z177: 5955.808066 | AA177: 1217.522405 | AB177: 0 | AC177: 0 | AD177: 0 | AE177: 0 | AF177: 0 | AG177: 0 | AH177: 0 | AI177: 0 | AJ177: 0 | AK177: 0 | AL177: 0 | AM177: 0
A178: 4 | B178: TRUE | C178: 2019-04-08T07:00:00 | D178: 526919.991 | E178: 289525.9323 | F178: 330674.9931 | G178: 420191.7284 | H178: 526919.991 | I178: 168214.7363 | J178: 0 | K178: 0 | L178: 54360.10338 | M178: 769.9899884 | N178: 148.5666521 | O178: 50951.49484 | P178: 9885.923283 | Q178: 2628.92476 | R178: 70.77931824 | S178: 13536.15974 | T178: 279.8421847 | U178: 2262.942415 | V178: 30213.30539 | W178: 161593.9848 | X178: 31802.7423 | Y178: 200.495643 | Z178: 0 | AA178: 0 | AB178: 0 | AC178: 0 | AD178: 0 | AE178: 0 | AF178: 0 | AG178: 0 | AH178: 0 | AI178: 0 | AJ178: 0 | AK178: 0 | AL178: 0 | AM178: 0
A179: 4 | B179: TRUE | C179: 2019-04-08T08:00:00 | D179: 560557.2075 | E179: 317501.58 | F179: 362145.8159 | G179: 446632.3761 | H179: 560557.2075 | I179: 177211.4866 | J179: 0 | K179: 0 | L179: 64598.5578 | M179: 915.0137634 | N179: 176.5484403 | O179: 57765.3951 | P179: 11207.99824 | Q179: 2980.498961 | R179: 80.24485436 | S179: 15346.39205 | T179: 317.2663415 | U179: 2380.836615 | V179: 32203.95752 | W179: 163308.289 | X179: 31865.8104 | Y179: 198.9118298 | Z179: 0 | AA179: 0 | AB179: 0 | AC179: 0 | AD179: 0 | AE179: 0 | AF179: 0 | AG179: 0 | AH179: 0 | AI179: 0 | AJ179: 0 | AK179: 0 | AL179: 0 | AM179: 0
A180: 4 | B180: TRUE | C180: 2019-04-08T09:00:00 | D180: 566459.7404 | E180: 320826.3936 | F180: 365636.8552 | G180: 451477.8708 | H180: 566459.7404 | I180: 172979.98 | J180: 0 | K180: 0 | L180: 72155.46221 | M180: 1022.054412 | N180: 197.2015281 | O180: 57786.37883 | P180: 11212.06963 | Q180: 2981.581651 | R180: 80.27400393 | S180: 15351.96675 | T180: 317.381591 | U180: 2367.438134 | V180: 32258.95594 | W180: 165431.2735 | X180: 32132.55452 | Y180: 185.1676735 | Z180: 0 | AA180: 0 | AB180: 0 | AC180: 0 | AD180: 0 | AE180: 0 | AF180: 0 | AG180: 0 | AH180: 0 | AI180: 0 | AJ180: 0 | AK180: 0 | AL180: 0 | AM180: 0
A181: 4 | B181: TRUE | C181: 2019-04-08T10:00:00 | D181: 561430.6243 | E181: 317856.4673 | F181: 363384.0584 | G181: 446899.1275 | H181: 561430.6243 | I181: 162235.8526 | J181: 0 | K181: 0 | L181: 76837.44067 | M181: 1088.372839 | N181: 209.9974174 | O181: 60210.84952 | P181: 11682.48039 | Q181: 3106.676136 | R181: 83.64195973 | S181: 15996.06998 | T181: 330.6975727 | U181: 2395.056638 | V181: 32426.04031 | W181: 162457.4721 | X181: 32188.77826 | Y181: 181.1979187 | Z181: 0 | AA181: 0 | AB181: 0 | AC181: 0 | AD181: 0 | AE181: 0 | AF181: 0 | AG181: 0 | AH181: 0 | AI181: 0 | AJ181: 0 | AK181: 0 | AL181: 0 | AM181: 0
A182: 4 | B182: TRUE | C182: 2019-04-08T11:00:00 | D182: 600154.7508 | E182: 353487.0113 | F182: 398357.1108 | G182: 477161.6036 | H182: 600154.7508 | I182: 200862.4601 | J182: 0 | K182: 0 | L182: 77097.87263 | M182: 1092.061758 | N182: 210.7091803 | O182: 57645.43302 | P182: 11184.72245 | Q182: 2974.309323 | R182: 80.07820892 | S182: 15314.52201 | T182: 316.6074707 | U182: 2395.137632 | V182: 32276.70783 | W182: 165795.3841 | X182: 32737.15922 | Y182: 171.5858823 | Z182: 0 | AA182: 0 | AB182: 0 | AC182: 0 | AD182: 0 | AE182: 0 | AF182: 0 | AG182: 0 | AH182: 0 | AI182: 0 | AJ182: 0 | AK182: 0 | AL182: 0 | AM182: 0
A183: 4 | B183: TRUE | C183: 2019-04-08T12:00:00 | D183: 592287.8049 | E183: 346593.4544 | F183: 391619.6752 | G183: 470268.8989 | H183: 592287.8049 | I183: 192443.7315 | J183: 0 | K183: 0 | L183: 77671.05053 | M183: 1100.180603 | N183: 212.2756807 | O183: 58378.05309 | P183: 11326.86992 | Q183: 3012.110041 | R183: 81.0959288 | S183: 15509.15541 | T183: 320.6312585 | U183: 2385.688741 | V183: 32278.53902 | W183: 164075.5977 | X183: 33287.05034 | Y183: 205.7750993 | Z183: 0 | AA183: 0 | AB183: 0 | AC183: 0 | AD183: 0 | AE183: 0 | AF183: 0 | AG183: 0 | AH183: 0 | AI183: 0 | AJ183: 0 | AK183: 0 | AL183: 0 | AM183: 0
A184: 4 | B184: TRUE | C184: 2019-04-08T13:00:00 | D184: 587192.2398 | E184: 340241.7677 | F184: 385036.6763 | G184: 466798.6155 | H184: 587192.2398 | I184: 185022.5306 | J184: 0 | K184: 0 | L184: 80853.05477 | M184: 1145.252471 | N184: 220.9721269 | O184: 56729.25632 | P184: 11006.9602 | Q184: 2927.037705 | R184: 78.80550117 | S184: 15071.12358 | T184: 311.5755302 | U184: 2411.438979 | V184: 32331.12041 | W184: 165774.4988 | X184: 33154.24938 | Y184: 154.3634159 | Z184: 0 | AA184: 0 | AB184: 0 | AC184: 0 | AD184: 0 | AE184: 0 | AF184: 0 | AG184: 0 | AH184: 0 | AI184: 0 | AJ184: 0 | AK184: 0 | AL184: 0 | AM184: 0
A185: 4 | B185: TRUE | C185: 2019-04-08T14:00:00 | D185: 561703.7698 | E185: 314206.2943 | F185: 359628.9654 | G185: 447945.4991 | H185: 561703.7698 | I185: 163605.5935 | J185: 0 | K185: 0 | L185: 76696.01455 | M185: 1086.369593 | N185: 209.6108986 | O185: 56353.91445 | P185: 10934.13406 | Q185: 2907.671335 | R185: 78.28409465 | S185: 14971.40742 | T185: 309.5140306 | U185: 2362.697439 | V185: 33092.65345 | W185: 166608.2894 | X185: 32270.94871 | Y185: 216.6669162 | Z185: 0 | AA185: 0 | AB185: 0 | AC185: 0 | AD185: 0 | AE185: 0 | AF185: 0 | AG185: 0 | AH185: 0 | AI185: 0 | AJ185: 0 | AK185: 0 | AL185: 0 | AM185: 0
A186: 4 | B186: TRUE | C186: 2019-04-08T15:00:00 | D186: 564226.3618 | E186: 321820.0635 | F186: 365341.5607 | G186: 449476.6202 | H186: 564226.3618 | I186: 173932.7321 | J186: 0 | K186: 0 | L186: 72929.50466 | M186: 1033.018426 | N186: 199.3169931 | O186: 57216.71689 | P186: 11101.54031 | Q186: 2952.189021 | R186: 79.48265749 | S186: 15200.62604 | T186: 314.2528223 | U186: 2324.453577 | V186: 31072.68565 | W186: 163685.749 | X186: 31968.06349 | Y186: 216.0302329 | Z186: 0 | AA186: 0 | AB186: 0 | AC186: 0 | AD186: 0 | AE186: 0 | AF186: 0 | AG186: 0 | AH186: 0 | AI186: 0 | AJ186: 0 | AK186: 0 | AL186: 0 | AM186: 0
A187: 4 | B187: TRUE | C187: 2019-04-08T16:00:00 | D187: 540874.6863 | E187: 302790.3872 | F187: 343860.1271 | G187: 430489.0223 | H187: 540874.6863 | I187: 170381.5478 | J187: 0 | K187: 0 | L187: 67813.20992 | M187: 960.5480762 | N187: 185.3341135 | O187: 49092.8954 | P187: 9525.306355 | Q187: 2533.027316 | R187: 68.19744302 | S187: 13042.39014 | T187: 269.6341519 | U187: 2260.021235 | V187: 30314.25127 | W187: 161749.9873 | X187: 32478.01306 | Y187: 200.3227852 | Z187: 0 | AA187: 0 | AB187: 0 | AC187: 0 | AD187: 0 | AE187: 0 | AF187: 0 | AG187: 0 | AH187: 0 | AI187: 0 | AJ187: 0 | AK187: 0 | AL187: 0 | AM187: 0
A188: 4 | B188: TRUE | C188: 2019-04-08T17:00:00 | D188: 540029.8418 | E188: 303665.7835 | F188: 340898.3965 | G188: 428684.075 | H188: 540029.8418 | I188: 190313.2031 | J188: 0 | K188: 0 | L188: 58477.59511 | M188: 828.3126777 | N188: 159.8197942 | O188: 41511.26477 | P188: 8054.27162 | Q188: 2141.840825 | R188: 57.66541352 | S188: 11028.19677 | T188: 227.9933701 | U188: 2132.909646 | V188: 28122.03529 | W188: 162653.0258 | X188: 34119.09347 | Y188: 202.6141239 | Z188: 0 | AA188: 0 | AB188: 0 | AC188: 0 | AD188: 0 | AE188: 0 | AF188: 0 | AG188: 0 | AH188: 0 | AI188: 0 | AJ188: 0 | AK188: 0 | AL188: 0 | AM188: 0
A189: 4 | B189: TRUE | C189: 2019-04-08T18:00:00 | D189: 539053.2407 | E189: 305742.5264 | F189: 341083.0559 | G189: 427817.7327 | H189: 539053.2407 | I189: 200998.7809 | J189: 28.04773148 | K189: 19.25341004 | L189: 54554.03239 | M189: 773.0096356 | N189: 149.1492816 | O189: 37897.60156 | P189: 7353.126395 | Q189: 1955.388029 | R189: 52.64548978 | S189: 10068.16365 | T189: 208.1459562 | U189: 1973.053366 | V189: 27006.2475 | W189: 161840.9487 | X189: 33972.05332 | Y189: 203.5934595 | Z189: 0 | AA189: 0 | AB189: 0 | AC189: 0 | AD189: 0 | AE189: 0 | AF189: 0 | AG189: 0 | AH189: 0 | AI189: 0 | AJ189: 0 | AK189: 0 | AL189: 0 | AM189: 0
A190: 4 | B190: TRUE | C190: 2019-04-08T19:00:00 | D190: 517576.0747 | E190: 284699.2798 | F190: 320680.4842 | G190: 410569.0151 | H190: 517576.0747 | I190: 182904.0888 | J190: 36.02476785 | K190: 45.35224853 | L190: 52853.64253 | M190: 749.2939462 | N190: 144.5734292 | O190: 36895.35187 | P190: 7158.663729 | Q190: 1903.675335 | R190: 51.25321365 | S190: 9801.898412 | T190: 202.6412749 | U190: 1958.758282 | V190: 27870.60551 | W190: 160432.5709 | X190: 34363.51765 | Y190: 204.1629052 | Z190: 0 | AA190: 0 | AB190: 0 | AC190: 0 | AD190: 0 | AE190: 0 | AF190: 0 | AG190: 0 | AH190: 0 | AI190: 0 | AJ190: 0 | AK190: 0 | AL190: 0 | AM190: 0
A191: 4 | B191: TRUE | C191: 2019-04-08T20:00:00 | D191: 553751.904 | E191: 319080.5187 | F191: 354536.4884 | G191: 438986.9105 | H191: 553751.904 | I191: 212696.2529 | J191: 41.89262901 | K191: 45.5765444 | L191: 53115.03758 | M191: 752.9996839 | N191: 145.2884372 | O191: 35113.19069 | P191: 6812.877825 | Q191: 1811.721848 | R191: 48.77752274 | S191: 9328.435986 | T191: 192.8530659 | U191: 1994.750579 | V191: 27697.23908 | W191: 162749.6682 | X191: 34459.95967 | Y191: 204.9918914 | Z191: 5430.295905 | AA191: 1110.093992 | AB191: 0 | AC191: 0 | AD191: 0 | AE191: 0 | AF191: 0 | AG191: 0 | AH191: 0 | AI191: 0 | AJ191: 0 | AK191: 0 | AL191: 0 | AM191: 0
A192: 4 | B192: FALSE | C192: 2019-04-08T21:00:00 | D192: 561264.1681 | E192: 328085.8628 | F192: 362468.3266 | G192: 446599.2408 | H192: 561264.1681 | I192: 215372.7508 | J192: 42.41979172 | K192: 47.36010684 | L192: 55193.60645 | M192: 782.4670771 | N192: 150.9740592 | O192: 33718.98396 | P192: 6542.365237 | Q192: 1739.785498 | R192: 46.84075911 | S192: 8958.040475 | T192: 185.195629 | U192: 1881.394332 | V192: 26872.43594 | W192: 164291.9374 | X192: 32566.30368 | Y192: 212.4880024 | Z192: 10510.24992 | AA192: 2148.568901 | AB192: 0 | AC192: 0 | AD192: 0 | AE192: 0 | AF192: 0 | AG192: 0 | AH192: 0 | AI192: 0 | AJ192: 0 | AK192: 0 | AL192: 0 | AM192: 0
A193: 4 | B193: FALSE | C193: 2019-04-08T22:00:00 | D193: 513013.0714 | E193: 280559.1641 | F193: 313290.5358 | G193: 409595.5249 | H193: 513013.0714 | I193: 175261.4356 | J193: 34.51947179 | K193: 43.90441924 | L193: 51166.33805 | M193: 725.3734184 | N193: 139.9580539 | O193: 31253.51853 | P193: 6064.000427 | Q193: 1612.575822 | R193: 43.41585543 | S193: 8303.046268 | T193: 171.6544908 | U193: 1707.69127 | V193: 25770.34341 | W193: 165471.8848 | X193: 32454.70106 | Y193: 129.8915847 | Z193: 10510.24992 | AA193: 2148.568901 | AB193: 0 | AC193: 0 | AD193: 0 | AE193: 0 | AF193: 0 | AG193: 0 | AH193: 0 | AI193: 0 | AJ193: 0 | AK193: 0 | AL193: 0 | AM193: 0
A194: 4 | B194: FALSE | C194: 2019-04-08T23:00:00 | D194: 475556.7039 | E194: 246395.204 | F194: 277861.1617 | G194: 380366.0932 | H194: 475556.7039 | I194: 145686.7324 | J194: 28.69444172 | K194: 41.42307525 | L194: 48274.57255 | M194: 684.3775232 | N194: 132.0480512 | O194: 29945.95686 | P194: 5810.299248 | Q194: 1545.110064 | R194: 41.59945487 | S194: 7955.669539 | T194: 164.4729368 | U194: 1697.948198 | V194: 24806.80806 | W194: 163727.0725 | X194: 32249.7121 | Y194: 105.3880472 | Z194: 10510.24992 | AA194: 2148.568901 | AB194: 0 | AC194: 0 | AD194: 0 | AE194: 0 | AF194: 0 | AG194: 0 | AH194: 0 | AI194: 0 | AJ194: 0 | AK194: 0 | AL194: 0 | AM194: 0
A195: 4 | B195: =PeakTime(C195,Holidays,PkStart,PkEnd,UseDST,DST_1,DST_2) -> FALSE | C195: 2019-04-09 | D195: =SUM(OFFSET(I195,0,0,1,COUNTA(I195:IV195))) -> 439957.986 | E195: =SUMIF(OFFSET($I$2,0,0,1,COUNTA($I$2:$IV$2)),E$2,OFFSET(I195,0,0,1,COUNTA(I195:IV195))) -> 214501.2194 | F195: =E195+SUMIF(OFFSET($I$2,0,0,1,COUNTA($I$2:$IV$2)),F$2,OFFSET(I195,0,0,1,COUNTA(I195:IV195))) -> 243189.389 | G195: =F195*DistAtSubtran+SUMIF(OFFSET($I$2,0,0,1,COUNTA($I$2:$IV$2)),G$2,OFFSET(I195,0,0,1,COUNTA(I195:IV195))) -> 352317.3459 | H195: =SUM(OFFSET(I195,0,0,1,COUNTA(I195:IV195))) -> 439957.986 | I195: 116358.7176 | J195: 22.91799935 | K195: 40.60042398 | L195: 47315.85236 | M195: 670.7859674 | N195: 129.425612 | O195: 28671.11125 | P195: 5562.945839 | Q195: 1479.332343 | R195: 39.82850186 | S195: 7616.984406 | T195: 157.47107 | U195: 1696.877227 | V195: 22296.96671 | W195: 162569.8654 | X195: 32550.14513 | Y195: 119.3393317 | Z195: 10510.24992 | AA195: 2148.568901 | AB195: 0 | AC195: 0 | AD195: 0 | AE195: 0 | AF195: 0 | AG195: 0 | AH195: 0 | AI195: 0 | AJ195: 0 | AK195: 0 | AL195: 0 | AM195: 0
A196: =MONTH(C196) -> 4 | B196: FALSE | C196: =+C195+1/24 -> 2019-04-09T01:00:00 | D196: 447027.4008 | E196: 223073.7079 | F196: 250030.0006 | G196: 357836.8748 | H196: 447027.4008 | I196: 125513.6334 | J196: 24.7211505 | K196: 39.9685525 | L196: 46579.4675 | M196: 660.3464085 | N196: 127.4113386 | O196: 28738.4599 | P196: 5576.013241 | Q196: 1482.807306 | R196: 39.92205931 | S196: 7634.876759 | T196: 157.8409707 | U196: 1690.418388 | V196: 20562.09205 | W196: 162795.8279 | X196: 32551.43157 | Y196: 193.3434368 | Z196: 10510.24992 | AA196: 2148.568901 | AB196: 0 | AC196: 0 | AD196: 0 | AE196: 0 | AF196: 0 | AG196: 0 | AH196: 0 | AI196: 0 | AJ196: 0 | AK196: 0 | AL196: 0 | AM196: 0
A197: 4 | B197: FALSE | C197: 2019-04-09T02:00:00 | D197: 440439.8471 | E197: 220570.2207 | F197: 246927.5894 | G197: 352553.7598 | H197: 440439.8471 | I197: 126092.1756 | J197: 24.8351001 | K197: 37.5258634 | L197: 43732.7505 | M197: 619.9891557 | N197: 119.6245596 | O197: 28532.30734 | P197: 5536.014248 | Q197: 1472.170531 | R197: 39.63568228 | S197: 7580.108708 | T197: 156.7087137 | U197: 1716.983977 | V197: 20044.65665 | W197: 159931.2564 | X197: 31949.5705 | Y197: 194.7147571 | Z197: 10510.24992 | AA197: 2148.568901 | AB197: 0 | AC197: 0 | AD197: 0 | AE197: 0 | AF197: 0 | AG197: 0 | AH197: 0 | AI197: 0 | AJ197: 0 | AK197: 0 | AL197: 0 | AM197: 0
A198: 4 | B198: FALSE | C198: 2019-04-09T03:00:00 | D198: 424157.1736 | E198: 206721.5771 | F198: 232690.2846 | G198: 339756.8454 | H198: 424157.1736 | I198: 115852.6556 | J198: 22.81832544 | K198: 33.7066248 | L198: 39281.79871 | M198: 556.8890348 | N198: 107.4496302 | O198: 29199.83431 | P198: 5665.531948 | Q198: 1506.612664 | R198: 40.56297801 | S198: 7757.448975 | T198: 160.374989 | U198: 1725.158897 | V198: 19585.91153 | W198: 158126.4877 | X198: 31685.77607 | Y198: 189.3368731 | Z198: 10510.24992 | AA198: 2148.568901 | AB198: 0 | AC198: 0 | AD198: 0 | AE198: 0 | AF198: 0 | AG198: 0 | AH198: 0 | AI198: 0 | AJ198: 0 | AK198: 0 | AL198: 0 | AM198: 0
A199: 4 | B199: FALSE | C199: 2019-04-09T04:00:00 | D199: 443450.2027 | E199: 223878.5046 | F199: 250278.9167 | G199: 354542.609 | H199: 443450.2027 | I199: 129707.0181 | J199: 25.54707905 | K199: 35.03399462 | L199: 40828.71937 | M199: 578.8193736 | N199: 111.681006 | O199: 30558.91533 | P199: 5929.229232 | Q199: 1576.736647 | R199: 42.45094673 | S199: 8118.512727 | T199: 167.8395041 | U199: 1746.645114 | V199: 19724.52398 | W199: 159230.794 | X199: 32209.62335 | Y199: 199.2941004 | Z199: 10510.24992 | AA199: 2148.568901 | AB199: 0 | AC199: 0 | AD199: 0 | AE199: 0 | AF199: 0 | AG199: 0 | AH199: 0 | AI199: 0 | AJ199: 0 | AK199: 0 | AL199: 0 | AM199: 0
A200: 4 | B200: FALSE | C200: 2019-04-09T05:00:00 | D200: 465984.0256 | E200: 246021.5321 | F200: 274055.6506 | G200: 371727.017 | H200: 465984.0256 | I200: 143799.7416 | J200: 28.32278022 | K200: 35.66964865 | L200: 41569.51243 | M200: 589.3214265 | N200: 113.7073374 | O200: 36296.56617 | P200: 7042.483636 | Q200: 1872.78002 | R200: 50.42140993 | S200: 9642.820473 | T200: 199.352549 | U200: 1803.707699 | V200: 20202.96087 | W200: 157722.7264 | X200: 32168.73978 | Y200: 186.3725331 | Z200: 10510.24992 | AA200: 2148.568901 | AB200: 0 | AC200: 0 | AD200: 0 | AE200: 0 | AF200: 0 | AG200: 0 | AH200: 0 | AI200: 0 | AJ200: 0 | AK200: 0 | AL200: 0 | AM200: 0
... 362 more rows

Sheet Loss Values
A1: =UPPER(Inputs!C1 & " - " & Inputs!C2) -> KENTUCKY POWER COMPANY - KENTUCKY JURISDICTION
A2: LOSS FACTOR CALCULATIONS
A3: ="FOR THE TEST YEAR ENDED " & UPPER(TEXT(DATE(YEAR(ReportYr)+1,MONTH(ReportYr),DAY(ReportYr))-1,"Mmmm d, yyyy")) -> FOR THE TEST YEAR ENDED MARCH 31, 2020
B6: Secondary Voltage | C6: Primary Voltage | D6: Subtran Voltage | E6: Transmission Voltage | F6: Generation Point
A7: Metered Peak Demand - Secondary | B7: =+B11 -> 986945.8509 | C7: =OFFSET(Metered!F4, (MATCH(C11,Metered!F3:F8786,0)-2),-1) -> 986945.8509 | D7: =OFFSET(Metered!G4, (MATCH(D11,Metered!G3:G8786,0)-2),-2)*DistAtSubtran -> 763531.3878 | E7: =OFFSET(Metered!H4, (MATCH(E11,Metered!H3:H8786,0)-2),-3) -> 986945.8509 | F7: =+E7 -> 986945.8509
A8: Metered Peak Demand - Primary | B8: 0 | C8: =+C11-C7 -> 58966.40962 | D8: =(OFFSET(Metered!G4, (MATCH(D11,Metered!G3:G8786,0)-2),-1)*DistAtSubtran)-D7 -> 45618.2115 | E8: =OFFSET(Metered!H4, (MATCH(E11,Metered!H3:H8786,0)-2),-2)-E7 -> 58966.40962 | F8: =+E8 -> 58966.40962
A9: Metered Peak Demand - Subtran | B9: 0 | C9: 0 | D9: =+D11-D8-D7 -> 166306.0623 | E9: =OFFSET(Metered!H4, (MATCH(E11,Metered!H3:H8786,0)-2),-1)-(SUM(E7:E8)*DistAtSubtran) -> 166306.0623 | F9: =+E9 -> 166306.0623
A10: Metered Peak Demand - Trans | B10: 0 | C10: 0 | D10: 0 | E10: =+E11-SUM(E7:E9) -> 28529.35639 | F10: =+E10 -> 28529.35639
A11: Metered Peak Demand | B11: =MAX(Metered!E3:E8786) -> 986945.8509 | C11: =MAX(Metered!F3:F8786) -> 1045912.261 | D11: =MAX(Metered!G3:G8786) -> 975455.6616 | E11: =MAX(Metered!H3:H8786) -> 1240747.679 | F11: =SUM(F7:F10) -> 1240747.679
A12: Loss Adj Peak Demand at Lower Voltage | B12: =+B11 -> 986945.8509 | C12: =+C7*'Accum Loss Factors'!B10+C8 -> 1053854.223 | D12: =(D7*'Accum Loss Factors'!B11+D8*'Accum Loss Factors'!C11+D9) -> 990376.659 | E12: =+E7*'Accum Loss Factors'!B13+E8*'Accum Loss Factors'!C13+E9*'Accum Loss Factors'!D13+E10 -> 1272936.941 | F12: =+F7*'Accum Loss Factors'!B14+F8*'Accum Loss Factors'!C14+F9*'Accum Loss Factors'!D14+F10*'Accum Loss Factors'!E14 -> 1318113.473
A13: On Date & Time | B13: =TYStart+(MATCH(B11,Metered!E3:E8786,0)-1)/24 -> 2020-01-22T08:00:00 | C13: =TYStart + (MATCH(C11,Metered!F3:F8786,0)-1)/24 -> 2020-01-22T08:00:00 | D13: =TYStart+(MATCH(D11,Metered!G3:G8786,0)-1)/24 -> 2020-01-22T08:00:00 | E13: =TYStart+(MATCH(E11,Metered!H3:H8786,0)-1)/24 -> 2020-01-22T08:00:00
A14: Zero Load Loss | B14: =+B12*Inputs!C13 -> 4077.609525 | C14: =+C12*Inputs!C12 -> 2585.371822 | D14: =+D12*Inputs!C11 -> 1232.109549 | E14: =+E12*Inputs!C10 -> 1304.737387 | F14: 0
A15: Loss Coefficient | B15: =+Inputs!D13/'Loss Values'!B12 -> 3.967255342e-09 | C15: =+Inputs!D12/C12 -> 7.887249365e-09 | D15: =+Inputs!D11/D12 -> 1.189806612e-08 | E15: =+Inputs!D10/E12 -> 2.707519669e-08 | F15: 0
A16: Maximum Loss | B16: =B12*Inputs!$B13 -> 7941.962645 | C16: =+Inputs!B12*C12 -> 11345.01977 | D16: =+Inputs!B11*D12 -> 12902.27924 | E16: =+Inputs!B10*E12 -> 45176.53203 | F16: 0
A17: Loss Gross-Up Factor | B17: =1+((LossCoeff_Sec*B11^2+ZeroLoadLoss_Sec)/B11) -> 1.00804701 | C17: =1+((LossCoeff_Sec*C11^2+ZeroLoadLoss_Sec)/C11) -> 1.008048016 | D17: =1+((LossCoeff_Sec*D11^2+ZeroLoadLoss_Sec)/D11) -> 1.008050092 | E17: =1+((LossCoeff_Sec*E11^2+ZeroLoadLoss_Sec)/E11) -> 1.008208776

Sheet Loss Adj
A1: Period | B1: Date | C1: Total Secondary | D1: Secondary Loss Factor | E1: Loss Adjusted Secondary | F1: Primary Metered | G1: Total @ Primary | H1: Primary Loss Factor | I1: Loss Adjusted Primary | J1: Subtransmission Metered | K1: Total @ Subtransmission | L1: Subtran Loss Factor | M1: Loss Adjusted Subtran | N1: Transmission Metered | O1: Total @ Tran | P1: Tran Loss Factor | Q1: Loss Adjusted Tran
A2: =MONTH(B2) -> 4 | B2: =+Inputs!C3 -> 2019-04-01 | C2: =+Metered!E3 -> 518460.498 | D2: =IF(C2=0,0,ROUND(1+((LossCoeff_Sec*C2^2+ZeroLoadLoss_Sec)/C2),5)) -> 1.00992 | E2: =+C2*D2 -> 523603.6261 | F2: =SUMIF(OFFSET(Metered!$I$2,0,0,1,COUNTA(Metered!$I$2:$IV$2)),"Primary",OFFSET(Metered!$I3,0,0,1,COUNTA(Metered!$I3:$AA3))) -> 27428.64746 | G2: =+E2+F2 -> 551032.2736 | H2: =IF(G2=0,0,ROUND(1+((LossCoeff_Pri*G2^2+ZeroLoadLoss_Pri)/G2),5)) -> 1.00904 | I2: =+G2*H2 -> 556013.6053 | J2: =SUMIF(OFFSET(Metered!$I$2,0,0,1,COUNTA(Metered!$I$2:$IV$2)),"Subtransmission",OFFSET(Metered!$I3,0,0,1,COUNTA(Metered!$I3:$AA3))) -> 165173.6344 | K2: =+I2*DistAtSubtran+J2 -> 595322.7042 | L2: =IF(K2=0,0,ROUND(1+((LossCoeff_Sub*K2^2+ZeroLoadLoss_Sub)/K2),5)) -> 1.00915 | M2: =+K2*L2 -> 600769.9069 | N2: =SUMIF(OFFSET(Metered!$I$2,0,0,1,COUNTA(Metered!$I$2:$AA$2)),"Transmission",OFFSET(Metered!$I3,0,0,1,COUNTA(Metered!$I3:$AA3))) -> 32548.96213 | O2: =+M2+N2+(1-DistAtSubtran)*I2 -> 759183.4046 | P2: =IF(O2=0,0,ROUND(1+((LossCoeff_Trn*O2^2+ZeroLoadLoss_Trn)/O2),5)) -> 1.02227 | Q2: =+P2*O2 -> 776090.419
A3: =MONTH(B3) -> 4 | B3: =+B2+1/24 -> 2019-04-01T01:00:00 | C3: =+Metered!E4 -> 504029.5977 | D3: 1.01009 | E3: =+C3*D3 -> 509115.2564 | F3: =SUMIF(OFFSET(Metered!$I$2,0,0,1,COUNTA(Metered!$I$2:$IV$2)),"Primary",OFFSET(Metered!$I4,0,0,1,COUNTA(Metered!$I4:$AA4))) -> 27476.6065 | G3: =+E3+F3 -> 536591.8629 | H3: 1.00905 | I3: =+G3*H3 -> 541448.0192 | J3: =SUMIF(OFFSET(Metered!$I$2,0,0,1,COUNTA(Metered!$I$2:$IV$2)),"Subtransmission",OFFSET(Metered!$I4,0,0,1,COUNTA(Metered!$I4:$AA4))) -> 166730.4409 | K3: 585611.1294 | L3: 1.00907 | M3: =+K3*L3 -> 590922.6224 | N3: =SUMIF(OFFSET(Metered!$I$2,0,0,1,COUNTA(Metered!$I$2:$AA$2)),"Transmission",OFFSET(Metered!$I4,0,0,1,COUNTA(Metered!$I4:$AA4))) -> 32521.02239 | O3: 746010.9755 | P3: 1.02195 | Q3: =+P3*O3 -> 762385.9164
A4: 4 | B4: 2019-04-01T02:00:00 | C4: =+Metered!E5 -> 501657.0487 | D4: 1.01012 | E4: 506733.818 | F4: =SUMIF(OFFSET(Metered!$I$2,0,0,1,COUNTA(Metered!$I$2:$IV$2)),"Primary",OFFSET(Metered!$I5,0,0,1,COUNTA(Metered!$I5:$AA5))) -> 27785.75139 | G4: 534519.5694 | H4: 1.00905 | I4: 539356.9715 | J4: =SUMIF(OFFSET(Metered!$I$2,0,0,1,COUNTA(Metered!$I$2:$IV$2)),"Subtransmission",OFFSET(Metered!$I5,0,0,1,COUNTA(Metered!$I5:$AA5))) -> 167045.1389 | K4: 584308.1291 | L4: 1.00906 | M4: 589601.9608 | N4: =SUMIF(OFFSET(Metered!$I$2,0,0,1,COUNTA(Metered!$I$2:$AA$2)),"Transmission",OFFSET(Metered!$I5,0,0,1,COUNTA(Metered!$I5:$AA5))) -> 32508.81207 | O4: 744204.7541 | P4: 1.0219 | Q4: 760502.8382
A5: 4 | B5: 2019-04-01T03:00:00 | C5: =+Metered!E6 -> 522572.9977 | D5: 1.00988 | E5: 527736.0189 | F5: =SUMIF(OFFSET(Metered!$I$2,0,0,1,COUNTA(Metered!$I$2:$IV$2)),"Primary",OFFSET(Metered!$I6,0,0,1,COUNTA(Metered!$I6:$AA6))) -> 28486.61252 | G5: 556222.6314 | H5: 1.00904 | I5: 561250.884 | J5: =SUMIF(OFFSET(Metered!$I$2,0,0,1,COUNTA(Metered!$I$2:$IV$2)),"Subtransmission",OFFSET(Metered!$I6,0,0,1,COUNTA(Metered!$I6:$AA6))) -> 165510.5285 | K5: 599711.3167 | L5: 1.00919 | M5: 605222.6637 | N5: =SUMIF(OFFSET(Metered!$I$2,0,0,1,COUNTA(Metered!$I$2:$AA$2)),"Transmission",OFFSET(Metered!$I6,0,0,1,COUNTA(Metered!$I6:$AA6))) -> 32551.18189 | O5: 764823.9414 | P5: 1.02241 | Q5: 781963.6459
A6: 4 | B6: 2019-04-01T04:00:00 | C6: =+Metered!E7 -> 580864.617 | D6: 1.00932 | E6: 586278.2752 | F6: =SUMIF(OFFSET(Metered!$I$2,0,0,1,COUNTA(Metered!$I$2:$IV$2)),"Primary",OFFSET(Metered!$I7,0,0,1,COUNTA(Metered!$I7:$AA7))) -> 28812.85013 | G6: 615091.1253 | H6: 1.00905 | I6: 620657.7 | J6: =SUMIF(OFFSET(Metered!$I$2,0,0,1,COUNTA(Metered!$I$2:$IV$2)),"Subtransmission",OFFSET(Metered!$I7,0,0,1,COUNTA(Metered!$I7:$AA7))) -> 167766.4621 | K6: 647926.1736 | L6: 1.00961 | M6: 654152.7441 | N6: =SUMIF(OFFSET(Metered!$I$2,0,0,1,COUNTA(Metered!$I$2:$AA$2)),"Transmission",OFFSET(Metered!$I7,0,0,1,COUNTA(Metered!$I7:$AA7))) -> 32539.9423 | O6: 827190.6749 | P6: 1.02397 | Q6: 847018.4354
A7: 4 | B7: 2019-04-01T05:00:00 | C7: =+Metered!E8 -> 624019.4859 | D7: 1.00901 | E7: 629641.9015 | F7: =SUMIF(OFFSET(Metered!$I$2,0,0,1,COUNTA(Metered!$I$2:$IV$2)),"Primary",OFFSET(Metered!$I8,0,0,1,COUNTA(Metered!$I8:$AA8))) -> 30890.18648 | G7: 660532.088 | H7: 1.00912 | I7: 666556.1406 | J7: =SUMIF(OFFSET(Metered!$I$2,0,0,1,COUNTA(Metered!$I$2:$IV$2)),"Subtransmission",OFFSET(Metered!$I8,0,0,1,COUNTA(Metered!$I8:$AA8))) -> 166931.5542 | K7: 682599.6981 | L7: 1.00993 | M7: 689377.9131 | N7: =SUMIF(OFFSET(Metered!$I$2,0,0,1,COUNTA(Metered!$I$2:$AA$2)),"Transmission",OFFSET(Metered!$I8,0,0,1,COUNTA(Metered!$I8:$AA8))) -> 33151.56388 | O7: 873417.4737 | P7: 1.02514 | Q7: 895375.189
A8: 4 | B8: 2019-04-01T06:00:00 | C8: =+Metered!E9 -> 675138.6259 | D8: 1.00872 | E8: 681025.8347 | F8: =SUMIF(OFFSET(Metered!$I$2,0,0,1,COUNTA(Metered!$I$2:$IV$2)),"Primary",OFFSET(Metered!$I9,0,0,1,COUNTA(Metered!$I9:$AA9))) -> 36421.5329 | G8: 717447.3676 | H8: 1.00926 | I8: 724090.9302 | J8: =SUMIF(OFFSET(Metered!$I$2,0,0,1,COUNTA(Metered!$I$2:$IV$2)),"Subtransmission",OFFSET(Metered!$I9,0,0,1,COUNTA(Metered!$I9:$AA9))) -> 166149.7508 | K8: 726328.5613 | L8: 1.01034 | M8: 733838.7986 | N8: =SUMIF(OFFSET(Metered!$I$2,0,0,1,COUNTA(Metered!$I$2:$AA$2)),"Transmission",OFFSET(Metered!$I9,0,0,1,COUNTA(Metered!$I9:$AA9))) -> 31457.92507 | O8: 929208.8433 | P8: 1.02656 | Q8: 953888.6302
A9: 4 | B9: 2019-04-01T07:00:00 | C9: =+Metered!E10 -> 701414.161 | D9: 1.0086 | E9: 707446.3228 | F9: =SUMIF(OFFSET(Metered!$I$2,0,0,1,COUNTA(Metered!$I$2:$IV$2)),"Primary",OFFSET(Metered!$I10,0,0,1,COUNTA(Metered!$I10:$AA10))) -> 42140.02777 | G9: 749586.3505 | H9: 1.00936 | I9: 756602.4788 | J9: =SUMIF(OFFSET(Metered!$I$2,0,0,1,COUNTA(Metered!$I$2:$IV$2)),"Subtransmission",OFFSET(Metered!$I10,0,0,1,COUNTA(Metered!$I10:$AA10))) -> 166214.4847 | K9: 751545.22 | L9: 1.01058 | M9: 759496.5685 | N9: =SUMIF(OFFSET(Metered!$I$2,0,0,1,COUNTA(Metered!$I$2:$AA$2)),"Transmission",OFFSET(Metered!$I10,0,0,1,COUNTA(Metered!$I10:$AA10))) -> 32274.01672 | O9: 963042.3287 | P9: 1.02743 | Q9: 989458.5797
A10: 4 | B10: 2019-04-01T08:00:00 | C10: =+Metered!E11 -> 730135.4356 | D10: 1.00848 | E10: 736326.9841 | F10: =SUMIF(OFFSET(Metered!$I$2,0,0,1,COUNTA(Metered!$I$2:$IV$2)),"Primary",OFFSET(Metered!$I11,0,0,1,COUNTA(Metered!$I11:$AA11))) -> 44418.95536 | G10: 780745.9394 | H10: 1.00947 | I10: 788139.6035 | J10: =SUMIF(OFFSET(Metered!$I$2,0,0,1,COUNTA(Metered!$I$2:$IV$2)),"Subtransmission",OFFSET(Metered!$I11,0,0,1,COUNTA(Metered!$I11:$AA11))) -> 167121.7977 | K10: 776850.6138 | L10: 1.01083 | M10: 785263.9059 | N10: =SUMIF(OFFSET(Metered!$I$2,0,0,1,COUNTA(Metered!$I$2:$AA$2)),"Transmission",OFFSET(Metered!$I11,0,0,1,COUNTA(Metered!$I11:$AA11))) -> 33616.09238 | O10: 997290.7857 | P10: 1.02831 | Q10: 1025524.088
A11: 4 | B11: 2019-04-01T09:00:00 | C11: =+Metered!E12 -> 651468.3671 | D11: 1.00884 | E11: 657227.3475 | F11: =SUMIF(OFFSET(Metered!$I$2,0,0,1,COUNTA(Metered!$I$2:$IV$2)),"Primary",OFFSET(Metered!$I12,0,0,1,COUNTA(Metered!$I12:$AA12))) -> 44347.58636 | G11: 701574.9338 | H11: 1.00922 | I11: 708043.4547 | J11: =SUMIF(OFFSET(Metered!$I$2,0,0,1,COUNTA(Metered!$I$2:$IV$2)),"Subtransmission",OFFSET(Metered!$I12,0,0,1,COUNTA(Metered!$I12:$AA12))) -> 166805.7949 | K11: 714569.7894 | L11: 1.01023 | M11: 721879.8383 | N11: =SUMIF(OFFSET(Metered!$I$2,0,0,1,COUNTA(Metered!$I$2:$AA$2)),"Transmission",OFFSET(Metered!$I12,0,0,1,COUNTA(Metered!$I12:$AA12))) -> 32399.36606 | O11: 914558.6647 | P11: 1.02619 | Q11: 938510.9561
A12: 4 | B12: 2019-04-01T10:00:00 | C12: =+Metered!E13 -> 568158.3463 | D12: 1.00943 | E12: 573516.0795 | F12: =SUMIF(OFFSET(Metered!$I$2,0,0,1,COUNTA(Metered!$I$2:$IV$2)),"Primary",OFFSET(Metered!$I13,0,0,1,COUNTA(Metered!$I13:$AA13))) -> 44567.07388 | G12: 618083.1534 | H12: 1.00906 | I12: 623682.9867 | J12: =SUMIF(OFFSET(Metered!$I$2,0,0,1,COUNTA(Metered!$I$2:$IV$2)),"Subtransmission",OFFSET(Metered!$I13,0,0,1,COUNTA(Metered!$I13:$AA13))) -> 166278.4506 | K12: 648778.6161 | L12: 1.00962 | M12: 655019.8664 | N12: =SUMIF(OFFSET(Metered!$I$2,0,0,1,COUNTA(Metered!$I$2:$AA$2)),"Transmission",OFFSET(Metered!$I13,0,0,1,COUNTA(Metered!$I13:$AA13))) -> 31474.09971 | O12: 827676.7873 | P12: 1.02399 | Q12: 847532.7535
A13: 4 | B13: 2019-04-01T11:00:00 | C13: =+Metered!E14 -> 507518.695 | D13: 1.01005 | E13: 512619.2579 | F13: =SUMIF(OFFSET(Metered!$I$2,0,0,1,COUNTA(Metered!$I$2:$IV$2)),"Primary",OFFSET(Metered!$I14,0,0,1,COUNTA(Metered!$I14:$AA14))) -> 44387.02774 | G13: 557006.2856 | H13: 1.00903 | I13: 562036.0524 | J13: =SUMIF(OFFSET(Metered!$I$2,0,0,1,COUNTA(Metered!$I$2:$IV$2)),"Subtransmission",OFFSET(Metered!$I14,0,0,1,COUNTA(Metered!$I14:$AA14))) -> 165334.1183 | K13: 600142.3367 | L13: 1.00919 | M13: 605657.6447 | N13: =SUMIF(OFFSET(Metered!$I$2,0,0,1,COUNTA(Metered!$I$2:$AA$2)),"Transmission",OFFSET(Metered!$I14,0,0,1,COUNTA(Metered!$I14:$AA14))) -> 31613.14847 | O13: 764498.6272 | P13: 1.02241 | Q13: 781631.0415
A14: 4 | B14: 2019-04-01T12:00:00 | C14: =+Metered!E15 -> 490871.6977 | D14: 1.01025 | E14: 495903.1326 | F14: =SUMIF(OFFSET(Metered!$I$2,0,0,1,COUNTA(Metered!$I$2:$IV$2)),"Primary",OFFSET(Metered!$I15,0,0,1,COUNTA(Metered!$I15:$AA15))) -> 42748.13523 | G14: 538651.2679 | H14: 1.00905 | I14: 543526.0618 | J14: =SUMIF(OFFSET(Metered!$I$2,0,0,1,COUNTA(Metered!$I$2:$IV$2)),"Subtransmission",OFFSET(Metered!$I15,0,0,1,COUNTA(Metered!$I15:$AA15))) -> 168121.3087 | K14: 588609.6343 | L14: 1.0091 | M14: 593965.982 | N14: =SUMIF(OFFSET(Metered!$I$2,0,0,1,COUNTA(Metered!$I$2:$AA$2)),"Transmission",OFFSET(Metered!$I15,0,0,1,COUNTA(Metered!$I15:$AA15))) -> 32904.78328 | O14: 749908.5015 | P14: 1.02204 | Q14: 766436.4849
A15: 4 | B15: 2019-04-01T13:00:00 | C15: =+Metered!E16 -> 438428.0372 | D15: 1.01104 | E15: 443268.2827 | F15: =SUMIF(OFFSET(Metered!$I$2,0,0,1,COUNTA(Metered!$I$2:$IV$2)),"Primary",OFFSET(Metered!$I16,0,0,1,COUNTA(Metered!$I16:$AA16))) -> 42148.65063 | G15: 485416.9333 | H15: 1.00915 | I15: 489858.4983 | J15: =SUMIF(OFFSET(Metered!$I$2,0,0,1,COUNTA(Metered!$I$2:$IV$2)),"Subtransmission",OFFSET(Metered!$I16,0,0,1,COUNTA(Metered!$I16:$AA16))) -> 169211.3245 | K15: 548180.7874 | L15: 1.00877 | M15: 552988.3329 | N15: =SUMIF(OFFSET(Metered!$I$2,0,0,1,COUNTA(Metered!$I$2:$AA$2)),"Transmission",OFFSET(Metered!$I16,0,0,1,COUNTA(Metered!$I16:$AA16))) -> 33338.39596 | O15: 697215.7642 | P15: 1.02075 | Q15: 711682.9914
A16: 4 | B16: 2019-04-01T14:00:00 | C16: =+Metered!E17 -> 413977.4776 | D16: 1.01149 | E16: 418734.0788 | F16: =SUMIF(OFFSET(Metered!$I$2,0,0,1,COUNTA(Metered!$I$2:$IV$2)),"Primary",OFFSET(Metered!$I17,0,0,1,COUNTA(Metered!$I17:$AA17))) -> 43118.50646 | G16: 461852.5853 | H16: 1.00924 | I16: 466120.1032 | J16: =SUMIF(OFFSET(Metered!$I$2,0,0,1,COUNTA(Metered!$I$2:$IV$2)),"Subtransmission",OFFSET(Metered!$I17,0,0,1,COUNTA(Metered!$I17:$AA17))) -> 167652.698 | K16: 528257.415 | L16: 1.00862 | M16: 532810.9939 | N16: =SUMIF(OFFSET(Metered!$I$2,0,0,1,COUNTA(Metered!$I$2:$AA$2)),"Transmission",OFFSET(Metered!$I17,0,0,1,COUNTA(Metered!$I17:$AA17))) -> 33230.87871 | O16: 671557.2588 | P16: 1.02013 | Q16: 685075.7064
A17: 4 | B17: 2019-04-01T15:00:00 | C17: =+Metered!E18 -> 402191.1706 | D17: 1.01173 | E17: 406908.873 | F17: =SUMIF(OFFSET(Metered!$I$2,0,0,1,COUNTA(Metered!$I$2:$IV$2)),"Primary",OFFSET(Metered!$I18,0,0,1,COUNTA(Metered!$I18:$AA18))) -> 41908.23348 | G17: 448817.1065 | H17: 1.0093 | I17: 452991.1056 | J17: =SUMIF(OFFSET(Metered!$I$2,0,0,1,COUNTA(Metered!$I$2:$IV$2)),"Subtransmission",OFFSET(Metered!$I18,0,0,1,COUNTA(Metered!$I18:$AA18))) -> 165952.8834 | K17: 516400.6078 | L17: 1.00853 | M17: 520805.505 | N17: =SUMIF(OFFSET(Metered!$I$2,0,0,1,COUNTA(Metered!$I$2:$AA$2)),"Transmission",OFFSET(Metered!$I18,0,0,1,COUNTA(Metered!$I18:$AA18))) -> 33902.83109 | O17: 657251.7173 | P17: 1.01978 | Q17: 670252.1563
A18: 4 | B18: 2019-04-01T16:00:00 | C18: =+Metered!E19 -> 375080.1155 | D18: 1.01236 | E18: 379716.1057 | F18: =SUMIF(OFFSET(Metered!$I$2,0,0,1,COUNTA(Metered!$I$2:$IV$2)),"Primary",OFFSET(Metered!$I19,0,0,1,COUNTA(Metered!$I19:$AA19))) -> 38379.12541 | G18: 418095.2311 | H18: 1.00948 | I18: 422058.7739 | J18: =SUMIF(OFFSET(Metered!$I$2,0,0,1,COUNTA(Metered!$I$2:$IV$2)),"Subtransmission",OFFSET(Metered!$I19,0,0,1,COUNTA(Metered!$I19:$AA19))) -> 165191.7783 | K18: 491709.3082 | L18: 1.00836 | M18: 495819.998 | N18: =SUMIF(OFFSET(Metered!$I$2,0,0,1,COUNTA(Metered!$I$2:$AA$2)),"Transmission",OFFSET(Metered!$I19,0,0,1,COUNTA(Metered!$I19:$AA19))) -> 34551.58088 | O18: 625912.8229 | P18: 1.01903 | Q18: 637823.9439
A19: 4 | B19: 2019-04-01T17:00:00 | C19: =+Metered!E20 -> 386361.6358 | D19: 1.01209 | E19: 391032.7479 | F19: =SUMIF(OFFSET(Metered!$I$2,0,0,1,COUNTA(Metered!$I$2:$IV$2)),"Primary",OFFSET(Metered!$I20,0,0,1,COUNTA(Metered!$I20:$AA20))) -> 36048.14708 | G19: 427080.895 | H19: 1.00942 | I19: 431103.9971 | J19: =SUMIF(OFFSET(Metered!$I$2,0,0,1,COUNTA(Metered!$I$2:$IV$2)),"Subtransmission",OFFSET(Metered!$I20,0,0,1,COUNTA(Metered!$I20:$AA20))) -> 164688.7583 | K19: 498203.9485 | L19: 1.0084 | M19: 502388.8617 | N19: =SUMIF(OFFSET(Metered!$I$2,0,0,1,COUNTA(Metered!$I$2:$AA$2)),"Transmission",OFFSET(Metered!$I20,0,0,1,COUNTA(Metered!$I20:$AA20))) -> 34414.33435 | O19: 634392.0029 | P19: 1.01923 | Q19: 646591.3611
A20: 4 | B20: 2019-04-01T18:00:00 | C20: =+Metered!E21 -> 354204.5392 | D20: 1.01292 | E20: 358780.8618 | F20: =SUMIF(OFFSET(Metered!$I$2,0,0,1,COUNTA(Metered!$I$2:$IV$2)),"Primary",OFFSET(Metered!$I21,0,0,1,COUNTA(Metered!$I21:$AA21))) -> 33036.00137 | G20: 391816.8632 | H20: 1.00969 | I20: 395613.5686 | J20: =SUMIF(OFFSET(Metered!$I$2,0,0,1,COUNTA(Metered!$I$2:$IV$2)),"Subtransmission",OFFSET(Metered!$I21,0,0,1,COUNTA(Metered!$I21:$AA21))) -> 164979.2884 | K20: 471038.0015 | L20: 1.00822 | M20: 474909.9339 | N20: =SUMIF(OFFSET(Metered!$I$2,0,0,1,COUNTA(Metered!$I$2:$AA$2)),"Transmission",OFFSET(Metered!$I21,0,0,1,COUNTA(Metered!$I21:$AA21))) -> 32863.59481 | O20: 597328.3842 | P20: 1.01836 | Q20: 608295.3333
A21: 4 | B21: 2019-04-01T19:00:00 | C21: =+Metered!E22 -> 416715.6421 | D21: 1.01144 | E21: 421482.8691 | F21: =SUMIF(OFFSET(Metered!$I$2,0,0,1,COUNTA(Metered!$I$2:$IV$2)),"Primary",OFFSET(Metered!$I22,0,0,1,COUNTA(Metered!$I22:$AA22))) -> 32745.03879 | G21: 454227.9079 | H21: 1.00927 | I21: 458438.6006 | J21: =SUMIF(OFFSET(Metered!$I$2,0,0,1,COUNTA(Metered!$I$2:$IV$2)),"Subtransmission",OFFSET(Metered!$I22,0,0,1,COUNTA(Metered!$I22:$AA22))) -> 168196.5248 | K21: 522858.5972 | L21: 1.00858 | M21: 527344.724 | N21: =SUMIF(OFFSET(Metered!$I$2,0,0,1,COUNTA(Metered!$I$2:$AA$2)),"Transmission",OFFSET(Metered!$I22,0,0,1,COUNTA(Metered!$I22:$AA22))) -> 33075.7606 | O21: 664197.0127 | P21: 1.01995 | Q21: 677447.7431
A22: 4 | B22: 2019-04-01T20:00:00 | C22: =+Metered!E23 -> 446750.5771 | D22: 1.0109 | E22: 451620.1584 | F22: =SUMIF(OFFSET(Metered!$I$2,0,0,1,COUNTA(Metered!$I$2:$IV$2)),"Primary",OFFSET(Metered!$I23,0,0,1,COUNTA(Metered!$I23:$AA23))) -> 32597.99915 | G22: 484218.1576 | H22: 1.00916 | I22: 488653.5959 | J22: =SUMIF(OFFSET(Metered!$I$2,0,0,1,COUNTA(Metered!$I$2:$IV$2)),"Subtransmission",OFFSET(Metered!$I23,0,0,1,COUNTA(Metered!$I23:$AA23))) -> 169487.4706 | K22: 547524.7843 | L22: 1.00876 | M22: 552321.1014 | N22: =SUMIF(OFFSET(Metered!$I$2,0,0,1,COUNTA(Metered!$I$2:$AA$2)),"Transmission",OFFSET(Metered!$I23,0,0,1,COUNTA(Metered!$I23:$AA23))) -> 33390.78223 | O22: 696328.1659 | P22: 1.02073 | Q22: 710763.0487
A23: 4 | B23: 2019-04-01T21:00:00 | C23: =+Metered!E24 -> 458285.4027 | D23: 1.01072 | E23: 463198.2222 | F23: =SUMIF(OFFSET(Metered!$I$2,0,0,1,COUNTA(Metered!$I$2:$IV$2)),"Primary",OFFSET(Metered!$I24,0,0,1,COUNTA(Metered!$I24:$AA24))) -> 32592.3486 | G23: 495790.5708 | H23: 1.00913 | I23: 500317.1388 | J23: =SUMIF(OFFSET(Metered!$I$2,0,0,1,COUNTA(Metered!$I$2:$IV$2)),"Subtransmission",OFFSET(Metered!$I24,0,0,1,COUNTA(Metered!$I24:$AA24))) -> 171826.0598 | K23: 558886.6457 | L23: 1.00885 | M23: 563832.7925 | N23: =SUMIF(OFFSET(Metered!$I$2,0,0,1,COUNTA(Metered!$I$2:$AA$2)),"Transmission",OFFSET(Metered!$I24,0,0,1,COUNTA(Metered!$I24:$AA24))) -> 33303.06047 | O23: 710392.4059 | P23: 1.02107 | Q23: 725360.3738
A24: 4 | B24: 2019-04-01T22:00:00 | C24: =+Metered!E25 -> 451047.0708 | D24: 1.01083 | E24: 455931.9106 | F24: =SUMIF(OFFSET(Metered!$I$2,0,0,1,COUNTA(Metered!$I$2:$IV$2)),"Primary",OFFSET(Metered!$I25,0,0,1,COUNTA(Metered!$I25:$AA25))) -> 32749.68278 | G24: 488681.5933 | H24: 1.00914 | I24: 493148.1431 | J24: =SUMIF(OFFSET(Metered!$I$2,0,0,1,COUNTA(Metered!$I$2:$IV$2)),"Subtransmission",OFFSET(Metered!$I25,0,0,1,COUNTA(Metered!$I25:$AA25))) -> 171777.8566 | K24: 553292.289 | L24: 1.00881 | M24: 558166.7941 | N24: =SUMIF(OFFSET(Metered!$I$2,0,0,1,COUNTA(Metered!$I$2:$AA$2)),"Transmission",OFFSET(Metered!$I25,0,0,1,COUNTA(Metered!$I25:$AA25))) -> 33270.28373 | O24: 703070.7885 | P24: 1.02089 | Q24: 717757.9373
A25: 4 | B25: 2019-04-01T23:00:00 | C25: =+Metered!E26 -> 460764.4377 | D25: 1.01068 | E25: 465685.4019 | F25: =SUMIF(OFFSET(Metered!$I$2,0,0,1,COUNTA(Metered!$I$2:$IV$2)),"Primary",OFFSET(Metered!$I26,0,0,1,COUNTA(Metered!$I26:$AA26))) -> 31477.52881 | G25: 497162.9307 | H25: 1.00912 | I25: 501697.0566 | J25: =SUMIF(OFFSET(Metered!$I$2,0,0,1,COUNTA(Metered!$I$2:$IV$2)),"Subtransmission",OFFSET(Metered!$I26,0,0,1,COUNTA(Metered!$I26:$AA26))) -> 170628.6467 | K25: 558756.7791 | L25: 1.00885 | M25: 563701.7766 | N25: =SUMIF(OFFSET(Metered!$I$2,0,0,1,COUNTA(Metered!$I$2:$AA$2)),"Transmission",OFFSET(Metered!$I26,0,0,1,COUNTA(Metered!$I26:$AA26))) -> 33229.39512 | O25: 710500.0959 | P25: 1.02107 | Q25: 725470.3329
A26: 4 | B26: 2019-04-02 | C26: =+Metered!E27 -> 448013.2264 | D26: 1.01088 | E26: 452887.6103 | F26: =SUMIF(OFFSET(Metered!$I$2,0,0,1,COUNTA(Metered!$I$2:$IV$2)),"Primary",OFFSET(Metered!$I27,0,0,1,COUNTA(Metered!$I27:$AA27))) -> 29790.27865 | G26: 482677.8889 | H26: 1.00916 | I26: 487099.2184 | J26: =SUMIF(OFFSET(Metered!$I$2,0,0,1,COUNTA(Metered!$I$2:$IV$2)),"Subtransmission",OFFSET(Metered!$I27,0,0,1,COUNTA(Metered!$I27:$AA27))) -> 170050.5656 | K26: 546885.3654 | L26: 1.00876 | M26: 551676.0812 | N26: =SUMIF(OFFSET(Metered!$I$2,0,0,1,COUNTA(Metered!$I$2:$AA$2)),"Transmission",OFFSET(Metered!$I27,0,0,1,COUNTA(Metered!$I27:$AA27))) -> 33178.2351 | O26: 695118.7349 | P26: 1.0207 | Q26: 709507.6927
A27: 4 | B27: 2019-04-02T01:00:00 | C27: =+Metered!E28 -> 486795.7446 | D27: 1.01031 | E27: 491814.6087 | F27: =SUMIF(OFFSET(Metered!$I$2,0,0,1,COUNTA(Metered!$I$2:$IV$2)),"Primary",OFFSET(Metered!$I28,0,0,1,COUNTA(Metered!$I28:$AA28))) -> 28854.63761 | G27: 520669.2463 | H27: 1.00907 | I27: 525391.7164 | J27: =SUMIF(OFFSET(Metered!$I$2,0,0,1,COUNTA(Metered!$I$2:$IV$2)),"Subtransmission",OFFSET(Metered!$I28,0,0,1,COUNTA(Metered!$I28:$AA28))) -> 169348.9892 | K27: 575808.0325 | L27: 1.00899 | M27: 580984.5467 | N27: =SUMIF(OFFSET(Metered!$I$2,0,0,1,COUNTA(Metered!$I$2:$AA$2)),"Transmission",OFFSET(Metered!$I28,0,0,1,COUNTA(Metered!$I28:$AA28))) -> 33067.77922 | O27: 732984.999 | P27: 1.02163 | Q27: 748839.4646
A28: 4 | B28: 2019-04-02T02:00:00 | C28: =+Metered!E29 -> 509124.0059 | D28: 1.01003 | E28: 514230.5197 | F28: =SUMIF(OFFSET(Metered!$I$2,0,0,1,COUNTA(Metered!$I$2:$IV$2)),"Primary",OFFSET(Metered!$I29,0,0,1,COUNTA(Metered!$I29:$AA29))) -> 28538.60387 | G28: 542769.1236 | H28: 1.00904 | I28: 547675.7565 | J28: =SUMIF(OFFSET(Metered!$I$2,0,0,1,COUNTA(Metered!$I$2:$IV$2)),"Subtransmission",OFFSET(Metered!$I29,0,0,1,COUNTA(Metered!$I29:$AA29))) -> 167159.3133 | K28: 590857.9691 | L28: 1.00912 | M28: 596246.5938 | N28: =SUMIF(OFFSET(Metered!$I$2,0,0,1,COUNTA(Metered!$I$2:$AA$2)),"Transmission",OFFSET(Metered!$I29,0,0,1,COUNTA(Metered!$I29:$AA29))) -> 32670.95203 | O28: 752894.6465 | P28: 1.02212 | Q28: 769548.6761
A29: 4 | B29: 2019-04-02T03:00:00 | C29: =+Metered!E30 -> 489966.8737 | D29: 1.01027 | E29: 494998.8335 | F29: =SUMIF(OFFSET(Metered!$I$2,0,0,1,COUNTA(Metered!$I$2:$IV$2)),"Primary",OFFSET(Metered!$I30,0,0,1,COUNTA(Metered!$I30:$AA30))) -> 28894.17578 | G29: 523893.0093 | H29: 1.00907 | I29: 528644.7189 | J29: =SUMIF(OFFSET(Metered!$I$2,0,0,1,COUNTA(Metered!$I$2:$IV$2)),"Subtransmission",OFFSET(Metered!$I30,0,0,1,COUNTA(Metered!$I30:$AA30))) -> 166784.7387 | K29: 575760.4039 | L29: 1.00899 | M29: 580936.4899 | N29: =SUMIF(OFFSET(Metered!$I$2,0,0,1,COUNTA(Metered!$I$2:$AA$2)),"Transmission",OFFSET(Metered!$I30,0,0,1,COUNTA(Metered!$I30:$AA30))) -> 32564.4607 | O29: 733170.0043 | P29: 1.02163 | Q29: 749028.4715
A30: 4 | B30: 2019-04-02T04:00:00 | C30: =+Metered!E31 -> 521716.049 | D30: 1.00989 | E30: 526875.8207 | F30: =SUMIF(OFFSET(Metered!$I$2,0,0,1,COUNTA(Metered!$I$2:$IV$2)),"Primary",OFFSET(Metered!$I31,0,0,1,COUNTA(Metered!$I31:$AA31))) -> 29448.67048 | G30: 556324.4912 | H30: 1.00904 | I30: 561353.6646 | J30: =SUMIF(OFFSET(Metered!$I$2,0,0,1,COUNTA(Metered!$I$2:$IV$2)),"Subtransmission",OFFSET(Metered!$I31,0,0,1,COUNTA(Metered!$I31:$AA31))) -> 167333.5404 | K30: 601613.8428 | L30: 1.00921 | M30: 607154.7063 | N30: =SUMIF(OFFSET(Metered!$I$2,0,0,1,COUNTA(Metered!$I$2:$AA$2)),"Transmission",OFFSET(Metered!$I31,0,0,1,COUNTA(Metered!$I31:$AA31))) -> 32458.07931 | O30: 766686.1478 | P30: 1.02246 | Q30: 783905.9187
A31: 4 | B31: 2019-04-02T05:00:00 | C31: =+Metered!E32 -> 558349.9736 | D31: 1.00952 | E31: 563665.4653 | F31: =SUMIF(OFFSET(Metered!$I$2,0,0,1,COUNTA(Metered!$I$2:$IV$2)),"Primary",OFFSET(Metered!$I32,0,0,1,COUNTA(Metered!$I32:$AA32))) -> 31025.55088 | G31: 594691.0162 | H31: 1.00904 | I31: 600067.023 | J31: =SUMIF(OFFSET(Metered!$I$2,0,0,1,COUNTA(Metered!$I$2:$IV$2)),"Subtransmission",OFFSET(Metered!$I32,0,0,1,COUNTA(Metered!$I32:$AA32))) -> 170323.6216 | K31: 634553.7578 | L31: 1.00949 | M31: 640575.673 | N31: =SUMIF(OFFSET(Metered!$I$2,0,0,1,COUNTA(Metered!$I$2:$AA$2)),"Transmission",OFFSET(Metered!$I32,0,0,1,COUNTA(Metered!$I32:$AA32))) -> 32433.42012 | O31: 808845.9799 | P31: 1.02351 | Q31: 827861.9489
A32: 4 | B32: 2019-04-02T06:00:00 | C32: =+Metered!E33 -> 620800.3579 | D32: 1.00903 | E32: 626406.1851 | F32: =SUMIF(OFFSET(Metered!$I$2,0,0,1,COUNTA(Metered!$I$2:$IV$2)),"Primary",OFFSET(Metered!$I33,0,0,1,COUNTA(Metered!$I33:$AA33))) -> 36299.92452 | G32: 662706.1096 | H32: 1.00913 | I32: 668756.6164 | J32: =SUMIF(OFFSET(Metered!$I$2,0,0,1,COUNTA(Metered!$I$2:$IV$2)),"Subtransmission",OFFSET(Metered!$I33,0,0,1,COUNTA(Metered!$I33:$AA33))) -> 168384.6022 | K32: 685755.1012 | L32: 1.00996 | M32: 692585.222 | N32: =SUMIF(OFFSET(Metered!$I$2,0,0,1,COUNTA(Metered!$I$2:$AA$2)),"Transmission",OFFSET(Metered!$I33,0,0,1,COUNTA(Metered!$I33:$AA33))) -> 32879.63339 | O32: 876850.9727 | P32: 1.02523 | Q32: 898973.9228
A33: 4 | B33: 2019-04-02T07:00:00 | C33: =+Metered!E34 -> 614703.6117 | D33: 1.00907 | E33: 620278.9734 | F33: =SUMIF(OFFSET(Metered!$I$2,0,0,1,COUNTA(Metered!$I$2:$IV$2)),"Primary",OFFSET(Metered!$I34,0,0,1,COUNTA(Metered!$I34:$AA34))) -> 42384.68762 | G33: 662663.661 | H33: 1.00913 | I33: 668713.7803 | J33: =SUMIF(OFFSET(Metered!$I$2,0,0,1,COUNTA(Metered!$I$2:$IV$2)),"Subtransmission",OFFSET(Metered!$I34,0,0,1,COUNTA(Metered!$I34:$AA34))) -> 170930.4694 | K33: 688267.8291 | L33: 1.00998 | M33: 695136.7421 | N33: =SUMIF(OFFSET(Metered!$I$2,0,0,1,COUNTA(Metered!$I$2:$AA$2)),"Transmission",OFFSET(Metered!$I34,0,0,1,COUNTA(Metered!$I34:$AA34))) -> 31598.75728 | O33: 878111.9199 | P33: 1.02526 | Q33: 900293.027
A34: 4 | B34: 2019-04-02T08:00:00 | C34: =+Metered!E35 -> 618175.2396 | D34: 1.00905 | E34: 623769.7255 | F34: =SUMIF(OFFSET(Metered!$I$2,0,0,1,COUNTA(Metered!$I$2:$IV$2)),"Primary",OFFSET(Metered!$I35,0,0,1,COUNTA(Metered!$I35:$AA35))) -> 45225.75583 | G34: 668995.4814 | H34: 1.00914 | I34: 675110.1001 | J34: =SUMIF(OFFSET(Metered!$I$2,0,0,1,COUNTA(Metered!$I$2:$IV$2)),"Subtransmission",OFFSET(Metered!$I35,0,0,1,COUNTA(Metered!$I35:$AA35))) -> 174347.7438 | K34: 696633.4914 | L34: 1.01006 | M34: 703641.6243 | N34: =SUMIF(OFFSET(Metered!$I$2,0,0,1,COUNTA(Metered!$I$2:$AA$2)),"Transmission",OFFSET(Metered!$I35,0,0,1,COUNTA(Metered!$I35:$AA35))) -> 33401.60127 | O34: 889867.578 | P34: 1.02556 | Q34: 912612.5933
A35: 4 | B35: 2019-04-02T09:00:00 | C35: =+Metered!E36 -> 571220.3996 | D35: 1.0094 | E35: 576589.8714 | F35: =SUMIF(OFFSET(Metered!$I$2,0,0,1,COUNTA(Metered!$I$2:$IV$2)),"Primary",OFFSET(Metered!$I36,0,0,1,COUNTA(Metered!$I36:$AA36))) -> 46844.74936 | G35: 623434.6207 | H35: 1.00906 | I35: 629082.9384 | J35: =SUMIF(OFFSET(Metered!$I$2,0,0,1,COUNTA(Metered!$I$2:$IV$2)),"Subtransmission",OFFSET(Metered!$I36,0,0,1,COUNTA(Metered!$I36:$AA36))) -> 174196.9519 | K35: 660874.6845 | L35: 1.00973 | M35: 667304.9952 | N35: =SUMIF(OFFSET(Metered!$I$2,0,0,1,COUNTA(Metered!$I$2:$AA$2)),"Transmission",OFFSET(Metered!$I36,0,0,1,COUNTA(Metered!$I36:$AA36))) -> 34336.53649 | O35: 844046.7374 | P35: 1.0244 | Q35: 864641.4778
A36: 4 | B36: 2019-04-02T10:00:00 | C36: =+Metered!E37 -> 480405.0018 | D36: 1.01039 | E36: 485396.4098 | F36: =SUMIF(OFFSET(Metered!$I$2,0,0,1,COUNTA(Metered!$I$2:$IV$2)),"Primary",OFFSET(Metered!$I37,0,0,1,COUNTA(Metered!$I37:$AA37))) -> 46522.66841 | G36: 531919.0782 | H36: 1.00906 | I36: 536738.2651 | J36: =SUMIF(OFFSET(Metered!$I$2,0,0,1,COUNTA(Metered!$I$2:$IV$2)),"Subtransmission",OFFSET(Metered!$I37,0,0,1,COUNTA(Metered!$I37:$AA37))) -> 174867.15 | K36: 590104.2292 | L36: 1.00911 | M36: 595480.0787 | N36: =SUMIF(OFFSET(Metered!$I$2,0,0,1,COUNTA(Metered!$I$2:$AA$2)),"Transmission",OFFSET(Metered!$I37,0,0,1,COUNTA(Metered!$I37:$AA37))) -> 34073.55624 | O36: 751054.8209 | P36: 1.02207 | Q36: 767630.6008
A37: 4 | B37: 2019-04-02T11:00:00 | C37: =+Metered!E38 -> 452585.9883 | D37: 1.01081 | E37: 457478.4428 | F37: =SUMIF(OFFSET(Metered!$I$2,0,0,1,COUNTA(Metered!$I$2:$IV$2)),"Primary",OFFSET(Metered!$I38,0,0,1,COUNTA(Metered!$I38:$AA38))) -> 44123.73543 | G37: 501602.1783 | H37: 1.00911 | I37: 506171.7741 | J37: =SUMIF(OFFSET(Metered!$I$2,0,0,1,COUNTA(Metered!$I$2:$IV$2)),"Subtransmission",OFFSET(Metered!$I38,0,0,1,COUNTA(Metered!$I38:$AA38))) -> 174310.3928 | K37: 565900.303 | L37: 1.00891 | M37: 570942.4747 | N37: =SUMIF(OFFSET(Metered!$I$2,0,0,1,COUNTA(Metered!$I$2:$AA$2)),"Transmission",OFFSET(Metered!$I38,0,0,1,COUNTA(Metered!$I38:$AA38))) -> 33658.5736 | O37: 719182.9122 | P37: 1.02129 | Q37: 734494.3164
A38: 4 | B38: 2019-04-02T12:00:00 | C38: =+Metered!E39 -> 424188.6197 | D38: 1.0113 | E38: 428981.9511 | F38: =SUMIF(OFFSET(Metered!$I$2,0,0,1,COUNTA(Metered!$I$2:$IV$2)),"Primary",OFFSET(Metered!$I39,0,0,1,COUNTA(Metered!$I39:$AA39))) -> 43178.42102 | G38: 472160.3721 | H38: 1.0092 | I38: 476504.2475 | J38: =SUMIF(OFFSET(Metered!$I$2,0,0,1,COUNTA(Metered!$I$2:$IV$2)),"Subtransmission",OFFSET(Metered!$I39,0,0,1,COUNTA(Metered!$I39:$AA39))) -> 173501.5733 | K38: 542139.7809 | L38: 1.00872 | M38: 546867.2398 | N38: =SUMIF(OFFSET(Metered!$I$2,0,0,1,COUNTA(Metered!$I$2:$AA$2)),"Transmission",OFFSET(Metered!$I39,0,0,1,COUNTA(Metered!$I39:$AA39))) -> 32844.16068 | O38: 687577.4404 | P38: 1.02051 | Q38: 701679.6537
A39: 4 | B39: 2019-04-02T13:00:00 | C39: =+Metered!E40 -> 450999.0131 | D39: 1.01083 | E39: 455883.3324 | F39: =SUMIF(OFFSET(Metered!$I$2,0,0,1,COUNTA(Metered!$I$2:$IV$2)),"Primary",OFFSET(Metered!$I40,0,0,1,COUNTA(Metered!$I40:$AA40))) -> 43788.78941 | G39: 499672.1218 | H39: 1.00912 | I39: 504229.1316 | J39: =SUMIF(OFFSET(Metered!$I$2,0,0,1,COUNTA(Metered!$I$2:$IV$2)),"Subtransmission",OFFSET(Metered!$I40,0,0,1,COUNTA(Metered!$I40:$AA40))) -> 174053.4602 | K39: 564140.4829 | L39: 1.0089 | M39: 569161.3332 | N39: =SUMIF(OFFSET(Metered!$I$2,0,0,1,COUNTA(Metered!$I$2:$AA$2)),"Transmission",OFFSET(Metered!$I40,0,0,1,COUNTA(Metered!$I40:$AA40))) -> 35242.66623 | O39: 718546.1083 | P39: 1.02127 | Q39: 733829.584
A40: 4 | B40: 2019-04-02T14:00:00 | C40: =+Metered!E41 -> 381316.9425 | D40: 1.01221 | E40: 385972.8224 | F40: =SUMIF(OFFSET(Metered!$I$2,0,0,1,COUNTA(Metered!$I$2:$IV$2)),"Primary",OFFSET(Metered!$I41,0,0,1,COUNTA(Metered!$I41:$AA41))) -> 43692.63643 | G40: 429665.4588 | H40: 1.00941 | I40: 433708.6108 | J40: =SUMIF(OFFSET(Metered!$I$2,0,0,1,COUNTA(Metered!$I$2:$IV$2)),"Subtransmission",OFFSET(Metered!$I41,0,0,1,COUNTA(Metered!$I41:$AA41))) -> 171493.6822 | K40: 507023.881 | L40: 1.00846 | M40: 511313.303 | N40: =SUMIF(OFFSET(Metered!$I$2,0,0,1,COUNTA(Metered!$I$2:$AA$2)),"Transmission",OFFSET(Metered!$I41,0,0,1,COUNTA(Metered!$I41:$AA41))) -> 35180.84213 | O40: 644672.5572 | P40: 1.01948 | Q40: 657230.7786
A41: 4 | B41: 2019-04-02T15:00:00 | C41: =+Metered!E42 -> 373158.6339 | D41: 1.01241 | E41: 377789.5326 | F41: =SUMIF(OFFSET(Metered!$I$2,0,0,1,COUNTA(Metered!$I$2:$IV$2)),"Primary",OFFSET(Metered!$I42,0,0,1,COUNTA(Metered!$I42:$AA42))) -> 41193.70308 | G41: 418983.2357 | H41: 1.00948 | I41: 422955.1967 | J41: =SUMIF(OFFSET(Metered!$I$2,0,0,1,COUNTA(Metered!$I$2:$IV$2)),"Subtransmission",OFFSET(Metered!$I42,0,0,1,COUNTA(Metered!$I42:$AA42))) -> 171519.1991 | K41: 498730.229 | L41: 1.0084 | M41: 502919.5629 | N41: =SUMIF(OFFSET(Metered!$I$2,0,0,1,COUNTA(Metered!$I$2:$AA$2)),"Transmission",OFFSET(Metered!$I42,0,0,1,COUNTA(Metered!$I42:$AA42))) -> 34885.95297 | O41: 633549.6827 | P41: 1.01921 | Q41: 645720.1721
A42: 4 | B42: 2019-04-02T16:00:00 | C42: =+Metered!E43 -> 387418.2284 | D42: 1.01206 | E42: 392090.4923 | F42: =SUMIF(OFFSET(Metered!$I$2,0,0,1,COUNTA(Metered!$I$2:$IV$2)),"Primary",OFFSET(Metered!$I43,0,0,1,COUNTA(Metered!$I43:$AA43))) -> 39906.42949 | G42: 431996.9218 | H42: 1.00939 | I42: 436053.3728 | J42: =SUMIF(OFFSET(Metered!$I$2,0,0,1,COUNTA(Metered!$I$2:$IV$2)),"Subtransmission",OFFSET(Metered!$I43,0,0,1,COUNTA(Metered!$I43:$AA43))) -> 172026.4395 | K42: 509370.6176 | L42: 1.00848 | M42: 513690.0804 | N42: =SUMIF(OFFSET(Metered!$I$2,0,0,1,COUNTA(Metered!$I$2:$AA$2)),"Transmission",OFFSET(Metered!$I43,0,0,1,COUNTA(Metered!$I43:$AA43))) -> 34930.14019 | O42: 647329.4153 | P42: 1.01954 | Q42: 659978.2321
A43: 4 | B43: 2019-04-02T17:00:00 | C43: =+Metered!E44 -> 340278.0472 | D43: 1.01333 | E43: 344813.9536 | F43: =SUMIF(OFFSET(Metered!$I$2,0,0,1,COUNTA(Metered!$I$2:$IV$2)),"Primary",OFFSET(Metered!$I44,0,0,1,COUNTA(Metered!$I44:$AA44))) -> 38051.19984 | G43: 382865.1535 | H43: 1.00977 | I43: 386605.746 | J43: =SUMIF(OFFSET(Metered!$I$2,0,0,1,COUNTA(Metered!$I$2:$IV$2)),"Subtransmission",OFFSET(Metered!$I44,0,0,1,COUNTA(Metered!$I44:$AA44))) -> 170962.82 | K43: 470052.8071 | L43: 1.00821 | M43: 473911.9406 | N43: =SUMIF(OFFSET(Metered!$I$2,0,0,1,COUNTA(Metered!$I$2:$AA$2)),"Transmission",OFFSET(Metered!$I44,0,0,1,COUNTA(Metered!$I44:$AA44))) -> 35314.94378 | O43: 596742.6434 | P43: 1.01834 | Q43: 607686.9034
A44: 4 | B44: 2019-04-02T18:00:00 | C44: =+Metered!E45 -> 345446.1313 | D44: 1.01317 | E44: 349995.6568 | F44: =SUMIF(OFFSET(Metered!$I$2,0,0,1,COUNTA(Metered!$I$2:$IV$2)),"Primary",OFFSET(Metered!$I45,0,0,1,COUNTA(Metered!$I45:$AA45))) -> 36067.96576 | G44: 386063.6226 | H44: 1.00974 | I44: 389823.8823 | J44: =SUMIF(OFFSET(Metered!$I$2,0,0,1,COUNTA(Metered!$I$2:$IV$2)),"Subtransmission",OFFSET(Metered!$I45,0,0,1,COUNTA(Metered!$I45:$AA45))) -> 168195.679 | K44: 469775.3144 | L44: 1.00821 | M44: 473632.1697 | N44: =SUMIF(OFFSET(Metered!$I$2,0,0,1,COUNTA(Metered!$I$2:$AA$2)),"Transmission",OFFSET(Metered!$I45,0,0,1,COUNTA(Metered!$I45:$AA45))) -> 35035.784 | O44: 596912.2006 | P44: 1.01835 | Q44: 607865.5395
A45: 4 | B45: 2019-04-02T19:00:00 | C45: =+Metered!E46 -> 350839.3886 | D45: 1.01301 | E45: 355403.8091 | F45: =SUMIF(OFFSET(Metered!$I$2,0,0,1,COUNTA(Metered!$I$2:$IV$2)),"Primary",OFFSET(Metered!$I46,0,0,1,COUNTA(Metered!$I46:$AA46))) -> 35134.67313 | G45: 390538.4822 | H45: 1.0097 | I45: 394326.7055 | J45: =SUMIF(OFFSET(Metered!$I$2,0,0,1,COUNTA(Metered!$I$2:$IV$2)),"Subtransmission",OFFSET(Metered!$I46,0,0,1,COUNTA(Metered!$I46:$AA46))) -> 168499.8849 | K45: 473563.0415 | L45: 1.00824 | M45: 477465.201 | N45: =SUMIF(OFFSET(Metered!$I$2,0,0,1,COUNTA(Metered!$I$2:$AA$2)),"Transmission",OFFSET(Metered!$I46,0,0,1,COUNTA(Metered!$I46:$AA46))) -> 33428.00112 | O45: 600156.751 | P45: 1.01842 | Q45: 611211.6383
A46: 4 | B46: 2019-04-02T20:00:00 | C46: =+Metered!E47 -> 448208.6397 | D46: 1.01088 | E46: 453085.1497 | F46: =SUMIF(OFFSET(Metered!$I$2,0,0,1,COUNTA(Metered!$I$2:$IV$2)),"Primary",OFFSET(Metered!$I47,0,0,1,COUNTA(Metered!$I47:$AA47))) -> 34868.97064 | G46: 487954.1203 | H46: 1.00915 | I46: 492418.9005 | J46: =SUMIF(OFFSET(Metered!$I$2,0,0,1,COUNTA(Metered!$I$2:$IV$2)),"Subtransmission",OFFSET(Metered!$I47,0,0,1,COUNTA(Metered!$I47:$AA47))) -> 168167.0452 | K46: 549117.3133 | L46: 1.00878 | M46: 553938.5633 | N46: =SUMIF(OFFSET(Metered!$I$2,0,0,1,COUNTA(Metered!$I$2:$AA$2)),"Transmission",OFFSET(Metered!$I47,0,0,1,COUNTA(Metered!$I47:$AA47))) -> 33647.92368 | O46: 699055.1194 | P46: 1.02079 | Q46: 713588.4753
A47: 4 | B47: 2019-04-02T21:00:00 | C47: =+Metered!E48 -> 430308.1688 | D47: 1.01118 | E47: 435119.0141 | F47: =SUMIF(OFFSET(Metered!$I$2,0,0,1,COUNTA(Metered!$I$2:$IV$2)),"Primary",OFFSET(Metered!$I48,0,0,1,COUNTA(Metered!$I48:$AA48))) -> 34495.11324 | G47: 469614.1274 | H47: 1.00921 | I47: 473939.2735 | J47: =SUMIF(OFFSET(Metered!$I$2,0,0,1,COUNTA(Metered!$I$2:$IV$2)),"Subtransmission",OFFSET(Metered!$I48,0,0,1,COUNTA(Metered!$I48:$AA48))) -> 175371.6304 | K47: 542025.4959 | L47: 1.00872 | M47: 546751.9582 | N47: =SUMIF(OFFSET(Metered!$I$2,0,0,1,COUNTA(Metered!$I$2:$AA$2)),"Transmission",OFFSET(Metered!$I48,0,0,1,COUNTA(Metered!$I48:$AA48))) -> 33688.16318 | O47: 687725.5294 | P47: 1.02052 | Q47: 701837.6573
A48: 4 | B48: 2019-04-02T22:00:00 | C48: =+Metered!E49 -> 408318.417 | D48: 1.01161 | E48: 413058.9939 | F48: =SUMIF(OFFSET(Metered!$I$2,0,0,1,COUNTA(Metered!$I$2:$IV$2)),"Primary",OFFSET(Metered!$I49,0,0,1,COUNTA(Metered!$I49:$AA49))) -> 33836.48189 | G48: 446895.4757 | H48: 1.00931 | I48: 451056.0726 | J48: =SUMIF(OFFSET(Metered!$I$2,0,0,1,COUNTA(Metered!$I$2:$IV$2)),"Subtransmission",OFFSET(Metered!$I49,0,0,1,COUNTA(Metered!$I49:$AA49))) -> 182235.6826 | K48: 531186.4065 | L48: 1.00864 | M48: 535775.8571 | N48: =SUMIF(OFFSET(Metered!$I$2,0,0,1,COUNTA(Metered!$I$2:$AA$2)),"Transmission",OFFSET(Metered!$I49,0,0,1,COUNTA(Metered!$I49:$AA49))) -> 33103.73424 | O48: 670984.9401 | P48: 1.02011 | Q48: 684478.4472
A49: 4 | B49: 2019-04-02T23:00:00 | C49: =+Metered!E50 -> 413342.4812 | D49: 1.0115 | E49: 418095.9197 | F49: =SUMIF(OFFSET(Metered!$I$2,0,0,1,COUNTA(Metered!$I$2:$IV$2)),"Primary",OFFSET(Metered!$I50,0,0,1,COUNTA(Metered!$I50:$AA50))) -> 31817.64612 | G49: 449913.5659 | H49: 1.00929 | I49: 454093.2629 | J49: =SUMIF(OFFSET(Metered!$I$2,0,0,1,COUNTA(Metered!$I$2:$IV$2)),"Subtransmission",OFFSET(Metered!$I50,0,0,1,COUNTA(Metered!$I50:$AA50))) -> 181622.6063 | K49: 532922.9931 | L49: 1.00865 | M49: 537532.777 | N49: =SUMIF(OFFSET(Metered!$I$2,0,0,1,COUNTA(Metered!$I$2:$AA$2)),"Transmission",OFFSET(Metered!$I50,0,0,1,COUNTA(Metered!$I50:$AA50))) -> 33532.70326 | O49: 673858.3563 | P49: 1.02018 | Q49: 687456.8179
A50: 4 | B50: 2019-04-03 | C50: =+Metered!E51 -> 389579.205 | D50: 1.01201 | E50: 394258.0513 | F50: =SUMIF(OFFSET(Metered!$I$2,0,0,1,COUNTA(Metered!$I$2:$IV$2)),"Primary",OFFSET(Metered!$I51,0,0,1,COUNTA(Metered!$I51:$AA51))) -> 31579.4595 | G50: 425837.5108 | H50: 1.00943 | I50: 429853.1585 | J50: =SUMIF(OFFSET(Metered!$I$2,0,0,1,COUNTA(Metered!$I$2:$IV$2)),"Subtransmission",OFFSET(Metered!$I51,0,0,1,COUNTA(Metered!$I51:$AA51))) -> 181109.657 | K50: 513657.1604 | L50: 1.00851 | M50: 518028.3828 | N50: =SUMIF(OFFSET(Metered!$I$2,0,0,1,COUNTA(Metered!$I$2:$AA$2)),"Transmission",OFFSET(Metered!$I51,0,0,1,COUNTA(Metered!$I51:$AA51))) -> 33235.39924 | O50: 648569.4372 | P50: 1.01957 | Q50: 661261.9411
A51: 4 | B51: 2019-04-03T01:00:00 | C51: =+Metered!E52 -> 428178.3819 | D51: 1.01122 | E51: 432982.5434 | F51: =SUMIF(OFFSET(Metered!$I$2,0,0,1,COUNTA(Metered!$I$2:$IV$2)),"Primary",OFFSET(Metered!$I52,0,0,1,COUNTA(Metered!$I52:$AA52))) -> 28759.39197 | G51: 461741.9353 | H51: 1.00924 | I51: 466008.4308 | J51: =SUMIF(OFFSET(Metered!$I$2,0,0,1,COUNTA(Metered!$I$2:$IV$2)),"Subtransmission",OFFSET(Metered!$I52,0,0,1,COUNTA(Metered!$I52:$AA52))) -> 180233.2687 | K51: 540751.5925 | L51: 1.00871 | M51: 545461.5389 | N51: =SUMIF(OFFSET(Metered!$I$2,0,0,1,COUNTA(Metered!$I$2:$AA$2)),"Transmission",OFFSET(Metered!$I52,0,0,1,COUNTA(Metered!$I52:$AA52))) -> 32422.33042 | O51: 683373.9763 | P51: 1.02041 | Q51: 697321.6392
A52: 4 | B52: 2019-04-03T02:00:00 | C52: =+Metered!E53 -> 466958.5424 | D52: 1.01058 | E52: 471898.9638 | F52: =SUMIF(OFFSET(Metered!$I$2,0,0,1,COUNTA(Metered!$I$2:$IV$2)),"Primary",OFFSET(Metered!$I53,0,0,1,COUNTA(Metered!$I53:$AA53))) -> 27958.65532 | G52: 499857.6191 | H52: 1.00911 | I52: 504411.322 | J52: =SUMIF(OFFSET(Metered!$I$2,0,0,1,COUNTA(Metered!$I$2:$IV$2)),"Subtransmission",OFFSET(Metered!$I53,0,0,1,COUNTA(Metered!$I53:$AA53))) -> 176077.68 | K52: 566305.6508 | L52: 1.00891 | M52: 571351.4341 | N52: =SUMIF(OFFSET(Metered!$I$2,0,0,1,COUNTA(Metered!$I$2:$AA$2)),"Transmission",OFFSET(Metered!$I53,0,0,1,COUNTA(Metered!$I53:$AA53))) -> 32453.82389 | O52: 717988.6092 | P52: 1.02126 | Q52: 733253.047
A53: 4 | B53: 2019-04-03T03:00:00 | C53: =+Metered!E54 -> 479013.5607 | D53: 1.01041 | E53: 484000.0919 | F53: =SUMIF(OFFSET(Metered!$I$2,0,0,1,COUNTA(Metered!$I$2:$IV$2)),"Primary",OFFSET(Metered!$I54,0,0,1,COUNTA(Metered!$I54:$AA54))) -> 28047.92591 | G53: 512048.0178 | H53: 1.00909 | I53: 516702.5343 | J53: =SUMIF(OFFSET(Metered!$I$2,0,0,1,COUNTA(Metered!$I$2:$IV$2)),"Subtransmission",OFFSET(Metered!$I54,0,0,1,COUNTA(Metered!$I54:$AA54))) -> 174028.7554 | K53: 573765.5826 | L53: 1.00897 | M53: 578912.2598 | N53: =SUMIF(OFFSET(Metered!$I$2,0,0,1,COUNTA(Metered!$I$2:$AA$2)),"Transmission",OFFSET(Metered!$I54,0,0,1,COUNTA(Metered!$I54:$AA54))) -> 32688.88748 | O53: 728566.8544 | P53: 1.02152 | Q53: 744245.6131
A54: 4 | B54: 2019-04-03T04:00:00 | C54: =+Metered!E55 -> 517983.1133 | D54: 1.00993 | E54: 523126.6856 | F54: =SUMIF(OFFSET(Metered!$I$2,0,0,1,COUNTA(Metered!$I$2:$IV$2)),"Primary",OFFSET(Metered!$I55,0,0,1,COUNTA(Metered!$I55:$AA55))) -> 28961.97472 | G54: 552088.6603 | H54: 1.00904 | I54: 557079.5418 | J54: =SUMIF(OFFSET(Metered!$I$2,0,0,1,COUNTA(Metered!$I$2:$IV$2)),"Subtransmission",OFFSET(Metered!$I55,0,0,1,COUNTA(Metered!$I55:$AA55))) -> 173923.4859 | K54: 604897.1966 | L54: 1.00923 | M54: 610480.3977 | N54: =SUMIF(OFFSET(Metered!$I$2,0,0,1,COUNTA(Metered!$I$2:$AA$2)),"Transmission",OFFSET(Metered!$I55,0,0,1,COUNTA(Metered!$I55:$AA55))) -> 32804.61171 | O54: 769390.8405 | P54: 1.02253 | Q54: 786725.2161
A55: 4 | B55: 2019-04-03T05:00:00 | C55: =+Metered!E56 -> 524623.9388 | D55: 1.00985 | E55: 529791.4846 | F55: =SUMIF(OFFSET(Metered!$I$2,0,0,1,COUNTA(Metered!$I$2:$IV$2)),"Primary",OFFSET(Metered!$I56,0,0,1,COUNTA(Metered!$I56:$AA56))) -> 30851.7311 | G55: 560643.2157 | H55: 1.00903 | I55: 565705.8239 | J55: =SUMIF(OFFSET(Metered!$I$2,0,0,1,COUNTA(Metered!$I$2:$IV$2)),"Subtransmission",OFFSET(Metered!$I56,0,0,1,COUNTA(Metered!$I56:$AA56))) -> 174748.2826 | K55: 612395.548 | L55: 1.0093 | M55: 618090.8266 | N55: =SUMIF(OFFSET(Metered!$I$2,0,0,1,COUNTA(Metered!$I$2:$AA$2)),"Transmission",OFFSET(Metered!$I56,0,0,1,COUNTA(Metered!$I56:$AA56))) -> 32672.45517 | O55: 778821.8402 | P55: 1.02276 | Q55: 796547.8253
A56: 4 | B56: 2019-04-03T06:00:00 | C56: =+Metered!E57 -> 575063.4215 | D56: 1.00937 | E56: 580451.7657 | F56: =SUMIF(OFFSET(Metered!$I$2,0,0,1,COUNTA(Metered!$I$2:$IV$2)),"Primary",OFFSET(Metered!$I57,0,0,1,COUNTA(Metered!$I57:$AA57))) -> 37489.04562 | G56: 617940.8113 | H56: 1.00906 | I56: 623539.3551 | J56: =SUMIF(OFFSET(Metered!$I$2,0,0,1,COUNTA(Metered!$I$2:$IV$2)),"Subtransmission",OFFSET(Metered!$I57,0,0,1,COUNTA(Metered!$I57:$AA57))) -> 175925.5743 | K56: 658314.622 | L56: 1.0097 | M56: 664700.2738 | N56: =SUMIF(OFFSET(Metered!$I$2,0,0,1,COUNTA(Metered!$I$2:$AA$2)),"Transmission",OFFSET(Metered!$I57,0,0,1,COUNTA(Metered!$I57:$AA57))) -> 32398.5108 | O56: 838249.092 | P56: 1.02425 | Q56: 858576.6325
A57: 4 | B57: 2019-04-03T07:00:00 | C57: =+Metered!E58 -> 608905.0693 | D57: 1.00911 | E57: 614452.1945 | F57: =SUMIF(OFFSET(Metered!$I$2,0,0,1,COUNTA(Metered!$I$2:$IV$2)),"Primary",OFFSET(Metered!$I58,0,0,1,COUNTA(Metered!$I58:$AA58))) -> 43657.03423 | G57: 658109.2288 | H57: 1.00912 | I57: 664111.1849 | J57: =SUMIF(OFFSET(Metered!$I$2,0,0,1,COUNTA(Metered!$I$2:$IV$2)),"Subtransmission",OFFSET(Metered!$I58,0,0,1,COUNTA(Metered!$I58:$AA58))) -> 176339.3057 | K57: 690115.9573 | L57: 1.01 | M57: 697017.1169 | N57: =SUMIF(OFFSET(Metered!$I$2,0,0,1,COUNTA(Metered!$I$2:$AA$2)),"Transmission",OFFSET(Metered!$I58,0,0,1,COUNTA(Metered!$I58:$AA58))) -> 32773.33787 | O57: 880124.988 | P57: 1.02531 | Q57: 902400.9515
A58: 4 | B58: 2019-04-03T08:00:00 | C58: =+Metered!E59 -> 635893.6036 | D58: 1.00894 | E58: 641578.4924 | F58: =SUMIF(OFFSET(Metered!$I$2,0,0,1,COUNTA(Metered!$I$2:$IV$2)),"Primary",OFFSET(Metered!$I59,0,0,1,COUNTA(Metered!$I59:$AA59))) -> 45180.29761 | G58: 686758.79 | H58: 1.00918 | I58: 693063.2357 | J58: =SUMIF(OFFSET(Metered!$I$2,0,0,1,COUNTA(Metered!$I$2:$IV$2)),"Subtransmission",OFFSET(Metered!$I59,0,0,1,COUNTA(Metered!$I59:$AA59))) -> 175240.1656 | K58: 711415.0061 | L58: 1.0102 | M58: 718671.4392 | N58: =SUMIF(OFFSET(Metered!$I$2,0,0,1,COUNTA(Metered!$I$2:$AA$2)),"Transmission",OFFSET(Metered!$I59,0,0,1,COUNTA(Metered!$I59:$AA59))) -> 32653.87146 | O58: 908213.7058 | P58: 1.02603 | Q58: 931854.5086
A59: 4 | B59: 2019-04-03T09:00:00 | C59: =+Metered!E60 -> 558746.783 | D59: 1.00951 | E59: 564060.4649 | F59: =SUMIF(OFFSET(Metered!$I$2,0,0,1,COUNTA(Metered!$I$2:$IV$2)),"Primary",OFFSET(Metered!$I60,0,0,1,COUNTA(Metered!$I60:$AA60))) -> 45551.05177 | G59: 609611.5167 | H59: 1.00905 | I59: 615128.5009 | J59: =SUMIF(OFFSET(Metered!$I$2,0,0,1,COUNTA(Metered!$I$2:$IV$2)),"Subtransmission",OFFSET(Metered!$I60,0,0,1,COUNTA(Metered!$I60:$AA60))) -> 172118.6829 | K59: 648000.8374 | L59: 1.00961 | M59: 654228.1255 | N59: =SUMIF(OFFSET(Metered!$I$2,0,0,1,COUNTA(Metered!$I$2:$AA$2)),"Transmission",OFFSET(Metered!$I60,0,0,1,COUNTA(Metered!$I60:$AA60))) -> 32045.56478 | O59: 825520.0366 | P59: 1.02393 | Q59: 845274.7311
A60: 4 | B60: 2019-04-03T10:00:00 | C60: =+Metered!E61 -> 433848.1863 | D60: 1.01112 | E60: 438672.5782 | F60: =SUMIF(OFFSET(Metered!$I$2,0,0,1,COUNTA(Metered!$I$2:$IV$2)),"Primary",OFFSET(Metered!$I61,0,0,1,COUNTA(Metered!$I61:$AA61))) -> 44946.26291 | G60: 483618.8411 | H60: 1.00916 | I60: 488048.7897 | J60: =SUMIF(OFFSET(Metered!$I$2,0,0,1,COUNTA(Metered!$I$2:$IV$2)),"Subtransmission",OFFSET(Metered!$I61,0,0,1,COUNTA(Metered!$I61:$AA61))) -> 168528.8309 | K60: 546098.248 | L60: 1.00875 | M60: 550876.6077 | N60: =SUMIF(OFFSET(Metered!$I$2,0,0,1,COUNTA(Metered!$I$2:$AA$2)),"Transmission",OFFSET(Metered!$I61,0,0,1,COUNTA(Metered!$I61:$AA61))) -> 32069.90458 | O60: 693425.8848 | P60: 1.02066 | Q60: 707752.0635
A61: 4 | B61: 2019-04-03T11:00:00 | C61: =+Metered!E62 -> 376415.9004 | D61: 1.01233 | E61: 381057.1085 | F61: =SUMIF(OFFSET(Metered!$I$2,0,0,1,COUNTA(Metered!$I$2:$IV$2)),"Primary",OFFSET(Metered!$I62,0,0,1,COUNTA(Metered!$I62:$AA62))) -> 43386.1698 | G61: 424443.2783 | H61: 1.00944 | I61: 428450.0229 | J61: =SUMIF(OFFSET(Metered!$I$2,0,0,1,COUNTA(Metered!$I$2:$IV$2)),"Subtransmission",OFFSET(Metered!$I62,0,0,1,COUNTA(Metered!$I62:$AA62))) -> 168350.1934 | K61: 499812.1883 | L61: 1.00841 | M61: 504015.6088 | N61: =SUMIF(OFFSET(Metered!$I$2,0,0,1,COUNTA(Metered!$I$2:$AA$2)),"Transmission",OFFSET(Metered!$I62,0,0,1,COUNTA(Metered!$I62:$AA62))) -> 32100.78926 | O61: 633104.426 | P61: 1.0192 | Q61: 645260.031
A62: 4 | B62: 2019-04-03T12:00:00 | C62: =+Metered!E63 -> 337880.7633 | D62: 1.01341 | E62: 342411.7444 | F62: =SUMIF(OFFSET(Metered!$I$2,0,0,1,COUNTA(Metered!$I$2:$IV$2)),"Primary",OFFSET(Metered!$I63,0,0,1,COUNTA(Metered!$I63:$AA63))) -> 42038.13907 | G62: 384449.8834 | H62: 1.00976 | I62: 388202.1143 | J62: =SUMIF(OFFSET(Metered!$I$2,0,0,1,COUNTA(Metered!$I$2:$IV$2)),"Subtransmission",OFFSET(Metered!$I63,0,0,1,COUNTA(Metered!$I63:$AA63))) -> 169071.0304 | K62: 469396.0166 | L62: 1.00821 | M62: 473249.7579 | N62: =SUMIF(OFFSET(Metered!$I$2,0,0,1,COUNTA(Metered!$I$2:$AA$2)),"Transmission",OFFSET(Metered!$I63,0,0,1,COUNTA(Metered!$I63:$AA63))) -> 32215.67989 | O62: 593342.5659 | P62: 1.01826 | Q62: 604177.0011
A63: 4 | B63: 2019-04-03T13:00:00 | C63: =+Metered!E64 -> 328413.3584 | D63: 1.01372 | E63: 332919.1897 | F63: =SUMIF(OFFSET(Metered!$I$2,0,0,1,COUNTA(Metered!$I$2:$IV$2)),"Primary",OFFSET(Metered!$I64,0,0,1,COUNTA(Metered!$I64:$AA64))) -> 42295.61853 | G63: 375214.8082 | H63: 1.00985 | I63: 378910.6741 | J63: =SUMIF(OFFSET(Metered!$I$2,0,0,1,COUNTA(Metered!$I$2:$IV$2)),"Subtransmission",OFFSET(Metered!$I64,0,0,1,COUNTA(Metered!$I64:$AA64))) -> 168138.8365 | K63: 461275.6814 | L63: 1.00816 | M63: 465039.691 | N63: =SUMIF(OFFSET(Metered!$I$2,0,0,1,COUNTA(Metered!$I$2:$AA$2)),"Transmission",OFFSET(Metered!$I64,0,0,1,COUNTA(Metered!$I64:$AA64))) -> 32469.83213 | O63: 583283.3523 | P63: 1.01803 | Q63: 593799.9511
A64: 4 | B64: 2019-04-03T14:00:00 | C64: =+Metered!E65 -> 314246.496 | D64: 1.01422 | E64: 318715.0812 | F64: =SUMIF(OFFSET(Metered!$I$2,0,0,1,COUNTA(Metered!$I$2:$IV$2)),"Primary",OFFSET(Metered!$I65,0,0,1,COUNTA(Metered!$I65:$AA65))) -> 40809.58247 | G64: 359524.6636 | H64: 1.01003 | I64: 363130.696 | J64: =SUMIF(OFFSET(Metered!$I$2,0,0,1,COUNTA(Metered!$I$2:$IV$2)),"Subtransmission",OFFSET(Metered!$I65,0,0,1,COUNTA(Metered!$I65:$AA65))) -> 166063.7138 | K64: 446992.6868 | L64: 1.00807 | M64: 450599.9178 | N64: =SUMIF(OFFSET(Metered!$I$2,0,0,1,COUNTA(Metered!$I$2:$AA$2)),"Transmission",OFFSET(Metered!$I65,0,0,1,COUNTA(Metered!$I65:$AA65))) -> 32785.19446 | O64: 565586.8353 | P64: 1.01762 | Q64: 575552.4753
A65: 4 | B65: 2019-04-03T15:00:00 | C65: =+Metered!E66 -> 334932.3251 | D65: 1.0135 | E65: 339453.9115 | F65: =SUMIF(OFFSET(Metered!$I$2,0,0,1,COUNTA(Metered!$I$2:$IV$2)),"Primary",OFFSET(Metered!$I66,0,0,1,COUNTA(Metered!$I66:$AA66))) -> 39988.73233 | G65: 379442.6438 | H65: 1.00981 | I65: 383164.9761 | J65: =SUMIF(OFFSET(Metered!$I$2,0,0,1,COUNTA(Metered!$I$2:$IV$2)),"Subtransmission",OFFSET(Metered!$I66,0,0,1,COUNTA(Metered!$I66:$AA66))) -> 166332.5166 | K65: 462760.6192 | L65: 1.00817 | M65: 466541.3735 | N65: =SUMIF(OFFSET(Metered!$I$2,0,0,1,COUNTA(Metered!$I$2:$AA$2)),"Transmission",OFFSET(Metered!$I66,0,0,1,COUNTA(Metered!$I66:$AA66))) -> 32657.42242 | O65: 585935.6694 | P65: 1.01809 | Q65: 596535.2457
A66: 4 | B66: 2019-04-03T16:00:00 | C66: =+Metered!E67 -> 321978.4669 | D66: =IF(C66=0,0,ROUND(1+((LossCoeff_Sec*C66^2+ZeroLoadLoss_Sec)/C66),5)) -> 1.01394 | E66: 326466.8467 | F66: =SUMIF(OFFSET(Metered!$I$2,0,0,1,COUNTA(Metered!$I$2:$IV$2)),"Primary",OFFSET(Metered!$I67,0,0,1,COUNTA(Metered!$I67:$AA67))) -> 37842.11369 | G66: 364308.9604 | H66: =IF(G66=0,0,ROUND(1+((LossCoeff_Pri*G66^2+ZeroLoadLoss_Pri)/G66),5)) -> 1.00997 | I66: 367941.1208 | J66: =SUMIF(OFFSET(Metered!$I$2,0,0,1,COUNTA(Metered!$I$2:$IV$2)),"Subtransmission",OFFSET(Metered!$I67,0,0,1,COUNTA(Metered!$I67:$AA67))) -> 165484.0191 | K66: =+I66*DistAtSubtran+J66 -> 450134.4833 | L66: =IF(K66=0,0,ROUND(1+((LossCoeff_Sub*K66^2+ZeroLoadLoss_Sub)/K66),5)) -> 1.00809 | M66: 453776.0713 | N66: =SUMIF(OFFSET(Metered!$I$2,0,0,1,COUNTA(Metered!$I$2:$AA$2)),"Transmission",OFFSET(Metered!$I67,0,0,1,COUNTA(Metered!$I67:$AA67))) -> 32713.74263 | O66: =+M66+N66+(1-DistAtSubtran)*I66 -> 569780.4705 | P66: =IF(O66=0,0,ROUND(1+((LossCoeff_Trn*O66^2+ZeroLoadLoss_Trn)/O66),5)) -> 1.01772 | Q66: 579876.9804
A67: =MONTH(B67) -> 4 | B67: =+B66+1/24 -> 2019-04-03T17:00:00 | C67: =+Metered!E68 -> 317108.9324 | D67: 1.01412 | E67: =+C67*D67 -> 321586.5105 | F67: =SUMIF(OFFSET(Metered!$I$2,0,0,1,COUNTA(Metered!$I$2:$IV$2)),"Primary",OFFSET(Metered!$I68,0,0,1,COUNTA(Metered!$I68:$AA68))) -> 36765.3054 | G67: =+E67+F67 -> 358351.8159 | H67: 1.01004 | I67: =+G67*H67 -> 361949.6681 | J67: =SUMIF(OFFSET(Metered!$I$2,0,0,1,COUNTA(Metered!$I$2:$IV$2)),"Subtransmission",OFFSET(Metered!$I68,0,0,1,COUNTA(Metered!$I68:$AA68))) -> 166381.3414 | K67: 446396.6352 | L67: 1.00807 | M67: =+K67*L67 -> 449999.0561 | N67: =SUMIF(OFFSET(Metered!$I$2,0,0,1,COUNTA(Metered!$I$2:$AA$2)),"Transmission",OFFSET(Metered!$I68,0,0,1,COUNTA(Metered!$I68:$AA68))) -> 32470.29937 | O67: 564403.7297 | P67: 1.01759 | Q67: =+P67*O67 -> 574331.5913
A68: 4 | B68: 2019-04-03T18:00:00 | C68: =+Metered!E69 -> 300664.1821 | D68: 1.01475 | E68: 305098.9787 | F68: =SUMIF(OFFSET(Metered!$I$2,0,0,1,COUNTA(Metered!$I$2:$IV$2)),"Primary",OFFSET(Metered!$I69,0,0,1,COUNTA(Metered!$I69:$AA69))) -> 35890.59672 | G68: 340989.5755 | H68: 1.01027 | I68: 344491.5384 | J68: =SUMIF(OFFSET(Metered!$I$2,0,0,1,COUNTA(Metered!$I$2:$IV$2)),"Subtransmission",OFFSET(Metered!$I69,0,0,1,COUNTA(Metered!$I69:$AA69))) -> 165738.7791 | K68: 432247.9317 | L68: 1.00799 | M68: 435701.5927 | N68: =SUMIF(OFFSET(Metered!$I$2,0,0,1,COUNTA(Metered!$I$2:$AA$2)),"Transmission",OFFSET(Metered!$I69,0,0,1,COUNTA(Metered!$I69:$AA69))) -> 32507.43106 | O68: 546191.4095 | P68: 1.01718 | Q68: 555574.9779
A69: 4 | B69: 2019-04-03T19:00:00 | C69: =+Metered!E70 -> 296093.9468 | D69: 1.01495 | E69: 300520.5513 | F69: =SUMIF(OFFSET(Metered!$I$2,0,0,1,COUNTA(Metered!$I$2:$IV$2)),"Primary",OFFSET(Metered!$I70,0,0,1,COUNTA(Metered!$I70:$AA70))) -> 35987.06647 | G69: 336507.6178 | H69: 1.01034 | I69: 339987.1066 | J69: =SUMIF(OFFSET(Metered!$I$2,0,0,1,COUNTA(Metered!$I$2:$IV$2)),"Subtransmission",OFFSET(Metered!$I70,0,0,1,COUNTA(Metered!$I70:$AA70))) -> 164056.1277 | K69: 427080.5146 | L69: 1.00797 | M69: 430484.3463 | N69: =SUMIF(OFFSET(Metered!$I$2,0,0,1,COUNTA(Metered!$I$2:$AA$2)),"Transmission",OFFSET(Metered!$I70,0,0,1,COUNTA(Metered!$I70:$AA70))) -> 32765.54001 | O69: 540212.606 | P69: 1.01704 | Q69: 549417.8288
A70: 4 | B70: 2019-04-03T20:00:00 | C70: =+Metered!E71 -> 339806.755 | D70: 1.01335 | E70: 344343.1752 | F70: =SUMIF(OFFSET(Metered!$I$2,0,0,1,COUNTA(Metered!$I$2:$IV$2)),"Primary",OFFSET(Metered!$I71,0,0,1,COUNTA(Metered!$I71:$AA71))) -> 36176.26067 | G70: 380519.4358 | H70: 1.0098 | I70: 384248.5263 | J70: =SUMIF(OFFSET(Metered!$I$2,0,0,1,COUNTA(Metered!$I$2:$IV$2)),"Subtransmission",OFFSET(Metered!$I71,0,0,1,COUNTA(Metered!$I71:$AA71))) -> 163987.8003 | K70: 461254.1703 | L70: 1.00816 | M70: 465018.0044 | N70: =SUMIF(OFFSET(Metered!$I$2,0,0,1,COUNTA(Metered!$I$2:$AA$2)),"Transmission",OFFSET(Metered!$I71,0,0,1,COUNTA(Metered!$I71:$AA71))) -> 32853.48778 | O70: 584853.6484 | P70: 1.01807 | Q70: 595421.9538
A71: 4 | B71: 2019-04-03T21:00:00 | C71: =+Metered!E72 -> 342471.8801 | D71: 1.01327 | E71: 347016.4819 | F71: =SUMIF(OFFSET(Metered!$I$2,0,0,1,COUNTA(Metered!$I$2:$IV$2)),"Primary",OFFSET(Metered!$I72,0,0,1,COUNTA(Metered!$I72:$AA72))) -> 35041.41881 | G71: 382057.9008 | H71: 1.00978 | I71: 385794.427 | J71: =SUMIF(OFFSET(Metered!$I$2,0,0,1,COUNTA(Metered!$I$2:$IV$2)),"Subtransmission",OFFSET(Metered!$I72,0,0,1,COUNTA(Metered!$I72:$AA72))) -> 167908.6859 | K71: 466371.0119 | L71: 1.00819 | M71: 470190.5905 | N71: =SUMIF(OFFSET(Metered!$I$2,0,0,1,COUNTA(Metered!$I$2:$AA$2)),"Transmission",OFFSET(Metered!$I72,0,0,1,COUNTA(Metered!$I72:$AA72))) -> 32851.90132 | O71: 590374.5929 | P71: 1.01819 | Q71: 601113.5067
A72: 4 | B72: 2019-04-03T22:00:00 | C72: =+Metered!E73 -> 309558.5992 | D72: 1.0144 | E72: 314016.243 | F72: =SUMIF(OFFSET(Metered!$I$2,0,0,1,COUNTA(Metered!$I$2:$IV$2)),"Primary",OFFSET(Metered!$I73,0,0,1,COUNTA(Metered!$I73:$AA73))) -> 33523.69728 | G72: 347539.9403 | H72: 1.01018 | I72: 351077.8969 | J72: =SUMIF(OFFSET(Metered!$I$2,0,0,1,COUNTA(Metered!$I$2:$IV$2)),"Subtransmission",OFFSET(Metered!$I73,0,0,1,COUNTA(Metered!$I73:$AA73))) -> 168947.9403 | K72: 440552.5005 | L72: 1.00804 | M72: 444094.5426 | N72: =SUMIF(OFFSET(Metered!$I$2,0,0,1,COUNTA(Metered!$I$2:$AA$2)),"Transmission",OFFSET(Metered!$I73,0,0,1,COUNTA(Metered!$I73:$AA73))) -> 32879.93251 | O72: 556447.8117 | P72: 1.01741 | Q72: 566135.5681
A73: 4 | B73: 2019-04-03T23:00:00 | C73: =+Metered!E74 -> 301937.2507 | D73: 1.0147 | E73: 306375.7283 | F73: =SUMIF(OFFSET(Metered!$I$2,0,0,1,COUNTA(Metered!$I$2:$IV$2)),"Primary",OFFSET(Metered!$I74,0,0,1,COUNTA(Metered!$I74:$AA74))) -> 32695.76956 | G73: 339071.4979 | H73: 1.0103 | I73: 342563.9343 | J73: =SUMIF(OFFSET(Metered!$I$2,0,0,1,COUNTA(Metered!$I$2:$IV$2)),"Subtransmission",OFFSET(Metered!$I74,0,0,1,COUNTA(Metered!$I74:$AA74))) -> 172257.1335 | K73: 437275.0328 | L73: 1.00802 | M73: 440781.9786 | N73: =SUMIF(OFFSET(Metered!$I$2,0,0,1,COUNTA(Metered!$I$2:$AA$2)),"Transmission",OFFSET(Metered!$I74,0,0,1,COUNTA(Metered!$I74:$AA74))) -> 32643.21969 | O73: 550971.2332 | P73: 1.01729 | Q73: 560497.5259
A74: 4 | B74: 2019-04-04 | C74: =+Metered!E75 -> 289788.7512 | D74: 1.01522 | E74: 294199.336 | F74: =SUMIF(OFFSET(Metered!$I$2,0,0,1,COUNTA(Metered!$I$2:$IV$2)),"Primary",OFFSET(Metered!$I75,0,0,1,COUNTA(Metered!$I75:$AA75))) -> 30746.25965 | G74: 324945.5956 | H74: 1.01052 | I74: 328364.0233 | J74: =SUMIF(OFFSET(Metered!$I$2,0,0,1,COUNTA(Metered!$I$2:$IV$2)),"Subtransmission",OFFSET(Metered!$I75,0,0,1,COUNTA(Metered!$I75:$AA75))) -> 173381.7396 | K74: 427414.155 | L74: 1.00797 | M74: 430820.6458 | N74: =SUMIF(OFFSET(Metered!$I$2,0,0,1,COUNTA(Metered!$I$2:$AA$2)),"Transmission",OFFSET(Metered!$I75,0,0,1,COUNTA(Metered!$I75:$AA75))) -> 32365.05791 | O74: 537517.3116 | P74: 1.01698 | Q74: 546644.3556
A75: 4 | B75: 2019-04-04T01:00:00 | C75: =+Metered!E76 -> 300294.3655 | D75: 1.01477 | E75: 304729.7133 | F75: =SUMIF(OFFSET(Metered!$I$2,0,0,1,COUNTA(Metered!$I$2:$IV$2)),"Primary",OFFSET(Metered!$I76,0,0,1,COUNTA(Metered!$I76:$AA76))) -> 28876.03337 | G75: 333605.7467 | H75: 1.01038 | I75: 337068.5743 | J75: =SUMIF(OFFSET(Metered!$I$2,0,0,1,COUNTA(Metered!$I$2:$IV$2)),"Subtransmission",OFFSET(Metered!$I76,0,0,1,COUNTA(Metered!$I76:$AA76))) -> 171354.1387 | K75: 432120.6601 | L75: 1.00799 | M75: 435573.3042 | N75: =SUMIF(OFFSET(Metered!$I$2,0,0,1,COUNTA(Metered!$I$2:$AA$2)),"Transmission",OFFSET(Metered!$I76,0,0,1,COUNTA(Metered!$I76:$AA76))) -> 32835.75602 | O75: 544711.1132 | P75: 1.01714 | Q75: 554047.4617
A76: 4 | B76: 2019-04-04T02:00:00 | C76: =+Metered!E77 -> 317323.5959 | D76: 1.01411 | E76: 321801.0319 | F76: =SUMIF(OFFSET(Metered!$I$2,0,0,1,COUNTA(Metered!$I$2:$IV$2)),"Primary",OFFSET(Metered!$I77,0,0,1,COUNTA(Metered!$I77:$AA77))) -> 27134.8255 | G76: 348935.8574 | H76: 1.01016 | I76: 352481.0457 | J76: =SUMIF(OFFSET(Metered!$I$2,0,0,1,COUNTA(Metered!$I$2:$IV$2)),"Subtransmission",OFFSET(Metered!$I77,0,0,1,COUNTA(Metered!$I77:$AA77))) -> 171325.5035 | K76: 444015.5824 | L76: 1.00806 | M76: 447594.348 | N76: =SUMIF(OFFSET(Metered!$I$2,0,0,1,COUNTA(Metered!$I$2:$AA$2)),"Transmission",OFFSET(Metered!$I77,0,0,1,COUNTA(Metered!$I77:$AA77))) -> 32377.35496 | O76: 559762.6698 | P76: 1.01749 | Q76: 569552.9188
A77: 4 | B77: 2019-04-04T03:00:00 | C77: =+Metered!E78 -> 324608.5251 | D77: 1.01385 | E77: 329104.3532 | F77: =SUMIF(OFFSET(Metered!$I$2,0,0,1,COUNTA(Metered!$I$2:$IV$2)),"Primary",OFFSET(Metered!$I78,0,0,1,COUNTA(Metered!$I78:$AA78))) -> 26686.11739 | G77: 355790.4706 | H77: 1.01007 | I77: 359373.2807 | J77: =SUMIF(OFFSET(Metered!$I$2,0,0,1,COUNTA(Metered!$I$2:$IV$2)),"Subtransmission",OFFSET(Metered!$I78,0,0,1,COUNTA(Metered!$I78:$AA78))) -> 170654.064 | K77: 448676.1859 | L77: 1.00808 | M77: 452301.4895 | N77: =SUMIF(OFFSET(Metered!$I$2,0,0,1,COUNTA(Metered!$I$2:$AA$2)),"Transmission",OFFSET(Metered!$I78,0,0,1,COUNTA(Metered!$I78:$AA78))) -> 32155.55439 | O77: 565808.2026 | P77: 1.01763 | Q77: 575783.4012
A78: 4 | B78: 2019-04-04T04:00:00 | C78: =+Metered!E79 -> 328979.4156 | D78: 1.0137 | E78: 333486.4336 | F78: =SUMIF(OFFSET(Metered!$I$2,0,0,1,COUNTA(Metered!$I$2:$IV$2)),"Primary",OFFSET(Metered!$I79,0,0,1,COUNTA(Metered!$I79:$AA79))) -> 27988.33285 | G78: 361474.7664 | H78: 1.01 | I78: 365089.5141 | J78: =SUMIF(OFFSET(Metered!$I$2,0,0,1,COUNTA(Metered!$I$2:$IV$2)),"Subtransmission",OFFSET(Metered!$I79,0,0,1,COUNTA(Metered!$I79:$AA79))) -> 170971.9292 | K78: 453416.3036 | L78: 1.00811 | M78: 457093.5098 | N78: =SUMIF(OFFSET(Metered!$I$2,0,0,1,COUNTA(Metered!$I$2:$AA$2)),"Transmission",OFFSET(Metered!$I79,0,0,1,COUNTA(Metered!$I79:$AA79))) -> 32100.26574 | O78: 571838.9153 | P78: 1.01776 | Q78: 581994.7744
A79: 4 | B79: 2019-04-04T05:00:00 | C79: =+Metered!E80 -> 369608.3495 | D79: 1.0125 | E79: 374228.4539 | F79: =SUMIF(OFFSET(Metered!$I$2,0,0,1,COUNTA(Metered!$I$2:$IV$2)),"Primary",OFFSET(Metered!$I80,0,0,1,COUNTA(Metered!$I80:$AA80))) -> 29334.63861 | G79: 403563.0925 | H79: 1.00959 | I79: 407433.2625 | J79: =SUMIF(OFFSET(Metered!$I$2,0,0,1,COUNTA(Metered!$I$2:$IV$2)),"Subtransmission",OFFSET(Metered!$I80,0,0,1,COUNTA(Metered!$I80:$AA80))) -> 170359.1699 | K79: 485561.9585 | L79: 1.00831 | M79: 489596.9784 | N79: =SUMIF(OFFSET(Metered!$I$2,0,0,1,COUNTA(Metered!$I$2:$AA$2)),"Transmission",OFFSET(Metered!$I80,0,0,1,COUNTA(Metered!$I80:$AA80))) -> 32028.22049 | O79: 613855.6728 | P79: 1.01875 | Q79: 625365.4667
A80: 4 | B80: 2019-04-04T06:00:00 | C80: =+Metered!E81 -> 448210.8022 | D80: 1.01088 | E80: 453087.3357 | F80: =SUMIF(OFFSET(Metered!$I$2,0,0,1,COUNTA(Metered!$I$2:$IV$2)),"Primary",OFFSET(Metered!$I81,0,0,1,COUNTA(Metered!$I81:$AA81))) -> 33476.87096 | G80: 486564.2067 | H80: 1.00915 | I80: 491016.2692 | J80: =SUMIF(OFFSET(Metered!$I$2,0,0,1,COUNTA(Metered!$I$2:$IV$2)),"Subtransmission",OFFSET(Metered!$I81,0,0,1,COUNTA(Metered!$I81:$AA81))) -> 170870.4585 | K80: 550735.6083 | L80: 1.00879 | M80: 555576.5743 | N80: =SUMIF(OFFSET(Metered!$I$2,0,0,1,COUNTA(Metered!$I$2:$AA$2)),"Transmission",OFFSET(Metered!$I81,0,0,1,COUNTA(Metered!$I81:$AA81))) -> 32208.7214 | O80: 698936.4151 | P80: 1.02079 | Q80: 713467.3032
A81: 4 | B81: 2019-04-04T07:00:00 | C81: =+Metered!E82 -> 477648.1658 | D81: 1.01043 | E81: 482630.0362 | F81: =SUMIF(OFFSET(Metered!$I$2,0,0,1,COUNTA(Metered!$I$2:$IV$2)),"Primary",OFFSET(Metered!$I82,0,0,1,COUNTA(Metered!$I82:$AA82))) -> 40003.37325 | G81: 522633.4094 | H81: 1.00907 | I81: 527373.6945 | J81: =SUMIF(OFFSET(Metered!$I$2,0,0,1,COUNTA(Metered!$I$2:$IV$2)),"Subtransmission",OFFSET(Metered!$I82,0,0,1,COUNTA(Metered!$I82:$AA82))) -> 170573.0195 | K81: 578565.3814 | L81: 1.00901 | M81: 583778.2555 | N81: =SUMIF(OFFSET(Metered!$I$2,0,0,1,COUNTA(Metered!$I$2:$AA$2)),"Transmission",OFFSET(Metered!$I82,0,0,1,COUNTA(Metered!$I82:$AA82))) -> 34326.76164 | O81: 737486.3497 | P81: 1.02174 | Q81: 753519.3029
A82: 4 | B82: 2019-04-04T08:00:00 | C82: =+Metered!E83 -> 456489.3651 | D82: 1.01074 | E82: 461392.0609 | F82: =SUMIF(OFFSET(Metered!$I$2,0,0,1,COUNTA(Metered!$I$2:$IV$2)),"Primary",OFFSET(Metered!$I83,0,0,1,COUNTA(Metered!$I83:$AA83))) -> 42713.96744 | G82: 504106.0283 | H82: 1.0091 | I82: 508693.3932 | J82: =SUMIF(OFFSET(Metered!$I$2,0,0,1,COUNTA(Metered!$I$2:$IV$2)),"Subtransmission",OFFSET(Metered!$I83,0,0,1,COUNTA(Metered!$I83:$AA83))) -> 171961.4683 | K82: 565502.1799 | L82: 1.00891 | M82: 570540.8043 | N82: =SUMIF(OFFSET(Metered!$I$2,0,0,1,COUNTA(Metered!$I$2:$AA$2)),"Transmission",OFFSET(Metered!$I83,0,0,1,COUNTA(Metered!$I83:$AA83))) -> 35390.96109 | O82: 721084.447 | P82: 1.02133 | Q82: 736465.1783
A83: 4 | B83: 2019-04-04T09:00:00 | C83: =+Metered!E84 -> 402721.9616 | D83: 1.01172 | E83: 407441.863 | F83: =SUMIF(OFFSET(Metered!$I$2,0,0,1,COUNTA(Metered!$I$2:$IV$2)),"Primary",OFFSET(Metered!$I84,0,0,1,COUNTA(Metered!$I84:$AA84))) -> 41672.66108 | G83: 449114.5241 | H83: 1.0093 | I83: 453291.2891 | J83: =SUMIF(OFFSET(Metered!$I$2,0,0,1,COUNTA(Metered!$I$2:$IV$2)),"Subtransmission",OFFSET(Metered!$I84,0,0,1,COUNTA(Metered!$I84:$AA84))) -> 173637.9892 | K83: 524317.9447 | L83: 1.00859 | M83: 528821.8359 | N83: =SUMIF(OFFSET(Metered!$I$2,0,0,1,COUNTA(Metered!$I$2:$AA$2)),"Transmission",OFFSET(Metered!$I84,0,0,1,COUNTA(Metered!$I84:$AA84))) -> 35624.69947 | O83: 667057.869 | P83: 1.02002 | Q83: 680412.3675
A84: 4 | B84: 2019-04-04T10:00:00 | C84: =+Metered!E85 -> 358903.3346 | D84: 1.01279 | E84: 363493.7083 | F84: =SUMIF(OFFSET(Metered!$I$2,0,0,1,COUNTA(Metered!$I$2:$IV$2)),"Primary",OFFSET(Metered!$I85,0,0,1,COUNTA(Metered!$I85:$AA85))) -> 41386.52708 | G84: 404880.2354 | H84: 1.00958 | I84: 408758.988 | J84: =SUMIF(OFFSET(Metered!$I$2,0,0,1,COUNTA(Metered!$I$2:$IV$2)),"Subtransmission",OFFSET(Metered!$I85,0,0,1,COUNTA(Metered!$I85:$AA85))) -> 172193.3191 | K84: 488421.7293 | L84: 1.00833 | M84: 492490.2823 | N84: =SUMIF(OFFSET(Metered!$I$2,0,0,1,COUNTA(Metered!$I$2:$AA$2)),"Transmission",OFFSET(Metered!$I85,0,0,1,COUNTA(Metered!$I85:$AA85))) -> 35488.54197 | O84: 620509.4021 | P84: 1.0189 | Q84: 632237.0298
A85: 4 | B85: 2019-04-04T11:00:00 | C85: =+Metered!E86 -> 327404.2183 | D85: 1.01375 | E85: 331906.0263 | F85: =SUMIF(OFFSET(Metered!$I$2,0,0,1,COUNTA(Metered!$I$2:$IV$2)),"Primary",OFFSET(Metered!$I86,0,0,1,COUNTA(Metered!$I86:$AA86))) -> 41383.32007 | G85: 373289.3464 | H85: 1.00987 | I85: 376973.7122 | J85: =SUMIF(OFFSET(Metered!$I$2,0,0,1,COUNTA(Metered!$I$2:$IV$2)),"Subtransmission",OFFSET(Metered!$I86,0,0,1,COUNTA(Metered!$I86:$AA86))) -> 173516.9204 | K85: 465155.2726 | L85: 1.00818 | M85: 468960.2427 | N85: =SUMIF(OFFSET(Metered!$I$2,0,0,1,COUNTA(Metered!$I$2:$AA$2)),"Transmission",OFFSET(Metered!$I86,0,0,1,COUNTA(Metered!$I86:$AA86))) -> 35175.90066 | O85: 589471.5035 | P85: 1.01817 | Q85: 600182.2007
A86: 4 | B86: 2019-04-04T12:00:00 | C86: =+Metered!E87 -> 309922.2102 | D86: 1.01439 | E86: 314381.9908 | F86: =SUMIF(OFFSET(Metered!$I$2,0,0,1,COUNTA(Metered!$I$2:$IV$2)),"Primary",OFFSET(Metered!$I87,0,0,1,COUNTA(Metered!$I87:$AA87))) -> 42076.90953 | G86: 356458.9004 | H86: 1.01006 | I86: 360044.8769 | J86: =SUMIF(OFFSET(Metered!$I$2,0,0,1,COUNTA(Metered!$I$2:$IV$2)),"Subtransmission",OFFSET(Metered!$I87,0,0,1,COUNTA(Metered!$I87:$AA87))) -> 170554.2105 | K86: 449095.8997 | L86: 1.00809 | M86: 452729.0856 | N86: =SUMIF(OFFSET(Metered!$I$2,0,0,1,COUNTA(Metered!$I$2:$AA$2)),"Transmission",OFFSET(Metered!$I87,0,0,1,COUNTA(Metered!$I87:$AA87))) -> 36059.73055 | O86: 570292.0038 | P86: 1.01773 | Q86: 580403.281
A87: 4 | B87: 2019-04-04T13:00:00 | C87: =+Metered!E88 -> 283696.6937 | D87: 1.0155 | E87: 288093.9924 | F87: =SUMIF(OFFSET(Metered!$I$2,0,0,1,COUNTA(Metered!$I$2:$IV$2)),"Primary",OFFSET(Metered!$I88,0,0,1,COUNTA(Metered!$I88:$AA88))) -> 43694.26793 | G87: 331788.2603 | H87: 1.01041 | I87: 335242.1761 | J87: =SUMIF(OFFSET(Metered!$I$2,0,0,1,COUNTA(Metered!$I$2:$IV$2)),"Subtransmission",OFFSET(Metered!$I88,0,0,1,COUNTA(Metered!$I88:$AA88))) -> 172413.9883 | K87: 431767.5524 | L87: 1.00799 | M87: 435217.3751 | N87: =SUMIF(OFFSET(Metered!$I$2,0,0,1,COUNTA(Metered!$I$2:$AA$2)),"Transmission",OFFSET(Metered!$I88,0,0,1,COUNTA(Metered!$I88:$AA88))) -> 36082.83336 | O87: 547188.8205 | P87: 1.0172 | Q87: 556600.4682
A88: 4 | B88: 2019-04-04T14:00:00 | C88: =+Metered!E89 -> 292349.0165 | D88: 1.01511 | E88: 296766.4102 | F88: =SUMIF(OFFSET(Metered!$I$2,0,0,1,COUNTA(Metered!$I$2:$IV$2)),"Primary",OFFSET(Metered!$I89,0,0,1,COUNTA(Metered!$I89:$AA89))) -> 43125.71811 | G88: 339892.1283 | H88: 1.01029 | I88: 343389.6183 | J88: =SUMIF(OFFSET(Metered!$I$2,0,0,1,COUNTA(Metered!$I$2:$IV$2)),"Subtransmission",OFFSET(Metered!$I89,0,0,1,COUNTA(Metered!$I89:$AA89))) -> 171324.7477 | K88: 436981.4214 | L88: 1.00802 | M88: 440486.0123 | N88: =SUMIF(OFFSET(Metered!$I$2,0,0,1,COUNTA(Metered!$I$2:$AA$2)),"Transmission",OFFSET(Metered!$I89,0,0,1,COUNTA(Metered!$I89:$AA89))) -> 36202.15992 | O88: 554421.1169 | P88: 1.01736 | Q88: 564045.8675
A89: 4 | B89: 2019-04-04T15:00:00 | C89: =+Metered!E90 -> 315849.027 | D89: 1.01416 | E89: 320321.4492 | F89: =SUMIF(OFFSET(Metered!$I$2,0,0,1,COUNTA(Metered!$I$2:$IV$2)),"Primary",OFFSET(Metered!$I90,0,0,1,COUNTA(Metered!$I90:$AA90))) -> 41584.18052 | G89: 361905.6297 | H89: 1.01 | I89: 365524.686 | J89: =SUMIF(OFFSET(Metered!$I$2,0,0,1,COUNTA(Metered!$I$2:$IV$2)),"Subtransmission",OFFSET(Metered!$I90,0,0,1,COUNTA(Metered!$I90:$AA90))) -> 168500.0346 | K89: 451281.0712 | L89: 1.0081 | M89: 454936.4479 | N89: =SUMIF(OFFSET(Metered!$I$2,0,0,1,COUNTA(Metered!$I$2:$AA$2)),"Transmission",OFFSET(Metered!$I90,0,0,1,COUNTA(Metered!$I90:$AA90))) -> 33338.41041 | O89: 571018.5077 | P89: 1.01775 | Q89: 581154.0862
A90: 4 | B90: 2019-04-04T16:00:00 | C90: =+Metered!E91 -> 285925.3774 | D90: 1.0154 | E90: 290328.6282 | F90: =SUMIF(OFFSET(Metered!$I$2,0,0,1,COUNTA(Metered!$I$2:$IV$2)),"Primary",OFFSET(Metered!$I91,0,0,1,COUNTA(Metered!$I91:$AA91))) -> 40322.66469 | G90: 330651.2929 | H90: 1.01043 | I90: 334099.9859 | J90: =SUMIF(OFFSET(Metered!$I$2,0,0,1,COUNTA(Metered!$I$2:$IV$2)),"Subtransmission",OFFSET(Metered!$I91,0,0,1,COUNTA(Metered!$I91:$AA91))) -> 168804.4246 | K90: 427274.3555 | L90: 1.00797 | M90: 430679.7321 | N90: =SUMIF(OFFSET(Metered!$I$2,0,0,1,COUNTA(Metered!$I$2:$AA$2)),"Transmission",OFFSET(Metered!$I91,0,0,1,COUNTA(Metered!$I91:$AA91))) -> 33765.02241 | O90: 540074.8095 | P90: 1.01704 | Q90: 549277.6842
A91: 4 | B91: 2019-04-04T17:00:00 | C91: =+Metered!E92 -> 307197.0847 | D91: 1.01449 | E91: 311648.3704 | F91: =SUMIF(OFFSET(Metered!$I$2,0,0,1,COUNTA(Metered!$I$2:$IV$2)),"Primary",OFFSET(Metered!$I92,0,0,1,COUNTA(Metered!$I92:$AA92))) -> 36824.46333 | G91: 348472.8337 | H91: 1.01017 | I91: 352016.8025 | J91: =SUMIF(OFFSET(Metered!$I$2,0,0,1,COUNTA(Metered!$I$2:$IV$2)),"Subtransmission",OFFSET(Metered!$I92,0,0,1,COUNTA(Metered!$I92:$AA92))) -> 167267.7388 | K91: 439598.665 | L91: 1.00803 | M91: 443128.6423 | N91: =SUMIF(OFFSET(Metered!$I$2,0,0,1,COUNTA(Metered!$I$2:$AA$2)),"Transmission",OFFSET(Metered!$I92,0,0,1,COUNTA(Metered!$I92:$AA92))) -> 33445.68889 | O91: 556260.2074 | P91: 1.01741 | Q91: 565944.6976
A92: 4 | B92: 2019-04-04T18:00:00 | C92: =+Metered!E93 -> 326576.9425 | D92: 1.01378 | E92: 331077.1727 | F92: =SUMIF(OFFSET(Metered!$I$2,0,0,1,COUNTA(Metered!$I$2:$IV$2)),"Primary",OFFSET(Metered!$I93,0,0,1,COUNTA(Metered!$I93:$AA93))) -> 35564.41009 | G92: 366641.5828 | H92: 1.00994 | I92: 370286.0002 | J92: =SUMIF(OFFSET(Metered!$I$2,0,0,1,COUNTA(Metered!$I$2:$IV$2)),"Subtransmission",OFFSET(Metered!$I93,0,0,1,COUNTA(Metered!$I93:$AA93))) -> 166314.1502 | K92: 452778.6845 | L92: 1.00811 | M92: 456450.7196 | N92: =SUMIF(OFFSET(Metered!$I$2,0,0,1,COUNTA(Metered!$I$2:$AA$2)),"Transmission",OFFSET(Metered!$I93,0,0,1,COUNTA(Metered!$I93:$AA93))) -> 33295.43649 | O92: 573567.622 | P92: 1.0178 | Q92: 583777.1256
A93: 4 | B93: 2019-04-04T19:00:00 | C93: =+Metered!E94 -> 293671.3652 | D93: 1.01505 | E93: 298091.1193 | F93: =SUMIF(OFFSET(Metered!$I$2,0,0,1,COUNTA(Metered!$I$2:$IV$2)),"Primary",OFFSET(Metered!$I94,0,0,1,COUNTA(Metered!$I94:$AA94))) -> 34426.81152 | G93: 332517.9308 | H93: 1.0104 | I93: 335976.1173 | J93: =SUMIF(OFFSET(Metered!$I$2,0,0,1,COUNTA(Metered!$I$2:$IV$2)),"Subtransmission",OFFSET(Metered!$I94,0,0,1,COUNTA(Metered!$I94:$AA94))) -> 166168.1748 | K93: 426089.5381 | L93: 1.00796 | M93: 429481.2108 | N93: =SUMIF(OFFSET(Metered!$I$2,0,0,1,COUNTA(Metered!$I$2:$AA$2)),"Transmission",OFFSET(Metered!$I94,0,0,1,COUNTA(Metered!$I94:$AA94))) -> 33344.07592 | O93: 538880.0407 | P93: 1.01701 | Q93: 548046.3902
A94: 4 | B94: 2019-04-04T20:00:00 | C94: =+Metered!E95 -> 314492.525 | D94: 1.01421 | E94: 318961.4637 | F94: =SUMIF(OFFSET(Metered!$I$2,0,0,1,COUNTA(Metered!$I$2:$IV$2)),"Primary",OFFSET(Metered!$I95,0,0,1,COUNTA(Metered!$I95:$AA95))) -> 34235.4049 | G94: 353196.8686 | H94: 1.01011 | I94: 356767.689 | J94: =SUMIF(OFFSET(Metered!$I$2,0,0,1,COUNTA(Metered!$I$2:$IV$2)),"Subtransmission",OFFSET(Metered!$I95,0,0,1,COUNTA(Metered!$I95:$AA95))) -> 165438.2094 | K94: 441444.5662 | L94: 1.00804 | M94: 444993.7805 | N94: =SUMIF(OFFSET(Metered!$I$2,0,0,1,COUNTA(Metered!$I$2:$AA$2)),"Transmission",OFFSET(Metered!$I95,0,0,1,COUNTA(Metered!$I95:$AA95))) -> 32454.82921 | O94: 558209.9419 | P94: 1.01745 | Q94: 567950.7054
A95: 4 | B95: 2019-04-04T21:00:00 | C95: =+Metered!E96 -> 339102.5516 | D95: 1.01337 | E95: 343636.3528 | F95: =SUMIF(OFFSET(Metered!$I$2,0,0,1,COUNTA(Metered!$I$2:$IV$2)),"Primary",OFFSET(Metered!$I96,0,0,1,COUNTA(Metered!$I96:$AA96))) -> 33558.83353 | G95: 377195.1863 | H95: 1.00983 | I95: 380903.015 | J95: =SUMIF(OFFSET(Metered!$I$2,0,0,1,COUNTA(Metered!$I$2:$IV$2)),"Subtransmission",OFFSET(Metered!$I96,0,0,1,COUNTA(Metered!$I96:$AA96))) -> 166942.6845 | K95: 461620.865 | L95: 1.00816 | M95: 465387.6913 | N95: =SUMIF(OFFSET(Metered!$I$2,0,0,1,COUNTA(Metered!$I$2:$AA$2)),"Transmission",OFFSET(Metered!$I96,0,0,1,COUNTA(Metered!$I96:$AA96))) -> 32336.27772 | O95: 583948.8034 | P95: 1.01804 | Q95: 594483.2398
A96: 4 | B96: 2019-04-04T22:00:00 | C96: =+Metered!E97 -> 318239.9068 | D96: 1.01408 | E96: 322720.7247 | F96: =SUMIF(OFFSET(Metered!$I$2,0,0,1,COUNTA(Metered!$I$2:$IV$2)),"Primary",OFFSET(Metered!$I97,0,0,1,COUNTA(Metered!$I97:$AA97))) -> 32448.17114 | G96: 355168.8958 | H96: 1.01008 | I96: 358748.9983 | J96: =SUMIF(OFFSET(Metered!$I$2,0,0,1,COUNTA(Metered!$I$2:$IV$2)),"Subtransmission",OFFSET(Metered!$I97,0,0,1,COUNTA(Metered!$I97:$AA97))) -> 166967.425 | K96: 444506.5831 | L96: 1.00806 | M96: 448089.3062 | N96: =SUMIF(OFFSET(Metered!$I$2,0,0,1,COUNTA(Metered!$I$2:$AA$2)),"Transmission",OFFSET(Metered!$I97,0,0,1,COUNTA(Metered!$I97:$AA97))) -> 32421.59963 | O96: 561720.746 | P96: 1.01753 | Q96: 571567.7107
A97: 4 | B97: 2019-04-04T23:00:00 | C97: =+Metered!E98 -> 260748.148 | D97: 1.01667 | E97: 265094.8196 | F97: =SUMIF(OFFSET(Metered!$I$2,0,0,1,COUNTA(Metered!$I$2:$IV$2)),"Primary",OFFSET(Metered!$I98,0,0,1,COUNTA(Metered!$I98:$AA98))) -> 29664.65129 | G97: 294759.4709 | H97: 1.0111 | I97: 298031.3011 | J97: =SUMIF(OFFSET(Metered!$I$2,0,0,1,COUNTA(Metered!$I$2:$IV$2)),"Subtransmission",OFFSET(Metered!$I98,0,0,1,COUNTA(Metered!$I98:$AA98))) -> 165413.6058 | K97: 395979.7029 | L97: 1.00782 | M97: 399076.2642 | N97: =SUMIF(OFFSET(Metered!$I$2,0,0,1,COUNTA(Metered!$I$2:$AA$2)),"Transmission",OFFSET(Metered!$I98,0,0,1,COUNTA(Metered!$I98:$AA98))) -> 31917.138 | O97: 498458.6061 | P97: 1.01611 | Q97: 506488.7743
A98: 4 | B98: 2019-04-05 | C98: =+Metered!E99 -> 221879.0077 | D98: 1.01926 | E98: 226152.3974 | F98: =SUMIF(OFFSET(Metered!$I$2,0,0,1,COUNTA(Metered!$I$2:$IV$2)),"Primary",OFFSET(Metered!$I99,0,0,1,COUNTA(Metered!$I99:$AA99))) -> 27964.65389 | G98: 254117.0513 | H98: 1.01218 | I98: 257212.1969 | J98: =SUMIF(OFFSET(Metered!$I$2,0,0,1,COUNTA(Metered!$I$2:$IV$2)),"Subtransmission",OFFSET(Metered!$I99,0,0,1,COUNTA(Metered!$I99:$AA99))) -> 165281.4258 | K98: 364268.6199 | L98: 1.00772 | M98: 367080.7737 | N98: =SUMIF(OFFSET(Metered!$I$2,0,0,1,COUNTA(Metered!$I$2:$AA$2)),"Transmission",OFFSET(Metered!$I99,0,0,1,COUNTA(Metered!$I99:$AA99))) -> 31829.97552 | O98: 457135.752 | P98: 1.01523 | Q98: 464097.9295
A99: 4 | B99: 2019-04-05T01:00:00 | C99: =+Metered!E100 -> 219188.105 | D99: 1.01947 | E99: 223455.6974 | F99: =SUMIF(OFFSET(Metered!$I$2,0,0,1,COUNTA(Metered!$I$2:$IV$2)),"Primary",OFFSET(Metered!$I100,0,0,1,COUNTA(Metered!$I100:$AA100))) -> 27019.12677 | G99: 250474.8241 | H99: 1.0123 | I99: 253555.6645 | J99: =SUMIF(OFFSET(Metered!$I$2,0,0,1,COUNTA(Metered!$I$2:$IV$2)),"Subtransmission",OFFSET(Metered!$I100,0,0,1,COUNTA(Metered!$I100:$AA100))) -> 164454.2092 | K99: 360612.5984 | L99: 1.00771 | M99: 363392.9216 | N99: =SUMIF(OFFSET(Metered!$I$2,0,0,1,COUNTA(Metered!$I$2:$AA$2)),"Transmission",OFFSET(Metered!$I100,0,0,1,COUNTA(Metered!$I100:$AA100))) -> 31826.81006 | O99: 452617.0069 | P99: 1.01514 | Q99: 459469.6284
A100: 4 | B100: 2019-04-05T02:00:00 | C100: =+Metered!E101 -> 200218.4315 | D100: 1.02116 | E100: 204455.0535 | F100: =SUMIF(OFFSET(Metered!$I$2,0,0,1,COUNTA(Metered!$I$2:$IV$2)),"Primary",OFFSET(Metered!$I101,0,0,1,COUNTA(Metered!$I101:$AA101))) -> 26297.13186 | G100: 230752.1854 | H100: 1.01302 | I100: 233756.5788 | J100: =SUMIF(OFFSET(Metered!$I$2,0,0,1,COUNTA(Metered!$I$2:$IV$2)),"Subtransmission",OFFSET(Metered!$I101,0,0,1,COUNTA(Metered!$I101:$AA101))) -> 161580.1418 | K100: 342421.355 | L100: 1.00767 | M100: 345047.7268 | N100: =SUMIF(OFFSET(Metered!$I$2,0,0,1,COUNTA(Metered!$I$2:$AA$2)),"Transmission",OFFSET(Metered!$I101,0,0,1,COUNTA(Metered!$I101:$AA101))) -> 31804.59527 | O100: 429767.6877 | P100: 1.01467 | Q100: 436072.3796
A101: 4 | B101: 2019-04-05T03:00:00 | C101: =+Metered!E102 -> 203105.951 | D101: 1.02088 | E101: 207346.8032 | F101: =SUMIF(OFFSET(Metered!$I$2,0,0,1,COUNTA(Metered!$I$2:$IV$2)),"Primary",OFFSET(Metered!$I102,0,0,1,COUNTA(Metered!$I102:$AA102))) -> 26385.36921 | G101: 233732.1724 | H101: 1.0129 | I101: 236747.3174 | J101: =SUMIF(OFFSET(Metered!$I$2,0,0,1,COUNTA(Metered!$I$2:$IV$2)),"Subtransmission",OFFSET(Metered!$I102,0,0,1,COUNTA(Metered!$I102:$AA102))) -> 159548.371 | K101: 342703.3107 | L101: 1.00767 | M101: 345331.8451 | N101: =SUMIF(OFFSET(Metered!$I$2,0,0,1,COUNTA(Metered!$I$2:$AA$2)),"Transmission",OFFSET(Metered!$I102,0,0,1,COUNTA(Metered!$I102:$AA102))) -> 31721.09237 | O101: 430645.3152 | P101: 1.01469 | Q101: 436971.4949
A102: 4 | B102: 2019-04-05T04:00:00 | C102: =+Metered!E103 -> 219505.9173 | D102: 1.01945 | E102: 223775.3074 | F102: =SUMIF(OFFSET(Metered!$I$2,0,0,1,COUNTA(Metered!$I$2:$IV$2)),"Primary",OFFSET(Metered!$I103,0,0,1,COUNTA(Metered!$I103:$AA103))) -> 26823.41343 | G102: 250598.7208 | H102: 1.01229 | I102: 253678.5791 | J102: =SUMIF(OFFSET(Metered!$I$2,0,0,1,COUNTA(Metered!$I$2:$IV$2)),"Subtransmission",OFFSET(Metered!$I103,0,0,1,COUNTA(Metered!$I103:$AA103))) -> 162731.678 | K102: 358985.1578 | L102: 1.0077 | M102: 361749.3435 | N102: =SUMIF(OFFSET(Metered!$I$2,0,0,1,COUNTA(Metered!$I$2:$AA$2)),"Transmission",OFFSET(Metered!$I103,0,0,1,COUNTA(Metered!$I103:$AA103))) -> 31717.17389 | O102: 450891.6168 | P102: 1.0151 | Q102: 457700.0802
A103: 4 | B103: 2019-04-05T05:00:00 | C103: =+Metered!E104 -> 230861.5221 | D103: 1.01858 | E103: 235150.9292 | F103: =SUMIF(OFFSET(Metered!$I$2,0,0,1,COUNTA(Metered!$I$2:$IV$2)),"Primary",OFFSET(Metered!$I104,0,0,1,COUNTA(Metered!$I104:$AA104))) -> 28303.11108 | G103: 263454.0403 | H103: 1.01189 | I103: 266586.5088 | J103: =SUMIF(OFFSET(Metered!$I$2,0,0,1,COUNTA(Metered!$I$2:$IV$2)),"Subtransmission",OFFSET(Metered!$I104,0,0,1,COUNTA(Metered!$I104:$AA104))) -> 162735.7871 | K103: 368975.2347 | L103: 1.00773 | M103: 371827.4132 | N103: =SUMIF(OFFSET(Metered!$I$2,0,0,1,COUNTA(Metered!$I$2:$AA$2)),"Transmission",OFFSET(Metered!$I104,0,0,1,COUNTA(Metered!$I104:$AA104))) -> 31786.64464 | O103: 463961.1191 | P103: 1.01537 | Q103: 471092.2015
A104: 4 | B104: 2019-04-05T06:00:00 | C104: =+Metered!E105 -> 280410.0821 | D104: 1.01565 | E104: 284798.4999 | F104: =SUMIF(OFFSET(Metered!$I$2,0,0,1,COUNTA(Metered!$I$2:$IV$2)),"Primary",OFFSET(Metered!$I105,0,0,1,COUNTA(Metered!$I105:$AA105))) -> 33612.24921 | G104: 318410.7491 | H104: 1.01063 | I104: 321795.4553 | J104: =SUMIF(OFFSET(Metered!$I$2,0,0,1,COUNTA(Metered!$I$2:$IV$2)),"Subtransmission",OFFSET(Metered!$I105,0,0,1,COUNTA(Metered!$I105:$AA105))) -> 161673.0107 | K104: 410623.7818 | L104: 1.00789 | M104: 413863.6034 | N104: =SUMIF(OFFSET(Metered!$I$2,0,0,1,COUNTA(Metered!$I$2:$AA$2)),"Transmission",OFFSET(Metered!$I105,0,0,1,COUNTA(Metered!$I105:$AA105))) -> 31811.97923 | O104: 518520.2669 | P104: 1.01656 | Q104: 527106.9625
A105: 4 | B105: 2019-04-05T07:00:00 | C105: =+Metered!E106 -> 310434.9852 | D105: 1.01437 | E105: 314895.9359 | F105: =SUMIF(OFFSET(Metered!$I$2,0,0,1,COUNTA(Metered!$I$2:$IV$2)),"Primary",OFFSET(Metered!$I106,0,0,1,COUNTA(Metered!$I106:$AA106))) -> 41703.19241 | G105: 356599.1283 | H105: 1.01006 | I105: 360186.5156 | J105: =SUMIF(OFFSET(Metered!$I$2,0,0,1,COUNTA(Metered!$I$2:$IV$2)),"Subtransmission",OFFSET(Metered!$I106,0,0,1,COUNTA(Metered!$I106:$AA106))) -> 168949.1629 | K105: 447600.4281 | L105: 1.00808 | M105: 451217.0396 | N105: =SUMIF(OFFSET(Metered!$I$2,0,0,1,COUNTA(Metered!$I$2:$AA$2)),"Transmission",OFFSET(Metered!$I106,0,0,1,COUNTA(Metered!$I106:$AA106))) -> 31780.64864 | O105: 564532.9386 | P105: 1.0176 | Q105: 574468.7183
A106: 4 | B106: 2019-04-05T08:00:00 | C106: =+Metered!E107 -> 323719.0225 | D106: 1.01388 | E106: 328212.2425 | F106: =SUMIF(OFFSET(Metered!$I$2,0,0,1,COUNTA(Metered!$I$2:$IV$2)),"Primary",OFFSET(Metered!$I107,0,0,1,COUNTA(Metered!$I107:$AA107))) -> 43600.51642 | G106: 371812.7589 | H106: 1.00989 | I106: 375489.9871 | J106: =SUMIF(OFFSET(Metered!$I$2,0,0,1,COUNTA(Metered!$I$2:$IV$2)),"Subtransmission",OFFSET(Metered!$I107,0,0,1,COUNTA(Metered!$I107:$AA107))) -> 170503.6455 | K106: 460994.1427 | L106: 1.00816 | M106: 464755.8549 | N106: =SUMIF(OFFSET(Metered!$I$2,0,0,1,COUNTA(Metered!$I$2:$AA$2)),"Transmission",OFFSET(Metered!$I107,0,0,1,COUNTA(Metered!$I107:$AA107))) -> 31778.93569 | O106: 581534.2805 | P106: 1.01799 | Q106: 591996.0822
A107: 4 | B107: 2019-04-05T09:00:00 | C107: =+Metered!E108 -> 298100.9234 | D107: 1.01486 | E107: 302530.7032 | F107: =SUMIF(OFFSET(Metered!$I$2,0,0,1,COUNTA(Metered!$I$2:$IV$2)),"Primary",OFFSET(Metered!$I108,0,0,1,COUNTA(Metered!$I108:$AA108))) -> 44289.82536 | G107: 346820.5285 | H107: 1.01019 | I107: 350354.6297 | J107: =SUMIF(OFFSET(Metered!$I$2,0,0,1,COUNTA(Metered!$I$2:$IV$2)),"Subtransmission",OFFSET(Metered!$I108,0,0,1,COUNTA(Metered!$I108:$AA108))) -> 169580.1755 | K107: 440625.1942 | L107: 1.00804 | M107: 444167.8207 | N107: =SUMIF(OFFSET(Metered!$I$2,0,0,1,COUNTA(Metered!$I$2:$AA$2)),"Transmission",OFFSET(Metered!$I108,0,0,1,COUNTA(Metered!$I108:$AA108))) -> 31891.32016 | O107: 555368.7519 | P107: 1.01739 | Q107: 565026.6145
A108: 4 | B108: 2019-04-05T10:00:00 | C108: =+Metered!E109 -> 308568.9931 | D108: 1.01444 | E108: 313024.7293 | F108: =SUMIF(OFFSET(Metered!$I$2,0,0,1,COUNTA(Metered!$I$2:$IV$2)),"Primary",OFFSET(Metered!$I109,0,0,1,COUNTA(Metered!$I109:$AA109))) -> 44623.96269 | G108: 357648.692 | H108: 1.01005 | I108: 361243.0614 | J108: =SUMIF(OFFSET(Metered!$I$2,0,0,1,COUNTA(Metered!$I$2:$IV$2)),"Subtransmission",OFFSET(Metered!$I109,0,0,1,COUNTA(Metered!$I109:$AA109))) -> 167673.5122 | K108: 447142.1535 | L108: 1.00808 | M108: 450755.0621 | N108: =SUMIF(OFFSET(Metered!$I$2,0,0,1,COUNTA(Metered!$I$2:$AA$2)),"Transmission",OFFSET(Metered!$I109,0,0,1,COUNTA(Metered!$I109:$AA109))) -> 33866.06346 | O108: 566395.5456 | P108: 1.01764 | Q108: 576386.763
A109: 4 | B109: 2019-04-05T11:00:00 | C109: =+Metered!E110 -> 283884.0376 | D109: 1.01549 | E109: 288281.4014 | F109: =SUMIF(OFFSET(Metered!$I$2,0,0,1,COUNTA(Metered!$I$2:$IV$2)),"Primary",OFFSET(Metered!$I110,0,0,1,COUNTA(Metered!$I110:$AA110))) -> 43564.80817 | G109: 331846.2096 | H109: 1.01041 | I109: 335300.7286 | J109: =SUMIF(OFFSET(Metered!$I$2,0,0,1,COUNTA(Metered!$I$2:$IV$2)),"Subtransmission",OFFSET(Metered!$I110,0,0,1,COUNTA(Metered!$I110:$AA110))) -> 167537.6083 | K109: 426936.4703 | L109: 1.00797 | M109: 430339.154 | N109: =SUMIF(OFFSET(Metered!$I$2,0,0,1,COUNTA(Metered!$I$2:$AA$2)),"Transmission",OFFSET(Metered!$I110,0,0,1,COUNTA(Metered!$I110:$AA110))) -> 34469.73169 | O109: 540710.7522 | P109: 1.01705 | Q109: 549929.8706
A110: 4 | B110: 2019-04-05T12:00:00 | C110: =+Metered!E111 -> 278949.1942 | D110: 1.01572 | E110: 283334.2755 | F110: =SUMIF(OFFSET(Metered!$I$2,0,0,1,COUNTA(Metered!$I$2:$IV$2)),"Primary",OFFSET(Metered!$I111,0,0,1,COUNTA(Metered!$I111:$AA111))) -> 45142.66237 | G110: 328476.9379 | H110: 1.01046 | I110: 331912.8067 | J110: =SUMIF(OFFSET(Metered!$I$2,0,0,1,COUNTA(Metered!$I$2:$IV$2)),"Subtransmission",OFFSET(Metered!$I111,0,0,1,COUNTA(Metered!$I111:$AA111))) -> 165402.5078 | K110: 422180.3702 | L110: 1.00794 | M110: 425532.4823 | N110: =SUMIF(OFFSET(Metered!$I$2,0,0,1,COUNTA(Metered!$I$2:$AA$2)),"Transmission",OFFSET(Metered!$I111,0,0,1,COUNTA(Metered!$I111:$AA111))) -> 34421.56485 | O110: 535088.9914 | P110: 1.01693 | Q110: 544148.0481
A111: 4 | B111: 2019-04-05T13:00:00 | C111: =+Metered!E112 -> 287588.2908 | D111: 1.01532 | E111: 291994.1434 | F111: =SUMIF(OFFSET(Metered!$I$2,0,0,1,COUNTA(Metered!$I$2:$IV$2)),"Primary",OFFSET(Metered!$I112,0,0,1,COUNTA(Metered!$I112:$AA112))) -> 43854.53901 | G111: 335848.6825 | H111: 1.01035 | I111: 339324.7163 | J111: =SUMIF(OFFSET(Metered!$I$2,0,0,1,COUNTA(Metered!$I$2:$IV$2)),"Subtransmission",OFFSET(Metered!$I112,0,0,1,COUNTA(Metered!$I112:$AA112))) -> 166601.8369 | K111: 429113.7785 | L111: 1.00798 | M111: 432538.1064 | N111: =SUMIF(OFFSET(Metered!$I$2,0,0,1,COUNTA(Metered!$I$2:$AA$2)),"Transmission",OFFSET(Metered!$I112,0,0,1,COUNTA(Metered!$I112:$AA112))) -> 34294.9619 | O111: 543645.8431 | P111: 1.01712 | Q111: 552953.0599
A112: 4 | B112: 2019-04-05T14:00:00 | C112: =+Metered!E113 -> 283959.9287 | D112: 1.01549 | E112: 288358.468 | F112: =SUMIF(OFFSET(Metered!$I$2,0,0,1,COUNTA(Metered!$I$2:$IV$2)),"Primary",OFFSET(Metered!$I113,0,0,1,COUNTA(Metered!$I113:$AA113))) -> 44321.10832 | G112: 332679.5763 | H112: 1.0104 | I112: 336139.4439 | J112: =SUMIF(OFFSET(Metered!$I$2,0,0,1,COUNTA(Metered!$I$2:$IV$2)),"Subtransmission",OFFSET(Metered!$I113,0,0,1,COUNTA(Metered!$I113:$AA113))) -> 166270.7475 | K112: 426318.4652 | L112: 1.00796 | M112: 429711.9602 | N112: =SUMIF(OFFSET(Metered!$I$2,0,0,1,COUNTA(Metered!$I$2:$AA$2)),"Transmission",OFFSET(Metered!$I113,0,0,1,COUNTA(Metered!$I113:$AA113))) -> 34282.33667 | O112: 540086.023 | P112: 1.01704 | Q112: 549289.0889
A113: 4 | B113: 2019-04-05T15:00:00 | C113: =+Metered!E114 -> 287986.4988 | D113: 1.0153 | E113: 292392.6922 | F113: =SUMIF(OFFSET(Metered!$I$2,0,0,1,COUNTA(Metered!$I$2:$IV$2)),"Primary",OFFSET(Metered!$I114,0,0,1,COUNTA(Metered!$I114:$AA114))) -> 42105.01019 | G113: 334497.7024 | H113: 1.01037 | I113: 337966.4436 | J113: =SUMIF(OFFSET(Metered!$I$2,0,0,1,COUNTA(Metered!$I$2:$IV$2)),"Subtransmission",OFFSET(Metered!$I114,0,0,1,COUNTA(Metered!$I114:$AA114))) -> 165214.1966 | K113: 426675.337 | L113: 1.00796 | M113: 430071.6727 | N113: =SUMIF(OFFSET(Metered!$I$2,0,0,1,COUNTA(Metered!$I$2:$AA$2)),"Transmission",OFFSET(Metered!$I114,0,0,1,COUNTA(Metered!$I114:$AA114))) -> 34272.73442 | O113: 540849.7103 | P113: 1.01706 | Q113: 550076.6064
A114: 4 | B114: 2019-04-05T16:00:00 | C114: =+Metered!E115 -> 273763.0386 | D114: 1.01598 | E114: 278137.7719 | F114: =SUMIF(OFFSET(Metered!$I$2,0,0,1,COUNTA(Metered!$I$2:$IV$2)),"Primary",OFFSET(Metered!$I115,0,0,1,COUNTA(Metered!$I115:$AA115))) -> 39609.70949 | G114: 317747.4814 | H114: 1.01064 | I114: 321128.3146 | J114: =SUMIF(OFFSET(Metered!$I$2,0,0,1,COUNTA(Metered!$I$2:$IV$2)),"Subtransmission",OFFSET(Metered!$I115,0,0,1,COUNTA(Metered!$I115:$AA115))) -> 162763.9909 | K114: 411198.6416 | L114: 1.00789 | M114: 414442.9989 | N114: =SUMIF(OFFSET(Metered!$I$2,0,0,1,COUNTA(Metered!$I$2:$AA$2)),"Transmission",OFFSET(Metered!$I115,0,0,1,COUNTA(Metered!$I115:$AA115))) -> 34129.36721 | O114: 521266.03 | P114: 1.01662 | Q114: 529929.4714
A115: 4 | B115: 2019-04-05T17:00:00 | C115: =+Metered!E116 -> 287872.4985 | D115: 1.01531 | E115: 292279.8265 | F115: =SUMIF(OFFSET(Metered!$I$2,0,0,1,COUNTA(Metered!$I$2:$IV$2)),"Primary",OFFSET(Metered!$I116,0,0,1,COUNTA(Metered!$I116:$AA116))) -> 36864.75434 | G115: 329144.5808 | H115: 1.01045 | I115: 332584.1417 | J115: =SUMIF(OFFSET(Metered!$I$2,0,0,1,COUNTA(Metered!$I$2:$IV$2)),"Subtransmission",OFFSET(Metered!$I116,0,0,1,COUNTA(Metered!$I116:$AA116))) -> 162301.3568 | K115: 419598.5844 | L115: 1.00793 | M115: 422926.0011 | N115: =SUMIF(OFFSET(Metered!$I$2,0,0,1,COUNTA(Metered!$I$2:$AA$2)),"Transmission",OFFSET(Metered!$I116,0,0,1,COUNTA(Metered!$I116:$AA116))) -> 32477.7986 | O115: 530690.7138 | P115: 1.01683 | Q115: 539622.2385
A116: 4 | B116: 2019-04-05T18:00:00 | C116: =+Metered!E117 -> 274622.4742 | D116: 1.01594 | E116: 278999.9564 | F116: =SUMIF(OFFSET(Metered!$I$2,0,0,1,COUNTA(Metered!$I$2:$IV$2)),"Primary",OFFSET(Metered!$I117,0,0,1,COUNTA(Metered!$I117:$AA117))) -> 33795.41342 | G116: 312795.3698 | H116: 1.01073 | I116: 316151.6642 | J116: =SUMIF(OFFSET(Metered!$I$2,0,0,1,COUNTA(Metered!$I$2:$IV$2)),"Subtransmission",OFFSET(Metered!$I117,0,0,1,COUNTA(Metered!$I117:$AA117))) -> 162149.4508 | K116: 406734.013 | L116: 1.00787 | M116: 409935.0097 | N116: =SUMIF(OFFSET(Metered!$I$2,0,0,1,COUNTA(Metered!$I$2:$AA$2)),"Transmission",OFFSET(Metered!$I117,0,0,1,COUNTA(Metered!$I117:$AA117))) -> 32299.31992 | O116: 513801.4316 | P116: 1.01645 | Q116: 522253.4651
A117: 4 | B117: 2019-04-05T19:00:00 | C117: =+Metered!E118 -> 268175.688 | D117: 1.01627 | E117: 272538.9065 | F117: =SUMIF(OFFSET(Metered!$I$2,0,0,1,COUNTA(Metered!$I$2:$IV$2)),"Primary",OFFSET(Metered!$I118,0,0,1,COUNTA(Metered!$I118:$AA118))) -> 34121.69857 | G117: 306660.605 | H117: 1.01085 | I117: 309987.8726 | J117: =SUMIF(OFFSET(Metered!$I$2,0,0,1,COUNTA(Metered!$I$2:$IV$2)),"Subtransmission",OFFSET(Metered!$I118,0,0,1,COUNTA(Metered!$I118:$AA118))) -> 161902.6003 | K117: 401718.6655 | L117: 1.00785 | M117: 404872.1571 | N117: =SUMIF(OFFSET(Metered!$I$2,0,0,1,COUNTA(Metered!$I$2:$AA$2)),"Transmission",OFFSET(Metered!$I118,0,0,1,COUNTA(Metered!$I118:$AA118))) -> 32387.74312 | O117: 507431.7076 | P117: 1.01631 | Q117: 515707.9187
A118: 4 | B118: 2019-04-05T20:00:00 | C118: =+Metered!E119 -> 315591.4897 | D118: 1.01417 | E118: 320063.4211 | F118: =SUMIF(OFFSET(Metered!$I$2,0,0,1,COUNTA(Metered!$I$2:$IV$2)),"Primary",OFFSET(Metered!$I119,0,0,1,COUNTA(Metered!$I119:$AA119))) -> 35849.82816 | G118: 355913.2493 | H118: 1.01007 | I118: 359497.2957 | J118: =SUMIF(OFFSET(Metered!$I$2,0,0,1,COUNTA(Metered!$I$2:$IV$2)),"Subtransmission",OFFSET(Metered!$I119,0,0,1,COUNTA(Metered!$I119:$AA119))) -> 161913.4774 | K118: 440031.5411 | L118: 1.00804 | M118: 443569.3947 | N118: =SUMIF(OFFSET(Metered!$I$2,0,0,1,COUNTA(Metered!$I$2:$AA$2)),"Transmission",OFFSET(Metered!$I119,0,0,1,COUNTA(Metered!$I119:$AA119))) -> 32544.25242 | O118: 557492.8791 | P118: 1.01743 | Q118: 567209.9799
A119: 4 | B119: 2019-04-05T21:00:00 | C119: =+Metered!E120 -> 344344.1712 | D119: 1.01321 | E119: 348892.9577 | F119: =SUMIF(OFFSET(Metered!$I$2,0,0,1,COUNTA(Metered!$I$2:$IV$2)),"Primary",OFFSET(Metered!$I120,0,0,1,COUNTA(Metered!$I120:$AA120))) -> 34737.52172 | G119: 383630.4795 | H119: 1.00977 | I119: 387378.5492 | J119: =SUMIF(OFFSET(Metered!$I$2,0,0,1,COUNTA(Metered!$I$2:$IV$2)),"Subtransmission",OFFSET(Metered!$I120,0,0,1,COUNTA(Metered!$I120:$AA120))) -> 164894.7197 | K119: 464582.5709 | L119: 1.00818 | M119: 468382.8563 | N119: =SUMIF(OFFSET(Metered!$I$2,0,0,1,COUNTA(Metered!$I$2:$AA$2)),"Transmission",OFFSET(Metered!$I120,0,0,1,COUNTA(Metered!$I120:$AA120))) -> 32445.27194 | O119: 588518.8263 | P119: 1.01815 | Q119: 599200.443
A120: 4 | B120: 2019-04-05T22:00:00 | C120: =+Metered!E121 -> 309386.5581 | D120: 1.01441 | E120: 313844.8184 | F120: =SUMIF(OFFSET(Metered!$I$2,0,0,1,COUNTA(Metered!$I$2:$IV$2)),"Primary",OFFSET(Metered!$I121,0,0,1,COUNTA(Metered!$I121:$AA121))) -> 33581.922 | G120: 347426.7404 | H120: 1.01018 | I120: 350963.5446 | J120: =SUMIF(OFFSET(Metered!$I$2,0,0,1,COUNTA(Metered!$I$2:$IV$2)),"Subtransmission",OFFSET(Metered!$I121,0,0,1,COUNTA(Metered!$I121:$AA121))) -> 166915.9426 | K120: 438432.0364 | L120: 1.00803 | M120: 441952.6457 | N120: =SUMIF(OFFSET(Metered!$I$2,0,0,1,COUNTA(Metered!$I$2:$AA$2)),"Transmission",OFFSET(Metered!$I121,0,0,1,COUNTA(Metered!$I121:$AA121))) -> 32450.40354 | O120: 553850.5 | P120: 1.01735 | Q120: 563459.8061
A121: 4 | B121: 2019-04-05T23:00:00 | C121: =+Metered!E122 -> 281141.8229 | D121: 1.01562 | E121: 285533.2582 | F121: =SUMIF(OFFSET(Metered!$I$2,0,0,1,COUNTA(Metered!$I$2:$IV$2)),"Primary",OFFSET(Metered!$I122,0,0,1,COUNTA(Metered!$I122:$AA122))) -> 31611.16705 | G121: 317144.4252 | H121: 1.01065 | I121: 320522.0134 | J121: =SUMIF(OFFSET(Metered!$I$2,0,0,1,COUNTA(Metered!$I$2:$IV$2)),"Subtransmission",OFFSET(Metered!$I122,0,0,1,COUNTA(Metered!$I122:$AA122))) -> 167943.3414 | K121: 415908.939 | L121: 1.00791 | M121: 419198.7787 | N121: =SUMIF(OFFSET(Metered!$I$2,0,0,1,COUNTA(Metered!$I$2:$AA$2)),"Transmission",OFFSET(Metered!$I122,0,0,1,COUNTA(Metered!$I122:$AA122))) -> 32295.92709 | O121: 524051.1216 | P121: 1.01668 | Q121: 532792.2943
A122: 4 | B122: 2019-04-06 | C122: =+Metered!E123 -> 256473.1378 | D122: 1.01692 | E122: 260812.6633 | F122: =SUMIF(OFFSET(Metered!$I$2,0,0,1,COUNTA(Metered!$I$2:$IV$2)),"Primary",OFFSET(Metered!$I123,0,0,1,COUNTA(Metered!$I123:$AA123))) -> 29540.01195 | G122: 290352.6752 | H122: 1.01119 | I122: 293601.7217 | J122: =SUMIF(OFFSET(Metered!$I$2,0,0,1,COUNTA(Metered!$I$2:$IV$2)),"Subtransmission",OFFSET(Metered!$I123,0,0,1,COUNTA(Metered!$I123:$AA123))) -> 167244.3259 | K122: 394383.5654 | L122: 1.00782 | M122: 397467.6449 | N122: =SUMIF(OFFSET(Metered!$I$2,0,0,1,COUNTA(Metered!$I$2:$AA$2)),"Transmission",OFFSET(Metered!$I123,0,0,1,COUNTA(Metered!$I123:$AA123))) -> 31830.16791 | O122: 495760.295 | P122: 1.01605 | Q122: 503717.2477
A123: 4 | B123: 2019-04-06T01:00:00 | C123: =+Metered!E124 -> 228959.8556 | D123: 1.01872 | E123: 233245.9841 | F123: =SUMIF(OFFSET(Metered!$I$2,0,0,1,COUNTA(Metered!$I$2:$IV$2)),"Primary",OFFSET(Metered!$I124,0,0,1,COUNTA(Metered!$I124:$AA124))) -> 27865.17177 | G123: 261111.1558 | H123: 1.01196 | I123: 264234.0453 | J123: =SUMIF(OFFSET(Metered!$I$2,0,0,1,COUNTA(Metered!$I$2:$IV$2)),"Subtransmission",OFFSET(Metered!$I124,0,0,1,COUNTA(Metered!$I124:$AA124))) -> 166048.1334 | K123: 370467.6435 | L123: 1.00773 | M123: 373331.3584 | N123: =SUMIF(OFFSET(Metered!$I$2,0,0,1,COUNTA(Metered!$I$2:$AA$2)),"Transmission",OFFSET(Metered!$I124,0,0,1,COUNTA(Metered!$I124:$AA124))) -> 31869.07278 | O123: 465014.9664 | P123: 1.0154 | Q123: 472176.1969
A124: 4 | B124: 2019-04-06T02:00:00 | C124: =+Metered!E125 -> 229234.1039 | D124: 1.0187 | E124: 233520.7816 | F124: =SUMIF(OFFSET(Metered!$I$2,0,0,1,COUNTA(Metered!$I$2:$IV$2)),"Primary",OFFSET(Metered!$I125,0,0,1,COUNTA(Metered!$I125:$AA125))) -> 27446.38916 | G124: 260967.1708 | H124: 1.01197 | I124: 264090.9478 | J124: =SUMIF(OFFSET(Metered!$I$2,0,0,1,COUNTA(Metered!$I$2:$IV$2)),"Subtransmission",OFFSET(Metered!$I125,0,0,1,COUNTA(Metered!$I125:$AA125))) -> 164403.4155 | K124: 368712.221 | L124: 1.00773 | M124: 371562.3665 | N124: =SUMIF(OFFSET(Metered!$I$2,0,0,1,COUNTA(Metered!$I$2:$AA$2)),"Transmission",OFFSET(Metered!$I125,0,0,1,COUNTA(Metered!$I125:$AA125))) -> 31852.99794 | O124: 463197.5068 | P124: 1.01536 | Q124: 470312.2205
A125: 4 | B125: 2019-04-06T03:00:00 | C125: =+Metered!E126 -> 215308.0675 | D125: 1.01979 | E125: 219569.0142 | F125: =SUMIF(OFFSET(Metered!$I$2,0,0,1,COUNTA(Metered!$I$2:$IV$2)),"Primary",OFFSET(Metered!$I126,0,0,1,COUNTA(Metered!$I126:$AA126))) -> 27395.27184 | G125: 246964.286 | H125: 1.01242 | I125: 250031.5825 | J125: =SUMIF(OFFSET(Metered!$I$2,0,0,1,COUNTA(Metered!$I$2:$IV$2)),"Subtransmission",OFFSET(Metered!$I126,0,0,1,COUNTA(Metered!$I126:$AA126))) -> 165459.3801 | K125: 358891.4321 | L125: 1.0077 | M125: 361654.8962 | N125: =SUMIF(OFFSET(Metered!$I$2,0,0,1,COUNTA(Metered!$I$2:$AA$2)),"Transmission",OFFSET(Metered!$I126,0,0,1,COUNTA(Metered!$I126:$AA126))) -> 31838.72252 | O125: 450093.1491 | P125: 1.01509 | Q125: 456885.0548
A126: 4 | B126: 2019-04-06T04:00:00 | C126: =+Metered!E127 -> 216136.2493 | D126: 1.01972 | E126: 220398.4561 | F126: =SUMIF(OFFSET(Metered!$I$2,0,0,1,COUNTA(Metered!$I$2:$IV$2)),"Primary",OFFSET(Metered!$I127,0,0,1,COUNTA(Metered!$I127:$AA127))) -> 27430.05696 | G126: 247828.5131 | H126: 1.01239 | I126: 250899.1083 | J126: =SUMIF(OFFSET(Metered!$I$2,0,0,1,COUNTA(Metered!$I$2:$IV$2)),"Subtransmission",OFFSET(Metered!$I127,0,0,1,COUNTA(Metered!$I127:$AA127))) -> 165532.0307 | K126: 359635.2272 | L126: 1.0077 | M126: 362404.4184 | N126: =SUMIF(OFFSET(Metered!$I$2,0,0,1,COUNTA(Metered!$I$2:$AA$2)),"Transmission",OFFSET(Metered!$I127,0,0,1,COUNTA(Metered!$I127:$AA127))) -> 31895.88797 | O126: 451096.2183 | P126: 1.01511 | Q126: 457912.2821
A127: 4 | B127: 2019-04-06T05:00:00 | C127: =+Metered!E128 -> 228811.0058 | D127: 1.01873 | E127: 233096.6359 | F127: =SUMIF(OFFSET(Metered!$I$2,0,0,1,COUNTA(Metered!$I$2:$IV$2)),"Primary",OFFSET(Metered!$I128,0,0,1,COUNTA(Metered!$I128:$AA128))) -> 27884.3215 | G127: 260980.9574 | H127: 1.01196 | I127: 264102.2897 | J127: =SUMIF(OFFSET(Metered!$I$2,0,0,1,COUNTA(Metered!$I$2:$IV$2)),"Subtransmission",OFFSET(Metered!$I128,0,0,1,COUNTA(Metered!$I128:$AA128))) -> 166397.8355 | K127: 370715.4154 | L127: 1.00773 | M127: 373581.0455 | N127: =SUMIF(OFFSET(Metered!$I$2,0,0,1,COUNTA(Metered!$I$2:$AA$2)),"Transmission",OFFSET(Metered!$I128,0,0,1,COUNTA(Metered!$I128:$AA128))) -> 31898.75377 | O127: 465264.5091 | P127: 1.0154 | Q127: 472429.5825
A128: 4 | B128: 2019-04-06T06:00:00 | C128: =+Metered!E129 -> 244378.1272 | D128: 1.01766 | E128: 248693.845 | F128: =SUMIF(OFFSET(Metered!$I$2,0,0,1,COUNTA(Metered!$I$2:$IV$2)),"Primary",OFFSET(Metered!$I129,0,0,1,COUNTA(Metered!$I129:$AA129))) -> 29749.83156 | G128: 278443.6765 | H128: 1.01148 | I128: 281640.2099 | J128: =SUMIF(OFFSET(Metered!$I$2,0,0,1,COUNTA(Metered!$I$2:$IV$2)),"Subtransmission",OFFSET(Metered!$I129,0,0,1,COUNTA(Metered!$I129:$AA129))) -> 167382.8054 | K128: 385268.2549 | L128: 1.00778 | M128: 388265.6419 | N128: =SUMIF(OFFSET(Metered!$I$2,0,0,1,COUNTA(Metered!$I$2:$AA$2)),"Transmission",OFFSET(Metered!$I129,0,0,1,COUNTA(Metered!$I129:$AA129))) -> 31856.09812 | O128: 483876.5005 | P128: 1.0158 | Q128: 491521.7492
A129: 4 | B129: 2019-04-06T07:00:00 | C129: =+Metered!E130 -> 241256.5542 | D129: 1.01786 | E129: 245565.3962 | F129: =SUMIF(OFFSET(Metered!$I$2,0,0,1,COUNTA(Metered!$I$2:$IV$2)),"Primary",OFFSET(Metered!$I130,0,0,1,COUNTA(Metered!$I130:$AA130))) -> 32080.66736 | G129: 277646.0636 | H129: 1.0115 | I129: 280838.9933 | J129: =SUMIF(OFFSET(Metered!$I$2,0,0,1,COUNTA(Metered!$I$2:$IV$2)),"Subtransmission",OFFSET(Metered!$I130,0,0,1,COUNTA(Metered!$I130:$AA130))) -> 169705.3474 | K129: 386970.9513 | L129: 1.00779 | M129: 389985.455 | N129: =SUMIF(OFFSET(Metered!$I$2,0,0,1,COUNTA(Metered!$I$2:$AA$2)),"Transmission",OFFSET(Metered!$I130,0,0,1,COUNTA(Metered!$I130:$AA130))) -> 31868.10807 | O129: 485426.9525 | P129: 1.01583 | Q129: 493111.2611
A130: 4 | B130: 2019-04-06T08:00:00 | C130: =+Metered!E131 -> 275679.834 | D130: =IF(C130=0,0,ROUND(1+((LossCoeff_Sec*C130^2+ZeroLoadLoss_Sec)/C130),5)) -> 1.01588 | E130: 280057.6298 | F130: =SUMIF(OFFSET(Metered!$I$2,0,0,1,COUNTA(Metered!$I$2:$IV$2)),"Primary",OFFSET(Metered!$I131,0,0,1,COUNTA(Metered!$I131:$AA131))) -> 32117.14093 | G130: 312174.7707 | H130: =IF(G130=0,0,ROUND(1+((LossCoeff_Pri*G130^2+ZeroLoadLoss_Pri)/G130),5)) -> 1.01074 | I130: 315527.5278 | J130: =SUMIF(OFFSET(Metered!$I$2,0,0,1,COUNTA(Metered!$I$2:$IV$2)),"Subtransmission",OFFSET(Metered!$I131,0,0,1,COUNTA(Metered!$I131:$AA131))) -> 170526.007 | K130: =+I130*DistAtSubtran+J130 -> 414627.7183 | L130: =IF(K130=0,0,ROUND(1+((LossCoeff_Sub*K130^2+ZeroLoadLoss_Sub)/K130),5)) -> 1.0079 | M130: 417903.2773 | N130: =SUMIF(OFFSET(Metered!$I$2,0,0,1,COUNTA(Metered!$I$2:$AA$2)),"Transmission",OFFSET(Metered!$I131,0,0,1,COUNTA(Metered!$I131:$AA131))) -> 31959.08208 | O130: =+M130+N130+(1-DistAtSubtran)*I130 -> 521288.1759 | P130: =IF(O130=0,0,ROUND(1+((LossCoeff_Trn*O130^2+ZeroLoadLoss_Trn)/O130),5)) -> 1.01662 | Q130: 529951.9853
A131: =MONTH(B131) -> 4 | B131: =+B130+1/24 -> 2019-04-06T09:00:00 | C131: =+Metered!E132 -> 326390.3784 | D131: 1.01379 | E131: =+C131*D131 -> 330891.3017 | F131: =SUMIF(OFFSET(Metered!$I$2,0,0,1,COUNTA(Metered!$I$2:$IV$2)),"Primary",OFFSET(Metered!$I132,0,0,1,COUNTA(Metered!$I132:$AA132))) -> 32636.61321 | G131: =+E131+F131 -> 363527.9149 | H131: 1.00998 | I131: =+G131*H131 -> 367155.9235 | J131: =SUMIF(OFFSET(Metered!$I$2,0,0,1,COUNTA(Metered!$I$2:$IV$2)),"Subtransmission",OFFSET(Metered!$I132,0,0,1,COUNTA(Metered!$I132:$AA132))) -> 170878.9706 | K131: 454921.9822 | L131: 1.00812 | M131: =+K131*L131 -> 458615.9487 | N131: =SUMIF(OFFSET(Metered!$I$2,0,0,1,COUNTA(Metered!$I$2:$AA$2)),"Transmission",OFFSET(Metered!$I132,0,0,1,COUNTA(Metered!$I132:$AA132))) -> 31996.18451 | O131: 573725.0451 | P131: 1.01781 | Q131: =+P131*O131 -> 583943.0882
A132: 4 | B132: 2019-04-06T10:00:00 | C132: =+Metered!E133 -> 290141.9518 | D132: 1.0152 | E132: 294552.1095 | F132: =SUMIF(OFFSET(Metered!$I$2,0,0,1,COUNTA(Metered!$I$2:$IV$2)),"Primary",OFFSET(Metered!$I133,0,0,1,COUNTA(Metered!$I133:$AA133))) -> 32186.52068 | G132: 326738.6301 | H132: 1.01049 | I132: 330166.1184 | J132: =SUMIF(OFFSET(Metered!$I$2,0,0,1,COUNTA(Metered!$I$2:$IV$2)),"Subtransmission",OFFSET(Metered!$I133,0,0,1,COUNTA(Metered!$I133:$AA133))) -> 169750.7242 | K132: 425177.2953 | L132: 1.00796 | M132: 428561.7066 | N132: =SUMIF(OFFSET(Metered!$I$2,0,0,1,COUNTA(Metered!$I$2:$AA$2)),"Transmission",OFFSET(Metered!$I133,0,0,1,COUNTA(Metered!$I133:$AA133))) -> 32010.68434 | O132: 535311.9382 | P132: 1.01693 | Q132: 544374.7693
A133: 4 | B133: 2019-04-06T11:00:00 | C133: =+Metered!E134 -> 277887.8059 | D133: 1.01578 | E133: 282272.8755 | F133: =SUMIF(OFFSET(Metered!$I$2,0,0,1,COUNTA(Metered!$I$2:$IV$2)),"Primary",OFFSET(Metered!$I134,0,0,1,COUNTA(Metered!$I134:$AA134))) -> 32398.86933 | G133: 314671.7448 | H133: 1.0107 | I133: 318038.7325 | J133: =SUMIF(OFFSET(Metered!$I$2,0,0,1,COUNTA(Metered!$I$2:$IV$2)),"Subtransmission",OFFSET(Metered!$I134,0,0,1,COUNTA(Metered!$I134:$AA134))) -> 169566.8148 | K133: 415611.2706 | L133: 1.00791 | M133: 418898.7557 | N133: =SUMIF(OFFSET(Metered!$I$2,0,0,1,COUNTA(Metered!$I$2:$AA$2)),"Transmission",OFFSET(Metered!$I134,0,0,1,COUNTA(Metered!$I134:$AA134))) -> 31986.89235 | O133: 522879.9248 | P133: 1.01665 | Q133: 531585.8755
A134: 4 | B134: 2019-04-06T12:00:00 | C134: =+Metered!E135 -> 290265.2815 | D134: 1.0152 | E134: 294677.3137 | F134: =SUMIF(OFFSET(Metered!$I$2,0,0,1,COUNTA(Metered!$I$2:$IV$2)),"Primary",OFFSET(Metered!$I135,0,0,1,COUNTA(Metered!$I135:$AA135))) -> 31954.60937 | G134: 326631.9231 | H134: 1.01049 | I134: 330058.292 | J134: =SUMIF(OFFSET(Metered!$I$2,0,0,1,COUNTA(Metered!$I$2:$IV$2)),"Subtransmission",OFFSET(Metered!$I135,0,0,1,COUNTA(Metered!$I135:$AA135))) -> 169691.0919 | K134: 425034.2452 | L134: 1.00796 | M134: 428417.5178 | N134: =SUMIF(OFFSET(Metered!$I$2,0,0,1,COUNTA(Metered!$I$2:$AA$2)),"Transmission",OFFSET(Metered!$I135,0,0,1,COUNTA(Metered!$I135:$AA135))) -> 31980.29132 | O134: 535112.9478 | P134: 1.01693 | Q134: 544172.41
A135: 4 | B135: 2019-04-06T13:00:00 | C135: =+Metered!E136 -> 298991.2232 | D135: 1.01482 | E135: 303422.2731 | F135: =SUMIF(OFFSET(Metered!$I$2,0,0,1,COUNTA(Metered!$I$2:$IV$2)),"Primary",OFFSET(Metered!$I136,0,0,1,COUNTA(Metered!$I136:$AA136))) -> 31995.5254 | G135: 335417.7985 | H135: 1.01035 | I135: 338889.3727 | J135: =SUMIF(OFFSET(Metered!$I$2,0,0,1,COUNTA(Metered!$I$2:$IV$2)),"Subtransmission",OFFSET(Metered!$I136,0,0,1,COUNTA(Metered!$I136:$AA136))) -> 168916.6496 | K135: 431091.7961 | L135: 1.00799 | M135: 434536.2195 | N135: =SUMIF(OFFSET(Metered!$I$2,0,0,1,COUNTA(Metered!$I$2:$AA$2)),"Transmission",OFFSET(Metered!$I136,0,0,1,COUNTA(Metered!$I136:$AA136))) -> 31933.57914 | O135: 543184.0248 | P135: 1.01711 | Q135: 552477.9035
A136: 4 | B136: 2019-04-06T14:00:00 | C136: =+Metered!E137 -> 308861.0257 | D136: 1.01443 | E136: 313317.8903 | F136: =SUMIF(OFFSET(Metered!$I$2,0,0,1,COUNTA(Metered!$I$2:$IV$2)),"Primary",OFFSET(Metered!$I137,0,0,1,COUNTA(Metered!$I137:$AA137))) -> 32380.07549 | G136: 345697.9658 | H136: 1.01021 | I136: 349227.542 | J136: =SUMIF(OFFSET(Metered!$I$2,0,0,1,COUNTA(Metered!$I$2:$IV$2)),"Subtransmission",OFFSET(Metered!$I137,0,0,1,COUNTA(Metered!$I137:$AA137))) -> 167254.452 | K136: 437427.5214 | L136: 1.00802 | M136: 440935.6901 | N136: =SUMIF(OFFSET(Metered!$I$2,0,0,1,COUNTA(Metered!$I$2:$AA$2)),"Transmission",OFFSET(Metered!$I137,0,0,1,COUNTA(Metered!$I137:$AA137))) -> 31857.06348 | O136: 551847.2262 | P136: 1.01731 | Q136: 561399.7017
A137: 4 | B137: 2019-04-06T15:00:00 | C137: =+Metered!E138 -> 307479.9223 | D137: 1.01448 | E137: 311932.2316 | F137: =SUMIF(OFFSET(Metered!$I$2,0,0,1,COUNTA(Metered!$I$2:$IV$2)),"Primary",OFFSET(Metered!$I138,0,0,1,COUNTA(Metered!$I138:$AA138))) -> 31545.08723 | G137: 343477.3188 | H137: 1.01024 | I137: 346994.5265 | J137: =SUMIF(OFFSET(Metered!$I$2,0,0,1,COUNTA(Metered!$I$2:$IV$2)),"Subtransmission",OFFSET(Metered!$I138,0,0,1,COUNTA(Metered!$I138:$AA138))) -> 165869.2961 | K137: 434314.8366 | L137: 1.008 | M137: 437789.3553 | N137: =SUMIF(OFFSET(Metered!$I$2,0,0,1,COUNTA(Metered!$I$2:$AA$2)),"Transmission",OFFSET(Metered!$I138,0,0,1,COUNTA(Metered!$I138:$AA138))) -> 31809.24955 | O137: 548147.5908 | P137: 1.01722 | Q137: 557586.6923
A138: 4 | B138: 2019-04-06T16:00:00 | C138: =+Metered!E139 -> 315424.0215 | D138: 1.01418 | E138: 319896.7342 | F138: =SUMIF(OFFSET(Metered!$I$2,0,0,1,COUNTA(Metered!$I$2:$IV$2)),"Primary",OFFSET(Metered!$I139,0,0,1,COUNTA(Metered!$I139:$AA139))) -> 30898.66223 | G138: 350795.3964 | H138: 1.01014 | I138: 354352.4617 | J138: =SUMIF(OFFSET(Metered!$I$2,0,0,1,COUNTA(Metered!$I$2:$IV$2)),"Subtransmission",OFFSET(Metered!$I139,0,0,1,COUNTA(Metered!$I139:$AA139))) -> 165399.0675 | K138: 439536.9309 | L138: 1.00803 | M138: 443066.4125 | N138: =SUMIF(OFFSET(Metered!$I$2,0,0,1,COUNTA(Metered!$I$2:$AA$2)),"Transmission",OFFSET(Metered!$I139,0,0,1,COUNTA(Metered!$I139:$AA139))) -> 31865.72391 | O138: 555146.7347 | P138: 1.01738 | Q138: 564795.185
A139: 4 | B139: 2019-04-06T17:00:00 | C139: =+Metered!E140 -> 314175.8626 | D139: 1.01423 | E139: 318646.5851 | F139: =SUMIF(OFFSET(Metered!$I$2,0,0,1,COUNTA(Metered!$I$2:$IV$2)),"Primary",OFFSET(Metered!$I140,0,0,1,COUNTA(Metered!$I140:$AA140))) -> 30653.11178 | G139: 349299.6969 | H139: 1.01016 | I139: 352848.5818 | J139: =SUMIF(OFFSET(Metered!$I$2,0,0,1,COUNTA(Metered!$I$2:$IV$2)),"Subtransmission",OFFSET(Metered!$I140,0,0,1,COUNTA(Metered!$I140:$AA140))) -> 165559.7287 | K139: 438534.1448 | L139: 1.00803 | M139: 442055.5739 | N139: =SUMIF(OFFSET(Metered!$I$2,0,0,1,COUNTA(Metered!$I$2:$AA$2)),"Transmission",OFFSET(Metered!$I140,0,0,1,COUNTA(Metered!$I140:$AA140))) -> 31880.11556 | O139: 553809.8552 | P139: 1.01735 | Q139: 563418.4562
A140: 4 | B140: 2019-04-06T18:00:00 | C140: =+Metered!E141 -> 285443.8177 | D140: 1.01542 | E140: 289845.3614 | F140: =SUMIF(OFFSET(Metered!$I$2,0,0,1,COUNTA(Metered!$I$2:$IV$2)),"Primary",OFFSET(Metered!$I141,0,0,1,COUNTA(Metered!$I141:$AA141))) -> 30894.79186 | G140: 320740.1532 | H140: 1.01059 | I140: 324136.7914 | J140: =SUMIF(OFFSET(Metered!$I$2,0,0,1,COUNTA(Metered!$I$2:$IV$2)),"Subtransmission",OFFSET(Metered!$I141,0,0,1,COUNTA(Metered!$I141:$AA141))) -> 164503.3176 | K140: 415265.4177 | L140: 1.00791 | M140: 418550.1671 | N140: =SUMIF(OFFSET(Metered!$I$2,0,0,1,COUNTA(Metered!$I$2:$AA$2)),"Transmission",OFFSET(Metered!$I141,0,0,1,COUNTA(Metered!$I141:$AA141))) -> 31909.37664 | O140: 523834.2352 | P140: 1.01667 | Q140: 532566.5519
A141: 4 | B141: 2019-04-06T19:00:00 | C141: =+Metered!E142 -> 307736.6382 | D141: 1.01447 | E141: 312189.5873 | F141: =SUMIF(OFFSET(Metered!$I$2,0,0,1,COUNTA(Metered!$I$2:$IV$2)),"Primary",OFFSET(Metered!$I142,0,0,1,COUNTA(Metered!$I142:$AA142))) -> 30544.18701 | G141: 342733.7743 | H141: 1.01025 | I141: 346246.7955 | J141: =SUMIF(OFFSET(Metered!$I$2,0,0,1,COUNTA(Metered!$I$2:$IV$2)),"Subtransmission",OFFSET(Metered!$I142,0,0,1,COUNTA(Metered!$I142:$AA142))) -> 164714.7557 | K141: 432581.8287 | L141: 1.008 | M141: 436042.4833 | N141: =SUMIF(OFFSET(Metered!$I$2,0,0,1,COUNTA(Metered!$I$2:$AA$2)),"Transmission",OFFSET(Metered!$I142,0,0,1,COUNTA(Metered!$I142:$AA142))) -> 28430.69919 | O141: 542852.9051 | P141: 1.0171 | Q141: 552135.6897
A142: 4 | B142: 2019-04-06T20:00:00 | C142: =+Metered!E143 -> 295761.0929 | D142: 1.01496 | E142: 300185.6789 | F142: =SUMIF(OFFSET(Metered!$I$2,0,0,1,COUNTA(Metered!$I$2:$IV$2)),"Primary",OFFSET(Metered!$I143,0,0,1,COUNTA(Metered!$I143:$AA143))) -> 29948.81367 | G142: 330134.4926 | H142: 1.01044 | I142: 333581.0967 | J142: =SUMIF(OFFSET(Metered!$I$2,0,0,1,COUNTA(Metered!$I$2:$IV$2)),"Subtransmission",OFFSET(Metered!$I143,0,0,1,COUNTA(Metered!$I143:$AA143))) -> 163646.1845 | K142: 421714.6869 | L142: 1.00794 | M142: 425063.1015 | N142: =SUMIF(OFFSET(Metered!$I$2,0,0,1,COUNTA(Metered!$I$2:$AA$2)),"Transmission",OFFSET(Metered!$I143,0,0,1,COUNTA(Metered!$I143:$AA143))) -> 28198.1605 | O142: 528773.8563 | P142: 1.01678 | Q142: 537646.6816
A143: 4 | B143: 2019-04-06T21:00:00 | C143: =+Metered!E144 -> 333751.2246 | D143: 1.01354 | E143: 338270.2162 | F143: =SUMIF(OFFSET(Metered!$I$2,0,0,1,COUNTA(Metered!$I$2:$IV$2)),"Primary",OFFSET(Metered!$I144,0,0,1,COUNTA(Metered!$I144:$AA144))) -> 29347.06874 | G143: 367617.285 | H143: 1.00993 | I143: 371267.7246 | J143: =SUMIF(OFFSET(Metered!$I$2,0,0,1,COUNTA(Metered!$I$2:$IV$2)),"Subtransmission",OFFSET(Metered!$I144,0,0,1,COUNTA(Metered!$I144:$AA144))) -> 163925.602 | K143: 451149.6283 | L143: 1.0081 | M143: 454803.9403 | N143: =SUMIF(OFFSET(Metered!$I$2,0,0,1,COUNTA(Metered!$I$2:$AA$2)),"Transmission",OFFSET(Metered!$I144,0,0,1,COUNTA(Metered!$I144:$AA144))) -> 31673.40033 | O143: 570521.0389 | P143: 1.01773 | Q143: 580636.3769
A144: 4 | B144: 2019-04-06T22:00:00 | C144: =+Metered!E145 -> 309961.6237 | D144: 1.01438 | E144: 314418.8719 | F144: =SUMIF(OFFSET(Metered!$I$2,0,0,1,COUNTA(Metered!$I$2:$IV$2)),"Primary",OFFSET(Metered!$I145,0,0,1,COUNTA(Metered!$I145:$AA145))) -> 28980.71702 | G144: 343399.5889 | H144: 1.01024 | I144: 346916.0007 | J144: =SUMIF(OFFSET(Metered!$I$2,0,0,1,COUNTA(Metered!$I$2:$IV$2)),"Subtransmission",OFFSET(Metered!$I145,0,0,1,COUNTA(Metered!$I145:$AA145))) -> 163965.3393 | K144: 432350.1298 | L144: 1.00799 | M144: 435804.6073 | N144: =SUMIF(OFFSET(Metered!$I$2,0,0,1,COUNTA(Metered!$I$2:$AA$2)),"Transmission",OFFSET(Metered!$I145,0,0,1,COUNTA(Metered!$I145:$AA145))) -> 31660.11496 | O144: 545995.9324 | P144: 1.01717 | Q144: 555370.6826
A145: 4 | B145: 2019-04-06T23:00:00 | C145: =+Metered!E146 -> 272413.9733 | D145: 1.01605 | E145: 276786.2176 | F145: =SUMIF(OFFSET(Metered!$I$2,0,0,1,COUNTA(Metered!$I$2:$IV$2)),"Primary",OFFSET(Metered!$I146,0,0,1,COUNTA(Metered!$I146:$AA146))) -> 27358.74378 | G145: 304144.9614 | H145: 1.0109 | I145: 307460.1415 | J145: =SUMIF(OFFSET(Metered!$I$2,0,0,1,COUNTA(Metered!$I$2:$IV$2)),"Subtransmission",OFFSET(Metered!$I146,0,0,1,COUNTA(Metered!$I146:$AA146))) -> 163905.6089 | K145: 401766.1444 | L145: 1.00785 | M145: 404920.0086 | N145: =SUMIF(OFFSET(Metered!$I$2,0,0,1,COUNTA(Metered!$I$2:$AA$2)),"Transmission",OFFSET(Metered!$I146,0,0,1,COUNTA(Metered!$I146:$AA146))) -> 31723.28034 | O145: 506242.895 | P145: 1.01628 | Q145: 514484.5293
A146: 4 | B146: 2019-04-07 | C146: =+Metered!E147 -> 243469.9984 | D146: 1.01771 | E146: 247781.8521 | F146: =SUMIF(OFFSET(Metered!$I$2,0,0,1,COUNTA(Metered!$I$2:$IV$2)),"Primary",OFFSET(Metered!$I147,0,0,1,COUNTA(Metered!$I147:$AA147))) -> 25302.65006 | G146: 273084.5021 | H146: 1.01162 | I146: 276257.7441 | J146: =SUMIF(OFFSET(Metered!$I$2,0,0,1,COUNTA(Metered!$I$2:$IV$2)),"Subtransmission",OFFSET(Metered!$I147,0,0,1,COUNTA(Metered!$I147:$AA147))) -> 163647.0663 | K146: 377368.4761 | L146: 1.00775 | M146: 380293.0818 | N146: =SUMIF(OFFSET(Metered!$I$2,0,0,1,COUNTA(Metered!$I$2:$AA$2)),"Transmission",OFFSET(Metered!$I147,0,0,1,COUNTA(Metered!$I147:$AA147))) -> 31738.25356 | O146: 474567.6696 | P146: 1.0156 | Q146: 481970.9252
A147: 4 | B147: 2019-04-07T01:00:00 | C147: =+Metered!E148 -> 215271.09 | D147: 1.0198 | E147: 219533.4576 | F147: =SUMIF(OFFSET(Metered!$I$2,0,0,1,COUNTA(Metered!$I$2:$IV$2)),"Primary",OFFSET(Metered!$I148,0,0,1,COUNTA(Metered!$I148:$AA148))) -> 24871.20651 | G147: 244404.6641 | H147: 1.01251 | I147: 247462.1664 | J147: =SUMIF(OFFSET(Metered!$I$2,0,0,1,COUNTA(Metered!$I$2:$IV$2)),"Subtransmission",OFFSET(Metered!$I148,0,0,1,COUNTA(Metered!$I148:$AA148))) -> 162832.1962 | K147: 354276.4696 | L147: 1.00769 | M147: 357000.8557 | N147: =SUMIF(OFFSET(Metered!$I$2,0,0,1,COUNTA(Metered!$I$2:$AA$2)),"Transmission",OFFSET(Metered!$I148,0,0,1,COUNTA(Metered!$I148:$AA148))) -> 31738.04952 | O147: 444756.7982 | P147: 1.01498 | Q147: 451419.255
A148: 4 | B148: 2019-04-07T02:00:00 | C148: =+Metered!E149 -> 229732.3813 | D148: 1.01866 | E148: 234019.1876 | F148: =SUMIF(OFFSET(Metered!$I$2,0,0,1,COUNTA(Metered!$I$2:$IV$2)),"Primary",OFFSET(Metered!$I149,0,0,1,COUNTA(Metered!$I149:$AA149))) -> 24610.03789 | G148: 258629.2255 | H148: 1.01204 | I148: 261743.1213 | J148: =SUMIF(OFFSET(Metered!$I$2,0,0,1,COUNTA(Metered!$I$2:$IV$2)),"Subtransmission",OFFSET(Metered!$I149,0,0,1,COUNTA(Metered!$I149:$AA149))) -> 162512.2438 | K148: 365004.6992 | L148: 1.00772 | M148: 367822.5355 | N148: =SUMIF(OFFSET(Metered!$I$2,0,0,1,COUNTA(Metered!$I$2:$AA$2)),"Transmission",OFFSET(Metered!$I149,0,0,1,COUNTA(Metered!$I149:$AA149))) -> 31752.50283 | O148: 458825.7043 | P148: 1.01527 | Q148: 465831.9728
A149: 4 | B149: 2019-04-07T03:00:00 | C149: =+Metered!E150 -> 234016.3611 | D149: 1.01835 | E149: 238310.5614 | F149: =SUMIF(OFFSET(Metered!$I$2,0,0,1,COUNTA(Metered!$I$2:$IV$2)),"Primary",OFFSET(Metered!$I150,0,0,1,COUNTA(Metered!$I150:$AA150))) -> 24723.12812 | G149: 263033.6895 | H149: 1.0119 | I149: 266163.7904 | J149: =SUMIF(OFFSET(Metered!$I$2,0,0,1,COUNTA(Metered!$I$2:$IV$2)),"Subtransmission",OFFSET(Metered!$I150,0,0,1,COUNTA(Metered!$I150:$AA150))) -> 162256.6195 | K149: 368169.0392 | L149: 1.00773 | M149: 371014.9859 | N149: =SUMIF(OFFSET(Metered!$I$2,0,0,1,COUNTA(Metered!$I$2:$AA$2)),"Transmission",OFFSET(Metered!$I150,0,0,1,COUNTA(Metered!$I150:$AA150))) -> 31747.56997 | O149: 463013.9266 | P149: 1.01535 | Q149: 470121.1903
A150: 4 | B150: 2019-04-07T04:00:00 | C150: =+Metered!E151 -> 236167.806 | D150: 1.0182 | E150: 240466.06 | F150: =SUMIF(OFFSET(Metered!$I$2,0,0,1,COUNTA(Metered!$I$2:$IV$2)),"Primary",OFFSET(Metered!$I151,0,0,1,COUNTA(Metered!$I151:$AA151))) -> 24848.38254 | G150: 265314.4426 | H150: 1.01184 | I150: 268455.7656 | J150: =SUMIF(OFFSET(Metered!$I$2,0,0,1,COUNTA(Metered!$I$2:$IV$2)),"Subtransmission",OFFSET(Metered!$I151,0,0,1,COUNTA(Metered!$I151:$AA151))) -> 161561.9574 | K150: 369247.5189 | L150: 1.00773 | M150: 372101.8022 | N150: =SUMIF(OFFSET(Metered!$I$2,0,0,1,COUNTA(Metered!$I$2:$AA$2)),"Transmission",OFFSET(Metered!$I151,0,0,1,COUNTA(Metered!$I151:$AA151))) -> 31773.54886 | O150: 464645.5551 | P150: 1.01539 | Q150: 471796.4502
A151: 4 | B151: 2019-04-07T05:00:00 | C151: =+Metered!E152 -> 259265.388 | D151: 1.01676 | E151: 263610.6759 | F151: =SUMIF(OFFSET(Metered!$I$2,0,0,1,COUNTA(Metered!$I$2:$IV$2)),"Primary",OFFSET(Metered!$I152,0,0,1,COUNTA(Metered!$I152:$AA152))) -> 25226.78793 | G151: 288837.4639 | H151: 1.01123 | I151: 292081.1086 | J151: =SUMIF(OFFSET(Metered!$I$2,0,0,1,COUNTA(Metered!$I$2:$IV$2)),"Subtransmission",OFFSET(Metered!$I152,0,0,1,COUNTA(Metered!$I152:$AA152))) -> 162030.0648 | K151: 387992.9117 | L151: 1.00779 | M151: 391015.3765 | N151: =SUMIF(OFFSET(Metered!$I$2,0,0,1,COUNTA(Metered!$I$2:$AA$2)),"Transmission",OFFSET(Metered!$I152,0,0,1,COUNTA(Metered!$I152:$AA152))) -> 31786.3134 | O151: 488919.9516 | P151: 1.01591 | Q151: 496698.668
A152: 4 | B152: 2019-04-07T06:00:00 | C152: =+Metered!E153 -> 260843.1493 | D152: 1.01667 | E152: 265191.4046 | F152: =SUMIF(OFFSET(Metered!$I$2,0,0,1,COUNTA(Metered!$I$2:$IV$2)),"Primary",OFFSET(Metered!$I153,0,0,1,COUNTA(Metered!$I153:$AA153))) -> 25657.365 | G152: 290848.7696 | H152: 1.01118 | I152: 294100.4588 | J152: =SUMIF(OFFSET(Metered!$I$2,0,0,1,COUNTA(Metered!$I$2:$IV$2)),"Subtransmission",OFFSET(Metered!$I153,0,0,1,COUNTA(Metered!$I153:$AA153))) -> 161120.4782 | K152: 388645.556 | L152: 1.00779 | M152: 391673.1048 | N152: =SUMIF(OFFSET(Metered!$I$2,0,0,1,COUNTA(Metered!$I$2:$AA$2)),"Transmission",OFFSET(Metered!$I153,0,0,1,COUNTA(Metered!$I153:$AA153))) -> 31755.48926 | O152: 490003.9752 | P152: 1.01593 | Q152: 497809.7385
A153: 4 | B153: 2019-04-07T07:00:00 | C153: =+Metered!E154 -> 274938.1343 | D153: 1.01592 | E153: 279315.1494 | F153: =SUMIF(OFFSET(Metered!$I$2,0,0,1,COUNTA(Metered!$I$2:$IV$2)),"Primary",OFFSET(Metered!$I154,0,0,1,COUNTA(Metered!$I154:$AA154))) -> 25656.25212 | G153: 304971.4015 | H153: 1.01088 | I153: 308289.4904 | J153: =SUMIF(OFFSET(Metered!$I$2,0,0,1,COUNTA(Metered!$I$2:$IV$2)),"Subtransmission",OFFSET(Metered!$I154,0,0,1,COUNTA(Metered!$I154:$AA154))) -> 160846.5316 | K153: 399348.6766 | L153: 1.00784 | M153: 402479.5702 | N153: =SUMIF(OFFSET(Metered!$I$2,0,0,1,COUNTA(Metered!$I$2:$AA$2)),"Transmission",OFFSET(Metered!$I154,0,0,1,COUNTA(Metered!$I154:$AA154))) -> 31767.48761 | O153: 504034.4032 | P153: 1.01624 | Q153: 512219.9219
A154: 4 | B154: 2019-04-07T08:00:00 | C154: =+Metered!E155 -> 313582.2411 | D154: 1.01425 | E154: 318050.7881 | F154: =SUMIF(OFFSET(Metered!$I$2,0,0,1,COUNTA(Metered!$I$2:$IV$2)),"Primary",OFFSET(Metered!$I155,0,0,1,COUNTA(Metered!$I155:$AA155))) -> 25758.33725 | G154: 343809.1253 | H154: 1.01023 | I154: 347326.2927 | J154: =SUMIF(OFFSET(Metered!$I$2,0,0,1,COUNTA(Metered!$I$2:$IV$2)),"Subtransmission",OFFSET(Metered!$I155,0,0,1,COUNTA(Metered!$I155:$AA155))) -> 160904.6143 | K154: 429606.8192 | L154: 1.00798 | M154: 433035.0816 | N154: =SUMIF(OFFSET(Metered!$I$2,0,0,1,COUNTA(Metered!$I$2:$AA$2)),"Transmission",OFFSET(Metered!$I155,0,0,1,COUNTA(Metered!$I155:$AA155))) -> 31689.0241 | O154: 543348.1935 | P154: 1.01711 | Q154: 552644.8811
A155: 4 | B155: 2019-04-07T09:00:00 | C155: =+Metered!E156 -> 341763.0261 | D155: 1.01329 | E155: 346305.0567 | F155: =SUMIF(OFFSET(Metered!$I$2,0,0,1,COUNTA(Metered!$I$2:$IV$2)),"Primary",OFFSET(Metered!$I156,0,0,1,COUNTA(Metered!$I156:$AA156))) -> 25792.62438 | G155: 372097.6811 | H155: 1.00988 | I155: 375774.0062 | J155: =SUMIF(OFFSET(Metered!$I$2,0,0,1,COUNTA(Metered!$I$2:$IV$2)),"Subtransmission",OFFSET(Metered!$I156,0,0,1,COUNTA(Metered!$I156:$AA156))) -> 162183.4862 | K155: 452893.7092 | L155: 1.00811 | M155: 456566.6771 | N155: =SUMIF(OFFSET(Metered!$I$2,0,0,1,COUNTA(Metered!$I$2:$AA$2)),"Transmission",OFFSET(Metered!$I156,0,0,1,COUNTA(Metered!$I156:$AA156))) -> 31698.32203 | O155: 573328.7823 | P155: 1.0178 | Q155: 583534.0346
A156: 4 | B156: 2019-04-07T10:00:00 | C156: =+Metered!E157 -> 320671.3578 | D156: 1.01399 | E156: 325157.5501 | F156: =SUMIF(OFFSET(Metered!$I$2,0,0,1,COUNTA(Metered!$I$2:$IV$2)),"Primary",OFFSET(Metered!$I157,0,0,1,COUNTA(Metered!$I157:$AA157))) -> 25646.03447 | G156: 350803.5846 | H156: 1.01014 | I156: 354360.7329 | J156: =SUMIF(OFFSET(Metered!$I$2,0,0,1,COUNTA(Metered!$I$2:$IV$2)),"Subtransmission",OFFSET(Metered!$I157,0,0,1,COUNTA(Metered!$I157:$AA157))) -> 162916.1462 | K156: 437060.4085 | L156: 1.00802 | M156: 440565.633 | N156: =SUMIF(OFFSET(Metered!$I$2,0,0,1,COUNTA(Metered!$I$2:$AA$2)),"Transmission",OFFSET(Metered!$I157,0,0,1,COUNTA(Metered!$I157:$AA157))) -> 31735.38491 | O156: 552517.4885 | P156: 1.01732 | Q156: 562087.0915
A157: 4 | B157: 2019-04-07T11:00:00 | C157: =+Metered!E158 -> 291606.4526 | D157: 1.01514 | E157: 296021.3743 | F157: =SUMIF(OFFSET(Metered!$I$2,0,0,1,COUNTA(Metered!$I$2:$IV$2)),"Primary",OFFSET(Metered!$I158,0,0,1,COUNTA(Metered!$I158:$AA158))) -> 26233.72275 | G157: 322255.0971 | H157: 1.01056 | I157: 325658.1109 | J157: =SUMIF(OFFSET(Metered!$I$2,0,0,1,COUNTA(Metered!$I$2:$IV$2)),"Subtransmission",OFFSET(Metered!$I158,0,0,1,COUNTA(Metered!$I158:$AA158))) -> 162647.3523 | K157: 414586.3914 | L157: 1.0079 | M157: 417861.6239 | N157: =SUMIF(OFFSET(Metered!$I$2,0,0,1,COUNTA(Metered!$I$2:$AA$2)),"Transmission",OFFSET(Metered!$I158,0,0,1,COUNTA(Metered!$I158:$AA158))) -> 31761.35331 | O157: 523342.049 | P157: 1.01666 | Q157: 532060.9275
A158: 4 | B158: 2019-04-07T12:00:00 | C158: =+Metered!E159 -> 261613.1814 | D158: 1.01662 | E158: 265961.1925 | F158: =SUMIF(OFFSET(Metered!$I$2,0,0,1,COUNTA(Metered!$I$2:$IV$2)),"Primary",OFFSET(Metered!$I159,0,0,1,COUNTA(Metered!$I159:$AA159))) -> 26716.14616 | G158: 292677.3387 | H158: 1.01114 | I158: 295937.7642 | J158: =SUMIF(OFFSET(Metered!$I$2,0,0,1,COUNTA(Metered!$I$2:$IV$2)),"Subtransmission",OFFSET(Metered!$I159,0,0,1,COUNTA(Metered!$I159:$AA159))) -> 162202.0158 | K158: 391148.489 | L158: 1.0078 | M158: 394199.4473 | N158: =SUMIF(OFFSET(Metered!$I$2,0,0,1,COUNTA(Metered!$I$2:$AA$2)),"Transmission",OFFSET(Metered!$I159,0,0,1,COUNTA(Metered!$I159:$AA159))) -> 31861.40845 | O158: 493052.1467 | P158: 1.016 | Q158: 500940.9811
A159: 4 | B159: 2019-04-07T13:00:00 | C159: =+Metered!E160 -> 264560.0712 | D159: 1.01646 | E159: 268914.73 | F159: =SUMIF(OFFSET(Metered!$I$2,0,0,1,COUNTA(Metered!$I$2:$IV$2)),"Primary",OFFSET(Metered!$I160,0,0,1,COUNTA(Metered!$I160:$AA160))) -> 26924.96325 | G159: 295839.6933 | H159: 1.01107 | I159: 299114.6387 | J159: =SUMIF(OFFSET(Metered!$I$2,0,0,1,COUNTA(Metered!$I$2:$IV$2)),"Subtransmission",OFFSET(Metered!$I160,0,0,1,COUNTA(Metered!$I160:$AA160))) -> 162078.0534 | K159: 393482.2535 | L159: 1.00781 | M159: 396555.3499 | N159: =SUMIF(OFFSET(Metered!$I$2,0,0,1,COUNTA(Metered!$I$2:$AA$2)),"Transmission",OFFSET(Metered!$I160,0,0,1,COUNTA(Metered!$I160:$AA160))) -> 31905.74482 | O159: 496171.5333 | P159: 1.01606 | Q159: 504140.0481
A160: 4 | B160: 2019-04-07T14:00:00 | C160: =+Metered!E161 -> 301885.8979 | D160: 1.0147 | E160: 306323.6206 | F160: =SUMIF(OFFSET(Metered!$I$2,0,0,1,COUNTA(Metered!$I$2:$IV$2)),"Primary",OFFSET(Metered!$I161,0,0,1,COUNTA(Metered!$I161:$AA161))) -> 27038.31737 | G160: 333361.938 | H160: 1.01038 | I160: 336822.2349 | J160: =SUMIF(OFFSET(Metered!$I$2,0,0,1,COUNTA(Metered!$I$2:$IV$2)),"Subtransmission",OFFSET(Metered!$I161,0,0,1,COUNTA(Metered!$I161:$AA161))) -> 162057.4696 | K160: 422633.4153 | L160: 1.00794 | M160: 425989.1246 | N160: =SUMIF(OFFSET(Metered!$I$2,0,0,1,COUNTA(Metered!$I$2:$AA$2)),"Transmission",OFFSET(Metered!$I161,0,0,1,COUNTA(Metered!$I161:$AA161))) -> 31733.07113 | O160: 533968.4849 | P160: 1.0169 | Q160: 542992.5523
A161: 4 | B161: 2019-04-07T15:00:00 | C161: =+Metered!E162 -> 285821.0177 | D161: 1.0154 | E161: 290222.6614 | F161: =SUMIF(OFFSET(Metered!$I$2,0,0,1,COUNTA(Metered!$I$2:$IV$2)),"Primary",OFFSET(Metered!$I162,0,0,1,COUNTA(Metered!$I162:$AA162))) -> 26789.43405 | G161: 317012.0954 | H161: 1.01066 | I161: 320391.4444 | J161: =SUMIF(OFFSET(Metered!$I$2,0,0,1,COUNTA(Metered!$I$2:$IV$2)),"Subtransmission",OFFSET(Metered!$I162,0,0,1,COUNTA(Metered!$I162:$AA162))) -> 161703.6404 | K161: 409568.2258 | L161: 1.00788 | M161: 412795.6234 | N161: =SUMIF(OFFSET(Metered!$I$2,0,0,1,COUNTA(Metered!$I$2:$AA$2)),"Transmission",OFFSET(Metered!$I162,0,0,1,COUNTA(Metered!$I162:$AA162))) -> 31719.16594 | O161: 517041.6483 | P161: 1.01652 | Q161: 525583.1763
A162: 4 | B162: 2019-04-07T16:00:00 | C162: =+Metered!E163 -> 270919.8916 | D162: 1.01613 | E162: 275289.8295 | F162: =SUMIF(OFFSET(Metered!$I$2,0,0,1,COUNTA(Metered!$I$2:$IV$2)),"Primary",OFFSET(Metered!$I163,0,0,1,COUNTA(Metered!$I163:$AA163))) -> 26482.17447 | G162: 301772.0039 | H162: 1.01095 | I162: 305076.4074 | J162: =SUMIF(OFFSET(Metered!$I$2,0,0,1,COUNTA(Metered!$I$2:$IV$2)),"Subtransmission",OFFSET(Metered!$I163,0,0,1,COUNTA(Metered!$I163:$AA163))) -> 161321.9507 | K162: 397338.3568 | L162: 1.00783 | M162: 400449.5161 | N162: =SUMIF(OFFSET(Metered!$I$2,0,0,1,COUNTA(Metered!$I$2:$AA$2)),"Transmission",OFFSET(Metered!$I163,0,0,1,COUNTA(Metered!$I163:$AA163))) -> 31729.43573 | O162: 501238.9532 | P162: 1.01617 | Q162: 509343.9871
A163: 4 | B163: 2019-04-07T17:00:00 | C163: =+Metered!E164 -> 293564.3398 | D163: 1.01505 | E163: 297982.4831 | F163: =SUMIF(OFFSET(Metered!$I$2,0,0,1,COUNTA(Metered!$I$2:$IV$2)),"Primary",OFFSET(Metered!$I164,0,0,1,COUNTA(Metered!$I164:$AA164))) -> 26722.47542 | G163: 324704.9586 | H163: 1.01052 | I163: 328120.8547 | J163: =SUMIF(OFFSET(Metered!$I$2,0,0,1,COUNTA(Metered!$I$2:$IV$2)),"Subtransmission",OFFSET(Metered!$I164,0,0,1,COUNTA(Metered!$I164:$AA164))) -> 160423.395 | K163: 414267.6878 | L163: 1.0079 | M163: 417540.4026 | N163: =SUMIF(OFFSET(Metered!$I$2,0,0,1,COUNTA(Metered!$I$2:$AA$2)),"Transmission",OFFSET(Metered!$I164,0,0,1,COUNTA(Metered!$I164:$AA164))) -> 31763.15753 | O163: 523580.122 | P163: 1.01667 | Q163: 532308.2026
A164: 4 | B164: 2019-04-07T18:00:00 | C164: =+Metered!E165 -> 308920.0109 | D164: 1.01443 | E164: 313377.7267 | F164: =SUMIF(OFFSET(Metered!$I$2,0,0,1,COUNTA(Metered!$I$2:$IV$2)),"Primary",OFFSET(Metered!$I165,0,0,1,COUNTA(Metered!$I165:$AA165))) -> 26812.83556 | G164: 340190.5622 | H164: 1.01028 | I164: 343687.7212 | J164: =SUMIF(OFFSET(Metered!$I$2,0,0,1,COUNTA(Metered!$I$2:$IV$2)),"Subtransmission",OFFSET(Metered!$I165,0,0,1,COUNTA(Metered!$I165:$AA165))) -> 159916.3828 | K164: 425803.6779 | L164: 1.00796 | M164: 429193.0752 | N164: =SUMIF(OFFSET(Metered!$I$2,0,0,1,COUNTA(Metered!$I$2:$AA$2)),"Transmission",OFFSET(Metered!$I165,0,0,1,COUNTA(Metered!$I165:$AA165))) -> 31818.47182 | O164: 538811.9731 | P164: 1.01701 | Q164: 547977.1647
A165: 4 | B165: 2019-04-07T19:00:00 | C165: =+Metered!E166 -> 292914.7965 | D165: 1.01508 | E165: 297331.9516 | F165: =SUMIF(OFFSET(Metered!$I$2,0,0,1,COUNTA(Metered!$I$2:$IV$2)),"Primary",OFFSET(Metered!$I166,0,0,1,COUNTA(Metered!$I166:$AA166))) -> 26530.54253 | G165: 323862.4942 | H165: 1.01054 | I165: 327276.0049 | J165: =SUMIF(OFFSET(Metered!$I$2,0,0,1,COUNTA(Metered!$I$2:$IV$2)),"Subtransmission",OFFSET(Metered!$I166,0,0,1,COUNTA(Metered!$I166:$AA166))) -> 160762.396 | K165: 413953.0873 | L165: 1.0079 | M165: 417223.3166 | N165: =SUMIF(OFFSET(Metered!$I$2,0,0,1,COUNTA(Metered!$I$2:$AA$2)),"Transmission",OFFSET(Metered!$I166,0,0,1,COUNTA(Metered!$I166:$AA166))) -> 31842.08591 | O165: 523150.7162 | P165: 1.01666 | Q165: 531866.4071
A166: 4 | B166: 2019-04-07T20:00:00 | C166: =+Metered!E167 -> 304903.9449 | D166: 1.01458 | E166: 309349.4444 | F166: =SUMIF(OFFSET(Metered!$I$2,0,0,1,COUNTA(Metered!$I$2:$IV$2)),"Primary",OFFSET(Metered!$I167,0,0,1,COUNTA(Metered!$I167:$AA167))) -> 26593.97551 | G166: 335943.4199 | H166: 1.01035 | I166: 339420.4343 | J166: =SUMIF(OFFSET(Metered!$I$2,0,0,1,COUNTA(Metered!$I$2:$IV$2)),"Subtransmission",OFFSET(Metered!$I167,0,0,1,COUNTA(Metered!$I167:$AA167))) -> 161233.1697 | K166: 423819.1617 | L166: 1.00795 | M166: 427188.524 | N166: =SUMIF(OFFSET(Metered!$I$2,0,0,1,COUNTA(Metered!$I$2:$AA$2)),"Transmission",OFFSET(Metered!$I167,0,0,1,COUNTA(Metered!$I167:$AA167))) -> 31920.18423 | O166: 535943.1506 | P166: 1.01695 | Q166: 545027.387
A167: 4 | B167: 2019-04-07T21:00:00 | C167: =+Metered!E168 -> 288053.0063 | D167: 1.0153 | E167: 292460.2173 | F167: =SUMIF(OFFSET(Metered!$I$2,0,0,1,COUNTA(Metered!$I$2:$IV$2)),"Primary",OFFSET(Metered!$I168,0,0,1,COUNTA(Metered!$I168:$AA168))) -> 26189.85698 | G167: 318650.0742 | H167: 1.01063 | I167: 322037.3245 | J167: =SUMIF(OFFSET(Metered!$I$2,0,0,1,COUNTA(Metered!$I$2:$IV$2)),"Subtransmission",OFFSET(Metered!$I168,0,0,1,COUNTA(Metered!$I168:$AA168))) -> 159341.315 | K167: 408479.2035 | L167: 1.00788 | M167: 411698.0196 | N167: =SUMIF(OFFSET(Metered!$I$2,0,0,1,COUNTA(Metered!$I$2:$AA$2)),"Transmission",OFFSET(Metered!$I168,0,0,1,COUNTA(Metered!$I168:$AA168))) -> 31963.64085 | O167: 516561.0965 | P167: 1.01651 | Q167: 525089.5202
A168: 4 | B168: 2019-04-07T22:00:00 | C168: =+Metered!E169 -> 271670.5635 | D168: 1.01609 | E168: 276041.7429 | F168: =SUMIF(OFFSET(Metered!$I$2,0,0,1,COUNTA(Metered!$I$2:$IV$2)),"Primary",OFFSET(Metered!$I169,0,0,1,COUNTA(Metered!$I169:$AA169))) -> 26052.67559 | G168: 302094.4185 | H168: 1.01094 | I168: 305399.3314 | J168: =SUMIF(OFFSET(Metered!$I$2,0,0,1,COUNTA(Metered!$I$2:$IV$2)),"Subtransmission",OFFSET(Metered!$I169,0,0,1,COUNTA(Metered!$I169:$AA169))) -> 154842.3055 | K168: 391108.5354 | L168: 1.0078 | M168: 394159.182 | N168: =SUMIF(OFFSET(Metered!$I$2,0,0,1,COUNTA(Metered!$I$2:$AA$2)),"Transmission",OFFSET(Metered!$I169,0,0,1,COUNTA(Metered!$I169:$AA169))) -> 32160.17166 | O168: 495452.4551 | P168: 1.01605 | Q168: 503404.467
A169: 4 | B169: 2019-04-07T23:00:00 | C169: =+Metered!E170 -> 225513.0235 | D169: 1.01898 | E169: 229793.2607 | F169: =SUMIF(OFFSET(Metered!$I$2,0,0,1,COUNTA(Metered!$I$2:$IV$2)),"Primary",OFFSET(Metered!$I170,0,0,1,COUNTA(Metered!$I170:$AA170))) -> 26054.16838 | G169: 255847.429 | H169: 1.01212 | I169: 258948.2999 | J169: =SUMIF(OFFSET(Metered!$I$2,0,0,1,COUNTA(Metered!$I$2:$IV$2)),"Subtransmission",OFFSET(Metered!$I170,0,0,1,COUNTA(Metered!$I170:$AA170))) -> 155442.8994 | K169: 355773.1958 | L169: 1.0077 | M169: 358512.6494 | N169: =SUMIF(OFFSET(Metered!$I$2,0,0,1,COUNTA(Metered!$I$2:$AA$2)),"Transmission",OFFSET(Metered!$I170,0,0,1,COUNTA(Metered!$I170:$AA170))) -> 32016.87678 | O169: 449147.5297 | P169: 1.01507 | Q169: 455916.183
A170: 4 | B170: 2019-04-08 | C170: =+Metered!E171 -> 211568.324 | D170: 1.02011 | E170: 215822.963 | F170: =SUMIF(OFFSET(Metered!$I$2,0,0,1,COUNTA(Metered!$I$2:$IV$2)),"Primary",OFFSET(Metered!$I171,0,0,1,COUNTA(Metered!$I171:$AA171))) -> 25981.06324 | G170: 241804.0262 | H170: 1.0126 | I170: 244850.757 | J170: =SUMIF(OFFSET(Metered!$I$2,0,0,1,COUNTA(Metered!$I$2:$IV$2)),"Subtransmission",OFFSET(Metered!$I171,0,0,1,COUNTA(Metered!$I171:$AA171))) -> 154867.0991 | K170: 344291.1066 | L170: 1.00768 | M170: 346935.2623 | N170: =SUMIF(OFFSET(Metered!$I$2,0,0,1,COUNTA(Metered!$I$2:$AA$2)),"Transmission",OFFSET(Metered!$I171,0,0,1,COUNTA(Metered!$I171:$AA171))) -> 32265.48307 | O170: 434627.4948 | P170: 1.01477 | Q170: 441046.9429
A171: 4 | B171: 2019-04-08T01:00:00 | C171: =+Metered!E172 -> 203171.3046 | D171: 1.02088 | E171: 207413.5215 | F171: =SUMIF(OFFSET(Metered!$I$2,0,0,1,COUNTA(Metered!$I$2:$IV$2)),"Primary",OFFSET(Metered!$I172,0,0,1,COUNTA(Metered!$I172:$AA172))) -> 25450.62371 | G171: 232864.1452 | H171: 1.01294 | I171: 235877.4072 | J171: =SUMIF(OFFSET(Metered!$I$2,0,0,1,COUNTA(Metered!$I$2:$IV$2)),"Subtransmission",OFFSET(Metered!$I172,0,0,1,COUNTA(Metered!$I172:$AA172))) -> 154243.2271 | K171: 336725.1778 | L171: 1.00767 | M171: 339307.8599 | N171: =SUMIF(OFFSET(Metered!$I$2,0,0,1,COUNTA(Metered!$I$2:$AA$2)),"Transmission",OFFSET(Metered!$I172,0,0,1,COUNTA(Metered!$I172:$AA172))) -> 32048.86865 | O171: 424752.1851 | P171: 1.01457 | Q171: 430940.8245
A172: 4 | B172: 2019-04-08T02:00:00 | C172: =+Metered!E173 -> 207059.9326 | D172: 1.02051 | E172: 211306.7318 | F172: =SUMIF(OFFSET(Metered!$I$2,0,0,1,COUNTA(Metered!$I$2:$IV$2)),"Primary",OFFSET(Metered!$I173,0,0,1,COUNTA(Metered!$I173:$AA173))) -> 25586.73882 | G172: 236893.4707 | H172: 1.01278 | I172: 239920.9692 | J172: =SUMIF(OFFSET(Metered!$I$2,0,0,1,COUNTA(Metered!$I$2:$IV$2)),"Subtransmission",OFFSET(Metered!$I173,0,0,1,COUNTA(Metered!$I173:$AA173))) -> 154264.4552 | K172: 339874.6287 | L172: 1.00767 | M172: 342481.4671 | N172: =SUMIF(OFFSET(Metered!$I$2,0,0,1,COUNTA(Metered!$I$2:$AA$2)),"Transmission",OFFSET(Metered!$I173,0,0,1,COUNTA(Metered!$I173:$AA173))) -> 31791.97084 | O172: 428584.2337 | P172: 1.01465 | Q172: 434862.9927
A173: 4 | B173: 2019-04-08T03:00:00 | C173: =+Metered!E174 -> 205118.1698 | D173: 1.02069 | E173: 209362.0647 | F173: =SUMIF(OFFSET(Metered!$I$2,0,0,1,COUNTA(Metered!$I$2:$IV$2)),"Primary",OFFSET(Metered!$I174,0,0,1,COUNTA(Metered!$I174:$AA174))) -> 25830.12555 | G173: 235192.1902 | H173: 1.01285 | I173: 238214.4099 | J173: =SUMIF(OFFSET(Metered!$I$2,0,0,1,COUNTA(Metered!$I$2:$IV$2)),"Subtransmission",OFFSET(Metered!$I174,0,0,1,COUNTA(Metered!$I174:$AA174))) -> 154252.4619 | K173: 338542.3891 | L173: 1.00767 | M173: 341139.0092 | N173: =SUMIF(OFFSET(Metered!$I$2,0,0,1,COUNTA(Metered!$I$2:$AA$2)),"Transmission",OFFSET(Metered!$I174,0,0,1,COUNTA(Metered!$I174:$AA174))) -> 31778.90673 | O173: 426842.3986 | P173: 1.01461 | Q173: 433078.5661
A174: 4 | B174: 2019-04-08T04:00:00 | C174: =+Metered!E175 -> 206906.5554 | D174: 1.02053 | E174: 211154.347 | F174: =SUMIF(OFFSET(Metered!$I$2,0,0,1,COUNTA(Metered!$I$2:$IV$2)),"Primary",OFFSET(Metered!$I175,0,0,1,COUNTA(Metered!$I175:$AA175))) -> 26821.45121 | G174: 237975.7982 | H174: 1.01274 | I174: 241007.6099 | J174: =SUMIF(OFFSET(Metered!$I$2,0,0,1,COUNTA(Metered!$I$2:$IV$2)),"Subtransmission",OFFSET(Metered!$I175,0,0,1,COUNTA(Metered!$I175:$AA175))) -> 154223.6009 | K174: 340674.4327 | L174: 1.00767 | M174: 343287.4056 | N174: =SUMIF(OFFSET(Metered!$I$2,0,0,1,COUNTA(Metered!$I$2:$AA$2)),"Transmission",OFFSET(Metered!$I175,0,0,1,COUNTA(Metered!$I175:$AA175))) -> 31756.01336 | O174: 429600.1971 | P174: 1.01467 | Q174: 435902.432
A175: 4 | B175: 2019-04-08T05:00:00 | C175: =+Metered!E176 -> 224530.6641 | D175: 1.01905 | E175: 228807.9732 | F175: =SUMIF(OFFSET(Metered!$I$2,0,0,1,COUNTA(Metered!$I$2:$IV$2)),"Primary",OFFSET(Metered!$I176,0,0,1,COUNTA(Metered!$I176:$AA176))) -> 28633.35697 | G175: 257441.3302 | H175: 1.01207 | I175: 260548.6471 | J175: =SUMIF(OFFSET(Metered!$I$2,0,0,1,COUNTA(Metered!$I$2:$IV$2)),"Subtransmission",OFFSET(Metered!$I176,0,0,1,COUNTA(Metered!$I176:$AA176))) -> 155292.6546 | K175: 356861.0282 | L175: 1.0077 | M175: 359608.8582 | N175: =SUMIF(OFFSET(Metered!$I$2,0,0,1,COUNTA(Metered!$I$2:$AA$2)),"Transmission",OFFSET(Metered!$I176,0,0,1,COUNTA(Metered!$I176:$AA176))) -> 31782.95638 | O175: 450372.0879 | P175: 1.01509 | Q175: 457168.2027
A176: 4 | B176: 2019-04-08T06:00:00 | C176: =+Metered!E177 -> 271760.815 | D176: 1.01608 | E176: 276130.7289 | F176: =SUMIF(OFFSET(Metered!$I$2,0,0,1,COUNTA(Metered!$I$2:$IV$2)),"Primary",OFFSET(Metered!$I177,0,0,1,COUNTA(Metered!$I177:$AA177))) -> 35517.75185 | G176: 311648.4807 | H176: 1.01075 | I176: 314998.7019 | J176: =SUMIF(OFFSET(Metered!$I$2,0,0,1,COUNTA(Metered!$I$2:$IV$2)),"Subtransmission",OFFSET(Metered!$I177,0,0,1,COUNTA(Metered!$I177:$AA177))) -> 157993.9643 | K176: 401686.5598 | L176: 1.00785 | M176: 404839.7993 | N176: =SUMIF(OFFSET(Metered!$I$2,0,0,1,COUNTA(Metered!$I$2:$AA$2)),"Transmission",OFFSET(Metered!$I177,0,0,1,COUNTA(Metered!$I177:$AA177))) -> 31744.17757 | O176: 507890.0833 | P176: 1.01632 | Q176: 516178.8494
A177: 4 | B177: 2019-04-08T07:00:00 | C177: =+Metered!E178 -> 289525.9323 | D177: 1.01523 | E177: 293935.4122 | F177: =SUMIF(OFFSET(Metered!$I$2,0,0,1,COUNTA(Metered!$I$2:$IV$2)),"Primary",OFFSET(Metered!$I178,0,0,1,COUNTA(Metered!$I178:$AA178))) -> 41149.06084 | G177: 335084.4731 | H177: 1.01036 | I177: 338555.9482 | J177: =SUMIF(OFFSET(Metered!$I$2,0,0,1,COUNTA(Metered!$I$2:$IV$2)),"Subtransmission",OFFSET(Metered!$I178,0,0,1,COUNTA(Metered!$I178:$AA178))) -> 164371.4763 | K177: 426288.6754 | L177: 1.00796 | M177: 429681.9333 | N177: =SUMIF(OFFSET(Metered!$I$2,0,0,1,COUNTA(Metered!$I$2:$AA$2)),"Transmission",OFFSET(Metered!$I178,0,0,1,COUNTA(Metered!$I178:$AA178))) -> 31873.52162 | O177: 538194.204 | P177: 1.017 | Q177: 547343.5054
A178: 4 | B178: 2019-04-08T08:00:00 | C178: =+Metered!E179 -> 317501.58 | D178: 1.0141 | E178: 321978.3523 | F178: =SUMIF(OFFSET(Metered!$I$2,0,0,1,COUNTA(Metered!$I$2:$IV$2)),"Primary",OFFSET(Metered!$I179,0,0,1,COUNTA(Metered!$I179:$AA179))) -> 44644.23586 | G178: 366622.5881 | H178: 1.00994 | I178: 370266.8167 | J178: =SUMIF(OFFSET(Metered!$I$2,0,0,1,COUNTA(Metered!$I$2:$IV$2)),"Subtransmission",OFFSET(Metered!$I179,0,0,1,COUNTA(Metered!$I179:$AA179))) -> 166465.3364 | K178: 452915.0298 | L178: 1.00811 | M178: 456588.1707 | N178: =SUMIF(OFFSET(Metered!$I$2,0,0,1,COUNTA(Metered!$I$2:$AA$2)),"Transmission",OFFSET(Metered!$I179,0,0,1,COUNTA(Metered!$I179:$AA179))) -> 31946.05525 | O178: 572351.3492 | P178: 1.01778 | Q178: 582527.7562
A179: 4 | B179: 2019-04-08T09:00:00 | C179: =+Metered!E180 -> 320826.3936 | D179: 1.01398 | E179: 325311.5466 | F179: =SUMIF(OFFSET(Metered!$I$2,0,0,1,COUNTA(Metered!$I$2:$IV$2)),"Primary",OFFSET(Metered!$I180,0,0,1,COUNTA(Metered!$I180:$AA180))) -> 44810.46157 | G179: 370122.0082 | H179: 1.0099 | I179: 373786.2161 | J179: =SUMIF(OFFSET(Metered!$I$2,0,0,1,COUNTA(Metered!$I$2:$IV$2)),"Subtransmission",OFFSET(Metered!$I180,0,0,1,COUNTA(Metered!$I180:$AA180))) -> 168610.0567 | K179: 457782.4647 | L179: 1.00814 | M179: 461508.814 | N179: =SUMIF(OFFSET(Metered!$I$2,0,0,1,COUNTA(Metered!$I$2:$AA$2)),"Transmission",OFFSET(Metered!$I180,0,0,1,COUNTA(Metered!$I180:$AA180))) -> 32212.82852 | O179: 578335.4506 | P179: 1.01791 | Q179: 588693.4385
A180: 4 | B180: 2019-04-08T10:00:00 | C180: =+Metered!E181 -> 317856.4673 | D180: 1.01409 | E180: 322335.065 | F180: =SUMIF(OFFSET(Metered!$I$2,0,0,1,COUNTA(Metered!$I$2:$IV$2)),"Primary",OFFSET(Metered!$I181,0,0,1,COUNTA(Metered!$I181:$AA181))) -> 45527.59111 | G180: 367862.6561 | H180: 1.00993 | I180: 371515.5322 | J180: =SUMIF(OFFSET(Metered!$I$2,0,0,1,COUNTA(Metered!$I$2:$IV$2)),"Subtransmission",OFFSET(Metered!$I181,0,0,1,COUNTA(Metered!$I181:$AA181))) -> 165774.1457 | K180: 453189.8835 | L180: 1.00811 | M180: 456865.2534 | N180: =SUMIF(OFFSET(Metered!$I$2,0,0,1,COUNTA(Metered!$I$2:$AA$2)),"Transmission",OFFSET(Metered!$I181,0,0,1,COUNTA(Metered!$I181:$AA181))) -> 32272.42022 | O180: 573237.4681 | P180: 1.0178 | Q180: 583441.095
A181: 4 | B181: 2019-04-08T11:00:00 | C181: =+Metered!E182 -> 353487.0113 | D181: 1.01294 | E181: 358061.1332 | F181: =SUMIF(OFFSET(Metered!$I$2,0,0,1,COUNTA(Metered!$I$2:$IV$2)),"Primary",OFFSET(Metered!$I182,0,0,1,COUNTA(Metered!$I182:$AA182))) -> 44870.09951 | G181: 402931.2327 | H181: 1.00959 | I181: 406795.3432 | J181: =SUMIF(OFFSET(Metered!$I$2,0,0,1,COUNTA(Metered!$I$2:$IV$2)),"Subtransmission",OFFSET(Metered!$I182,0,0,1,COUNTA(Metered!$I182:$AA182))) -> 168980.4026 | K181: 483689.6774 | L181: 1.0083 | M181: 487704.3017 | N181: =SUMIF(OFFSET(Metered!$I$2,0,0,1,COUNTA(Metered!$I$2:$AA$2)),"Transmission",OFFSET(Metered!$I182,0,0,1,COUNTA(Metered!$I182:$AA182))) -> 32817.23742 | O181: 612607.6076 | P181: 1.01872 | Q181: 624075.622
A182: 4 | B182: 2019-04-08T12:00:00 | C182: =+Metered!E183 -> 346593.4544 | D182: 1.01314 | E182: 351147.6924 | F182: =SUMIF(OFFSET(Metered!$I$2,0,0,1,COUNTA(Metered!$I$2:$IV$2)),"Primary",OFFSET(Metered!$I183,0,0,1,COUNTA(Metered!$I183:$AA183))) -> 45026.2208 | G182: 396173.9132 | H182: 1.00965 | I182: 399996.9914 | J182: =SUMIF(OFFSET(Metered!$I$2,0,0,1,COUNTA(Metered!$I$2:$IV$2)),"Subtransmission",OFFSET(Metered!$I183,0,0,1,COUNTA(Metered!$I183:$AA183))) -> 167299.9834 | K182: 476749.8461 | L182: 1.00826 | M182: 480687.7998 | N182: =SUMIF(OFFSET(Metered!$I$2,0,0,1,COUNTA(Metered!$I$2:$AA$2)),"Transmission",OFFSET(Metered!$I183,0,0,1,COUNTA(Metered!$I183:$AA183))) -> 33368.14627 | O182: 604603.0749 | P182: 1.01853 | Q182: 615806.3699
A183: 4 | B183: 2019-04-08T13:00:00 | C183: =+Metered!E184 -> 340241.7677 | D183: 1.01333 | E183: 344777.1904 | F183: =SUMIF(OFFSET(Metered!$I$2,0,0,1,COUNTA(Metered!$I$2:$IV$2)),"Primary",OFFSET(Metered!$I184,0,0,1,COUNTA(Metered!$I184:$AA184))) -> 44794.90861 | G183: 389572.0991 | H183: 1.00971 | I183: 393354.8441 | J183: =SUMIF(OFFSET(Metered!$I$2,0,0,1,COUNTA(Metered!$I$2:$IV$2)),"Subtransmission",OFFSET(Metered!$I184,0,0,1,COUNTA(Metered!$I184:$AA184))) -> 168922.5086 | K183: 473233.8036 | L183: 1.00823 | M183: 477128.5178 | N183: =SUMIF(OFFSET(Metered!$I$2,0,0,1,COUNTA(Metered!$I$2:$AA$2)),"Transmission",OFFSET(Metered!$I184,0,0,1,COUNTA(Metered!$I184:$AA184))) -> 33233.05488 | O183: 599405.1218 | P183: 1.01841 | Q183: 610440.1701
A184: 4 | B184: 2019-04-08T14:00:00 | C184: =+Metered!E185 -> 314206.2943 | D184: 1.01422 | E184: 318674.3078 | F184: =SUMIF(OFFSET(Metered!$I$2,0,0,1,COUNTA(Metered!$I$2:$IV$2)),"Primary",OFFSET(Metered!$I185,0,0,1,COUNTA(Metered!$I185:$AA185))) -> 45422.67113 | G184: 364096.9789 | H184: 1.00997 | I184: 367727.0258 | J184: =SUMIF(OFFSET(Metered!$I$2,0,0,1,COUNTA(Metered!$I$2:$IV$2)),"Subtransmission",OFFSET(Metered!$I185,0,0,1,COUNTA(Metered!$I185:$AA185))) -> 169725.5716 | K184: 454210.4054 | L184: 1.00812 | M184: 457898.5939 | N184: =SUMIF(OFFSET(Metered!$I$2,0,0,1,COUNTA(Metered!$I$2:$AA$2)),"Transmission",OFFSET(Metered!$I185,0,0,1,COUNTA(Metered!$I185:$AA185))) -> 32349.2328 | O184: 573490.0187 | P184: 1.0178 | Q184: 583698.1411
A185: 4 | B185: 2019-04-08T15:00:00 | C185: =+Metered!E186 -> 321820.0635 | D185: 1.01395 | E185: 326309.4533 | F185: =SUMIF(OFFSET(Metered!$I$2,0,0,1,COUNTA(Metered!$I$2:$IV$2)),"Primary",OFFSET(Metered!$I186,0,0,1,COUNTA(Metered!$I186:$AA186))) -> 43521.49721 | G185: 369830.9505 | H185: 1.00991 | I185: 373495.9753 | J185: =SUMIF(OFFSET(Metered!$I$2,0,0,1,COUNTA(Metered!$I$2:$IV$2)),"Subtransmission",OFFSET(Metered!$I186,0,0,1,COUNTA(Metered!$I186:$AA186))) -> 166837.255 | K185: 455785.1239 | L185: 1.00813 | M185: 459490.6569 | N185: =SUMIF(OFFSET(Metered!$I$2,0,0,1,COUNTA(Metered!$I$2:$AA$2)),"Transmission",OFFSET(Metered!$I186,0,0,1,COUNTA(Metered!$I186:$AA186))) -> 32047.54614 | O185: 576086.3095 | P185: 1.01786 | Q185: 586375.211
A186: 4 | B186: 2019-04-08T16:00:00 | C186: =+Metered!E187 -> 302790.3872 | D186: 1.01467 | E186: 307232.3222 | F186: =SUMIF(OFFSET(Metered!$I$2,0,0,1,COUNTA(Metered!$I$2:$IV$2)),"Primary",OFFSET(Metered!$I187,0,0,1,COUNTA(Metered!$I187:$AA187))) -> 41069.73985 | G186: 348302.0621 | H186: 1.01017 | I186: 351844.294 | J186: =SUMIF(OFFSET(Metered!$I$2,0,0,1,COUNTA(Metered!$I$2:$IV$2)),"Subtransmission",OFFSET(Metered!$I187,0,0,1,COUNTA(Metered!$I187:$AA187))) -> 164468.3487 | K186: 436665.8172 | L186: 1.00802 | M186: 440167.877 | N186: =SUMIF(OFFSET(Metered!$I$2,0,0,1,COUNTA(Metered!$I$2:$AA$2)),"Transmission",OFFSET(Metered!$I187,0,0,1,COUNTA(Metered!$I187:$AA187))) -> 32546.2105 | O186: 552360.9131 | P186: 1.01732 | Q186: 561927.8041
A187: 4 | B187: 2019-04-08T17:00:00 | C187: =+Metered!E188 -> 303665.7835 | D187: 1.01463 | E187: 308108.4139 | F187: =SUMIF(OFFSET(Metered!$I$2,0,0,1,COUNTA(Metered!$I$2:$IV$2)),"Primary",OFFSET(Metered!$I188,0,0,1,COUNTA(Metered!$I188:$AA188))) -> 37232.61295 | G187: 345341.0269 | H187: 1.01021 | I187: 348866.9587 | J187: =SUMIF(OFFSET(Metered!$I$2,0,0,1,COUNTA(Metered!$I$2:$IV$2)),"Subtransmission",OFFSET(Metered!$I188,0,0,1,COUNTA(Metered!$I188:$AA188))) -> 164954.6865 | K187: 434848.7976 | L187: 1.00801 | M187: 438331.9365 | N187: =SUMIF(OFFSET(Metered!$I$2,0,0,1,COUNTA(Metered!$I$2:$AA$2)),"Transmission",OFFSET(Metered!$I188,0,0,1,COUNTA(Metered!$I188:$AA188))) -> 34176.75888 | O187: 551481.543 | P187: 1.0173 | Q187: 561022.1737
A188: 4 | B188: 2019-04-08T18:00:00 | C188: =+Metered!E189 -> 305742.5264 | D188: 1.01455 | E188: 310191.0802 | F188: =SUMIF(OFFSET(Metered!$I$2,0,0,1,COUNTA(Metered!$I$2:$IV$2)),"Primary",OFFSET(Metered!$I189,0,0,1,COUNTA(Metered!$I189:$AA189))) -> 35340.52948 | G188: 345531.6097 | H188: 1.01021 | I188: 349059.4874 | J188: =SUMIF(OFFSET(Metered!$I$2,0,0,1,COUNTA(Metered!$I$2:$IV$2)),"Subtransmission",OFFSET(Metered!$I189,0,0,1,COUNTA(Metered!$I189:$AA189))) -> 163945.486 | K188: 433988.5432 | L188: 1.008 | M188: 437460.4515 | N188: =SUMIF(OFFSET(Metered!$I$2,0,0,1,COUNTA(Metered!$I$2:$AA$2)),"Transmission",OFFSET(Metered!$I189,0,0,1,COUNTA(Metered!$I189:$AA189))) -> 34024.69881 | O188: 550501.5805 | P188: 1.01728 | Q188: 560014.2479
A189: 4 | B189: 2019-04-08T19:00:00 | C189: =+Metered!E190 -> 284699.2798 | D189: 1.01545 | E189: 289097.8836 | F189: =SUMIF(OFFSET(Metered!$I$2,0,0,1,COUNTA(Metered!$I$2:$IV$2)),"Primary",OFFSET(Metered!$I190,0,0,1,COUNTA(Metered!$I190:$AA190))) -> 35981.20446 | G189: 325079.0881 | H189: 1.01052 | I189: 328498.9201 | J189: =SUMIF(OFFSET(Metered!$I$2,0,0,1,COUNTA(Metered!$I$2:$IV$2)),"Subtransmission",OFFSET(Metered!$I190,0,0,1,COUNTA(Metered!$I190:$AA190))) -> 162480.8196 | K189: 416617.5954 | L189: 1.00791 | M189: 419913.0405 | N189: =SUMIF(OFFSET(Metered!$I$2,0,0,1,COUNTA(Metered!$I$2:$AA$2)),"Transmission",OFFSET(Metered!$I190,0,0,1,COUNTA(Metered!$I190:$AA190))) -> 34414.77086 | O189: 528689.9558 | P189: 1.01678 | Q189: 537561.3732
A190: 4 | B190: 2019-04-08T20:00:00 | C190: =+Metered!E191 -> 319080.5187 | D190: 1.01405 | E190: 323563.6 | F190: =SUMIF(OFFSET(Metered!$I$2,0,0,1,COUNTA(Metered!$I$2:$IV$2)),"Primary",OFFSET(Metered!$I191,0,0,1,COUNTA(Metered!$I191:$AA191))) -> 35455.96966 | G190: 359019.5697 | H190: 1.01003 | I190: 362620.536 | J190: =SUMIF(OFFSET(Metered!$I$2,0,0,1,COUNTA(Metered!$I$2:$IV$2)),"Subtransmission",OFFSET(Metered!$I191,0,0,1,COUNTA(Metered!$I191:$AA191))) -> 164706.6785 | K190: 445240.9761 | L190: 1.00806 | M190: 448829.6183 | N190: =SUMIF(OFFSET(Metered!$I$2,0,0,1,COUNTA(Metered!$I$2:$AA$2)),"Transmission",OFFSET(Metered!$I191,0,0,1,COUNTA(Metered!$I191:$AA191))) -> 34508.73719 | O190: 565424.5939 | P190: 1.01762 | Q190: 575387.3752
A191: 4 | B191: 2019-04-08T21:00:00 | C191: =+Metered!E192 -> 328085.8628 | D191: 1.01373 | E191: 332590.4817 | F191: =SUMIF(OFFSET(Metered!$I$2,0,0,1,COUNTA(Metered!$I$2:$IV$2)),"Primary",OFFSET(Metered!$I192,0,0,1,COUNTA(Metered!$I192:$AA192))) -> 34382.46388 | G191: 366972.9455 | H191: 1.00994 | I191: 370620.6566 | J191: =SUMIF(OFFSET(Metered!$I$2,0,0,1,COUNTA(Metered!$I$2:$IV$2)),"Subtransmission",OFFSET(Metered!$I192,0,0,1,COUNTA(Metered!$I192:$AA192))) -> 166182.697 | K191: 452906.1317 | L191: 1.00811 | M191: 456579.2005 | N191: =SUMIF(OFFSET(Metered!$I$2,0,0,1,COUNTA(Metered!$I$2:$AA$2)),"Transmission",OFFSET(Metered!$I192,0,0,1,COUNTA(Metered!$I192:$AA192))) -> 32613.14444 | O191: 573089.5668 | P191: 1.01779 | Q191: 583284.8301
A192: 4 | B192: 2019-04-08T22:00:00 | C192: =+Metered!E193 -> 280559.1641 | D192: 1.01565 | E192: 284949.915 | F192: =SUMIF(OFFSET(Metered!$I$2,0,0,1,COUNTA(Metered!$I$2:$IV$2)),"Primary",OFFSET(Metered!$I193,0,0,1,COUNTA(Metered!$I193:$AA193))) -> 32731.37174 | G192: 317681.2867 | H192: 1.01064 | I192: 321061.4156 | J192: =SUMIF(OFFSET(Metered!$I$2,0,0,1,COUNTA(Metered!$I$2:$IV$2)),"Subtransmission",OFFSET(Metered!$I193,0,0,1,COUNTA(Metered!$I193:$AA193))) -> 167224.4187 | K192: 415607.3143 | L192: 1.00791 | M192: 418894.7682 | N192: =SUMIF(OFFSET(Metered!$I$2,0,0,1,COUNTA(Metered!$I$2:$AA$2)),"Transmission",OFFSET(Metered!$I193,0,0,1,COUNTA(Metered!$I193:$AA193))) -> 32498.11692 | O192: 524071.4051 | P192: 1.01668 | Q192: 532812.9161
A193: 4 | B193: 2019-04-08T23:00:00 | C193: =+Metered!E194 -> 246395.204 | D193: 1.01753 | E193: 250714.5119 | F193: =SUMIF(OFFSET(Metered!$I$2,0,0,1,COUNTA(Metered!$I$2:$IV$2)),"Primary",OFFSET(Metered!$I194,0,0,1,COUNTA(Metered!$I194:$AA194))) -> 31465.95777 | G193: 282180.4697 | H193: 1.01139 | I193: 285394.5052 | J193: =SUMIF(OFFSET(Metered!$I$2,0,0,1,COUNTA(Metered!$I$2:$IV$2)),"Subtransmission",OFFSET(Metered!$I194,0,0,1,COUNTA(Metered!$I194:$AA194))) -> 165404.2306 | K193: 386194.1173 | L193: 1.00779 | M193: 389202.5695 | N193: =SUMIF(OFFSET(Metered!$I$2,0,0,1,COUNTA(Metered!$I$2:$AA$2)),"Transmission",OFFSET(Metered!$I194,0,0,1,COUNTA(Metered!$I194:$AA194))) -> 32291.31155 | O193: 486098.4995 | P193: 1.01585 | Q193: 493803.1608
A194: 4 | B194: 2019-04-09 | C194: =+Metered!E195 -> 214501.2194 | D194: =IF(C194=0,0,ROUND(1+((LossCoeff_Sec*C194^2+ZeroLoadLoss_Sec)/C194),5)) -> 1.01986 | E194: 218761.2136 | F194: =SUMIF(OFFSET(Metered!$I$2,0,0,1,COUNTA(Metered!$I$2:$IV$2)),"Primary",OFFSET(Metered!$I195,0,0,1,COUNTA(Metered!$I195:$AA195))) -> 28688.16959 | G194: 247449.3832 | H194: =IF(G194=0,0,ROUND(1+((LossCoeff_Pri*G194^2+ZeroLoadLoss_Pri)/G194),5)) -> 1.0124 | I194: 250517.7555 | J194: =SUMIF(OFFSET(Metered!$I$2,0,0,1,COUNTA(Metered!$I$2:$IV$2)),"Subtransmission",OFFSET(Metered!$I195,0,0,1,COUNTA(Metered!$I195:$AA195))) -> 164178.6234 | K194: =+I194*DistAtSubtran+J194 -> 357986.7937 | L194: =IF(K194=0,0,ROUND(1+((LossCoeff_Sub*K194^2+ZeroLoadLoss_Sub)/K194),5)) -> 1.0077 | M194: 360743.292 | N194: =SUMIF(OFFSET(Metered!$I$2,0,0,1,COUNTA(Metered!$I$2:$AA$2)),"Transmission",OFFSET(Metered!$I195,0,0,1,COUNTA(Metered!$I195:$AA195))) -> 32589.97363 | O194: =+M194+N194+(1-DistAtSubtran)*I194 -> 450042.8508 | P194: =IF(O194=0,0,ROUND(1+((LossCoeff_Trn*O194^2+ZeroLoadLoss_Trn)/O194),5)) -> 1.01508 | Q194: 456829.497
A195: =MONTH(B195) -> 4 | B195: =+B194+1/24 -> 2019-04-09T01:00:00 | C195: =+Metered!E196 -> 223073.7079 | D195: 1.01916 | E195: =+C195*D195 -> 227347.8002 | F195: =SUMIF(OFFSET(Metered!$I$2,0,0,1,COUNTA(Metered!$I$2:$IV$2)),"Primary",OFFSET(Metered!$I196,0,0,1,COUNTA(Metered!$I196:$AA196))) -> 26956.29267 | G195: =+E195+F195 -> 254304.0929 | H195: 1.01217 | I195: =+G195*H195 -> 257398.9737 | J195: =SUMIF(OFFSET(Metered!$I$2,0,0,1,COUNTA(Metered!$I$2:$IV$2)),"Subtransmission",OFFSET(Metered!$I196,0,0,1,COUNTA(Metered!$I196:$AA196))) -> 164406.0466 | K195: 363537.7369 | L195: 1.00771 | M195: =+K195*L195 -> 366340.6129 | N195: =SUMIF(OFFSET(Metered!$I$2,0,0,1,COUNTA(Metered!$I$2:$AA$2)),"Transmission",OFFSET(Metered!$I196,0,0,1,COUNTA(Metered!$I196:$AA196))) -> 32591.35363 | O195: 457199.2498 | P195: 1.01523 | Q195: =+P195*O195 -> 464162.3944
A196: 4 | B196: 2019-04-09T02:00:00 | C196: =+Metered!E197 -> 220570.2207 | D196: 1.01936 | E196: 224840.4601 | F196: =SUMIF(OFFSET(Metered!$I$2,0,0,1,COUNTA(Metered!$I$2:$IV$2)),"Primary",OFFSET(Metered!$I197,0,0,1,COUNTA(Metered!$I197:$AA197))) -> 26357.36877 | G196: 251197.8289 | H196: 1.01227 | I196: 254280.0263 | J196: =SUMIF(OFFSET(Metered!$I$2,0,0,1,COUNTA(Metered!$I$2:$IV$2)),"Subtransmission",OFFSET(Metered!$I197,0,0,1,COUNTA(Metered!$I197:$AA197))) -> 161523.0514 | K196: 358241.829 | L196: 1.0077 | M196: 361000.2911 | N196: =SUMIF(OFFSET(Metered!$I$2,0,0,1,COUNTA(Metered!$I$2:$AA$2)),"Transmission",OFFSET(Metered!$I197,0,0,1,COUNTA(Metered!$I197:$AA197))) -> 31989.20618 | O196: 450550.746 | P196: 1.01509 | Q196: 457349.5567
A197: 4 | B197: 2019-04-09T03:00:00 | C197: =+Metered!E198 -> 206721.5771 | D197: 1.02055 | E197: 210969.7055 | F197: =SUMIF(OFFSET(Metered!$I$2,0,0,1,COUNTA(Metered!$I$2:$IV$2)),"Primary",OFFSET(Metered!$I198,0,0,1,COUNTA(Metered!$I198:$AA198))) -> 25968.7075 | G197: 236938.413 | H197: 1.01278 | I197: 239966.4859 | J197: =SUMIF(OFFSET(Metered!$I$2,0,0,1,COUNTA(Metered!$I$2:$IV$2)),"Subtransmission",OFFSET(Metered!$I198,0,0,1,COUNTA(Metered!$I198:$AA198))) -> 159740.5499 | K197: 345385.9365 | L197: 1.00768 | M197: 348038.5005 | N197: =SUMIF(OFFSET(Metered!$I$2,0,0,1,COUNTA(Metered!$I$2:$AA$2)),"Transmission",OFFSET(Metered!$I198,0,0,1,COUNTA(Metered!$I198:$AA198))) -> 31726.33905 | O197: 434085.9389 | P197: 1.01476 | Q197: 440493.0474
A198: 4 | B198: 2019-04-09T04:00:00 | C198: =+Metered!E199 -> 223878.5046 | D198: 1.0191 | E198: 228154.584 | F198: =SUMIF(OFFSET(Metered!$I$2,0,0,1,COUNTA(Metered!$I$2:$IV$2)),"Primary",OFFSET(Metered!$I199,0,0,1,COUNTA(Metered!$I199:$AA199))) -> 26400.41209 | G198: 254554.9961 | H198: 1.01216 | I198: 257650.3849 | J198: =SUMIF(OFFSET(Metered!$I$2,0,0,1,COUNTA(Metered!$I$2:$IV$2)),"Subtransmission",OFFSET(Metered!$I199,0,0,1,COUNTA(Metered!$I199:$AA199))) -> 160919.2117 | K198: 360245.4014 | L198: 1.00771 | M198: 363022.8935 | N198: =SUMIF(OFFSET(Metered!$I$2,0,0,1,COUNTA(Metered!$I$2:$AA$2)),"Transmission",OFFSET(Metered!$I199,0,0,1,COUNTA(Metered!$I199:$AA199))) -> 32252.0743 | O198: 453599.1629 | P198: 1.01516 | Q198: 460475.7262
A199: 4 | B199: 2019-04-09T05:00:00 | C199: =+Metered!E200 -> 246021.5321 | D199: 1.01755 | E199: 250339.21 | F199: =SUMIF(OFFSET(Metered!$I$2,0,0,1,COUNTA(Metered!$I$2:$IV$2)),"Primary",OFFSET(Metered!$I200,0,0,1,COUNTA(Metered!$I200:$AA200))) -> 28034.11848 | G199: 278373.3285 | H199: 1.01148 | I199: 281569.0543 | J199: =SUMIF(OFFSET(Metered!$I$2,0,0,1,COUNTA(Metered!$I$2:$IV$2)),"Subtransmission",OFFSET(Metered!$I200,0,0,1,COUNTA(Metered!$I200:$AA200))) -> 159709.2138 | K199: 377539.6151 | L199: 1.00776 | M199: 380469.3225 | N199: =SUMIF(OFFSET(Metered!$I$2,0,0,1,COUNTA(Metered!$I$2:$AA$2)),"Transmission",OFFSET(Metered!$I200,0,0,1,COUNTA(Metered!$I200:$AA200))) -> 32219.16119 | O199: 476427.1367 | P199: 1.01564 | Q199: 483878.4571
A200: 4 | B200: 2019-04-09T06:00:00 | C200: =+Metered!E201 -> 307821.4706 | D200: 1.01447 | E200: 312275.6473 | F200: =SUMIF(OFFSET(Metered!$I$2,0,0,1,COUNTA(Metered!$I$2:$IV$2)),"Primary",OFFSET(Metered!$I201,0,0,1,COUNTA(Metered!$I201:$AA201))) -> 33350.52744 | G200: 345626.1747 | H200: 1.01021 | I200: 349155.018 | J200: =SUMIF(OFFSET(Metered!$I$2,0,0,1,COUNTA(Metered!$I$2:$IV$2)),"Subtransmission",OFFSET(Metered!$I201,0,0,1,COUNTA(Metered!$I201:$AA201))) -> 160756.2434 | K200: 430873.2059 | L200: 1.00799 | M200: 434315.8828 | N200: =SUMIF(OFFSET(Metered!$I$2,0,0,1,COUNTA(Metered!$I$2:$AA$2)),"Transmission",OFFSET(Metered!$I201,0,0,1,COUNTA(Metered!$I201:$AA201))) -> 31422.6265 | O200: 544776.5647 | P200: 1.01714 | Q200: 554114.0351
... 362 more rows

Sheet Loss Adj Sec
A1: Period | B1: Date | C1: Total | D1: =+Metered!I1 -> Res | E1: =+Metered!J1 -> Res NMS | F1: =+Metered!K1 -> C&I NMS | G1: =+Metered!L1 -> GS Sec | H1: =+Metered!M1 -> GS Pri | I1: =+Metered!N1 -> GS Sub | J1: =+Metered!O1 -> LGS Sec | K1: =+Metered!P1 -> LGS Pri | L1: =+Metered!Q1 -> LGS Sub | M1: =+Metered!R1 -> LGS Tran | N1: =+Metered!S1 -> PS Sec | O1: =+Metered!T1 -> PS Pri | P1: =+Metered!U1 -> IGS Sec | Q1: =+Metered!V1 -> IGS Pri | R1: =+Metered!W1 -> IGS Sub | S1: =+Metered!X1 -> IGS Tran | T1: =+Metered!Y1 -> MW | U1: =+Metered!Z1 -> OL | V1: =+Metered!AA1 -> SL | W1: =+Metered!AB1 -> Blank 1 | X1: =+Metered!AC1 -> Blank 2 | Y1: =+Metered!AD1 -> Blank 3 | Z1: =+Metered!AE1 -> Blank 4 | AA1: =+Metered!AF1 -> Blank 5 | AB1: =+Metered!AG1 -> Blank 6 | AC1: =+Metered!AH1 -> Blank 7 | AD1: =+Metered!AI1 -> Blank 8 | AE1: =+Metered!AJ1 -> Blank 9 | AF1: =+Metered!AK1 -> Blank 10 | AG1: =+Metered!AL1 -> Blank 11 | AH1: =+Metered!AM1 -> Blank 12
C2: Loss Adj | D2: =+Metered!I2 -> Secondary | E2: =+Metered!J2 -> Secondary | F2: =+Metered!K2 -> Secondary | G2: =+Metered!L2 -> Secondary | H2: =+Metered!M2 -> Primary | I2: =+Metered!N2 -> Subtransmission | J2: =+Metered!O2 -> Secondary | K2: =+Metered!P2 -> Primary | L2: =+Metered!Q2 -> Subtransmission | M2: =+Metered!R2 -> Transmission | N2: =+Metered!S2 -> Secondary | O2: =+Metered!T2 -> Primary | P2: =+Metered!U2 -> Secondary | Q2: =+Metered!V2 -> Primary | R2: =+Metered!W2 -> Subtransmission | S2: =+Metered!X2 -> Transmission | T2: =+Metered!Y2 -> Secondary | U2: =+Metered!Z2 -> Secondary | V2: =+Metered!AA2 -> Secondary | W2: =+Metered!AB2 -> Secondary | X2: =+Metered!AC2 -> Secondary | Y2: =+Metered!AD2 -> Subtransmission | Z2: =+Metered!AE2 -> Transmission | AA2: =+Metered!AF2 -> Secondary | AB2: =+Metered!AG2 -> Primary | AC2: =+Metered!AH2 -> Subtransmission | AD2: =+Metered!AI2 -> Transmission | AE2: =+Metered!AJ2 -> Secondary | AF2: =+Metered!AK2 -> Primary | AG2: =+Metered!AL2 -> Subtransmission | AH2: =+Metered!AM2 -> Subtransmission
A3: =MONTH(B3) -> 4 | B3: =+Inputs!C3 -> 2019-04-01 | C3: =SUM(OFFSET(D3,0,0,1,COUNTA(D3:IV3))) -> 523603.6261 | D3: =IF(D$2="Secondary",Metered!I3*'Loss Adj'!$D2,0) -> 408731.428 | E3: =IF(E$2="Secondary",+Metered!J3*'Loss Adj'!$D2,0) -> 80.50369408 | F3: =IF(F$2="Secondary",+Metered!K3*'Loss Adj'!$D2,0) -> 52.13192719 | G3: =IF(G$2="Secondary",+Metered!L3*'Loss Adj'!$D2,0) -> 60754.69978 | H3: =IF(H$2="Secondary",+Metered!M3*'Loss Adj'!$D2,0) -> 0 | I3: =IF(I$2="Secondary",+Metered!N3*'Loss Adj'!$D2,0) -> 0 | J3: =IF(J$2="Secondary",+Metered!O3*'Loss Adj'!$D2,0) -> 30936.34033 | K3: =IF(K$2="Secondary",+Metered!P3*'Loss Adj'!$D2,0) -> 0 | L3: =IF(L$2="Secondary",+Metered!Q3*'Loss Adj'!$D2,0) -> 0 | M3: =IF(M$2="Secondary",+Metered!R3*'Loss Adj'!$D2,0) -> 0 | N3: =IF(N$2="Secondary",+Metered!S3*'Loss Adj'!$D2,0) -> 8218.782309 | O3: =IF(O$2="Secondary",+Metered!T3*'Loss Adj'!$D2,0) -> 0 | P3: =IF(P$2="Secondary",+Metered!U3*'Loss Adj'!$D2,0) -> 1842.890073 | Q3: =IF(Q$2="Secondary",+Metered!V3*'Loss Adj'!$D2,0) -> 0 | R3: =IF(R$2="Secondary",+Metered!W3*'Loss Adj'!$D2,0) -> 0 | S3: =IF(S$2="Secondary",+Metered!X3*'Loss Adj'!$D2,0) -> 0 | T3: =IF(T$2="Secondary",+Metered!Y3*'Loss Adj'!$D2,0) -> 202.455641 | U3: =IF(U$2="Secondary",+Metered!Z3*'Loss Adj'!$D2,0) -> 10614.5116 | V3: =IF(V$2="Secondary",+Metered!AA3*'Loss Adj'!$D2,0) -> 2169.882704 | W3: =IF(W$2="Secondary",+Metered!AB3*'Loss Adj'!$D2,0) -> 0 | X3: =IF(X$2="Secondary",+Metered!AC3*'Loss Adj'!$D2,0) -> 0 | Y3: =IF(Y$2="Secondary",+Metered!AD3*'Loss Adj'!$D2,0) -> 0 | Z3: =IF(Z$2="Secondary",+Metered!AE3*'Loss Adj'!$D2,0) -> 0 | AA3: =IF(AA$2="Secondary",+Metered!AF3*'Loss Adj'!$D2,0) -> 0 | AB3: =IF(AB$2="Secondary",+Metered!AG3*'Loss Adj'!$D2,0) -> 0 | AC3: =IF(AC$2="Secondary",+Metered!AH3*'Loss Adj'!$D2,0) -> 0 | AD3: =IF(AD$2="Secondary",+Metered!AI3*'Loss Adj'!$D2,0) -> 0 | AE3: =IF(AE$2="Secondary",+Metered!AJ3*'Loss Adj'!$D2,0) -> 0 | AF3: =IF(AF$2="Secondary",+Metered!AK3*'Loss Adj'!$D2,0) -> 0 | AG3: =IF(AG$2="Secondary",+Metered!AL3*'Loss Adj'!$D2,0) -> 0 | AH3: =IF(AH$2="Secondary",+Metered!AM3*'Loss Adj'!$D2,0) -> 0
A4: 4 | B4: =+B3+1/24 -> 2019-04-01T01:00:00 | C4: 509115.2564 | D4: =IF(D$2="Secondary",Metered!I4*'Loss Adj'!$D3,0) -> 393263.9338 | E4: =IF(E$2="Secondary",+Metered!J4*'Loss Adj'!$D3,0) -> 77.45721823 | F4: =IF(F$2="Secondary",+Metered!K4*'Loss Adj'!$D3,0) -> 53.17713868 | G4: =IF(G$2="Secondary",+Metered!L4*'Loss Adj'!$D3,0) -> 61972.7923 | H4: =IF(H$2="Secondary",+Metered!M4*'Loss Adj'!$D3,0) -> 0 | I4: =IF(I$2="Secondary",+Metered!N4*'Loss Adj'!$D3,0) -> 0 | J4: =IF(J$2="Secondary",+Metered!O4*'Loss Adj'!$D3,0) -> 30686.77041 | K4: =IF(K$2="Secondary",+Metered!P4*'Loss Adj'!$D3,0) -> 0 | L4: =IF(L$2="Secondary",+Metered!Q4*'Loss Adj'!$D3,0) -> 0 | M4: =IF(M$2="Secondary",+Metered!R4*'Loss Adj'!$D3,0) -> 0 | N4: =IF(N$2="Secondary",+Metered!S4*'Loss Adj'!$D3,0) -> 8152.479675 | O4: =IF(O$2="Secondary",+Metered!T4*'Loss Adj'!$D3,0) -> 0 | P4: =IF(P$2="Secondary",+Metered!U4*'Loss Adj'!$D3,0) -> 1927.635402 | Q4: =IF(Q$2="Secondary",+Metered!V4*'Loss Adj'!$D3,0) -> 0 | R4: =IF(R$2="Secondary",+Metered!W4*'Loss Adj'!$D3,0) -> 0 | S4: =IF(S$2="Secondary",+Metered!X4*'Loss Adj'!$D3,0) -> 0 | T4: =IF(T$2="Secondary",+Metered!Y4*'Loss Adj'!$D3,0) -> 194.4641693 | U4: =IF(U$2="Secondary",+Metered!Z4*'Loss Adj'!$D3,0) -> 10616.29834 | V4: =IF(V$2="Secondary",+Metered!AA4*'Loss Adj'!$D3,0) -> 2170.247961 | W4: =IF(W$2="Secondary",+Metered!AB4*'Loss Adj'!$D3,0) -> 0 | X4: =IF(X$2="Secondary",+Metered!AC4*'Loss Adj'!$D3,0) -> 0 | Y4: =IF(Y$2="Secondary",+Metered!AD4*'Loss Adj'!$D3,0) -> 0 | Z4: =IF(Z$2="Secondary",+Metered!AE4*'Loss Adj'!$D3,0) -> 0 | AA4: =IF(AA$2="Secondary",+Metered!AF4*'Loss Adj'!$D3,0) -> 0 | AB4: =IF(AB$2="Secondary",+Metered!AG4*'Loss Adj'!$D3,0) -> 0 | AC4: =IF(AC$2="Secondary",+Metered!AH4*'Loss Adj'!$D3,0) -> 0 | AD4: =IF(AD$2="Secondary",+Metered!AI4*'Loss Adj'!$D3,0) -> 0 | AE4: =IF(AE$2="Secondary",+Metered!AJ4*'Loss Adj'!$D3,0) -> 0 | AF4: =IF(AF$2="Secondary",+Metered!AK4*'Loss Adj'!$D3,0) -> 0 | AG4: =IF(AG$2="Secondary",+Metered!AL4*'Loss Adj'!$D3,0) -> 0 | AH4: =IF(AH$2="Secondary",+Metered!AM4*'Loss Adj'!$D3,0) -> 0
A5: 4 | B5: 2019-04-01T02:00:00 | C5: 506733.818 | D5: =IF(D$2="Secondary",Metered!I5*'Loss Adj'!$D4,0) -> 389046.8913 | E5: =IF(E$2="Secondary",+Metered!J5*'Loss Adj'!$D4,0) -> 76.62663005 | F5: =IF(F$2="Secondary",+Metered!K5*'Loss Adj'!$D4,0) -> 53.32704383 | G5: =IF(G$2="Secondary",+Metered!L5*'Loss Adj'!$D4,0) -> 62147.49219 | H5: =IF(H$2="Secondary",+Metered!M5*'Loss Adj'!$D4,0) -> 0 | I5: =IF(I$2="Secondary",+Metered!N5*'Loss Adj'!$D4,0) -> 0 | J5: =IF(J$2="Secondary",+Metered!O5*'Loss Adj'!$D4,0) -> 31993.866 | K5: =IF(K$2="Secondary",+Metered!P5*'Loss Adj'!$D4,0) -> 0 | L5: =IF(L$2="Secondary",+Metered!Q5*'Loss Adj'!$D4,0) -> 0 | M5: =IF(M$2="Secondary",+Metered!R5*'Loss Adj'!$D4,0) -> 0 | N5: =IF(N$2="Secondary",+Metered!S5*'Loss Adj'!$D4,0) -> 8499.732582 | O5: =IF(O$2="Secondary",+Metered!T5*'Loss Adj'!$D4,0) -> 0 | P5: =IF(P$2="Secondary",+Metered!U5*'Loss Adj'!$D4,0) -> 1927.891324 | Q5: =IF(Q$2="Secondary",+Metered!V5*'Loss Adj'!$D4,0) -> 0 | R5: =IF(R$2="Secondary",+Metered!W5*'Loss Adj'!$D4,0) -> 0 | S5: =IF(S$2="Secondary",+Metered!X5*'Loss Adj'!$D4,0) -> 0 | T5: =IF(T$2="Secondary",+Metered!Y5*'Loss Adj'!$D4,0) -> 201.0648075 | U5: =IF(U$2="Secondary",+Metered!Z5*'Loss Adj'!$D4,0) -> 10616.61365 | V5: =IF(V$2="Secondary",+Metered!AA5*'Loss Adj'!$D4,0) -> 2170.312418 | W5: =IF(W$2="Secondary",+Metered!AB5*'Loss Adj'!$D4,0) -> 0 | X5: =IF(X$2="Secondary",+Metered!AC5*'Loss Adj'!$D4,0) -> 0 | Y5: =IF(Y$2="Secondary",+Metered!AD5*'Loss Adj'!$D4,0) -> 0 | Z5: =IF(Z$2="Secondary",+Metered!AE5*'Loss Adj'!$D4,0) -> 0 | AA5: =IF(AA$2="Secondary",+Metered!AF5*'Loss Adj'!$D4,0) -> 0 | AB5: =IF(AB$2="Secondary",+Metered!AG5*'Loss Adj'!$D4,0) -> 0 | AC5: =IF(AC$2="Secondary",+Metered!AH5*'Loss Adj'!$D4,0) -> 0 | AD5: =IF(AD$2="Secondary",+Metered!AI5*'Loss Adj'!$D4,0) -> 0 | AE5: =IF(AE$2="Secondary",+Metered!AJ5*'Loss Adj'!$D4,0) -> 0 | AF5: =IF(AF$2="Secondary",+Metered!AK5*'Loss Adj'!$D4,0) -> 0 | AG5: =IF(AG$2="Secondary",+Metered!AL5*'Loss Adj'!$D4,0) -> 0 | AH5: =IF(AH$2="Secondary",+Metered!AM5*'Loss Adj'!$D4,0) -> 0
A6: 4 | B6: 2019-04-01T03:00:00 | C6: 527736.0189 | D6: =IF(D$2="Secondary",Metered!I6*'Loss Adj'!$D5,0) -> 407016.1353 | E6: =IF(E$2="Secondary",+Metered!J6*'Loss Adj'!$D5,0) -> 80.16585022 | F6: =IF(F$2="Secondary",+Metered!K6*'Loss Adj'!$D5,0) -> 53.635523 | G6: =IF(G$2="Secondary",+Metered!L6*'Loss Adj'!$D5,0) -> 62506.99472 | H6: =IF(H$2="Secondary",+Metered!M6*'Loss Adj'!$D5,0) -> 0 | I6: =IF(I$2="Secondary",+Metered!N6*'Loss Adj'!$D5,0) -> 0 | J6: =IF(J$2="Secondary",+Metered!O6*'Loss Adj'!$D5,0) -> 34091.82914 | K6: =IF(K$2="Secondary",+Metered!P6*'Loss Adj'!$D5,0) -> 0 | L6: =IF(L$2="Secondary",+Metered!Q6*'Loss Adj'!$D5,0) -> 0 | M6: =IF(M$2="Secondary",+Metered!R6*'Loss Adj'!$D5,0) -> 0 | N6: =IF(N$2="Secondary",+Metered!S6*'Loss Adj'!$D5,0) -> 9057.093346 | O6: =IF(O$2="Secondary",+Metered!T6*'Loss Adj'!$D5,0) -> 0 | P6: =IF(P$2="Secondary",+Metered!U6*'Loss Adj'!$D5,0) -> 1943.381464 | Q6: =IF(Q$2="Secondary",+Metered!V6*'Loss Adj'!$D5,0) -> 0 | R6: =IF(R$2="Secondary",+Metered!W6*'Loss Adj'!$D5,0) -> 0 | S6: =IF(S$2="Secondary",+Metered!X6*'Loss Adj'!$D5,0) -> 0 | T6: =IF(T$2="Secondary",+Metered!Y6*'Loss Adj'!$D5,0) -> 202.895641 | U6: =IF(U$2="Secondary",+Metered!Z6*'Loss Adj'!$D5,0) -> 10614.09119 | V6: =IF(V$2="Secondary",+Metered!AA6*'Loss Adj'!$D5,0) -> 2169.796762 | W6: =IF(W$2="Secondary",+Metered!AB6*'Loss Adj'!$D5,0) -> 0 | X6: =IF(X$2="Secondary",+Metered!AC6*'Loss Adj'!$D5,0) -> 0 | Y6: =IF(Y$2="Secondary",+Metered!AD6*'Loss Adj'!$D5,0) -> 0 | Z6: =IF(Z$2="Secondary",+Metered!AE6*'Loss Adj'!$D5,0) -> 0 | AA6: =IF(AA$2="Secondary",+Metered!AF6*'Loss Adj'!$D5,0) -> 0 | AB6: =IF(AB$2="Secondary",+Metered!AG6*'Loss Adj'!$D5,0) -> 0 | AC6: =IF(AC$2="Secondary",+Metered!AH6*'Loss Adj'!$D5,0) -> 0 | AD6: =IF(AD$2="Secondary",+Metered!AI6*'Loss Adj'!$D5,0) -> 0 | AE6: =IF(AE$2="Secondary",+Metered!AJ6*'Loss Adj'!$D5,0) -> 0 | AF6: =IF(AF$2="Secondary",+Metered!AK6*'Loss Adj'!$D5,0) -> 0 | AG6: =IF(AG$2="Secondary",+Metered!AL6*'Loss Adj'!$D5,0) -> 0 | AH6: =IF(AH$2="Secondary",+Metered!AM6*'Loss Adj'!$D5,0) -> 0
A7: 4 | B7: 2019-04-01T04:00:00 | C7: 586278.2752 | D7: =IF(D$2="Secondary",Metered!I7*'Loss Adj'!$D6,0) -> 457646.4117 | E7: =IF(E$2="Secondary",+Metered!J7*'Loss Adj'!$D6,0) -> 90.13798352 | F7: =IF(F$2="Secondary",+Metered!K7*'Loss Adj'!$D6,0) -> 56.78698077 | G7: =IF(G$2="Secondary",+Metered!L7*'Loss Adj'!$D6,0) -> 66179.71278 | H7: =IF(H$2="Secondary",+Metered!M7*'Loss Adj'!$D6,0) -> 0 | I7: =IF(I$2="Secondary",+Metered!N7*'Loss Adj'!$D6,0) -> 0 | J7: =IF(J$2="Secondary",+Metered!O7*'Loss Adj'!$D6,0) -> 37392.37474 | K7: =IF(K$2="Secondary",+Metered!P7*'Loss Adj'!$D6,0) -> 0 | L7: =IF(L$2="Secondary",+Metered!Q7*'Loss Adj'!$D6,0) -> 0 | M7: =IF(M$2="Secondary",+Metered!R7*'Loss Adj'!$D6,0) -> 0 | N7: =IF(N$2="Secondary",+Metered!S7*'Loss Adj'!$D6,0) -> 9933.941271 | O7: =IF(O$2="Secondary",+Metered!T7*'Loss Adj'!$D6,0) -> 0 | P7: =IF(P$2="Secondary",+Metered!U7*'Loss Adj'!$D6,0) -> 2000.594257 | Q7: =IF(Q$2="Secondary",+Metered!V7*'Loss Adj'!$D6,0) -> 0 | R7: =IF(R$2="Secondary",+Metered!W7*'Loss Adj'!$D6,0) -> 0 | S7: =IF(S$2="Secondary",+Metered!X7*'Loss Adj'!$D6,0) -> 0 | T7: =IF(T$2="Secondary",+Metered!Y7*'Loss Adj'!$D6,0) -> 201.5164642 | U7: =IF(U$2="Secondary",+Metered!Z7*'Loss Adj'!$D6,0) -> 10608.20545 | V7: =IF(V$2="Secondary",+Metered!AA7*'Loss Adj'!$D6,0) -> 2168.593563 | W7: =IF(W$2="Secondary",+Metered!AB7*'Loss Adj'!$D6,0) -> 0 | X7: =IF(X$2="Secondary",+Metered!AC7*'Loss Adj'!$D6,0) -> 0 | Y7: =IF(Y$2="Secondary",+Metered!AD7*'Loss Adj'!$D6,0) -> 0 | Z7: =IF(Z$2="Secondary",+Metered!AE7*'Loss Adj'!$D6,0) -> 0 | AA7: =IF(AA$2="Secondary",+Metered!AF7*'Loss Adj'!$D6,0) -> 0 | AB7: =IF(AB$2="Secondary",+Metered!AG7*'Loss Adj'!$D6,0) -> 0 | AC7: =IF(AC$2="Secondary",+Metered!AH7*'Loss Adj'!$D6,0) -> 0 | AD7: =IF(AD$2="Secondary",+Metered!AI7*'Loss Adj'!$D6,0) -> 0 | AE7: =IF(AE$2="Secondary",+Metered!AJ7*'Loss Adj'!$D6,0) -> 0 | AF7: =IF(AF$2="Secondary",+Metered!AK7*'Loss Adj'!$D6,0) -> 0 | AG7: =IF(AG$2="Secondary",+Metered!AL7*'Loss Adj'!$D6,0) -> 0 | AH7: =IF(AH$2="Secondary",+Metered!AM7*'Loss Adj'!$D6,0) -> 0
A8: 4 | B8: 2019-04-01T05:00:00 | C8: 629641.9015 | D8: =IF(D$2="Secondary",Metered!I8*'Loss Adj'!$D7,0) -> 491665.1443 | E8: =IF(E$2="Secondary",+Metered!J8*'Loss Adj'!$D7,0) -> 96.83830911 | F8: =IF(F$2="Secondary",+Metered!K8*'Loss Adj'!$D7,0) -> 59.26422538 | G8: =IF(G$2="Secondary",+Metered!L8*'Loss Adj'!$D7,0) -> 69066.70087 | H8: =IF(H$2="Secondary",+Metered!M8*'Loss Adj'!$D7,0) -> 0 | I8: =IF(I$2="Secondary",+Metered!N8*'Loss Adj'!$D7,0) -> 0 | J8: =IF(J$2="Secondary",+Metered!O8*'Loss Adj'!$D7,0) -> 42274.47669 | K8: =IF(K$2="Secondary",+Metered!P8*'Loss Adj'!$D7,0) -> 0 | L8: =IF(L$2="Secondary",+Metered!Q8*'Loss Adj'!$D7,0) -> 0 | M8: =IF(M$2="Secondary",+Metered!R8*'Loss Adj'!$D7,0) -> 0 | N8: =IF(N$2="Secondary",+Metered!S8*'Loss Adj'!$D7,0) -> 11230.95742 | O8: =IF(O$2="Secondary",+Metered!T8*'Loss Adj'!$D7,0) -> 0 | P8: =IF(P$2="Secondary",+Metered!U8*'Loss Adj'!$D7,0) -> 2269.712123 | Q8: =IF(Q$2="Secondary",+Metered!V8*'Loss Adj'!$D7,0) -> 0 | R8: =IF(R$2="Secondary",+Metered!W8*'Loss Adj'!$D7,0) -> 0 | S8: =IF(S$2="Secondary",+Metered!X8*'Loss Adj'!$D7,0) -> 0 | T8: =IF(T$2="Secondary",+Metered!Y8*'Loss Adj'!$D7,0) -> 205.9327425 | U8: =IF(U$2="Secondary",+Metered!Z8*'Loss Adj'!$D7,0) -> 10604.94727 | V8: =IF(V$2="Secondary",+Metered!AA8*'Loss Adj'!$D7,0) -> 2167.927507 | W8: =IF(W$2="Secondary",+Metered!AB8*'Loss Adj'!$D7,0) -> 0 | X8: =IF(X$2="Secondary",+Metered!AC8*'Loss Adj'!$D7,0) -> 0 | Y8: =IF(Y$2="Secondary",+Metered!AD8*'Loss Adj'!$D7,0) -> 0 | Z8: =IF(Z$2="Secondary",+Metered!AE8*'Loss Adj'!$D7,0) -> 0 | AA8: =IF(AA$2="Secondary",+Metered!AF8*'Loss Adj'!$D7,0) -> 0 | AB8: =IF(AB$2="Secondary",+Metered!AG8*'Loss Adj'!$D7,0) -> 0 | AC8: =IF(AC$2="Secondary",+Metered!AH8*'Loss Adj'!$D7,0) -> 0 | AD8: =IF(AD$2="Secondary",+Metered!AI8*'Loss Adj'!$D7,0) -> 0 | AE8: =IF(AE$2="Secondary",+Metered!AJ8*'Loss Adj'!$D7,0) -> 0 | AF8: =IF(AF$2="Secondary",+Metered!AK8*'Loss Adj'!$D7,0) -> 0 | AG8: =IF(AG$2="Secondary",+Metered!AL8*'Loss Adj'!$D7,0) -> 0 | AH8: =IF(AH$2="Secondary",+Metered!AM8*'Loss Adj'!$D7,0) -> 0
A9: 4 | B9: 2019-04-01T06:00:00 | C9: 681025.8347 | D9: =IF(D$2="Secondary",Metered!I9*'Loss Adj'!$D8,0) -> 525059.6125 | E9: =IF(E$2="Secondary",+Metered!J9*'Loss Adj'!$D8,0) -> 103.1150677 | F9: =IF(F$2="Secondary",+Metered!K9*'Loss Adj'!$D8,0) -> 66.054614 | G9: =IF(G$2="Secondary",+Metered!L9*'Loss Adj'!$D8,0) -> 77816.81541 | H9: =IF(H$2="Secondary",+Metered!M9*'Loss Adj'!$D8,0) -> 0 | I9: =IF(I$2="Secondary",+Metered!N9*'Loss Adj'!$D8,0) -> 0 | J9: =IF(J$2="Secondary",+Metered!O9*'Loss Adj'!$D8,0) -> 51973.74764 | K9: =IF(K$2="Secondary",+Metered!P9*'Loss Adj'!$D8,0) -> 0 | L9: =IF(L$2="Secondary",+Metered!Q9*'Loss Adj'!$D8,0) -> 0 | M9: =IF(M$2="Secondary",+Metered!R9*'Loss Adj'!$D8,0) -> 0 | N9: =IF(N$2="Secondary",+Metered!S9*'Loss Adj'!$D8,0) -> 13807.73915 | O9: =IF(O$2="Secondary",+Metered!T9*'Loss Adj'!$D8,0) -> 0 | P9: =IF(P$2="Secondary",+Metered!U9*'Loss Adj'!$D8,0) -> 2412.589763 | Q9: =IF(Q$2="Secondary",+Metered!V9*'Loss Adj'!$D8,0) -> 0 | R9: =IF(R$2="Secondary",+Metered!W9*'Loss Adj'!$D8,0) -> 0 | S9: =IF(S$2="Secondary",+Metered!X9*'Loss Adj'!$D8,0) -> 0 | T9: =IF(T$2="Secondary",+Metered!Y9*'Loss Adj'!$D8,0) -> 209.2573546 | U9: =IF(U$2="Secondary",+Metered!Z9*'Loss Adj'!$D8,0) -> 7951.424815 | V9: =IF(V$2="Secondary",+Metered!AA9*'Loss Adj'!$D8,0) -> 1625.478369 | W9: =IF(W$2="Secondary",+Metered!AB9*'Loss Adj'!$D8,0) -> 0 | X9: =IF(X$2="Secondary",+Metered!AC9*'Loss Adj'!$D8,0) -> 0 | Y9: =IF(Y$2="Secondary",+Metered!AD9*'Loss Adj'!$D8,0) -> 0 | Z9: =IF(Z$2="Secondary",+Metered!AE9*'Loss Adj'!$D8,0) -> 0 | AA9: =IF(AA$2="Secondary",+Metered!AF9*'Loss Adj'!$D8,0) -> 0 | AB9: =IF(AB$2="Secondary",+Metered!AG9*'Loss Adj'!$D8,0) -> 0 | AC9: =IF(AC$2="Secondary",+Metered!AH9*'Loss Adj'!$D8,0) -> 0 | AD9: =IF(AD$2="Secondary",+Metered!AI9*'Loss Adj'!$D8,0) -> 0 | AE9: =IF(AE$2="Secondary",+Metered!AJ9*'Loss Adj'!$D8,0) -> 0 | AF9: =IF(AF$2="Secondary",+Metered!AK9*'Loss Adj'!$D8,0) -> 0 | AG9: =IF(AG$2="Secondary",+Metered!AL9*'Loss Adj'!$D8,0) -> 0 | AH9: =IF(AH$2="Secondary",+Metered!AM9*'Loss Adj'!$D8,0) -> 0
A10: 4 | B10: 2019-04-01T07:00:00 | C10: 707446.3228 | D10: =IF(D$2="Secondary",Metered!I10*'Loss Adj'!$D9,0) -> 531193.9346 | E10: =IF(E$2="Secondary",+Metered!J10*'Loss Adj'!$D9,0) -> 70.92611202 | F10: =IF(F$2="Secondary",+Metered!K10*'Loss Adj'!$D9,0) -> 0.4378425604 | G10: =IF(G$2="Secondary",+Metered!L10*'Loss Adj'!$D9,0) -> 94284.1045 | H10: =IF(H$2="Secondary",+Metered!M10*'Loss Adj'!$D9,0) -> 0 | I10: =IF(I$2="Secondary",+Metered!N10*'Loss Adj'!$D9,0) -> 0 | J10: =IF(J$2="Secondary",+Metered!O10*'Loss Adj'!$D9,0) -> 62516.196 | K10: =IF(K$2="Secondary",+Metered!P10*'Loss Adj'!$D9,0) -> 0 | L10: =IF(L$2="Secondary",+Metered!Q10*'Loss Adj'!$D9,0) -> 0 | M10: =IF(M$2="Secondary",+Metered!R10*'Loss Adj'!$D9,0) -> 0 | N10: =IF(N$2="Secondary",+Metered!S10*'Loss Adj'!$D9,0) -> 16608.52577 | O10: =IF(O$2="Secondary",+Metered!T10*'Loss Adj'!$D9,0) -> 0 | P10: =IF(P$2="Secondary",+Metered!U10*'Loss Adj'!$D9,0) -> 2547.157041 | Q10: =IF(Q$2="Secondary",+Metered!V10*'Loss Adj'!$D9,0) -> 0 | R10: =IF(R$2="Secondary",+Metered!W10*'Loss Adj'!$D9,0) -> 0 | S10: =IF(S$2="Secondary",+Metered!X10*'Loss Adj'!$D9,0) -> 0 | T10: =IF(T$2="Secondary",+Metered!Y10*'Loss Adj'!$D9,0) -> 225.0409396 | U10: =IF(U$2="Secondary",+Metered!Z10*'Loss Adj'!$D9,0) -> 0 | V10: =IF(V$2="Secondary",+Metered!AA10*'Loss Adj'!$D9,0) -> 0 | W10: =IF(W$2="Secondary",+Metered!AB10*'Loss Adj'!$D9,0) -> 0 | X10: =IF(X$2="Secondary",+Metered!AC10*'Loss Adj'!$D9,0) -> 0 | Y10: =IF(Y$2="Secondary",+Metered!AD10*'Loss Adj'!$D9,0) -> 0 | Z10: =IF(Z$2="Secondary",+Metered!AE10*'Loss Adj'!$D9,0) -> 0 | AA10: =IF(AA$2="Secondary",+Metered!AF10*'Loss Adj'!$D9,0) -> 0 | AB10: =IF(AB$2="Secondary",+Metered!AG10*'Loss Adj'!$D9,0) -> 0 | AC10: =IF(AC$2="Secondary",+Metered!AH10*'Loss Adj'!$D9,0) -> 0 | AD10: =IF(AD$2="Secondary",+Metered!AI10*'Loss Adj'!$D9,0) -> 0 | AE10: =IF(AE$2="Secondary",+Metered!AJ10*'Loss Adj'!$D9,0) -> 0 | AF10: =IF(AF$2="Secondary",+Metered!AK10*'Loss Adj'!$D9,0) -> 0 | AG10: =IF(AG$2="Secondary",+Metered!AL10*'Loss Adj'!$D9,0) -> 0 | AH10: =IF(AH$2="Secondary",+Metered!AM10*'Loss Adj'!$D9,0) -> 0
